Workbook

Sheet Inicio
N2: Fonte: GPP a partir de dados
A4: Caracterização dos Apoios e Agricultores Portugueses no âmbito do Pedido Único da PAC - 2020
A10: 1. | B10: Seleccione a variável, o tipo de classes de dimensão e o grupo de produtores a representar:
A15: 2. | B15: Visualize os gráficos respetivos:
B20: Visualize a base de dados:
B25: Copie os dados obtidos para um novo ficheiro:

Sheet Base (hidden)
D4: Tipo de Beneficiário: | G4: =INDEX(Sheet6!$P$1:$P$6,Sheet3!$A$2) -> Todos os Produtores do PU | N4: Valor total: | P4: =+Base!$DM$34 -> 169441 | R4: =+"(" & (INDEX(Sheet6!$G$2:$G$117,Sheet3!$C$1)) & ")" -> (Nº )
D5: =+INDEX(Sheet6!$D$2:$D$117,Sheet3!$C$1)&" segundo Orientação Técnico Económica e "&INDEX(Sheet6!$M$3:$M$6,Sheet3!$B$1)&" e por NUTSIII em " &Sheet6!$B$1 -> (1) - Nº de Beneficiários segundo Orientação Técnico Económica e Classes de Superfície Agrícola e por NUTSIII em 2019 | AH5: =+D5& " (cont.)" -> (1) - Nº de Beneficiários segundo Orientação Técnico Económica e Classes de Superfície Agrícola e por NUTSIII em 2019 (cont.) | BL5: =+AH5 -> (1) - Nº de Beneficiários segundo Orientação Técnico Económica e Classes de Superfície Agrícola e por NUTSIII em 2019 (cont.) | CP5: =+INDEX(Sheet6!$D$2:$D$117,Sheet3!$C$1)&" segundo Orientação Técnico Económica por NUTSIII em " &Sheet6!B1 -> (1) - Nº de Beneficiários segundo Orientação Técnico Económica por NUTSIII em 2019 | DH5: =+INDEX(Sheet6!$D$2:$D$117,Sheet3!$C$1)&CHAR(10)& "segundo "&INDEX(Sheet6!$M$3:$M$6,Sheet3!$B$1)& " por NUTSIII em " &Sheet6!$B$1 -> (1) - Nº de Beneficiários segundo Classes de Superfície Agrícola por NUTSIII em 2019
C7: =+"Unidade: "&INDEX(Sheet6!$G$2:$G$117,Sheet3!$C$1) -> Unidade: Nº
C8: OTE | D8: Não classificadas | I8: Arvenses e Outras Cult pred. Regadio | N8: Arvenses e Outras Cult pred. Sequeiro | S8: Arroz | X8: Horticultura e Industriais | AC8: Horticultura e Floricultura | AH8: Vinhos | AM8: Fruticultura | AR8: Olival | AW8: Policultura | BB8: Bovinos Leite | BG8: Bovinos Carne pred. Intensivos | BL8: Bovinos Carne pred. Extensivos | BQ8: Outros Ruminantes | BV8: Mistas | CA8: Pousio e Pastagem | CF8: Tomate Indústria | CK8: Plantas tuberosas | CP8: Não classificadas | CQ8: Arvenses e Outras Cult pred. Regadio | CR8: Arvenses e Outras Cult pred. Sequeiro | CS8: Arroz | CT8: Horticultura e Industriais | CU8: Horticultura e Floricultura | CV8: Vinhos | CW8: Fruticultura | CX8: Olival | CY8: Policultura | CZ8: Bovinos Leite | DA8: Bovinos Carne pred. Intensivos | DB8: Bovinos Carne pred. Extensivos | DC8: Outros Ruminantes | DD8: Mistas | DE8: Pousio e Pastagem | DF8: Tomate Indústria | DG8: Plantas tuberosas | DH8: MP | DI8: P | DJ8: M | DK8: G | DL8: MG | DM8: Total
C9: =+INDEX(Sheet6!M3:M6,Sheet3!B1) -> Classes de Superfície Agrícola | D9: MP | E9: P | F9: M | G9: G | H9: MG | I9: MP | J9: P | K9: M | L9: G | M9: MG | N9: MP | O9: P | P9: M | Q9: G | R9: MG | S9: MP | T9: P | U9: M | V9: G | W9: MG | X9: MP | Y9: P | Z9: M | AA9: G | AB9: MG | AC9: MP | AD9: P | AE9: M | AF9: G | AG9: MG | AH9: MP | AI9: P | AJ9: M | AK9: G | AL9: MG | AM9: MP | AN9: P | AO9: M | AP9: G | AQ9: MG | AR9: MP | AS9: P | AT9: M | AU9: G | AV9: MG | AW9: MP | AX9: P | AY9: M | AZ9: G | BA9: MG | BB9: MP | BC9: P | BD9: M | BE9: G | BF9: MG | BG9: MP | BH9: P | BI9: M | BJ9: G | BK9: MG | BL9: MP | BM9: P | BN9: M | BO9: G | BP9: MG | BQ9: MP | BR9: P | BS9: M | BT9: G | BU9: MG | BV9: MP | BW9: P | BX9: M | BY9: G | BZ9: MG | CA9: MP | CB9: P | CC9: M | CD9: G | CE9: MG | CF9: MP | CG9: P | CH9: M | CI9: G | CJ9: MG | CK9: MP | CL9: P | CM9: M | CN9: G | CO9: MG | CQ9: Arvenses e Outras Cult pred. Regadio
A10: NUTS II | B10: Cód. | C10: NUTS III | AG10: =+"Unidade: "&INDEX(Sheet6!$G$2:$G$117,Sheet3!$C$1) -> Unidade: Nº | BK10: =+"Unidade: "&INDEX(Sheet6!$G$2:$G$117,Sheet3!$C$1) -> Unidade: Nº | CO10: =+"Unidade: "&INDEX(Sheet6!$G$2:$G$117,Sheet3!$C$1) -> Unidade: Nº | DM10: =+"Unidade: "&INDEX(Sheet6!$G$2:$G$117,Sheet3!$C$1) -> Unidade: Nº
A11: Norte | B11: 111 | C11: Alto Minho | D11: =+Sheet3!D8/Sheet3!$F$1 -> 0 | E11: =+Sheet3!E8/Sheet3!$F$1 -> 0 | F11: =+Sheet3!F8/Sheet3!$F$1 -> 0 | G11: =+Sheet3!G8/Sheet3!$F$1 -> 0 | H11: =+Sheet3!H8/Sheet3!$F$1 -> 0 | I11: =+Sheet3!I8/Sheet3!$F$1 -> 326 | J11: =+Sheet3!J8/Sheet3!$F$1 -> 9 | K11: =+Sheet3!K8/Sheet3!$F$1 -> 0 | L11: =+Sheet3!L8/Sheet3!$F$1 -> 0 | M11: =+Sheet3!M8/Sheet3!$F$1 -> 0 | N11: =+Sheet3!N8/Sheet3!$F$1 -> 156 | O11: =+Sheet3!O8/Sheet3!$F$1 -> 5 | P11: =+Sheet3!P8/Sheet3!$F$1 -> 0 | Q11: =+Sheet3!Q8/Sheet3!$F$1 -> 0 | R11: =+Sheet3!R8/Sheet3!$F$1 -> 0 | S11: =+Sheet3!S8/Sheet3!$F$1 -> 0 | T11: =+Sheet3!T8/Sheet3!$F$1 -> 0 | U11: =+Sheet3!U8/Sheet3!$F$1 -> 0 | V11: =+Sheet3!V8/Sheet3!$F$1 -> 0 | W11: =+Sheet3!W8/Sheet3!$F$1 -> 0 | X11: =+Sheet3!X8/Sheet3!$F$1 -> 0 | Y11: =+Sheet3!Y8/Sheet3!$F$1 -> 0 | Z11: =+Sheet3!Z8/Sheet3!$F$1 -> 0 | AA11: =+Sheet3!AA8/Sheet3!$F$1 -> 0 | AB11: =+Sheet3!AB8/Sheet3!$F$1 -> 0 | AC11: =+Sheet3!AC8/Sheet3!$F$1 -> 156 | AD11: =+Sheet3!AD8/Sheet3!$F$1 -> 5 | AE11: =+Sheet3!AE8/Sheet3!$F$1 -> 0 | AF11: =+Sheet3!AF8/Sheet3!$F$1 -> 0 | AG11: =+Sheet3!AG8/Sheet3!$F$1 -> 0 | AH11: =+Sheet3!AH8/Sheet3!$F$1 -> 571 | AI11: =+Sheet3!AI8/Sheet3!$F$1 -> 95 | AJ11: =+Sheet3!AJ8/Sheet3!$F$1 -> 10 | AK11: =+Sheet3!AK8/Sheet3!$F$1 -> 0 | AL11: =+Sheet3!AL8/Sheet3!$F$1 -> 0 | AM11: =+Sheet3!AM8/Sheet3!$F$1 -> 143 | AN11: =+Sheet3!AN8/Sheet3!$F$1 -> 18 | AO11: =+Sheet3!AO8/Sheet3!$F$1 -> 0 | AP11: =+Sheet3!AP8/Sheet3!$F$1 -> 0 | AQ11: =+Sheet3!AQ8/Sheet3!$F$1 -> 0 | AR11: =+Sheet3!AR8/Sheet3!$F$1 -> 0 | AS11: =+Sheet3!AS8/Sheet3!$F$1 -> 0 | AT11: =+Sheet3!AT8/Sheet3!$F$1 -> 0 | AU11: =+Sheet3!AU8/Sheet3!$F$1 -> 0 | AV11: =+Sheet3!AV8/Sheet3!$F$1 -> 0 | AW11: =+Sheet3!AW8/Sheet3!$F$1 -> 2159 | AX11: =+Sheet3!AX8/Sheet3!$F$1 -> 32 | AY11: =+Sheet3!AY8/Sheet3!$F$1 -> 0 | AZ11: =+Sheet3!AZ8/Sheet3!$F$1 -> 0 | BA11: =+Sheet3!BA8/Sheet3!$F$1 -> 0 | BB11: =+Sheet3!BB8/Sheet3!$F$1 -> 10 | BC11: =+Sheet3!BC8/Sheet3!$F$1 -> 53 | BD11: =+Sheet3!BD8/Sheet3!$F$1 -> 8 | BE11: =+Sheet3!BE8/Sheet3!$F$1 -> 0 | BF11: =+Sheet3!BF8/Sheet3!$F$1 -> 0 | BG11: =+Sheet3!BG8/Sheet3!$F$1 -> 293 | BH11: =+Sheet3!BH8/Sheet3!$F$1 -> 105 | BI11: =+Sheet3!BI8/Sheet3!$F$1 -> 13 | BJ11: =+Sheet3!BJ8/Sheet3!$F$1 -> 0 | BK11: =+Sheet3!BK8/Sheet3!$F$1 -> 0 | BL11: =+Sheet3!BL8/Sheet3!$F$1 -> 420 | BM11: =+Sheet3!BM8/Sheet3!$F$1 -> 375 | BN11: =+Sheet3!BN8/Sheet3!$F$1 -> 121 | BO11: =+Sheet3!BO8/Sheet3!$F$1 -> 6 | BP11: =+Sheet3!BP8/Sheet3!$F$1 -> 5 | BQ11: =+Sheet3!BQ8/Sheet3!$F$1 -> 977 | BR11: =+Sheet3!BR8/Sheet3!$F$1 -> 357 | BS11: =+Sheet3!BS8/Sheet3!$F$1 -> 40 | BT11: =+Sheet3!BT8/Sheet3!$F$1 -> 0 | BU11: =+Sheet3!BU8/Sheet3!$F$1 -> 0 | BV11: =+Sheet3!BV8/Sheet3!$F$1 -> 1071 | BW11: =+Sheet3!BW8/Sheet3!$F$1 -> 61 | BX11: =+Sheet3!BX8/Sheet3!$F$1 -> 0 | BY11: =+Sheet3!BY8/Sheet3!$F$1 -> 0 | BZ11: =+Sheet3!BZ8/Sheet3!$F$1 -> 0 | CA11: =+Sheet3!CA8/Sheet3!$F$1 -> 338 | CB11: =+Sheet3!CB8/Sheet3!$F$1 -> 14 | CC11: =+Sheet3!CC8/Sheet3!$F$1 -> 0 | CD11: =+Sheet3!CD8/Sheet3!$F$1 -> 0 | CE11: =+Sheet3!CE8/Sheet3!$F$1 -> 0 | CF11: =+Sheet3!CF8/Sheet3!$F$1 -> 0 | CG11: =+Sheet3!CG8/Sheet3!$F$1 -> 0 | CH11: =+Sheet3!CH8/Sheet3!$F$1 -> 0 | CI11: =+Sheet3!CI8/Sheet3!$F$1 -> 0 | CJ11: =+Sheet3!CJ8/Sheet3!$F$1 -> 0 | CK11: =+Sheet3!CK8/Sheet3!$F$1 -> 0 | CL11: =+Sheet3!CL8/Sheet3!$F$1 -> 0 | CM11: =+Sheet3!CM8/Sheet3!$F$1 -> 0 | CN11: =+Sheet3!CN8/Sheet3!$F$1 -> 0 | CO11: =+Sheet3!CO8/Sheet3!$F$1 -> 0 | CP11: =+Sheet3!CP8/Sheet3!$F$1 -> 3 | CQ11: =+Sheet3!CQ8/Sheet3!$F$1 -> 335 | CR11: =+Sheet3!CR8/Sheet3!$F$1 -> 163 | CS11: =+Sheet3!CS8/Sheet3!$F$1 -> 0 | CT11: =+Sheet3!CT8/Sheet3!$F$1 -> 0 | CU11: =+Sheet3!CU8/Sheet3!$F$1 -> 163 | CV11: =+Sheet3!CV8/Sheet3!$F$1 -> 677 | CW11: =+Sheet3!CW8/Sheet3!$F$1 -> 165 | CX11: =+Sheet3!CX8/Sheet3!$F$1 -> 0 | CY11: =+Sheet3!CY8/Sheet3!$F$1 -> 2195 | CZ11: =+Sheet3!CZ8/Sheet3!$F$1 -> 71 | DA11: =+Sheet3!DA8/Sheet3!$F$1 -> 415 | DB11: =+Sheet3!DB8/Sheet3!$F$1 -> 927 | DC11: =+Sheet3!DC8/Sheet3!$F$1 -> 1377 | DD11: =+Sheet3!DD8/Sheet3!$F$1 -> 1135 | DE11: =+Sheet3!DE8/Sheet3!$F$1 -> 357 | DF11: =+Sheet3!DF8/Sheet3!$F$1 -> 0 | DG11: =+Sheet3!DG8/Sheet3!$F$1 -> 0 | DH11: =+Sheet3!DH8/Sheet3!$F$1 -> 6623 | DI11: =+Sheet3!DI8/Sheet3!$F$1 -> 1143 | DJ11: =+Sheet3!DJ8/Sheet3!$F$1 -> 205 | DK11: =+Sheet3!DK8/Sheet3!$F$1 -> 7 | DL11: =+Sheet3!DL8/Sheet3!$F$1 -> 5 | DM11: =SUM(DH11:DL11) -> 7983
B12: 112 | C12: Cávado | D12: =+Sheet3!D9/Sheet3!$F$1 -> 3 | E12: =+Sheet3!E9/Sheet3!$F$1 -> 0 | F12: =+Sheet3!F9/Sheet3!$F$1 -> 0 | G12: =+Sheet3!G9/Sheet3!$F$1 -> 0 | H12: =+Sheet3!H9/Sheet3!$F$1 -> 0 | I12: =+Sheet3!I9/Sheet3!$F$1 -> 953 | J12: =+Sheet3!J9/Sheet3!$F$1 -> 20 | K12: =+Sheet3!K9/Sheet3!$F$1 -> 0 | L12: =+Sheet3!L9/Sheet3!$F$1 -> 0 | M12: =+Sheet3!M9/Sheet3!$F$1 -> 0 | N12: =+Sheet3!N9/Sheet3!$F$1 -> 272 | O12: =+Sheet3!O9/Sheet3!$F$1 -> 0 | P12: =+Sheet3!P9/Sheet3!$F$1 -> 0 | Q12: =+Sheet3!Q9/Sheet3!$F$1 -> 0 | R12: =+Sheet3!R9/Sheet3!$F$1 -> 0 | S12: =+Sheet3!S9/Sheet3!$F$1 -> 0 | T12: =+Sheet3!T9/Sheet3!$F$1 -> 0 | U12: =+Sheet3!U9/Sheet3!$F$1 -> 0 | V12: =+Sheet3!V9/Sheet3!$F$1 -> 0 | W12: =+Sheet3!W9/Sheet3!$F$1 -> 0 | X12: =+Sheet3!X9/Sheet3!$F$1 -> 0 | Y12: =+Sheet3!Y9/Sheet3!$F$1 -> 0 | Z12: =+Sheet3!Z9/Sheet3!$F$1 -> 0 | AA12: =+Sheet3!AA9/Sheet3!$F$1 -> 0 | AB12: =+Sheet3!AB9/Sheet3!$F$1 -> 0 | AC12: =+Sheet3!AC9/Sheet3!$F$1 -> 410 | AD12: =+Sheet3!AD9/Sheet3!$F$1 -> 7 | AE12: =+Sheet3!AE9/Sheet3!$F$1 -> 0 | AF12: =+Sheet3!AF9/Sheet3!$F$1 -> 0 | AG12: =+Sheet3!AG9/Sheet3!$F$1 -> 0 | AH12: =+Sheet3!AH9/Sheet3!$F$1 -> 68 | AI12: =+Sheet3!AI9/Sheet3!$F$1 -> 30 | AJ12: =+Sheet3!AJ9/Sheet3!$F$1 -> 6 | AK12: =+Sheet3!AK9/Sheet3!$F$1 -> 0 | AL12: =+Sheet3!AL9/Sheet3!$F$1 -> 0 | AM12: =+Sheet3!AM9/Sheet3!$F$1 -> 225 | AN12: =+Sheet3!AN9/Sheet3!$F$1 -> 29 | AO12: =+Sheet3!AO9/Sheet3!$F$1 -> 0 | AP12: =+Sheet3!AP9/Sheet3!$F$1 -> 0 | AQ12: =+Sheet3!AQ9/Sheet3!$F$1 -> 0 | AR12: =+Sheet3!AR9/Sheet3!$F$1 -> 0 | AS12: =+Sheet3!AS9/Sheet3!$F$1 -> 0 | AT12: =+Sheet3!AT9/Sheet3!$F$1 -> 0 | AU12: =+Sheet3!AU9/Sheet3!$F$1 -> 0 | AV12: =+Sheet3!AV9/Sheet3!$F$1 -> 0 | AW12: =+Sheet3!AW9/Sheet3!$F$1 -> 2000 | AX12: =+Sheet3!AX9/Sheet3!$F$1 -> 64 | AY12: =+Sheet3!AY9/Sheet3!$F$1 -> 0 | AZ12: =+Sheet3!AZ9/Sheet3!$F$1 -> 0 | BA12: =+Sheet3!BA9/Sheet3!$F$1 -> 0 | BB12: =+Sheet3!BB9/Sheet3!$F$1 -> 139 | BC12: =+Sheet3!BC9/Sheet3!$F$1 -> 300 | BD12: =+Sheet3!BD9/Sheet3!$F$1 -> 14 | BE12: =+Sheet3!BE9/Sheet3!$F$1 -> 0 | BF12: =+Sheet3!BF9/Sheet3!$F$1 -> 0 | BG12: =+Sheet3!BG9/Sheet3!$F$1 -> 624 | BH12: =+Sheet3!BH9/Sheet3!$F$1 -> 126 | BI12: =+Sheet3!BI9/Sheet3!$F$1 -> 4 | BJ12: =+Sheet3!BJ9/Sheet3!$F$1 -> 0 | BK12: =+Sheet3!BK9/Sheet3!$F$1 -> 0 | BL12: =+Sheet3!BL9/Sheet3!$F$1 -> 138 | BM12: =+Sheet3!BM9/Sheet3!$F$1 -> 91 | BN12: =+Sheet3!BN9/Sheet3!$F$1 -> 18 | BO12: =+Sheet3!BO9/Sheet3!$F$1 -> 0 | BP12: =+Sheet3!BP9/Sheet3!$F$1 -> 0 | BQ12: =+Sheet3!BQ9/Sheet3!$F$1 -> 214 | BR12: =+Sheet3!BR9/Sheet3!$F$1 -> 74 | BS12: =+Sheet3!BS9/Sheet3!$F$1 -> 12 | BT12: =+Sheet3!BT9/Sheet3!$F$1 -> 0 | BU12: =+Sheet3!BU9/Sheet3!$F$1 -> 0 | BV12: =+Sheet3!BV9/Sheet3!$F$1 -> 599 | BW12: =+Sheet3!BW9/Sheet3!$F$1 -> 49 | BX12: =+Sheet3!BX9/Sheet3!$F$1 -> 0 | BY12: =+Sheet3!BY9/Sheet3!$F$1 -> 0 | BZ12: =+Sheet3!BZ9/Sheet3!$F$1 -> 0 | CA12: =+Sheet3!CA9/Sheet3!$F$1 -> 723 | CB12: =+Sheet3!CB9/Sheet3!$F$1 -> 77 | CC12: =+Sheet3!CC9/Sheet3!$F$1 -> 0 | CD12: =+Sheet3!CD9/Sheet3!$F$1 -> 0 | CE12: =+Sheet3!CE9/Sheet3!$F$1 -> 0 | CF12: =+Sheet3!CF9/Sheet3!$F$1 -> 0 | CG12: =+Sheet3!CG9/Sheet3!$F$1 -> 0 | CH12: =+Sheet3!CH9/Sheet3!$F$1 -> 0 | CI12: =+Sheet3!CI9/Sheet3!$F$1 -> 0 | CJ12: =+Sheet3!CJ9/Sheet3!$F$1 -> 0 | CK12: =+Sheet3!CK9/Sheet3!$F$1 -> 6 | CL12: =+Sheet3!CL9/Sheet3!$F$1 -> 0 | CM12: =+Sheet3!CM9/Sheet3!$F$1 -> 0 | CN12: =+Sheet3!CN9/Sheet3!$F$1 -> 0 | CO12: =+Sheet3!CO9/Sheet3!$F$1 -> 0 | CP12: =+Sheet3!CP9/Sheet3!$F$1 -> 4 | CQ12: =+Sheet3!CQ9/Sheet3!$F$1 -> 976 | CR12: =+Sheet3!CR9/Sheet3!$F$1 -> 273 | CS12: =+Sheet3!CS9/Sheet3!$F$1 -> 0 | CT12: =+Sheet3!CT9/Sheet3!$F$1 -> 0 | CU12: =+Sheet3!CU9/Sheet3!$F$1 -> 419 | CV12: =+Sheet3!CV9/Sheet3!$F$1 -> 105 | CW12: =+Sheet3!CW9/Sheet3!$F$1 -> 256 | CX12: =+Sheet3!CX9/Sheet3!$F$1 -> 0 | CY12: =+Sheet3!CY9/Sheet3!$F$1 -> 2067 | CZ12: =+Sheet3!CZ9/Sheet3!$F$1 -> 453 | DA12: =+Sheet3!DA9/Sheet3!$F$1 -> 758 | DB12: =+Sheet3!DB9/Sheet3!$F$1 -> 250 | DC12: =+Sheet3!DC9/Sheet3!$F$1 -> 301 | DD12: =+Sheet3!DD9/Sheet3!$F$1 -> 650 | DE12: =+Sheet3!DE9/Sheet3!$F$1 -> 804 | DF12: =+Sheet3!DF9/Sheet3!$F$1 -> 0 | DG12: =+Sheet3!DG9/Sheet3!$F$1 -> 6 | DH12: =+Sheet3!DH9/Sheet3!$F$1 -> 6383 | DI12: =+Sheet3!DI9/Sheet3!$F$1 -> 883 | DJ12: =+Sheet3!DJ9/Sheet3!$F$1 -> 56 | DK12: =+Sheet3!DK9/Sheet3!$F$1 -> 0 | DL12: =+Sheet3!DL9/Sheet3!$F$1 -> 0 | DM12: =SUM(DH12:DL12) -> 7322
B13: 119 | C13: Ave | D13: =+Sheet3!D10/Sheet3!$F$1 -> 0 | E13: =+Sheet3!E10/Sheet3!$F$1 -> 0 | F13: =+Sheet3!F10/Sheet3!$F$1 -> 0 | G13: =+Sheet3!G10/Sheet3!$F$1 -> 0 | H13: =+Sheet3!H10/Sheet3!$F$1 -> 0 | I13: =+Sheet3!I10/Sheet3!$F$1 -> 555 | J13: =+Sheet3!J10/Sheet3!$F$1 -> 18 | K13: =+Sheet3!K10/Sheet3!$F$1 -> 0 | L13: =+Sheet3!L10/Sheet3!$F$1 -> 0 | M13: =+Sheet3!M10/Sheet3!$F$1 -> 0 | N13: =+Sheet3!N10/Sheet3!$F$1 -> 85 | O13: =+Sheet3!O10/Sheet3!$F$1 -> 5 | P13: =+Sheet3!P10/Sheet3!$F$1 -> 0 | Q13: =+Sheet3!Q10/Sheet3!$F$1 -> 0 | R13: =+Sheet3!R10/Sheet3!$F$1 -> 0 | S13: =+Sheet3!S10/Sheet3!$F$1 -> 0 | T13: =+Sheet3!T10/Sheet3!$F$1 -> 0 | U13: =+Sheet3!U10/Sheet3!$F$1 -> 0 | V13: =+Sheet3!V10/Sheet3!$F$1 -> 0 | W13: =+Sheet3!W10/Sheet3!$F$1 -> 0 | X13: =+Sheet3!X10/Sheet3!$F$1 -> 0 | Y13: =+Sheet3!Y10/Sheet3!$F$1 -> 0 | Z13: =+Sheet3!Z10/Sheet3!$F$1 -> 0 | AA13: =+Sheet3!AA10/Sheet3!$F$1 -> 0 | AB13: =+Sheet3!AB10/Sheet3!$F$1 -> 0 | AC13: =+Sheet3!AC10/Sheet3!$F$1 -> 101 | AD13: =+Sheet3!AD10/Sheet3!$F$1 -> 8 | AE13: =+Sheet3!AE10/Sheet3!$F$1 -> 0 | AF13: =+Sheet3!AF10/Sheet3!$F$1 -> 0 | AG13: =+Sheet3!AG10/Sheet3!$F$1 -> 0 | AH13: =+Sheet3!AH10/Sheet3!$F$1 -> 173 | AI13: =+Sheet3!AI10/Sheet3!$F$1 -> 64 | AJ13: =+Sheet3!AJ10/Sheet3!$F$1 -> 7 | AK13: =+Sheet3!AK10/Sheet3!$F$1 -> 0 | AL13: =+Sheet3!AL10/Sheet3!$F$1 -> 0 | AM13: =+Sheet3!AM10/Sheet3!$F$1 -> 147 | AN13: =+Sheet3!AN10/Sheet3!$F$1 -> 28 | AO13: =+Sheet3!AO10/Sheet3!$F$1 -> 4 | AP13: =+Sheet3!AP10/Sheet3!$F$1 -> 0 | AQ13: =+Sheet3!AQ10/Sheet3!$F$1 -> 0 | AR13: =+Sheet3!AR10/Sheet3!$F$1 -> 0 | AS13: =+Sheet3!AS10/Sheet3!$F$1 -> 0 | AT13: =+Sheet3!AT10/Sheet3!$F$1 -> 0 | AU13: =+Sheet3!AU10/Sheet3!$F$1 -> 0 | AV13: =+Sheet3!AV10/Sheet3!$F$1 -> 0 | AW13: =+Sheet3!AW10/Sheet3!$F$1 -> 729 | AX13: =+Sheet3!AX10/Sheet3!$F$1 -> 54 | AY13: =+Sheet3!AY10/Sheet3!$F$1 -> 6 | AZ13: =+Sheet3!AZ10/Sheet3!$F$1 -> 0 | BA13: =+Sheet3!BA10/Sheet3!$F$1 -> 0 | BB13: =+Sheet3!BB10/Sheet3!$F$1 -> 37 | BC13: =+Sheet3!BC10/Sheet3!$F$1 -> 105 | BD13: =+Sheet3!BD10/Sheet3!$F$1 -> 4 | BE13: =+Sheet3!BE10/Sheet3!$F$1 -> 0 | BF13: =+Sheet3!BF10/Sheet3!$F$1 -> 0 | BG13: =+Sheet3!BG10/Sheet3!$F$1 -> 337 | BH13: =+Sheet3!BH10/Sheet3!$F$1 -> 107 | BI13: =+Sheet3!BI10/Sheet3!$F$1 -> 5 | BJ13: =+Sheet3!BJ10/Sheet3!$F$1 -> 0 | BK13: =+Sheet3!BK10/Sheet3!$F$1 -> 0 | BL13: =+Sheet3!BL10/Sheet3!$F$1 -> 171 | BM13: =+Sheet3!BM10/Sheet3!$F$1 -> 322 | BN13: =+Sheet3!BN10/Sheet3!$F$1 -> 34 | BO13: =+Sheet3!BO10/Sheet3!$F$1 -> 0 | BP13: =+Sheet3!BP10/Sheet3!$F$1 -> 0 | BQ13: =+Sheet3!BQ10/Sheet3!$F$1 -> 388 | BR13: =+Sheet3!BR10/Sheet3!$F$1 -> 318 | BS13: =+Sheet3!BS10/Sheet3!$F$1 -> 53 | BT13: =+Sheet3!BT10/Sheet3!$F$1 -> 0 | BU13: =+Sheet3!BU10/Sheet3!$F$1 -> 0 | BV13: =+Sheet3!BV10/Sheet3!$F$1 -> 355 | BW13: =+Sheet3!BW10/Sheet3!$F$1 -> 78 | BX13: =+Sheet3!BX10/Sheet3!$F$1 -> 8 | BY13: =+Sheet3!BY10/Sheet3!$F$1 -> 0 | BZ13: =+Sheet3!BZ10/Sheet3!$F$1 -> 0 | CA13: =+Sheet3!CA10/Sheet3!$F$1 -> 528 | CB13: =+Sheet3!CB10/Sheet3!$F$1 -> 54 | CC13: =+Sheet3!CC10/Sheet3!$F$1 -> 0 | CD13: =+Sheet3!CD10/Sheet3!$F$1 -> 0 | CE13: =+Sheet3!CE10/Sheet3!$F$1 -> 0 | CF13: =+Sheet3!CF10/Sheet3!$F$1 -> 0 | CG13: =+Sheet3!CG10/Sheet3!$F$1 -> 0 | CH13: =+Sheet3!CH10/Sheet3!$F$1 -> 0 | CI13: =+Sheet3!CI10/Sheet3!$F$1 -> 0 | CJ13: =+Sheet3!CJ10/Sheet3!$F$1 -> 0 | CK13: =+Sheet3!CK10/Sheet3!$F$1 -> 0 | CL13: =+Sheet3!CL10/Sheet3!$F$1 -> 0 | CM13: =+Sheet3!CM10/Sheet3!$F$1 -> 0 | CN13: =+Sheet3!CN10/Sheet3!$F$1 -> 0 | CO13: =+Sheet3!CO10/Sheet3!$F$1 -> 0 | CP13: =+Sheet3!CP10/Sheet3!$F$1 -> 7 | CQ13: =+Sheet3!CQ10/Sheet3!$F$1 -> 575 | CR13: =+Sheet3!CR10/Sheet3!$F$1 -> 91 | CS13: =+Sheet3!CS10/Sheet3!$F$1 -> 0 | CT13: =+Sheet3!CT10/Sheet3!$F$1 -> 0 | CU13: =+Sheet3!CU10/Sheet3!$F$1 -> 111 | CV13: =+Sheet3!CV10/Sheet3!$F$1 -> 247 | CW13: =+Sheet3!CW10/Sheet3!$F$1 -> 182 | CX13: =+Sheet3!CX10/Sheet3!$F$1 -> 4 | CY13: =+Sheet3!CY10/Sheet3!$F$1 -> 791 | CZ13: =+Sheet3!CZ10/Sheet3!$F$1 -> 150 | DA13: =+Sheet3!DA10/Sheet3!$F$1 -> 452 | DB13: =+Sheet3!DB10/Sheet3!$F$1 -> 531 | DC13: =+Sheet3!DC10/Sheet3!$F$1 -> 763 | DD13: =+Sheet3!DD10/Sheet3!$F$1 -> 442 | DE13: =+Sheet3!DE10/Sheet3!$F$1 -> 585 | DF13: =+Sheet3!DF10/Sheet3!$F$1 -> 0 | DG13: =+Sheet3!DG10/Sheet3!$F$1 -> 0 | DH13: =+Sheet3!DH10/Sheet3!$F$1 -> 3624 | DI13: =+Sheet3!DI10/Sheet3!$F$1 -> 1178 | DJ13: =+Sheet3!DJ10/Sheet3!$F$1 -> 131 | DK13: =+Sheet3!DK10/Sheet3!$F$1 -> 0 | DL13: =+Sheet3!DL10/Sheet3!$F$1 -> 0 | DM13: 4933
B14: 11A | C14: Área Metropolitana do Porto | D14: =+Sheet3!D11/Sheet3!$F$1 -> 0 | E14: =+Sheet3!E11/Sheet3!$F$1 -> 0 | F14: =+Sheet3!F11/Sheet3!$F$1 -> 0 | G14: =+Sheet3!G11/Sheet3!$F$1 -> 0 | H14: =+Sheet3!H11/Sheet3!$F$1 -> 0 | I14: =+Sheet3!I11/Sheet3!$F$1 -> 818 | J14: =+Sheet3!J11/Sheet3!$F$1 -> 25 | K14: =+Sheet3!K11/Sheet3!$F$1 -> 0 | L14: =+Sheet3!L11/Sheet3!$F$1 -> 0 | M14: =+Sheet3!M11/Sheet3!$F$1 -> 0 | N14: =+Sheet3!N11/Sheet3!$F$1 -> 97 | O14: =+Sheet3!O11/Sheet3!$F$1 -> 0 | P14: =+Sheet3!P11/Sheet3!$F$1 -> 0 | Q14: =+Sheet3!Q11/Sheet3!$F$1 -> 0 | R14: =+Sheet3!R11/Sheet3!$F$1 -> 0 | S14: =+Sheet3!S11/Sheet3!$F$1 -> 0 | T14: =+Sheet3!T11/Sheet3!$F$1 -> 0 | U14: =+Sheet3!U11/Sheet3!$F$1 -> 0 | V14: =+Sheet3!V11/Sheet3!$F$1 -> 0 | W14: =+Sheet3!W11/Sheet3!$F$1 -> 0 | X14: =+Sheet3!X11/Sheet3!$F$1 -> 0 | Y14: =+Sheet3!Y11/Sheet3!$F$1 -> 0 | Z14: =+Sheet3!Z11/Sheet3!$F$1 -> 0 | AA14: =+Sheet3!AA11/Sheet3!$F$1 -> 0 | AB14: =+Sheet3!AB11/Sheet3!$F$1 -> 0 | AC14: =+Sheet3!AC11/Sheet3!$F$1 -> 223 | AD14: =+Sheet3!AD11/Sheet3!$F$1 -> 14 | AE14: =+Sheet3!AE11/Sheet3!$F$1 -> 0 | AF14: =+Sheet3!AF11/Sheet3!$F$1 -> 0 | AG14: =+Sheet3!AG11/Sheet3!$F$1 -> 0 | AH14: =+Sheet3!AH11/Sheet3!$F$1 -> 62 | AI14: =+Sheet3!AI11/Sheet3!$F$1 -> 25 | AJ14: =+Sheet3!AJ11/Sheet3!$F$1 -> 0 | AK14: =+Sheet3!AK11/Sheet3!$F$1 -> 0 | AL14: =+Sheet3!AL11/Sheet3!$F$1 -> 0 | AM14: =+Sheet3!AM11/Sheet3!$F$1 -> 174 | AN14: =+Sheet3!AN11/Sheet3!$F$1 -> 37 | AO14: =+Sheet3!AO11/Sheet3!$F$1 -> 0 | AP14: =+Sheet3!AP11/Sheet3!$F$1 -> 0 | AQ14: =+Sheet3!AQ11/Sheet3!$F$1 -> 0 | AR14: =+Sheet3!AR11/Sheet3!$F$1 -> 0 | AS14: =+Sheet3!AS11/Sheet3!$F$1 -> 0 | AT14: =+Sheet3!AT11/Sheet3!$F$1 -> 0 | AU14: =+Sheet3!AU11/Sheet3!$F$1 -> 0 | AV14: =+Sheet3!AV11/Sheet3!$F$1 -> 0 | AW14: =+Sheet3!AW11/Sheet3!$F$1 -> 798 | AX14: =+Sheet3!AX11/Sheet3!$F$1 -> 50 | AY14: =+Sheet3!AY11/Sheet3!$F$1 -> 0 | AZ14: =+Sheet3!AZ11/Sheet3!$F$1 -> 0 | BA14: =+Sheet3!BA11/Sheet3!$F$1 -> 0 | BB14: =+Sheet3!BB11/Sheet3!$F$1 -> 126 | BC14: =+Sheet3!BC11/Sheet3!$F$1 -> 456 | BD14: =+Sheet3!BD11/Sheet3!$F$1 -> 26 | BE14: =+Sheet3!BE11/Sheet3!$F$1 -> 0 | BF14: =+Sheet3!BF11/Sheet3!$F$1 -> 0 | BG14: =+Sheet3!BG11/Sheet3!$F$1 -> 408 | BH14: =+Sheet3!BH11/Sheet3!$F$1 -> 124 | BI14: =+Sheet3!BI11/Sheet3!$F$1 -> 4 | BJ14: =+Sheet3!BJ11/Sheet3!$F$1 -> 0 | BK14: =+Sheet3!BK11/Sheet3!$F$1 -> 0 | BL14: =+Sheet3!BL11/Sheet3!$F$1 -> 74 | BM14: =+Sheet3!BM11/Sheet3!$F$1 -> 46 | BN14: =+Sheet3!BN11/Sheet3!$F$1 -> 0 | BO14: =+Sheet3!BO11/Sheet3!$F$1 -> 0 | BP14: =+Sheet3!BP11/Sheet3!$F$1 -> 0 | BQ14: =+Sheet3!BQ11/Sheet3!$F$1 -> 93 | BR14: =+Sheet3!BR11/Sheet3!$F$1 -> 53 | BS14: =+Sheet3!BS11/Sheet3!$F$1 -> 0 | BT14: =+Sheet3!BT11/Sheet3!$F$1 -> 0 | BU14: =+Sheet3!BU11/Sheet3!$F$1 -> 0 | BV14: =+Sheet3!BV11/Sheet3!$F$1 -> 374 | BW14: =+Sheet3!BW11/Sheet3!$F$1 -> 37 | BX14: =+Sheet3!BX11/Sheet3!$F$1 -> 0 | BY14: =+Sheet3!BY11/Sheet3!$F$1 -> 0 | BZ14: =+Sheet3!BZ11/Sheet3!$F$1 -> 0 | CA14: =+Sheet3!CA11/Sheet3!$F$1 -> 680 | CB14: =+Sheet3!CB11/Sheet3!$F$1 -> 168 | CC14: =+Sheet3!CC11/Sheet3!$F$1 -> 0 | CD14: =+Sheet3!CD11/Sheet3!$F$1 -> 0 | CE14: =+Sheet3!CE11/Sheet3!$F$1 -> 0 | CF14: =+Sheet3!CF11/Sheet3!$F$1 -> 0 | CG14: =+Sheet3!CG11/Sheet3!$F$1 -> 0 | CH14: =+Sheet3!CH11/Sheet3!$F$1 -> 0 | CI14: =+Sheet3!CI11/Sheet3!$F$1 -> 0 | CJ14: =+Sheet3!CJ11/Sheet3!$F$1 -> 0 | CK14: =+Sheet3!CK11/Sheet3!$F$1 -> 3 | CL14: =+Sheet3!CL11/Sheet3!$F$1 -> 0 | CM14: =+Sheet3!CM11/Sheet3!$F$1 -> 0 | CN14: =+Sheet3!CN11/Sheet3!$F$1 -> 0 | CO14: =+Sheet3!CO11/Sheet3!$F$1 -> 0 | CP14: =+Sheet3!CP11/Sheet3!$F$1 -> 0 | CQ14: =+Sheet3!CQ11/Sheet3!$F$1 -> 845 | CR14: =+Sheet3!CR11/Sheet3!$F$1 -> 99 | CS14: =+Sheet3!CS11/Sheet3!$F$1 -> 0 | CT14: =+Sheet3!CT11/Sheet3!$F$1 -> 0 | CU14: =+Sheet3!CU11/Sheet3!$F$1 -> 238 | CV14: =+Sheet3!CV11/Sheet3!$F$1 -> 89 | CW14: =+Sheet3!CW11/Sheet3!$F$1 -> 212 | CX14: =+Sheet3!CX11/Sheet3!$F$1 -> 0 | CY14: =+Sheet3!CY11/Sheet3!$F$1 -> 850 | CZ14: =+Sheet3!CZ11/Sheet3!$F$1 -> 610 | DA14: =+Sheet3!DA11/Sheet3!$F$1 -> 537 | DB14: =+Sheet3!DB11/Sheet3!$F$1 -> 126 | DC14: =+Sheet3!DC11/Sheet3!$F$1 -> 151 | DD14: =+Sheet3!DD11/Sheet3!$F$1 -> 414 | DE14: =+Sheet3!DE11/Sheet3!$F$1 -> 852 | DF14: =+Sheet3!DF11/Sheet3!$F$1 -> 0 | DG14: =+Sheet3!DG11/Sheet3!$F$1 -> 5 | DH14: =+Sheet3!DH11/Sheet3!$F$1 -> 3941 | DI14: =+Sheet3!DI11/Sheet3!$F$1 -> 1046 | DJ14: =+Sheet3!DJ11/Sheet3!$F$1 -> 44 | DK14: =+Sheet3!DK11/Sheet3!$F$1 -> 0 | DL14: =+Sheet3!DL11/Sheet3!$F$1 -> 0 | DM14: 5031
B15: 11B | C15: Alto Tâmega | D15: =+Sheet3!D12/Sheet3!$F$1 -> 17 | E15: =+Sheet3!E12/Sheet3!$F$1 -> 9 | F15: =+Sheet3!F12/Sheet3!$F$1 -> 0 | G15: =+Sheet3!G12/Sheet3!$F$1 -> 0 | H15: =+Sheet3!H12/Sheet3!$F$1 -> 0 | I15: =+Sheet3!I12/Sheet3!$F$1 -> 171 | J15: =+Sheet3!J12/Sheet3!$F$1 -> 35 | K15: =+Sheet3!K12/Sheet3!$F$1 -> 0 | L15: =+Sheet3!L12/Sheet3!$F$1 -> 0 | M15: =+Sheet3!M12/Sheet3!$F$1 -> 0 | N15: =+Sheet3!N12/Sheet3!$F$1 -> 523 | O15: =+Sheet3!O12/Sheet3!$F$1 -> 96 | P15: =+Sheet3!P12/Sheet3!$F$1 -> 3 | Q15: =+Sheet3!Q12/Sheet3!$F$1 -> 0 | R15: =+Sheet3!R12/Sheet3!$F$1 -> 0 | S15: =+Sheet3!S12/Sheet3!$F$1 -> 0 | T15: =+Sheet3!T12/Sheet3!$F$1 -> 0 | U15: =+Sheet3!U12/Sheet3!$F$1 -> 0 | V15: =+Sheet3!V12/Sheet3!$F$1 -> 0 | W15: =+Sheet3!W12/Sheet3!$F$1 -> 0 | X15: =+Sheet3!X12/Sheet3!$F$1 -> 0 | Y15: =+Sheet3!Y12/Sheet3!$F$1 -> 0 | Z15: =+Sheet3!Z12/Sheet3!$F$1 -> 0 | AA15: =+Sheet3!AA12/Sheet3!$F$1 -> 0 | AB15: =+Sheet3!AB12/Sheet3!$F$1 -> 0 | AC15: =+Sheet3!AC12/Sheet3!$F$1 -> 1153 | AD15: =+Sheet3!AD12/Sheet3!$F$1 -> 133 | AE15: =+Sheet3!AE12/Sheet3!$F$1 -> 0 | AF15: =+Sheet3!AF12/Sheet3!$F$1 -> 0 | AG15: =+Sheet3!AG12/Sheet3!$F$1 -> 0 | AH15: =+Sheet3!AH12/Sheet3!$F$1 -> 85 | AI15: =+Sheet3!AI12/Sheet3!$F$1 -> 23 | AJ15: =+Sheet3!AJ12/Sheet3!$F$1 -> 0 | AK15: =+Sheet3!AK12/Sheet3!$F$1 -> 0 | AL15: =+Sheet3!AL12/Sheet3!$F$1 -> 0 | AM15: =+Sheet3!AM12/Sheet3!$F$1 -> 899 | AN15: =+Sheet3!AN12/Sheet3!$F$1 -> 383 | AO15: =+Sheet3!AO12/Sheet3!$F$1 -> 17 | AP15: =+Sheet3!AP12/Sheet3!$F$1 -> 0 | AQ15: =+Sheet3!AQ12/Sheet3!$F$1 -> 0 | AR15: =+Sheet3!AR12/Sheet3!$F$1 -> 202 | AS15: =+Sheet3!AS12/Sheet3!$F$1 -> 32 | AT15: =+Sheet3!AT12/Sheet3!$F$1 -> 5 | AU15: =+Sheet3!AU12/Sheet3!$F$1 -> 0 | AV15: =+Sheet3!AV12/Sheet3!$F$1 -> 0 | AW15: =+Sheet3!AW12/Sheet3!$F$1 -> 3175 | AX15: =+Sheet3!AX12/Sheet3!$F$1 -> 979 | AY15: =+Sheet3!AY12/Sheet3!$F$1 -> 16 | AZ15: =+Sheet3!AZ12/Sheet3!$F$1 -> 0 | BA15: =+Sheet3!BA12/Sheet3!$F$1 -> 0 | BB15: =+Sheet3!BB12/Sheet3!$F$1 -> 12 | BC15: =+Sheet3!BC12/Sheet3!$F$1 -> 55 | BD15: =+Sheet3!BD12/Sheet3!$F$1 -> 11 | BE15: =+Sheet3!BE12/Sheet3!$F$1 -> 0 | BF15: =+Sheet3!BF12/Sheet3!$F$1 -> 0 | BG15: =+Sheet3!BG12/Sheet3!$F$1 -> 67 | BH15: =+Sheet3!BH12/Sheet3!$F$1 -> 113 | BI15: =+Sheet3!BI12/Sheet3!$F$1 -> 25 | BJ15: =+Sheet3!BJ12/Sheet3!$F$1 -> 0 | BK15: =+Sheet3!BK12/Sheet3!$F$1 -> 0 | BL15: =+Sheet3!BL12/Sheet3!$F$1 -> 163 | BM15: =+Sheet3!BM12/Sheet3!$F$1 -> 1000 | BN15: =+Sheet3!BN12/Sheet3!$F$1 -> 293 | BO15: =+Sheet3!BO12/Sheet3!$F$1 -> 8 | BP15: =+Sheet3!BP12/Sheet3!$F$1 -> 0 | BQ15: =+Sheet3!BQ12/Sheet3!$F$1 -> 536 | BR15: =+Sheet3!BR12/Sheet3!$F$1 -> 974 | BS15: =+Sheet3!BS12/Sheet3!$F$1 -> 147 | BT15: =+Sheet3!BT12/Sheet3!$F$1 -> 0 | BU15: =+Sheet3!BU12/Sheet3!$F$1 -> 0 | BV15: =+Sheet3!BV12/Sheet3!$F$1 -> 335 | BW15: =+Sheet3!BW12/Sheet3!$F$1 -> 411 | BX15: =+Sheet3!BX12/Sheet3!$F$1 -> 20 | BY15: =+Sheet3!BY12/Sheet3!$F$1 -> 0 | BZ15: =+Sheet3!BZ12/Sheet3!$F$1 -> 0 | CA15: =+Sheet3!CA12/Sheet3!$F$1 -> 373 | CB15: =+Sheet3!CB12/Sheet3!$F$1 -> 104 | CC15: =+Sheet3!CC12/Sheet3!$F$1 -> 3 | CD15: =+Sheet3!CD12/Sheet3!$F$1 -> 0 | CE15: =+Sheet3!CE12/Sheet3!$F$1 -> 0 | CF15: =+Sheet3!CF12/Sheet3!$F$1 -> 0 | CG15: =+Sheet3!CG12/Sheet3!$F$1 -> 0 | CH15: =+Sheet3!CH12/Sheet3!$F$1 -> 0 | CI15: =+Sheet3!CI12/Sheet3!$F$1 -> 0 | CJ15: =+Sheet3!CJ12/Sheet3!$F$1 -> 0 | CK15: =+Sheet3!CK12/Sheet3!$F$1 -> 49 | CL15: =+Sheet3!CL12/Sheet3!$F$1 -> 0 | CM15: =+Sheet3!CM12/Sheet3!$F$1 -> 0 | CN15: =+Sheet3!CN12/Sheet3!$F$1 -> 0 | CO15: =+Sheet3!CO12/Sheet3!$F$1 -> 0 | CP15: =+Sheet3!CP12/Sheet3!$F$1 -> 31 | CQ15: =+Sheet3!CQ12/Sheet3!$F$1 -> 208 | CR15: =+Sheet3!CR12/Sheet3!$F$1 -> 622 | CS15: =+Sheet3!CS12/Sheet3!$F$1 -> 0 | CT15: =+Sheet3!CT12/Sheet3!$F$1 -> 3 | CU15: =+Sheet3!CU12/Sheet3!$F$1 -> 1292 | CV15: =+Sheet3!CV12/Sheet3!$F$1 -> 113 | CW15: =+Sheet3!CW12/Sheet3!$F$1 -> 1303 | CX15: =+Sheet3!CX12/Sheet3!$F$1 -> 239 | CY15: =+Sheet3!CY12/Sheet3!$F$1 -> 4172 | CZ15: =+Sheet3!CZ12/Sheet3!$F$1 -> 84 | DA15: =+Sheet3!DA12/Sheet3!$F$1 -> 210 | DB15: =+Sheet3!DB12/Sheet3!$F$1 -> 1465 | DC15: =+Sheet3!DC12/Sheet3!$F$1 -> 1660 | DD15: =+Sheet3!DD12/Sheet3!$F$1 -> 766 | DE15: =+Sheet3!DE12/Sheet3!$F$1 -> 482 | DF15: =+Sheet3!DF12/Sheet3!$F$1 -> 0 | DG15: =+Sheet3!DG12/Sheet3!$F$1 -> 50 | DH15: =+Sheet3!DH12/Sheet3!$F$1 -> 7773 | DI15: =+Sheet3!DI12/Sheet3!$F$1 -> 4365 | DJ15: =+Sheet3!DJ12/Sheet3!$F$1 -> 552 | DK15: =+Sheet3!DK12/Sheet3!$F$1 -> 10 | DL15: =+Sheet3!DL12/Sheet3!$F$1 -> 0 | DM15: 12700
B16: 11C | C16: Tâmega e Sousa | D16: =+Sheet3!D13/Sheet3!$F$1 -> 0 | E16: =+Sheet3!E13/Sheet3!$F$1 -> 0 | F16: =+Sheet3!F13/Sheet3!$F$1 -> 0 | G16: =+Sheet3!G13/Sheet3!$F$1 -> 0 | H16: =+Sheet3!H13/Sheet3!$F$1 -> 0 | I16: =+Sheet3!I13/Sheet3!$F$1 -> 537 | J16: =+Sheet3!J13/Sheet3!$F$1 -> 16 | K16: =+Sheet3!K13/Sheet3!$F$1 -> 0 | L16: =+Sheet3!L13/Sheet3!$F$1 -> 0 | M16: =+Sheet3!M13/Sheet3!$F$1 -> 0 | N16: =+Sheet3!N13/Sheet3!$F$1 -> 48 | O16: =+Sheet3!O13/Sheet3!$F$1 -> 5 | P16: =+Sheet3!P13/Sheet3!$F$1 -> 0 | Q16: =+Sheet3!Q13/Sheet3!$F$1 -> 0 | R16: =+Sheet3!R13/Sheet3!$F$1 -> 0 | S16: =+Sheet3!S13/Sheet3!$F$1 -> 0 | T16: =+Sheet3!T13/Sheet3!$F$1 -> 0 | U16: =+Sheet3!U13/Sheet3!$F$1 -> 0 | V16: =+Sheet3!V13/Sheet3!$F$1 -> 0 | W16: =+Sheet3!W13/Sheet3!$F$1 -> 0 | X16: =+Sheet3!X13/Sheet3!$F$1 -> 0 | Y16: =+Sheet3!Y13/Sheet3!$F$1 -> 0 | Z16: =+Sheet3!Z13/Sheet3!$F$1 -> 0 | AA16: =+Sheet3!AA13/Sheet3!$F$1 -> 0 | AB16: =+Sheet3!AB13/Sheet3!$F$1 -> 0 | AC16: =+Sheet3!AC13/Sheet3!$F$1 -> 376 | AD16: =+Sheet3!AD13/Sheet3!$F$1 -> 6 | AE16: =+Sheet3!AE13/Sheet3!$F$1 -> 0 | AF16: =+Sheet3!AF13/Sheet3!$F$1 -> 0 | AG16: =+Sheet3!AG13/Sheet3!$F$1 -> 0 | AH16: =+Sheet3!AH13/Sheet3!$F$1 -> 558 | AI16: =+Sheet3!AI13/Sheet3!$F$1 -> 223 | AJ16: =+Sheet3!AJ13/Sheet3!$F$1 -> 25 | AK16: =+Sheet3!AK13/Sheet3!$F$1 -> 0 | AL16: =+Sheet3!AL13/Sheet3!$F$1 -> 0 | AM16: =+Sheet3!AM13/Sheet3!$F$1 -> 476 | AN16: =+Sheet3!AN13/Sheet3!$F$1 -> 144 | AO16: =+Sheet3!AO13/Sheet3!$F$1 -> 0 | AP16: =+Sheet3!AP13/Sheet3!$F$1 -> 0 | AQ16: =+Sheet3!AQ13/Sheet3!$F$1 -> 0 | AR16: =+Sheet3!AR13/Sheet3!$F$1 -> 5 | AS16: =+Sheet3!AS13/Sheet3!$F$1 -> 0 | AT16: =+Sheet3!AT13/Sheet3!$F$1 -> 0 | AU16: =+Sheet3!AU13/Sheet3!$F$1 -> 0 | AV16: =+Sheet3!AV13/Sheet3!$F$1 -> 0 | AW16: =+Sheet3!AW13/Sheet3!$F$1 -> 2737 | AX16: =+Sheet3!AX13/Sheet3!$F$1 -> 167 | AY16: =+Sheet3!AY13/Sheet3!$F$1 -> 3 | AZ16: =+Sheet3!AZ13/Sheet3!$F$1 -> 0 | BA16: =+Sheet3!BA13/Sheet3!$F$1 -> 0 | BB16: =+Sheet3!BB13/Sheet3!$F$1 -> 6 | BC16: =+Sheet3!BC13/Sheet3!$F$1 -> 20 | BD16: =+Sheet3!BD13/Sheet3!$F$1 -> 3 | BE16: =+Sheet3!BE13/Sheet3!$F$1 -> 0 | BF16: =+Sheet3!BF13/Sheet3!$F$1 -> 0 | BG16: =+Sheet3!BG13/Sheet3!$F$1 -> 326 | BH16: =+Sheet3!BH13/Sheet3!$F$1 -> 74 | BI16: =+Sheet3!BI13/Sheet3!$F$1 -> 3 | BJ16: =+Sheet3!BJ13/Sheet3!$F$1 -> 0 | BK16: =+Sheet3!BK13/Sheet3!$F$1 -> 0 | BL16: =+Sheet3!BL13/Sheet3!$F$1 -> 53 | BM16: =+Sheet3!BM13/Sheet3!$F$1 -> 42 | BN16: =+Sheet3!BN13/Sheet3!$F$1 -> 6 | BO16: =+Sheet3!BO13/Sheet3!$F$1 -> 0 | BP16: =+Sheet3!BP13/Sheet3!$F$1 -> 0 | BQ16: =+Sheet3!BQ13/Sheet3!$F$1 -> 244 | BR16: =+Sheet3!BR13/Sheet3!$F$1 -> 77 | BS16: =+Sheet3!BS13/Sheet3!$F$1 -> 17 | BT16: =+Sheet3!BT13/Sheet3!$F$1 -> 0 | BU16: =+Sheet3!BU13/Sheet3!$F$1 -> 0 | BV16: =+Sheet3!BV13/Sheet3!$F$1 -> 692 | BW16: =+Sheet3!BW13/Sheet3!$F$1 -> 67 | BX16: =+Sheet3!BX13/Sheet3!$F$1 -> 4 | BY16: =+Sheet3!BY13/Sheet3!$F$1 -> 0 | BZ16: =+Sheet3!BZ13/Sheet3!$F$1 -> 0 | CA16: =+Sheet3!CA13/Sheet3!$F$1 -> 268 | CB16: =+Sheet3!CB13/Sheet3!$F$1 -> 31 | CC16: =+Sheet3!CC13/Sheet3!$F$1 -> 0 | CD16: =+Sheet3!CD13/Sheet3!$F$1 -> 0 | CE16: =+Sheet3!CE13/Sheet3!$F$1 -> 0 | CF16: =+Sheet3!CF13/Sheet3!$F$1 -> 0 | CG16: =+Sheet3!CG13/Sheet3!$F$1 -> 0 | CH16: =+Sheet3!CH13/Sheet3!$F$1 -> 0 | CI16: =+Sheet3!CI13/Sheet3!$F$1 -> 0 | CJ16: =+Sheet3!CJ13/Sheet3!$F$1 -> 0 | CK16: =+Sheet3!CK13/Sheet3!$F$1 -> 0 | CL16: =+Sheet3!CL13/Sheet3!$F$1 -> 0 | CM16: =+Sheet3!CM13/Sheet3!$F$1 -> 0 | CN16: =+Sheet3!CN13/Sheet3!$F$1 -> 0 | CO16: =+Sheet3!CO13/Sheet3!$F$1 -> 0 | CP16: =+Sheet3!CP13/Sheet3!$F$1 -> 6 | CQ16: =+Sheet3!CQ13/Sheet3!$F$1 -> 553 | CR16: =+Sheet3!CR13/Sheet3!$F$1 -> 53 | CS16: =+Sheet3!CS13/Sheet3!$F$1 -> 0 | CT16: =+Sheet3!CT13/Sheet3!$F$1 -> 0 | CU16: =+Sheet3!CU13/Sheet3!$F$1 -> 385 | CV16: =+Sheet3!CV13/Sheet3!$F$1 -> 808 | CW16: =+Sheet3!CW13/Sheet3!$F$1 -> 622 | CX16: =+Sheet3!CX13/Sheet3!$F$1 -> 8 | CY16: =+Sheet3!CY13/Sheet3!$F$1 -> 2909 | CZ16: =+Sheet3!CZ13/Sheet3!$F$1 -> 30 | DA16: =+Sheet3!DA13/Sheet3!$F$1 -> 408 | DB16: =+Sheet3!DB13/Sheet3!$F$1 -> 101 | DC16: =+Sheet3!DC13/Sheet3!$F$1 -> 339 | DD16: =+Sheet3!DD13/Sheet3!$F$1 -> 766 | DE16: =+Sheet3!DE13/Sheet3!$F$1 -> 303 | DF16: =+Sheet3!DF13/Sheet3!$F$1 -> 0 | DG16: =+Sheet3!DG13/Sheet3!$F$1 -> 3 | DH16: =+Sheet3!DH13/Sheet3!$F$1 -> 6342 | DI16: =+Sheet3!DI13/Sheet3!$F$1 -> 886 | DJ16: =+Sheet3!DJ13/Sheet3!$F$1 -> 66 | DK16: =+Sheet3!DK13/Sheet3!$F$1 -> 0 | DL16: =+Sheet3!DL13/Sheet3!$F$1 -> 0 | DM16: 7294
B17: 11D | C17: Douro | D17: =+Sheet3!D14/Sheet3!$F$1 -> 22 | E17: =+Sheet3!E14/Sheet3!$F$1 -> 0 | F17: =+Sheet3!F14/Sheet3!$F$1 -> 0 | G17: =+Sheet3!G14/Sheet3!$F$1 -> 0 | H17: =+Sheet3!H14/Sheet3!$F$1 -> 0 | I17: =+Sheet3!I14/Sheet3!$F$1 -> 42 | J17: =+Sheet3!J14/Sheet3!$F$1 -> 0 | K17: =+Sheet3!K14/Sheet3!$F$1 -> 0 | L17: =+Sheet3!L14/Sheet3!$F$1 -> 0 | M17: =+Sheet3!M14/Sheet3!$F$1 -> 0 | N17: =+Sheet3!N14/Sheet3!$F$1 -> 130 | O17: =+Sheet3!O14/Sheet3!$F$1 -> 30 | P17: =+Sheet3!P14/Sheet3!$F$1 -> 0 | Q17: =+Sheet3!Q14/Sheet3!$F$1 -> 0 | R17: =+Sheet3!R14/Sheet3!$F$1 -> 0 | S17: =+Sheet3!S14/Sheet3!$F$1 -> 0 | T17: =+Sheet3!T14/Sheet3!$F$1 -> 0 | U17: =+Sheet3!U14/Sheet3!$F$1 -> 0 | V17: =+Sheet3!V14/Sheet3!$F$1 -> 0 | W17: =+Sheet3!W14/Sheet3!$F$1 -> 0 | X17: =+Sheet3!X14/Sheet3!$F$1 -> 0 | Y17: =+Sheet3!Y14/Sheet3!$F$1 -> 0 | Z17: =+Sheet3!Z14/Sheet3!$F$1 -> 0 | AA17: =+Sheet3!AA14/Sheet3!$F$1 -> 0 | AB17: =+Sheet3!AB14/Sheet3!$F$1 -> 0 | AC17: =+Sheet3!AC14/Sheet3!$F$1 -> 1508 | AD17: =+Sheet3!AD14/Sheet3!$F$1 -> 95 | AE17: =+Sheet3!AE14/Sheet3!$F$1 -> 0 | AF17: =+Sheet3!AF14/Sheet3!$F$1 -> 0 | AG17: =+Sheet3!AG14/Sheet3!$F$1 -> 0 | AH17: =+Sheet3!AH14/Sheet3!$F$1 -> 3771 | AI17: =+Sheet3!AI14/Sheet3!$F$1 -> 1685 | AJ17: =+Sheet3!AJ14/Sheet3!$F$1 -> 231 | AK17: =+Sheet3!AK14/Sheet3!$F$1 -> 8 | AL17: =+Sheet3!AL14/Sheet3!$F$1 -> 0 | AM17: =+Sheet3!AM14/Sheet3!$F$1 -> 824 | AN17: =+Sheet3!AN14/Sheet3!$F$1 -> 633 | AO17: =+Sheet3!AO14/Sheet3!$F$1 -> 60 | AP17: =+Sheet3!AP14/Sheet3!$F$1 -> 0 | AQ17: =+Sheet3!AQ14/Sheet3!$F$1 -> 0 | AR17: =+Sheet3!AR14/Sheet3!$F$1 -> 526 | AS17: =+Sheet3!AS14/Sheet3!$F$1 -> 52 | AT17: =+Sheet3!AT14/Sheet3!$F$1 -> 7 | AU17: =+Sheet3!AU14/Sheet3!$F$1 -> 0 | AV17: =+Sheet3!AV14/Sheet3!$F$1 -> 0 | AW17: =+Sheet3!AW14/Sheet3!$F$1 -> 6548 | AX17: =+Sheet3!AX14/Sheet3!$F$1 -> 1717 | AY17: =+Sheet3!AY14/Sheet3!$F$1 -> 129 | AZ17: =+Sheet3!AZ14/Sheet3!$F$1 -> 0 | BA17: =+Sheet3!BA14/Sheet3!$F$1 -> 0 | BB17: =+Sheet3!BB14/Sheet3!$F$1 -> 29 | BC17: =+Sheet3!BC14/Sheet3!$F$1 -> 49 | BD17: =+Sheet3!BD14/Sheet3!$F$1 -> 13 | BE17: =+Sheet3!BE14/Sheet3!$F$1 -> 0 | BF17: =+Sheet3!BF14/Sheet3!$F$1 -> 0 | BG17: =+Sheet3!BG14/Sheet3!$F$1 -> 35 | BH17: =+Sheet3!BH14/Sheet3!$F$1 -> 29 | BI17: =+Sheet3!BI14/Sheet3!$F$1 -> 5 | BJ17: =+Sheet3!BJ14/Sheet3!$F$1 -> 0 | BK17: =+Sheet3!BK14/Sheet3!$F$1 -> 0 | BL17: =+Sheet3!BL14/Sheet3!$F$1 -> 117 | BM17: =+Sheet3!BM14/Sheet3!$F$1 -> 180 | BN17: =+Sheet3!BN14/Sheet3!$F$1 -> 34 | BO17: =+Sheet3!BO14/Sheet3!$F$1 -> 0 | BP17: =+Sheet3!BP14/Sheet3!$F$1 -> 0 | BQ17: =+Sheet3!BQ14/Sheet3!$F$1 -> 363 | BR17: =+Sheet3!BR14/Sheet3!$F$1 -> 333 | BS17: =+Sheet3!BS14/Sheet3!$F$1 -> 51 | BT17: =+Sheet3!BT14/Sheet3!$F$1 -> 0 | BU17: =+Sheet3!BU14/Sheet3!$F$1 -> 0 | BV17: =+Sheet3!BV14/Sheet3!$F$1 -> 320 | BW17: =+Sheet3!BW14/Sheet3!$F$1 -> 134 | BX17: =+Sheet3!BX14/Sheet3!$F$1 -> 20 | BY17: =+Sheet3!BY14/Sheet3!$F$1 -> 0 | BZ17: =+Sheet3!BZ14/Sheet3!$F$1 -> 0 | CA17: =+Sheet3!CA14/Sheet3!$F$1 -> 72 | CB17: =+Sheet3!CB14/Sheet3!$F$1 -> 17 | CC17: =+Sheet3!CC14/Sheet3!$F$1 -> 5 | CD17: =+Sheet3!CD14/Sheet3!$F$1 -> 0 | CE17: =+Sheet3!CE14/Sheet3!$F$1 -> 0 | CF17: =+Sheet3!CF14/Sheet3!$F$1 -> 0 | CG17: =+Sheet3!CG14/Sheet3!$F$1 -> 0 | CH17: =+Sheet3!CH14/Sheet3!$F$1 -> 0 | CI17: =+Sheet3!CI14/Sheet3!$F$1 -> 0 | CJ17: =+Sheet3!CJ14/Sheet3!$F$1 -> 0 | CK17: =+Sheet3!CK14/Sheet3!$F$1 -> 49 | CL17: =+Sheet3!CL14/Sheet3!$F$1 -> 0 | CM17: =+Sheet3!CM14/Sheet3!$F$1 -> 0 | CN17: =+Sheet3!CN14/Sheet3!$F$1 -> 0 | CO17: =+Sheet3!CO14/Sheet3!$F$1 -> 0 | CP17: =+Sheet3!CP14/Sheet3!$F$1 -> 24 | CQ17: =+Sheet3!CQ14/Sheet3!$F$1 -> 44 | CR17: =+Sheet3!CR14/Sheet3!$F$1 -> 163 | CS17: =+Sheet3!CS14/Sheet3!$F$1 -> 0 | CT17: =+Sheet3!CT14/Sheet3!$F$1 -> 0 | CU17: =+Sheet3!CU14/Sheet3!$F$1 -> 1606 | CV17: =+Sheet3!CV14/Sheet3!$F$1 -> 5696 | CW17: =+Sheet3!CW14/Sheet3!$F$1 -> 1519 | CX17: =+Sheet3!CX14/Sheet3!$F$1 -> 585 | CY17: =+Sheet3!CY14/Sheet3!$F$1 -> 8396 | CZ17: =+Sheet3!CZ14/Sheet3!$F$1 -> 93 | DA17: =+Sheet3!DA14/Sheet3!$F$1 -> 72 | DB17: =+Sheet3!DB14/Sheet3!$F$1 -> 333 | DC17: =+Sheet3!DC14/Sheet3!$F$1 -> 749 | DD17: =+Sheet3!DD14/Sheet3!$F$1 -> 474 | DE17: =+Sheet3!DE14/Sheet3!$F$1 -> 95 | DF17: =+Sheet3!DF14/Sheet3!$F$1 -> 0 | DG17: =+Sheet3!DG14/Sheet3!$F$1 -> 50 | DH17: =+Sheet3!DH14/Sheet3!$F$1 -> 14359 | DI17: =+Sheet3!DI14/Sheet3!$F$1 -> 4968 | DJ17: =+Sheet3!DJ14/Sheet3!$F$1 -> 564 | DK17: =+Sheet3!DK14/Sheet3!$F$1 -> 9 | DL17: =+Sheet3!DL14/Sheet3!$F$1 -> 0 | DM17: 19900
B18: 11E | C18: Terras de Trás-os-Montes | D18: =+Sheet3!D15/Sheet3!$F$1 -> 27 | E18: =+Sheet3!E15/Sheet3!$F$1 -> 16 | F18: =+Sheet3!F15/Sheet3!$F$1 -> 5 | G18: =+Sheet3!G15/Sheet3!$F$1 -> 0 | H18: =+Sheet3!H15/Sheet3!$F$1 -> 0 | I18: =+Sheet3!I15/Sheet3!$F$1 -> 3 | J18: =+Sheet3!J15/Sheet3!$F$1 -> 0 | K18: =+Sheet3!K15/Sheet3!$F$1 -> 0 | L18: =+Sheet3!L15/Sheet3!$F$1 -> 0 | M18: =+Sheet3!M15/Sheet3!$F$1 -> 0 | N18: =+Sheet3!N15/Sheet3!$F$1 -> 260 | O18: =+Sheet3!O15/Sheet3!$F$1 -> 313 | P18: =+Sheet3!P15/Sheet3!$F$1 -> 38 | Q18: =+Sheet3!Q15/Sheet3!$F$1 -> 0 | R18: =+Sheet3!R15/Sheet3!$F$1 -> 0 | S18: =+Sheet3!S15/Sheet3!$F$1 -> 0 | T18: =+Sheet3!T15/Sheet3!$F$1 -> 0 | U18: =+Sheet3!U15/Sheet3!$F$1 -> 0 | V18: =+Sheet3!V15/Sheet3!$F$1 -> 0 | W18: =+Sheet3!W15/Sheet3!$F$1 -> 0 | X18: =+Sheet3!X15/Sheet3!$F$1 -> 3 | Y18: =+Sheet3!Y15/Sheet3!$F$1 -> 4 | Z18: =+Sheet3!Z15/Sheet3!$F$1 -> 0 | AA18: =+Sheet3!AA15/Sheet3!$F$1 -> 0 | AB18: =+Sheet3!AB15/Sheet3!$F$1 -> 0 | AC18: =+Sheet3!AC15/Sheet3!$F$1 -> 3167 | AD18: =+Sheet3!AD15/Sheet3!$F$1 -> 1627 | AE18: =+Sheet3!AE15/Sheet3!$F$1 -> 117 | AF18: =+Sheet3!AF15/Sheet3!$F$1 -> 0 | AG18: =+Sheet3!AG15/Sheet3!$F$1 -> 0 | AH18: =+Sheet3!AH15/Sheet3!$F$1 -> 99 | AI18: =+Sheet3!AI15/Sheet3!$F$1 -> 69 | AJ18: =+Sheet3!AJ15/Sheet3!$F$1 -> 7 | AK18: =+Sheet3!AK15/Sheet3!$F$1 -> 0 | AL18: =+Sheet3!AL15/Sheet3!$F$1 -> 0 | AM18: =+Sheet3!AM15/Sheet3!$F$1 -> 1082 | AN18: =+Sheet3!AN15/Sheet3!$F$1 -> 969 | AO18: =+Sheet3!AO15/Sheet3!$F$1 -> 90 | AP18: =+Sheet3!AP15/Sheet3!$F$1 -> 0 | AQ18: =+Sheet3!AQ15/Sheet3!$F$1 -> 0 | AR18: =+Sheet3!AR15/Sheet3!$F$1 -> 1584 | AS18: =+Sheet3!AS15/Sheet3!$F$1 -> 402 | AT18: =+Sheet3!AT15/Sheet3!$F$1 -> 71 | AU18: =+Sheet3!AU15/Sheet3!$F$1 -> 0 | AV18: =+Sheet3!AV15/Sheet3!$F$1 -> 0 | AW18: =+Sheet3!AW15/Sheet3!$F$1 -> 5364 | AX18: =+Sheet3!AX15/Sheet3!$F$1 -> 4845 | AY18: =+Sheet3!AY15/Sheet3!$F$1 -> 488 | AZ18: =+Sheet3!AZ15/Sheet3!$F$1 -> 0 | BA18: =+Sheet3!BA15/Sheet3!$F$1 -> 0 | BB18: =+Sheet3!BB15/Sheet3!$F$1 -> 0 | BC18: =+Sheet3!BC15/Sheet3!$F$1 -> 0 | BD18: =+Sheet3!BD15/Sheet3!$F$1 -> 22 | BE18: =+Sheet3!BE15/Sheet3!$F$1 -> 0 | BF18: =+Sheet3!BF15/Sheet3!$F$1 -> 0 | BG18: =+Sheet3!BG15/Sheet3!$F$1 -> 32 | BH18: =+Sheet3!BH15/Sheet3!$F$1 -> 66 | BI18: =+Sheet3!BI15/Sheet3!$F$1 -> 65 | BJ18: =+Sheet3!BJ15/Sheet3!$F$1 -> 0 | BK18: =+Sheet3!BK15/Sheet3!$F$1 -> 0 | BL18: =+Sheet3!BL15/Sheet3!$F$1 -> 3 | BM18: =+Sheet3!BM15/Sheet3!$F$1 -> 50 | BN18: =+Sheet3!BN15/Sheet3!$F$1 -> 74 | BO18: =+Sheet3!BO15/Sheet3!$F$1 -> 0 | BP18: =+Sheet3!BP15/Sheet3!$F$1 -> 0 | BQ18: =+Sheet3!BQ15/Sheet3!$F$1 -> 222 | BR18: =+Sheet3!BR15/Sheet3!$F$1 -> 358 | BS18: =+Sheet3!BS15/Sheet3!$F$1 -> 151 | BT18: =+Sheet3!BT15/Sheet3!$F$1 -> 0 | BU18: =+Sheet3!BU15/Sheet3!$F$1 -> 0 | BV18: =+Sheet3!BV15/Sheet3!$F$1 -> 134 | BW18: =+Sheet3!BW15/Sheet3!$F$1 -> 569 | BX18: =+Sheet3!BX15/Sheet3!$F$1 -> 367 | BY18: =+Sheet3!BY15/Sheet3!$F$1 -> 0 | BZ18: =+Sheet3!BZ15/Sheet3!$F$1 -> 0 | CA18: =+Sheet3!CA15/Sheet3!$F$1 -> 134 | CB18: =+Sheet3!CB15/Sheet3!$F$1 -> 107 | CC18: =+Sheet3!CC15/Sheet3!$F$1 -> 14 | CD18: =+Sheet3!CD15/Sheet3!$F$1 -> 0 | CE18: =+Sheet3!CE15/Sheet3!$F$1 -> 0 | CF18: =+Sheet3!CF15/Sheet3!$F$1 -> 0 | CG18: =+Sheet3!CG15/Sheet3!$F$1 -> 0 | CH18: =+Sheet3!CH15/Sheet3!$F$1 -> 0 | CI18: =+Sheet3!CI15/Sheet3!$F$1 -> 0 | CJ18: =+Sheet3!CJ15/Sheet3!$F$1 -> 0 | CK18: =+Sheet3!CK15/Sheet3!$F$1 -> 0 | CL18: =+Sheet3!CL15/Sheet3!$F$1 -> 0 | CM18: =+Sheet3!CM15/Sheet3!$F$1 -> 0 | CN18: =+Sheet3!CN15/Sheet3!$F$1 -> 0 | CO18: =+Sheet3!CO15/Sheet3!$F$1 -> 0 | CP18: =+Sheet3!CP15/Sheet3!$F$1 -> 51 | CQ18: =+Sheet3!CQ15/Sheet3!$F$1 -> 5 | CR18: =+Sheet3!CR15/Sheet3!$F$1 -> 613 | CS18: =+Sheet3!CS15/Sheet3!$F$1 -> 0 | CT18: =+Sheet3!CT15/Sheet3!$F$1 -> 10 | CU18: =+Sheet3!CU15/Sheet3!$F$1 -> 4914 | CV18: =+Sheet3!CV15/Sheet3!$F$1 -> 177 | CW18: =+Sheet3!CW15/Sheet3!$F$1 -> 2144 | CX18: =+Sheet3!CX15/Sheet3!$F$1 -> 2061 | CY18: =+Sheet3!CY15/Sheet3!$F$1 -> 10701 | CZ18: =+Sheet3!CZ15/Sheet3!$F$1 -> 27 | DA18: =+Sheet3!DA15/Sheet3!$F$1 -> 167 | DB18: =+Sheet3!DB15/Sheet3!$F$1 -> 138 | DC18: =+Sheet3!DC15/Sheet3!$F$1 -> 732 | DD18: =+Sheet3!DD15/Sheet3!$F$1 -> 1072 | DE18: =+Sheet3!DE15/Sheet3!$F$1 -> 258 | DF18: =+Sheet3!DF15/Sheet3!$F$1 -> 0 | DG18: =+Sheet3!DG15/Sheet3!$F$1 -> 6 | DH18: =+Sheet3!DH15/Sheet3!$F$1 -> 12133 | DI18: =+Sheet3!DI15/Sheet3!$F$1 -> 9408 | DJ18: =+Sheet3!DJ15/Sheet3!$F$1 -> 1523 | DK18: =+Sheet3!DK15/Sheet3!$F$1 -> 11 | DL18: =+Sheet3!DL15/Sheet3!$F$1 -> 0 | DM18: 23075
A19: Centro | B19: 16B | C19: Oeste | D19: =+Sheet3!D16/Sheet3!$F$1 -> 18 | E19: =+Sheet3!E16/Sheet3!$F$1 -> 6 | F19: =+Sheet3!F16/Sheet3!$F$1 -> 5 | G19: =+Sheet3!G16/Sheet3!$F$1 -> 0 | H19: =+Sheet3!H16/Sheet3!$F$1 -> 0 | I19: =+Sheet3!I16/Sheet3!$F$1 -> 0 | J19: =+Sheet3!J16/Sheet3!$F$1 -> 0 | K19: =+Sheet3!K16/Sheet3!$F$1 -> 0 | L19: =+Sheet3!L16/Sheet3!$F$1 -> 0 | M19: =+Sheet3!M16/Sheet3!$F$1 -> 0 | N19: =+Sheet3!N16/Sheet3!$F$1 -> 42 | O19: =+Sheet3!O16/Sheet3!$F$1 -> 27 | P19: =+Sheet3!P16/Sheet3!$F$1 -> 6 | Q19: =+Sheet3!Q16/Sheet3!$F$1 -> 0 | R19: =+Sheet3!R16/Sheet3!$F$1 -> 0 | S19: =+Sheet3!S16/Sheet3!$F$1 -> 0 | T19: =+Sheet3!T16/Sheet3!$F$1 -> 0 | U19: =+Sheet3!U16/Sheet3!$F$1 -> 0 | V19: =+Sheet3!V16/Sheet3!$F$1 -> 0 | W19: =+Sheet3!W16/Sheet3!$F$1 -> 0 | X19: =+Sheet3!X16/Sheet3!$F$1 -> 0 | Y19: =+Sheet3!Y16/Sheet3!$F$1 -> 0 | Z19: =+Sheet3!Z16/Sheet3!$F$1 -> 0 | AA19: =+Sheet3!AA16/Sheet3!$F$1 -> 0 | AB19: =+Sheet3!AB16/Sheet3!$F$1 -> 0 | AC19: =+Sheet3!AC16/Sheet3!$F$1 -> 89 | AD19: =+Sheet3!AD16/Sheet3!$F$1 -> 87 | AE19: =+Sheet3!AE16/Sheet3!$F$1 -> 7 | AF19: =+Sheet3!AF16/Sheet3!$F$1 -> 0 | AG19: =+Sheet3!AG16/Sheet3!$F$1 -> 0 | AH19: =+Sheet3!AH16/Sheet3!$F$1 -> 43 | AI19: =+Sheet3!AI16/Sheet3!$F$1 -> 120 | AJ19: =+Sheet3!AJ16/Sheet3!$F$1 -> 60 | AK19: =+Sheet3!AK16/Sheet3!$F$1 -> 0 | AL19: =+Sheet3!AL16/Sheet3!$F$1 -> 0 | AM19: =+Sheet3!AM16/Sheet3!$F$1 -> 174 | AN19: =+Sheet3!AN16/Sheet3!$F$1 -> 388 | AO19: =+Sheet3!AO16/Sheet3!$F$1 -> 90 | AP19: =+Sheet3!AP16/Sheet3!$F$1 -> 0 | AQ19: =+Sheet3!AQ16/Sheet3!$F$1 -> 0 | AR19: =+Sheet3!AR16/Sheet3!$F$1 -> 0 | AS19: =+Sheet3!AS16/Sheet3!$F$1 -> 0 | AT19: =+Sheet3!AT16/Sheet3!$F$1 -> 0 | AU19: =+Sheet3!AU16/Sheet3!$F$1 -> 0 | AV19: =+Sheet3!AV16/Sheet3!$F$1 -> 0 | AW19: =+Sheet3!AW16/Sheet3!$F$1 -> 125 | AX19: =+Sheet3!AX16/Sheet3!$F$1 -> 98 | AY19: =+Sheet3!AY16/Sheet3!$F$1 -> 27 | AZ19: =+Sheet3!AZ16/Sheet3!$F$1 -> 0 | BA19: =+Sheet3!BA16/Sheet3!$F$1 -> 0 | BB19: =+Sheet3!BB16/Sheet3!$F$1 -> 0 | BC19: =+Sheet3!BC16/Sheet3!$F$1 -> 7 | BD19: =+Sheet3!BD16/Sheet3!$F$1 -> 0 | BE19: =+Sheet3!BE16/Sheet3!$F$1 -> 0 | BF19: =+Sheet3!BF16/Sheet3!$F$1 -> 0 | BG19: =+Sheet3!BG16/Sheet3!$F$1 -> 86 | BH19: =+Sheet3!BH16/Sheet3!$F$1 -> 38 | BI19: =+Sheet3!BI16/Sheet3!$F$1 -> 9 | BJ19: =+Sheet3!BJ16/Sheet3!$F$1 -> 0 | BK19: =+Sheet3!BK16/Sheet3!$F$1 -> 0 | BL19: =+Sheet3!BL16/Sheet3!$F$1 -> 6 | BM19: =+Sheet3!BM16/Sheet3!$F$1 -> 5 | BN19: =+Sheet3!BN16/Sheet3!$F$1 -> 5 | BO19: =+Sheet3!BO16/Sheet3!$F$1 -> 0 | BP19: =+Sheet3!BP16/Sheet3!$F$1 -> 0 | BQ19: =+Sheet3!BQ16/Sheet3!$F$1 -> 368 | BR19: =+Sheet3!BR16/Sheet3!$F$1 -> 38 | BS19: =+Sheet3!BS16/Sheet3!$F$1 -> 0 | BT19: =+Sheet3!BT16/Sheet3!$F$1 -> 0 | BU19: =+Sheet3!BU16/Sheet3!$F$1 -> 0 | BV19: =+Sheet3!BV16/Sheet3!$F$1 -> 63 | BW19: =+Sheet3!BW16/Sheet3!$F$1 -> 34 | BX19: =+Sheet3!BX16/Sheet3!$F$1 -> 3 | BY19: =+Sheet3!BY16/Sheet3!$F$1 -> 0 | BZ19: =+Sheet3!BZ16/Sheet3!$F$1 -> 0 | CA19: =+Sheet3!CA16/Sheet3!$F$1 -> 141 | CB19: =+Sheet3!CB16/Sheet3!$F$1 -> 47 | CC19: =+Sheet3!CC16/Sheet3!$F$1 -> 11 | CD19: =+Sheet3!CD16/Sheet3!$F$1 -> 0 | CE19: =+Sheet3!CE16/Sheet3!$F$1 -> 0 | CF19: =+Sheet3!CF16/Sheet3!$F$1 -> 0 | CG19: =+Sheet3!CG16/Sheet3!$F$1 -> 0 | CH19: =+Sheet3!CH16/Sheet3!$F$1 -> 0 | CI19: =+Sheet3!CI16/Sheet3!$F$1 -> 0 | CJ19: =+Sheet3!CJ16/Sheet3!$F$1 -> 0 | CK19: =+Sheet3!CK16/Sheet3!$F$1 -> 17 | CL19: =+Sheet3!CL16/Sheet3!$F$1 -> 7 | CM19: =+Sheet3!CM16/Sheet3!$F$1 -> 0 | CN19: =+Sheet3!CN16/Sheet3!$F$1 -> 0 | CO19: =+Sheet3!CO16/Sheet3!$F$1 -> 0 | CP19: =+Sheet3!CP16/Sheet3!$F$1 -> 32 | CQ19: =+Sheet3!CQ16/Sheet3!$F$1 -> 4 | CR19: =+Sheet3!CR16/Sheet3!$F$1 -> 80 | CS19: =+Sheet3!CS16/Sheet3!$F$1 -> 0 | CT19: =+Sheet3!CT16/Sheet3!$F$1 -> 4 | CU19: =+Sheet3!CU16/Sheet3!$F$1 -> 184 | CV19: =+Sheet3!CV16/Sheet3!$F$1 -> 225 | CW19: =+Sheet3!CW16/Sheet3!$F$1 -> 655 | CX19: =+Sheet3!CX16/Sheet3!$F$1 -> 0 | CY19: =+Sheet3!CY16/Sheet3!$F$1 -> 253 | CZ19: =+Sheet3!CZ16/Sheet3!$F$1 -> 11 | DA19: =+Sheet3!DA16/Sheet3!$F$1 -> 134 | DB19: =+Sheet3!DB16/Sheet3!$F$1 -> 18 | DC19: =+Sheet3!DC16/Sheet3!$F$1 -> 410 | DD19: =+Sheet3!DD16/Sheet3!$F$1 -> 106 | DE19: =+Sheet3!DE16/Sheet3!$F$1 -> 199 | DF19: =+Sheet3!DF16/Sheet3!$F$1 -> 0 | DG19: =+Sheet3!DG16/Sheet3!$F$1 -> 26 | DH19: =+Sheet3!DH16/Sheet3!$F$1 -> 1187 | DI19: =+Sheet3!DI16/Sheet3!$F$1 -> 918 | DJ19: =+Sheet3!DJ16/Sheet3!$F$1 -> 234 | DK19: =+Sheet3!DK16/Sheet3!$F$1 -> 7 | DL19: =+Sheet3!DL16/Sheet3!$F$1 -> 0 | DM19: 2346
B20: 16D | C20: Região de Aveiro | D20: =+Sheet3!D17/Sheet3!$F$1 -> 10 | E20: =+Sheet3!E17/Sheet3!$F$1 -> 0 | F20: =+Sheet3!F17/Sheet3!$F$1 -> 0 | G20: =+Sheet3!G17/Sheet3!$F$1 -> 0 | H20: =+Sheet3!H17/Sheet3!$F$1 -> 0 | I20: =+Sheet3!I17/Sheet3!$F$1 -> 904 | J20: =+Sheet3!J17/Sheet3!$F$1 -> 51 | K20: =+Sheet3!K17/Sheet3!$F$1 -> 9 | L20: =+Sheet3!L17/Sheet3!$F$1 -> 0 | M20: =+Sheet3!M17/Sheet3!$F$1 -> 0 | N20: =+Sheet3!N17/Sheet3!$F$1 -> 567 | O20: =+Sheet3!O17/Sheet3!$F$1 -> 44 | P20: =+Sheet3!P17/Sheet3!$F$1 -> 0 | Q20: =+Sheet3!Q17/Sheet3!$F$1 -> 0 | R20: =+Sheet3!R17/Sheet3!$F$1 -> 0 | S20: =+Sheet3!S17/Sheet3!$F$1 -> 0 | T20: =+Sheet3!T17/Sheet3!$F$1 -> 0 | U20: =+Sheet3!U17/Sheet3!$F$1 -> 4 | V20: =+Sheet3!V17/Sheet3!$F$1 -> 0 | W20: =+Sheet3!W17/Sheet3!$F$1 -> 0 | X20: =+Sheet3!X17/Sheet3!$F$1 -> 0 | Y20: =+Sheet3!Y17/Sheet3!$F$1 -> 0 | Z20: =+Sheet3!Z17/Sheet3!$F$1 -> 0 | AA20: =+Sheet3!AA17/Sheet3!$F$1 -> 0 | AB20: =+Sheet3!AB17/Sheet3!$F$1 -> 0 | AC20: =+Sheet3!AC17/Sheet3!$F$1 -> 217 | AD20: =+Sheet3!AD17/Sheet3!$F$1 -> 13 | AE20: =+Sheet3!AE17/Sheet3!$F$1 -> 0 | AF20: =+Sheet3!AF17/Sheet3!$F$1 -> 0 | AG20: =+Sheet3!AG17/Sheet3!$F$1 -> 0 | AH20: =+Sheet3!AH17/Sheet3!$F$1 -> 35 | AI20: =+Sheet3!AI17/Sheet3!$F$1 -> 20 | AJ20: =+Sheet3!AJ17/Sheet3!$F$1 -> 5 | AK20: =+Sheet3!AK17/Sheet3!$F$1 -> 0 | AL20: =+Sheet3!AL17/Sheet3!$F$1 -> 0 | AM20: =+Sheet3!AM17/Sheet3!$F$1 -> 189 | AN20: =+Sheet3!AN17/Sheet3!$F$1 -> 15 | AO20: =+Sheet3!AO17/Sheet3!$F$1 -> 0 | AP20: =+Sheet3!AP17/Sheet3!$F$1 -> 0 | AQ20: =+Sheet3!AQ17/Sheet3!$F$1 -> 0 | AR20: =+Sheet3!AR17/Sheet3!$F$1 -> 0 | AS20: =+Sheet3!AS17/Sheet3!$F$1 -> 0 | AT20: =+Sheet3!AT17/Sheet3!$F$1 -> 0 | AU20: =+Sheet3!AU17/Sheet3!$F$1 -> 0 | AV20: =+Sheet3!AV17/Sheet3!$F$1 -> 0 | AW20: =+Sheet3!AW17/Sheet3!$F$1 -> 800 | AX20: =+Sheet3!AX17/Sheet3!$F$1 -> 50 | AY20: =+Sheet3!AY17/Sheet3!$F$1 -> 4 | AZ20: =+Sheet3!AZ17/Sheet3!$F$1 -> 0 | BA20: =+Sheet3!BA17/Sheet3!$F$1 -> 0 | BB20: =+Sheet3!BB17/Sheet3!$F$1 -> 63 | BC20: =+Sheet3!BC17/Sheet3!$F$1 -> 142 | BD20: =+Sheet3!BD17/Sheet3!$F$1 -> 18 | BE20: =+Sheet3!BE17/Sheet3!$F$1 -> 0 | BF20: =+Sheet3!BF17/Sheet3!$F$1 -> 0 | BG20: =+Sheet3!BG17/Sheet3!$F$1 -> 193 | BH20: =+Sheet3!BH17/Sheet3!$F$1 -> 61 | BI20: =+Sheet3!BI17/Sheet3!$F$1 -> 7 | BJ20: =+Sheet3!BJ17/Sheet3!$F$1 -> 0 | BK20: =+Sheet3!BK17/Sheet3!$F$1 -> 0 | BL20: =+Sheet3!BL17/Sheet3!$F$1 -> 36 | BM20: =+Sheet3!BM17/Sheet3!$F$1 -> 21 | BN20: =+Sheet3!BN17/Sheet3!$F$1 -> 0 | BO20: =+Sheet3!BO17/Sheet3!$F$1 -> 0 | BP20: =+Sheet3!BP17/Sheet3!$F$1 -> 0 | BQ20: =+Sheet3!BQ17/Sheet3!$F$1 -> 58 | BR20: =+Sheet3!BR17/Sheet3!$F$1 -> 9 | BS20: =+Sheet3!BS17/Sheet3!$F$1 -> 0 | BT20: =+Sheet3!BT17/Sheet3!$F$1 -> 0 | BU20: =+Sheet3!BU17/Sheet3!$F$1 -> 0 | BV20: =+Sheet3!BV17/Sheet3!$F$1 -> 329 | BW20: =+Sheet3!BW17/Sheet3!$F$1 -> 36 | BX20: =+Sheet3!BX17/Sheet3!$F$1 -> 0 | BY20: =+Sheet3!BY17/Sheet3!$F$1 -> 0 | BZ20: =+Sheet3!BZ17/Sheet3!$F$1 -> 0 | CA20: =+Sheet3!CA17/Sheet3!$F$1 -> 387 | CB20: =+Sheet3!CB17/Sheet3!$F$1 -> 73 | CC20: =+Sheet3!CC17/Sheet3!$F$1 -> 3 | CD20: =+Sheet3!CD17/Sheet3!$F$1 -> 0 | CE20: =+Sheet3!CE17/Sheet3!$F$1 -> 0 | CF20: =+Sheet3!CF17/Sheet3!$F$1 -> 0 | CG20: =+Sheet3!CG17/Sheet3!$F$1 -> 0 | CH20: =+Sheet3!CH17/Sheet3!$F$1 -> 0 | CI20: =+Sheet3!CI17/Sheet3!$F$1 -> 0 | CJ20: =+Sheet3!CJ17/Sheet3!$F$1 -> 0 | CK20: =+Sheet3!CK17/Sheet3!$F$1 -> 33 | CL20: =+Sheet3!CL17/Sheet3!$F$1 -> 4 | CM20: =+Sheet3!CM17/Sheet3!$F$1 -> 0 | CN20: =+Sheet3!CN17/Sheet3!$F$1 -> 0 | CO20: =+Sheet3!CO17/Sheet3!$F$1 -> 0 | CP20: =+Sheet3!CP17/Sheet3!$F$1 -> 11 | CQ20: =+Sheet3!CQ17/Sheet3!$F$1 -> 965 | CR20: =+Sheet3!CR17/Sheet3!$F$1 -> 612 | CS20: =+Sheet3!CS17/Sheet3!$F$1 -> 7 | CT20: =+Sheet3!CT17/Sheet3!$F$1 -> 0 | CU20: =+Sheet3!CU17/Sheet3!$F$1 -> 238 | CV20: =+Sheet3!CV17/Sheet3!$F$1 -> 62 | CW20: =+Sheet3!CW17/Sheet3!$F$1 -> 206 | CX20: =+Sheet3!CX17/Sheet3!$F$1 -> 0 | CY20: =+Sheet3!CY17/Sheet3!$F$1 -> 855 | CZ20: =+Sheet3!CZ17/Sheet3!$F$1 -> 224 | DA20: =+Sheet3!DA17/Sheet3!$F$1 -> 263 | DB20: =+Sheet3!DB17/Sheet3!$F$1 -> 57 | DC20: =+Sheet3!DC17/Sheet3!$F$1 -> 69 | DD20: =+Sheet3!DD17/Sheet3!$F$1 -> 365 | DE20: =+Sheet3!DE17/Sheet3!$F$1 -> 464 | DF20: =+Sheet3!DF17/Sheet3!$F$1 -> 0 | DG20: =+Sheet3!DG17/Sheet3!$F$1 -> 38 | DH20: =+Sheet3!DH17/Sheet3!$F$1 -> 3828 | DI20: =+Sheet3!DI17/Sheet3!$F$1 -> 552 | DJ20: =+Sheet3!DJ17/Sheet3!$F$1 -> 57 | DK20: =+Sheet3!DK17/Sheet3!$F$1 -> 0 | DL20: =+Sheet3!DL17/Sheet3!$F$1 -> 0 | DM20: 4437
B21: 16E | C21: Região de Coimbra | D21: =+Sheet3!D18/Sheet3!$F$1 -> 35 | E21: =+Sheet3!E18/Sheet3!$F$1 -> 0 | F21: =+Sheet3!F18/Sheet3!$F$1 -> 0 | G21: =+Sheet3!G18/Sheet3!$F$1 -> 0 | H21: =+Sheet3!H18/Sheet3!$F$1 -> 0 | I21: =+Sheet3!I18/Sheet3!$F$1 -> 788 | J21: =+Sheet3!J18/Sheet3!$F$1 -> 209 | K21: =+Sheet3!K18/Sheet3!$F$1 -> 53 | L21: =+Sheet3!L18/Sheet3!$F$1 -> 0 | M21: =+Sheet3!M18/Sheet3!$F$1 -> 0 | N21: =+Sheet3!N18/Sheet3!$F$1 -> 341 | O21: =+Sheet3!O18/Sheet3!$F$1 -> 13 | P21: =+Sheet3!P18/Sheet3!$F$1 -> 4 | Q21: =+Sheet3!Q18/Sheet3!$F$1 -> 0 | R21: =+Sheet3!R18/Sheet3!$F$1 -> 0 | S21: =+Sheet3!S18/Sheet3!$F$1 -> 126 | T21: =+Sheet3!T18/Sheet3!$F$1 -> 119 | U21: =+Sheet3!U18/Sheet3!$F$1 -> 48 | V21: =+Sheet3!V18/Sheet3!$F$1 -> 0 | W21: =+Sheet3!W18/Sheet3!$F$1 -> 0 | X21: =+Sheet3!X18/Sheet3!$F$1 -> 3 | Y21: =+Sheet3!Y18/Sheet3!$F$1 -> 0 | Z21: =+Sheet3!Z18/Sheet3!$F$1 -> 0 | AA21: =+Sheet3!AA18/Sheet3!$F$1 -> 0 | AB21: =+Sheet3!AB18/Sheet3!$F$1 -> 0 | AC21: =+Sheet3!AC18/Sheet3!$F$1 -> 624 | AD21: =+Sheet3!AD18/Sheet3!$F$1 -> 37 | AE21: =+Sheet3!AE18/Sheet3!$F$1 -> 7 | AF21: =+Sheet3!AF18/Sheet3!$F$1 -> 0 | AG21: =+Sheet3!AG18/Sheet3!$F$1 -> 0 | AH21: =+Sheet3!AH18/Sheet3!$F$1 -> 77 | AI21: =+Sheet3!AI18/Sheet3!$F$1 -> 34 | AJ21: =+Sheet3!AJ18/Sheet3!$F$1 -> 0 | AK21: =+Sheet3!AK18/Sheet3!$F$1 -> 0 | AL21: =+Sheet3!AL18/Sheet3!$F$1 -> 0 | AM21: =+Sheet3!AM18/Sheet3!$F$1 -> 197 | AN21: =+Sheet3!AN18/Sheet3!$F$1 -> 57 | AO21: =+Sheet3!AO18/Sheet3!$F$1 -> 3 | AP21: =+Sheet3!AP18/Sheet3!$F$1 -> 0 | AQ21: =+Sheet3!AQ18/Sheet3!$F$1 -> 0 | AR21: =+Sheet3!AR18/Sheet3!$F$1 -> 122 | AS21: =+Sheet3!AS18/Sheet3!$F$1 -> 0 | AT21: =+Sheet3!AT18/Sheet3!$F$1 -> 0 | AU21: =+Sheet3!AU18/Sheet3!$F$1 -> 0 | AV21: =+Sheet3!AV18/Sheet3!$F$1 -> 0 | AW21: =+Sheet3!AW18/Sheet3!$F$1 -> 1839 | AX21: =+Sheet3!AX18/Sheet3!$F$1 -> 147 | AY21: =+Sheet3!AY18/Sheet3!$F$1 -> 16 | AZ21: =+Sheet3!AZ18/Sheet3!$F$1 -> 0 | BA21: =+Sheet3!BA18/Sheet3!$F$1 -> 0 | BB21: =+Sheet3!BB18/Sheet3!$F$1 -> 71 | BC21: =+Sheet3!BC18/Sheet3!$F$1 -> 61 | BD21: =+Sheet3!BD18/Sheet3!$F$1 -> 4 | BE21: =+Sheet3!BE18/Sheet3!$F$1 -> 0 | BF21: =+Sheet3!BF18/Sheet3!$F$1 -> 0 | BG21: =+Sheet3!BG18/Sheet3!$F$1 -> 136 | BH21: =+Sheet3!BH18/Sheet3!$F$1 -> 32 | BI21: =+Sheet3!BI18/Sheet3!$F$1 -> 6 | BJ21: =+Sheet3!BJ18/Sheet3!$F$1 -> 0 | BK21: =+Sheet3!BK18/Sheet3!$F$1 -> 0 | BL21: =+Sheet3!BL18/Sheet3!$F$1 -> 20 | BM21: =+Sheet3!BM18/Sheet3!$F$1 -> 8 | BN21: =+Sheet3!BN18/Sheet3!$F$1 -> 0 | BO21: =+Sheet3!BO18/Sheet3!$F$1 -> 0 | BP21: =+Sheet3!BP18/Sheet3!$F$1 -> 0 | BQ21: =+Sheet3!BQ18/Sheet3!$F$1 -> 399 | BR21: =+Sheet3!BR18/Sheet3!$F$1 -> 87 | BS21: =+Sheet3!BS18/Sheet3!$F$1 -> 9 | BT21: =+Sheet3!BT18/Sheet3!$F$1 -> 0 | BU21: =+Sheet3!BU18/Sheet3!$F$1 -> 0 | BV21: =+Sheet3!BV18/Sheet3!$F$1 -> 464 | BW21: =+Sheet3!BW18/Sheet3!$F$1 -> 60 | BX21: =+Sheet3!BX18/Sheet3!$F$1 -> 3 | BY21: =+Sheet3!BY18/Sheet3!$F$1 -> 0 | BZ21: =+Sheet3!BZ18/Sheet3!$F$1 -> 0 | CA21: =+Sheet3!CA18/Sheet3!$F$1 -> 425 | CB21: =+Sheet3!CB18/Sheet3!$F$1 -> 41 | CC21: =+Sheet3!CC18/Sheet3!$F$1 -> 4 | CD21: =+Sheet3!CD18/Sheet3!$F$1 -> 0 | CE21: =+Sheet3!CE18/Sheet3!$F$1 -> 0 | CF21: =+Sheet3!CF18/Sheet3!$F$1 -> 0 | CG21: =+Sheet3!CG18/Sheet3!$F$1 -> 0 | CH21: =+Sheet3!CH18/Sheet3!$F$1 -> 0 | CI21: =+Sheet3!CI18/Sheet3!$F$1 -> 0 | CJ21: =+Sheet3!CJ18/Sheet3!$F$1 -> 0 | CK21: =+Sheet3!CK18/Sheet3!$F$1 -> 32 | CL21: =+Sheet3!CL18/Sheet3!$F$1 -> 0 | CM21: =+Sheet3!CM18/Sheet3!$F$1 -> 0 | CN21: =+Sheet3!CN18/Sheet3!$F$1 -> 0 | CO21: =+Sheet3!CO18/Sheet3!$F$1 -> 0 | CP21: =+Sheet3!CP18/Sheet3!$F$1 -> 37 | CQ21: =+Sheet3!CQ18/Sheet3!$F$1 -> 1057 | CR21: =+Sheet3!CR18/Sheet3!$F$1 -> 361 | CS21: =+Sheet3!CS18/Sheet3!$F$1 -> 296 | CT21: =+Sheet3!CT18/Sheet3!$F$1 -> 5 | CU21: =+Sheet3!CU18/Sheet3!$F$1 -> 669 | CV21: =+Sheet3!CV18/Sheet3!$F$1 -> 112 | CW21: =+Sheet3!CW18/Sheet3!$F$1 -> 257 | CX21: =+Sheet3!CX18/Sheet3!$F$1 -> 124 | CY21: =+Sheet3!CY18/Sheet3!$F$1 -> 2003 | CZ21: =+Sheet3!CZ18/Sheet3!$F$1 -> 136 | DA21: =+Sheet3!DA18/Sheet3!$F$1 -> 175 | DB21: =+Sheet3!DB18/Sheet3!$F$1 -> 34 | DC21: =+Sheet3!DC18/Sheet3!$F$1 -> 499 | DD21: =+Sheet3!DD18/Sheet3!$F$1 -> 530 | DE21: =+Sheet3!DE18/Sheet3!$F$1 -> 474 | DF21: =+Sheet3!DF18/Sheet3!$F$1 -> 0 | DG21: =+Sheet3!DG18/Sheet3!$F$1 -> 33 | DH21: =+Sheet3!DH18/Sheet3!$F$1 -> 5708 | DI21: =+Sheet3!DI18/Sheet3!$F$1 -> 928 | DJ21: =+Sheet3!DJ18/Sheet3!$F$1 -> 164 | DK21: =+Sheet3!DK18/Sheet3!$F$1 -> 0 | DL21: =+Sheet3!DL18/Sheet3!$F$1 -> 0 | DM21: 6800
B22: 16F | C22: Região de Leiria | D22: =+Sheet3!D19/Sheet3!$F$1 -> 20 | E22: =+Sheet3!E19/Sheet3!$F$1 -> 0 | F22: =+Sheet3!F19/Sheet3!$F$1 -> 0 | G22: =+Sheet3!G19/Sheet3!$F$1 -> 0 | H22: =+Sheet3!H19/Sheet3!$F$1 -> 0 | I22: =+Sheet3!I19/Sheet3!$F$1 -> 129 | J22: =+Sheet3!J19/Sheet3!$F$1 -> 16 | K22: =+Sheet3!K19/Sheet3!$F$1 -> 4 | L22: =+Sheet3!L19/Sheet3!$F$1 -> 0 | M22: =+Sheet3!M19/Sheet3!$F$1 -> 0 | N22: =+Sheet3!N19/Sheet3!$F$1 -> 109 | O22: =+Sheet3!O19/Sheet3!$F$1 -> 6 | P22: =+Sheet3!P19/Sheet3!$F$1 -> 0 | Q22: =+Sheet3!Q19/Sheet3!$F$1 -> 0 | R22: =+Sheet3!R19/Sheet3!$F$1 -> 0 | S22: =+Sheet3!S19/Sheet3!$F$1 -> 9 | T22: =+Sheet3!T19/Sheet3!$F$1 -> 10 | U22: =+Sheet3!U19/Sheet3!$F$1 -> 3 | V22: =+Sheet3!V19/Sheet3!$F$1 -> 0 | W22: =+Sheet3!W19/Sheet3!$F$1 -> 0 | X22: =+Sheet3!X19/Sheet3!$F$1 -> 0 | Y22: =+Sheet3!Y19/Sheet3!$F$1 -> 0 | Z22: =+Sheet3!Z19/Sheet3!$F$1 -> 0 | AA22: =+Sheet3!AA19/Sheet3!$F$1 -> 0 | AB22: =+Sheet3!AB19/Sheet3!$F$1 -> 0 | AC22: =+Sheet3!AC19/Sheet3!$F$1 -> 398 | AD22: =+Sheet3!AD19/Sheet3!$F$1 -> 16 | AE22: =+Sheet3!AE19/Sheet3!$F$1 -> 4 | AF22: =+Sheet3!AF19/Sheet3!$F$1 -> 0 | AG22: =+Sheet3!AG19/Sheet3!$F$1 -> 0 | AH22: =+Sheet3!AH19/Sheet3!$F$1 -> 7 | AI22: =+Sheet3!AI19/Sheet3!$F$1 -> 3 | AJ22: =+Sheet3!AJ19/Sheet3!$F$1 -> 0 | AK22: =+Sheet3!AK19/Sheet3!$F$1 -> 0 | AL22: =+Sheet3!AL19/Sheet3!$F$1 -> 0 | AM22: =+Sheet3!AM19/Sheet3!$F$1 -> 81 | AN22: =+Sheet3!AN19/Sheet3!$F$1 -> 30 | AO22: =+Sheet3!AO19/Sheet3!$F$1 -> 3 | AP22: =+Sheet3!AP19/Sheet3!$F$1 -> 0 | AQ22: =+Sheet3!AQ19/Sheet3!$F$1 -> 0 | AR22: =+Sheet3!AR19/Sheet3!$F$1 -> 232 | AS22: =+Sheet3!AS19/Sheet3!$F$1 -> 11 | AT22: =+Sheet3!AT19/Sheet3!$F$1 -> 3 | AU22: =+Sheet3!AU19/Sheet3!$F$1 -> 0 | AV22: =+Sheet3!AV19/Sheet3!$F$1 -> 0 | AW22: =+Sheet3!AW19/Sheet3!$F$1 -> 938 | AX22: =+Sheet3!AX19/Sheet3!$F$1 -> 46 | AY22: =+Sheet3!AY19/Sheet3!$F$1 -> 0 | AZ22: =+Sheet3!AZ19/Sheet3!$F$1 -> 0 | BA22: =+Sheet3!BA19/Sheet3!$F$1 -> 0 | BB22: =+Sheet3!BB19/Sheet3!$F$1 -> 0 | BC22: =+Sheet3!BC19/Sheet3!$F$1 -> 10 | BD22: =+Sheet3!BD19/Sheet3!$F$1 -> 3 | BE22: =+Sheet3!BE19/Sheet3!$F$1 -> 0 | BF22: =+Sheet3!BF19/Sheet3!$F$1 -> 0 | BG22: =+Sheet3!BG19/Sheet3!$F$1 -> 102 | BH22: =+Sheet3!BH19/Sheet3!$F$1 -> 46 | BI22: =+Sheet3!BI19/Sheet3!$F$1 -> 7 | BJ22: =+Sheet3!BJ19/Sheet3!$F$1 -> 0 | BK22: =+Sheet3!BK19/Sheet3!$F$1 -> 0 | BL22: =+Sheet3!BL19/Sheet3!$F$1 -> 3 | BM22: =+Sheet3!BM19/Sheet3!$F$1 -> 8 | BN22: =+Sheet3!BN19/Sheet3!$F$1 -> 7 | BO22: =+Sheet3!BO19/Sheet3!$F$1 -> 0 | BP22: =+Sheet3!BP19/Sheet3!$F$1 -> 0 | BQ22: =+Sheet3!BQ19/Sheet3!$F$1 -> 324 | BR22: =+Sheet3!BR19/Sheet3!$F$1 -> 48 | BS22: =+Sheet3!BS19/Sheet3!$F$1 -> 13 | BT22: =+Sheet3!BT19/Sheet3!$F$1 -> 0 | BU22: =+Sheet3!BU19/Sheet3!$F$1 -> 0 | BV22: =+Sheet3!BV19/Sheet3!$F$1 -> 300 | BW22: =+Sheet3!BW19/Sheet3!$F$1 -> 54 | BX22: =+Sheet3!BX19/Sheet3!$F$1 -> 7 | BY22: =+Sheet3!BY19/Sheet3!$F$1 -> 0 | BZ22: =+Sheet3!BZ19/Sheet3!$F$1 -> 0 | CA22: =+Sheet3!CA19/Sheet3!$F$1 -> 111 | CB22: =+Sheet3!CB19/Sheet3!$F$1 -> 10 | CC22: =+Sheet3!CC19/Sheet3!$F$1 -> 0 | CD22: =+Sheet3!CD19/Sheet3!$F$1 -> 0 | CE22: =+Sheet3!CE19/Sheet3!$F$1 -> 0 | CF22: =+Sheet3!CF19/Sheet3!$F$1 -> 0 | CG22: =+Sheet3!CG19/Sheet3!$F$1 -> 0 | CH22: =+Sheet3!CH19/Sheet3!$F$1 -> 0 | CI22: =+Sheet3!CI19/Sheet3!$F$1 -> 0 | CJ22: =+Sheet3!CJ19/Sheet3!$F$1 -> 0 | CK22: =+Sheet3!CK19/Sheet3!$F$1 -> 0 | CL22: =+Sheet3!CL19/Sheet3!$F$1 -> 0 | CM22: =+Sheet3!CM19/Sheet3!$F$1 -> 0 | CN22: =+Sheet3!CN19/Sheet3!$F$1 -> 0 | CO22: =+Sheet3!CO19/Sheet3!$F$1 -> 0 | CP22: =+Sheet3!CP19/Sheet3!$F$1 -> 24 | CQ22: =+Sheet3!CQ19/Sheet3!$F$1 -> 151 | CR22: =+Sheet3!CR19/Sheet3!$F$1 -> 117 | CS22: =+Sheet3!CS19/Sheet3!$F$1 -> 24 | CT22: =+Sheet3!CT19/Sheet3!$F$1 -> 0 | CU22: =+Sheet3!CU19/Sheet3!$F$1 -> 419 | CV22: =+Sheet3!CV19/Sheet3!$F$1 -> 12 | CW22: =+Sheet3!CW19/Sheet3!$F$1 -> 116 | CX22: =+Sheet3!CX19/Sheet3!$F$1 -> 248 | CY22: =+Sheet3!CY19/Sheet3!$F$1 -> 988 | CZ22: =+Sheet3!CZ19/Sheet3!$F$1 -> 17 | DA22: =+Sheet3!DA19/Sheet3!$F$1 -> 155 | DB22: =+Sheet3!DB19/Sheet3!$F$1 -> 19 | DC22: =+Sheet3!DC19/Sheet3!$F$1 -> 386 | DD22: =+Sheet3!DD19/Sheet3!$F$1 -> 361 | DE22: =+Sheet3!DE19/Sheet3!$F$1 -> 124 | DF22: =+Sheet3!DF19/Sheet3!$F$1 -> 0 | DG22: =+Sheet3!DG19/Sheet3!$F$1 -> 0 | DH22: =+Sheet3!DH19/Sheet3!$F$1 -> 2776 | DI22: =+Sheet3!DI19/Sheet3!$F$1 -> 327 | DJ22: =+Sheet3!DJ19/Sheet3!$F$1 -> 59 | DK22: =+Sheet3!DK19/Sheet3!$F$1 -> 0 | DL22: =+Sheet3!DL19/Sheet3!$F$1 -> 0 | DM22: 3162
B23: 16G | C23: Viseu Dão Lafões | D23: =+Sheet3!D20/Sheet3!$F$1 -> 15 | E23: =+Sheet3!E20/Sheet3!$F$1 -> 3 | F23: =+Sheet3!F20/Sheet3!$F$1 -> 0 | G23: =+Sheet3!G20/Sheet3!$F$1 -> 0 | H23: =+Sheet3!H20/Sheet3!$F$1 -> 0 | I23: =+Sheet3!I20/Sheet3!$F$1 -> 399 | J23: =+Sheet3!J20/Sheet3!$F$1 -> 3 | K23: =+Sheet3!K20/Sheet3!$F$1 -> 0 | L23: =+Sheet3!L20/Sheet3!$F$1 -> 0 | M23: =+Sheet3!M20/Sheet3!$F$1 -> 0 | N23: =+Sheet3!N20/Sheet3!$F$1 -> 274 | O23: =+Sheet3!O20/Sheet3!$F$1 -> 20 | P23: =+Sheet3!P20/Sheet3!$F$1 -> 0 | Q23: =+Sheet3!Q20/Sheet3!$F$1 -> 0 | R23: =+Sheet3!R20/Sheet3!$F$1 -> 0 | S23: =+Sheet3!S20/Sheet3!$F$1 -> 0 | T23: =+Sheet3!T20/Sheet3!$F$1 -> 0 | U23: =+Sheet3!U20/Sheet3!$F$1 -> 0 | V23: =+Sheet3!V20/Sheet3!$F$1 -> 0 | W23: =+Sheet3!W20/Sheet3!$F$1 -> 0 | X23: =+Sheet3!X20/Sheet3!$F$1 -> 0 | Y23: =+Sheet3!Y20/Sheet3!$F$1 -> 0 | Z23: =+Sheet3!Z20/Sheet3!$F$1 -> 0 | AA23: =+Sheet3!AA20/Sheet3!$F$1 -> 0 | AB23: =+Sheet3!AB20/Sheet3!$F$1 -> 0 | AC23: =+Sheet3!AC20/Sheet3!$F$1 -> 788 | AD23: =+Sheet3!AD20/Sheet3!$F$1 -> 13 | AE23: =+Sheet3!AE20/Sheet3!$F$1 -> 0 | AF23: =+Sheet3!AF20/Sheet3!$F$1 -> 0 | AG23: =+Sheet3!AG20/Sheet3!$F$1 -> 0 | AH23: =+Sheet3!AH20/Sheet3!$F$1 -> 257 | AI23: =+Sheet3!AI20/Sheet3!$F$1 -> 122 | AJ23: =+Sheet3!AJ20/Sheet3!$F$1 -> 14 | AK23: =+Sheet3!AK20/Sheet3!$F$1 -> 0 | AL23: =+Sheet3!AL20/Sheet3!$F$1 -> 0 | AM23: =+Sheet3!AM20/Sheet3!$F$1 -> 391 | AN23: =+Sheet3!AN20/Sheet3!$F$1 -> 65 | AO23: =+Sheet3!AO20/Sheet3!$F$1 -> 5 | AP23: =+Sheet3!AP20/Sheet3!$F$1 -> 0 | AQ23: =+Sheet3!AQ20/Sheet3!$F$1 -> 0 | AR23: =+Sheet3!AR20/Sheet3!$F$1 -> 51 | AS23: =+Sheet3!AS20/Sheet3!$F$1 -> 0 | AT23: =+Sheet3!AT20/Sheet3!$F$1 -> 0 | AU23: =+Sheet3!AU20/Sheet3!$F$1 -> 0 | AV23: =+Sheet3!AV20/Sheet3!$F$1 -> 0 | AW23: =+Sheet3!AW20/Sheet3!$F$1 -> 2704 | AX23: =+Sheet3!AX20/Sheet3!$F$1 -> 157 | AY23: =+Sheet3!AY20/Sheet3!$F$1 -> 6 | AZ23: =+Sheet3!AZ20/Sheet3!$F$1 -> 0 | BA23: =+Sheet3!BA20/Sheet3!$F$1 -> 0 | BB23: =+Sheet3!BB20/Sheet3!$F$1 -> 42 | BC23: =+Sheet3!BC20/Sheet3!$F$1 -> 25 | BD23: =+Sheet3!BD20/Sheet3!$F$1 -> 0 | BE23: =+Sheet3!BE20/Sheet3!$F$1 -> 0 | BF23: =+Sheet3!BF20/Sheet3!$F$1 -> 0 | BG23: =+Sheet3!BG20/Sheet3!$F$1 -> 117 | BH23: =+Sheet3!BH20/Sheet3!$F$1 -> 48 | BI23: =+Sheet3!BI20/Sheet3!$F$1 -> 5 | BJ23: =+Sheet3!BJ20/Sheet3!$F$1 -> 0 | BK23: =+Sheet3!BK20/Sheet3!$F$1 -> 0 | BL23: =+Sheet3!BL20/Sheet3!$F$1 -> 54 | BM23: =+Sheet3!BM20/Sheet3!$F$1 -> 88 | BN23: =+Sheet3!BN20/Sheet3!$F$1 -> 10 | BO23: =+Sheet3!BO20/Sheet3!$F$1 -> 0 | BP23: =+Sheet3!BP20/Sheet3!$F$1 -> 0 | BQ23: =+Sheet3!BQ20/Sheet3!$F$1 -> 680 | BR23: =+Sheet3!BR20/Sheet3!$F$1 -> 194 | BS23: =+Sheet3!BS20/Sheet3!$F$1 -> 23 | BT23: =+Sheet3!BT20/Sheet3!$F$1 -> 0 | BU23: =+Sheet3!BU20/Sheet3!$F$1 -> 0 | BV23: =+Sheet3!BV20/Sheet3!$F$1 -> 1057 | BW23: =+Sheet3!BW20/Sheet3!$F$1 -> 115 | BX23: =+Sheet3!BX20/Sheet3!$F$1 -> 6 | BY23: =+Sheet3!BY20/Sheet3!$F$1 -> 0 | BZ23: =+Sheet3!BZ20/Sheet3!$F$1 -> 0 | CA23: =+Sheet3!CA20/Sheet3!$F$1 -> 132 | CB23: =+Sheet3!CB20/Sheet3!$F$1 -> 7 | CC23: =+Sheet3!CC20/Sheet3!$F$1 -> 0 | CD23: =+Sheet3!CD20/Sheet3!$F$1 -> 0 | CE23: =+Sheet3!CE20/Sheet3!$F$1 -> 0 | CF23: =+Sheet3!CF20/Sheet3!$F$1 -> 0 | CG23: =+Sheet3!CG20/Sheet3!$F$1 -> 0 | CH23: =+Sheet3!CH20/Sheet3!$F$1 -> 0 | CI23: =+Sheet3!CI20/Sheet3!$F$1 -> 0 | CJ23: =+Sheet3!CJ20/Sheet3!$F$1 -> 0 | CK23: =+Sheet3!CK20/Sheet3!$F$1 -> 44 | CL23: =+Sheet3!CL20/Sheet3!$F$1 -> 0 | CM23: =+Sheet3!CM20/Sheet3!$F$1 -> 0 | CN23: =+Sheet3!CN20/Sheet3!$F$1 -> 0 | CO23: =+Sheet3!CO20/Sheet3!$F$1 -> 0 | CP23: =+Sheet3!CP20/Sheet3!$F$1 -> 20 | CQ23: =+Sheet3!CQ20/Sheet3!$F$1 -> 404 | CR23: =+Sheet3!CR20/Sheet3!$F$1 -> 295 | CS23: =+Sheet3!CS20/Sheet3!$F$1 -> 0 | CT23: =+Sheet3!CT20/Sheet3!$F$1 -> 0 | CU23: =+Sheet3!CU20/Sheet3!$F$1 -> 805 | CV23: =+Sheet3!CV20/Sheet3!$F$1 -> 394 | CW23: =+Sheet3!CW20/Sheet3!$F$1 -> 461 | CX23: =+Sheet3!CX20/Sheet3!$F$1 -> 54 | CY23: =+Sheet3!CY20/Sheet3!$F$1 -> 2868 | CZ23: =+Sheet3!CZ20/Sheet3!$F$1 -> 72 | DA23: =+Sheet3!DA20/Sheet3!$F$1 -> 173 | DB23: =+Sheet3!DB20/Sheet3!$F$1 -> 154 | DC23: =+Sheet3!DC20/Sheet3!$F$1 -> 899 | DD23: =+Sheet3!DD20/Sheet3!$F$1 -> 1179 | DE23: =+Sheet3!DE20/Sheet3!$F$1 -> 139 | DF23: =+Sheet3!DF20/Sheet3!$F$1 -> 0 | DG23: =+Sheet3!DG20/Sheet3!$F$1 -> 44 | DH23: =+Sheet3!DH20/Sheet3!$F$1 -> 7013 | DI23: =+Sheet3!DI20/Sheet3!$F$1 -> 873 | DJ23: =+Sheet3!DJ20/Sheet3!$F$1 -> 76 | DK23: =+Sheet3!DK20/Sheet3!$F$1 -> 0 | DL23: =+Sheet3!DL20/Sheet3!$F$1 -> 0 | DM23: 7962
B24: 16H | C24: Beira Baixa | D24: =+Sheet3!D21/Sheet3!$F$1 -> 3 | E24: =+Sheet3!E21/Sheet3!$F$1 -> 0 | F24: =+Sheet3!F21/Sheet3!$F$1 -> 0 | G24: =+Sheet3!G21/Sheet3!$F$1 -> 0 | H24: =+Sheet3!H21/Sheet3!$F$1 -> 0 | I24: =+Sheet3!I21/Sheet3!$F$1 -> 5 | J24: =+Sheet3!J21/Sheet3!$F$1 -> 4 | K24: =+Sheet3!K21/Sheet3!$F$1 -> 0 | L24: =+Sheet3!L21/Sheet3!$F$1 -> 0 | M24: =+Sheet3!M21/Sheet3!$F$1 -> 0 | N24: =+Sheet3!N21/Sheet3!$F$1 -> 64 | O24: =+Sheet3!O21/Sheet3!$F$1 -> 79 | P24: =+Sheet3!P21/Sheet3!$F$1 -> 19 | Q24: =+Sheet3!Q21/Sheet3!$F$1 -> 0 | R24: =+Sheet3!R21/Sheet3!$F$1 -> 0 | S24: =+Sheet3!S21/Sheet3!$F$1 -> 0 | T24: =+Sheet3!T21/Sheet3!$F$1 -> 0 | U24: =+Sheet3!U21/Sheet3!$F$1 -> 0 | V24: =+Sheet3!V21/Sheet3!$F$1 -> 0 | W24: =+Sheet3!W21/Sheet3!$F$1 -> 0 | X24: =+Sheet3!X21/Sheet3!$F$1 -> 0 | Y24: =+Sheet3!Y21/Sheet3!$F$1 -> 0 | Z24: =+Sheet3!Z21/Sheet3!$F$1 -> 0 | AA24: =+Sheet3!AA21/Sheet3!$F$1 -> 0 | AB24: =+Sheet3!AB21/Sheet3!$F$1 -> 0 | AC24: =+Sheet3!AC21/Sheet3!$F$1 -> 275 | AD24: =+Sheet3!AD21/Sheet3!$F$1 -> 28 | AE24: =+Sheet3!AE21/Sheet3!$F$1 -> 6 | AF24: =+Sheet3!AF21/Sheet3!$F$1 -> 0 | AG24: =+Sheet3!AG21/Sheet3!$F$1 -> 0 | AH24: =+Sheet3!AH21/Sheet3!$F$1 -> 0 | AI24: =+Sheet3!AI21/Sheet3!$F$1 -> 0 | AJ24: =+Sheet3!AJ21/Sheet3!$F$1 -> 0 | AK24: =+Sheet3!AK21/Sheet3!$F$1 -> 0 | AL24: =+Sheet3!AL21/Sheet3!$F$1 -> 0 | AM24: =+Sheet3!AM21/Sheet3!$F$1 -> 216 | AN24: =+Sheet3!AN21/Sheet3!$F$1 -> 64 | AO24: =+Sheet3!AO21/Sheet3!$F$1 -> 25 | AP24: =+Sheet3!AP21/Sheet3!$F$1 -> 0 | AQ24: =+Sheet3!AQ21/Sheet3!$F$1 -> 0 | AR24: =+Sheet3!AR21/Sheet3!$F$1 -> 526 | AS24: =+Sheet3!AS21/Sheet3!$F$1 -> 112 | AT24: =+Sheet3!AT21/Sheet3!$F$1 -> 22 | AU24: =+Sheet3!AU21/Sheet3!$F$1 -> 0 | AV24: =+Sheet3!AV21/Sheet3!$F$1 -> 0 | AW24: =+Sheet3!AW21/Sheet3!$F$1 -> 914 | AX24: =+Sheet3!AX21/Sheet3!$F$1 -> 345 | AY24: =+Sheet3!AY21/Sheet3!$F$1 -> 69 | AZ24: =+Sheet3!AZ21/Sheet3!$F$1 -> 3 | BA24: =+Sheet3!BA21/Sheet3!$F$1 -> 0 | BB24: =+Sheet3!BB21/Sheet3!$F$1 -> 0 | BC24: =+Sheet3!BC21/Sheet3!$F$1 -> 0 | BD24: =+Sheet3!BD21/Sheet3!$F$1 -> 0 | BE24: =+Sheet3!BE21/Sheet3!$F$1 -> 0 | BF24: =+Sheet3!BF21/Sheet3!$F$1 -> 0 | BG24: =+Sheet3!BG21/Sheet3!$F$1 -> 9 | BH24: =+Sheet3!BH21/Sheet3!$F$1 -> 18 | BI24: =+Sheet3!BI21/Sheet3!$F$1 -> 21 | BJ24: =+Sheet3!BJ21/Sheet3!$F$1 -> 3 | BK24: =+Sheet3!BK21/Sheet3!$F$1 -> 0 | BL24: =+Sheet3!BL21/Sheet3!$F$1 -> 0 | BM24: =+Sheet3!BM21/Sheet3!$F$1 -> 11 | BN24: =+Sheet3!BN21/Sheet3!$F$1 -> 77 | BO24: =+Sheet3!BO21/Sheet3!$F$1 -> 60 | BP24: =+Sheet3!BP21/Sheet3!$F$1 -> 0 | BQ24: =+Sheet3!BQ21/Sheet3!$F$1 -> 327 | BR24: =+Sheet3!BR21/Sheet3!$F$1 -> 282 | BS24: =+Sheet3!BS21/Sheet3!$F$1 -> 239 | BT24: =+Sheet3!BT21/Sheet3!$F$1 -> 52 | BU24: =+Sheet3!BU21/Sheet3!$F$1 -> 5 | BV24: =+Sheet3!BV21/Sheet3!$F$1 -> 126 | BW24: =+Sheet3!BW21/Sheet3!$F$1 -> 98 | BX24: =+Sheet3!BX21/Sheet3!$F$1 -> 22 | BY24: =+Sheet3!BY21/Sheet3!$F$1 -> 9 | BZ24: =+Sheet3!BZ21/Sheet3!$F$1 -> 0 | CA24: =+Sheet3!CA21/Sheet3!$F$1 -> 91 | CB24: =+Sheet3!CB21/Sheet3!$F$1 -> 139 | CC24: =+Sheet3!CC21/Sheet3!$F$1 -> 135 | CD24: =+Sheet3!CD21/Sheet3!$F$1 -> 20 | CE24: =+Sheet3!CE21/Sheet3!$F$1 -> 0 | CF24: =+Sheet3!CF21/Sheet3!$F$1 -> 0 | CG24: =+Sheet3!CG21/Sheet3!$F$1 -> 0 | CH24: =+Sheet3!CH21/Sheet3!$F$1 -> 0 | CI24: =+Sheet3!CI21/Sheet3!$F$1 -> 0 | CJ24: =+Sheet3!CJ21/Sheet3!$F$1 -> 0 | CK24: =+Sheet3!CK21/Sheet3!$F$1 -> 0 | CL24: =+Sheet3!CL21/Sheet3!$F$1 -> 0 | CM24: =+Sheet3!CM21/Sheet3!$F$1 -> 0 | CN24: =+Sheet3!CN21/Sheet3!$F$1 -> 0 | CO24: =+Sheet3!CO21/Sheet3!$F$1 -> 0 | CP24: =+Sheet3!CP21/Sheet3!$F$1 -> 11 | CQ24: =+Sheet3!CQ21/Sheet3!$F$1 -> 10 | CR24: =+Sheet3!CR21/Sheet3!$F$1 -> 165 | CS24: =+Sheet3!CS21/Sheet3!$F$1 -> 0 | CT24: =+Sheet3!CT21/Sheet3!$F$1 -> 0 | CU24: =+Sheet3!CU21/Sheet3!$F$1 -> 311 | CV24: =+Sheet3!CV21/Sheet3!$F$1 -> 11 | CW24: =+Sheet3!CW21/Sheet3!$F$1 -> 311 | CX24: =+Sheet3!CX21/Sheet3!$F$1 -> 661 | CY24: =+Sheet3!CY21/Sheet3!$F$1 -> 1333 | CZ24: =+Sheet3!CZ21/Sheet3!$F$1 -> 3 | DA24: =+Sheet3!DA21/Sheet3!$F$1 -> 52 | DB24: =+Sheet3!DB21/Sheet3!$F$1 -> 155 | DC24: =+Sheet3!DC21/Sheet3!$F$1 -> 907 | DD24: =+Sheet3!DD21/Sheet3!$F$1 -> 257 | DE24: =+Sheet3!DE21/Sheet3!$F$1 -> 389 | DF24: =+Sheet3!DF21/Sheet3!$F$1 -> 0 | DG24: =+Sheet3!DG21/Sheet3!$F$1 -> 0 | DH24: =+Sheet3!DH21/Sheet3!$F$1 -> 2565 | DI24: =+Sheet3!DI21/Sheet3!$F$1 -> 1193 | DJ24: =+Sheet3!DJ21/Sheet3!$F$1 -> 651 | DK24: =+Sheet3!DK21/Sheet3!$F$1 -> 157 | DL24: =+Sheet3!DL21/Sheet3!$F$1 -> 11 | DM24: 4577
B25: 16I | C25: Médio Tejo | D25: =+Sheet3!D22/Sheet3!$F$1 -> 3 | E25: =+Sheet3!E22/Sheet3!$F$1 -> 4 | F25: =+Sheet3!F22/Sheet3!$F$1 -> 0 | G25: =+Sheet3!G22/Sheet3!$F$1 -> 0 | H25: =+Sheet3!H22/Sheet3!$F$1 -> 0 | I25: =+Sheet3!I22/Sheet3!$F$1 -> 25 | J25: =+Sheet3!J22/Sheet3!$F$1 -> 10 | K25: =+Sheet3!K22/Sheet3!$F$1 -> 20 | L25: =+Sheet3!L22/Sheet3!$F$1 -> 0 | M25: =+Sheet3!M22/Sheet3!$F$1 -> 0 | N25: =+Sheet3!N22/Sheet3!$F$1 -> 34 | O25: =+Sheet3!O22/Sheet3!$F$1 -> 19 | P25: =+Sheet3!P22/Sheet3!$F$1 -> 11 | Q25: =+Sheet3!Q22/Sheet3!$F$1 -> 0 | R25: =+Sheet3!R22/Sheet3!$F$1 -> 0 | S25: =+Sheet3!S22/Sheet3!$F$1 -> 0 | T25: =+Sheet3!T22/Sheet3!$F$1 -> 0 | U25: =+Sheet3!U22/Sheet3!$F$1 -> 0 | V25: =+Sheet3!V22/Sheet3!$F$1 -> 0 | W25: =+Sheet3!W22/Sheet3!$F$1 -> 0 | X25: =+Sheet3!X22/Sheet3!$F$1 -> 0 | Y25: =+Sheet3!Y22/Sheet3!$F$1 -> 3 | Z25: =+Sheet3!Z22/Sheet3!$F$1 -> 0 | AA25: =+Sheet3!AA22/Sheet3!$F$1 -> 0 | AB25: =+Sheet3!AB22/Sheet3!$F$1 -> 0 | AC25: =+Sheet3!AC22/Sheet3!$F$1 -> 274 | AD25: =+Sheet3!AD22/Sheet3!$F$1 -> 10 | AE25: =+Sheet3!AE22/Sheet3!$F$1 -> 0 | AF25: =+Sheet3!AF22/Sheet3!$F$1 -> 0 | AG25: =+Sheet3!AG22/Sheet3!$F$1 -> 0 | AH25: =+Sheet3!AH22/Sheet3!$F$1 -> 40 | AI25: =+Sheet3!AI22/Sheet3!$F$1 -> 11 | AJ25: =+Sheet3!AJ22/Sheet3!$F$1 -> 4 | AK25: =+Sheet3!AK22/Sheet3!$F$1 -> 0 | AL25: =+Sheet3!AL22/Sheet3!$F$1 -> 0 | AM25: =+Sheet3!AM22/Sheet3!$F$1 -> 205 | AN25: =+Sheet3!AN22/Sheet3!$F$1 -> 77 | AO25: =+Sheet3!AO22/Sheet3!$F$1 -> 17 | AP25: =+Sheet3!AP22/Sheet3!$F$1 -> 0 | AQ25: =+Sheet3!AQ22/Sheet3!$F$1 -> 0 | AR25: =+Sheet3!AR22/Sheet3!$F$1 -> 567 | AS25: =+Sheet3!AS22/Sheet3!$F$1 -> 64 | AT25: =+Sheet3!AT22/Sheet3!$F$1 -> 12 | AU25: =+Sheet3!AU22/Sheet3!$F$1 -> 0 | AV25: =+Sheet3!AV22/Sheet3!$F$1 -> 0 | AW25: =+Sheet3!AW22/Sheet3!$F$1 -> 1316 | AX25: =+Sheet3!AX22/Sheet3!$F$1 -> 235 | AY25: =+Sheet3!AY22/Sheet3!$F$1 -> 22 | AZ25: =+Sheet3!AZ22/Sheet3!$F$1 -> 5 | BA25: =+Sheet3!BA22/Sheet3!$F$1 -> 0 | BB25: =+Sheet3!BB22/Sheet3!$F$1 -> 0 | BC25: =+Sheet3!BC22/Sheet3!$F$1 -> 7 | BD25: =+Sheet3!BD22/Sheet3!$F$1 -> 0 | BE25: =+Sheet3!BE22/Sheet3!$F$1 -> 0 | BF25: =+Sheet3!BF22/Sheet3!$F$1 -> 0 | BG25: =+Sheet3!BG22/Sheet3!$F$1 -> 43 | BH25: =+Sheet3!BH22/Sheet3!$F$1 -> 45 | BI25: =+Sheet3!BI22/Sheet3!$F$1 -> 10 | BJ25: =+Sheet3!BJ22/Sheet3!$F$1 -> 0 | BK25: =+Sheet3!BK22/Sheet3!$F$1 -> 0 | BL25: =+Sheet3!BL22/Sheet3!$F$1 -> 0 | BM25: =+Sheet3!BM22/Sheet3!$F$1 -> 4 | BN25: =+Sheet3!BN22/Sheet3!$F$1 -> 6 | BO25: =+Sheet3!BO22/Sheet3!$F$1 -> 0 | BP25: =+Sheet3!BP22/Sheet3!$F$1 -> 0 | BQ25: =+Sheet3!BQ22/Sheet3!$F$1 -> 317 | BR25: =+Sheet3!BR22/Sheet3!$F$1 -> 60 | BS25: =+Sheet3!BS22/Sheet3!$F$1 -> 23 | BT25: =+Sheet3!BT22/Sheet3!$F$1 -> 0 | BU25: =+Sheet3!BU22/Sheet3!$F$1 -> 0 | BV25: =+Sheet3!BV22/Sheet3!$F$1 -> 233 | BW25: =+Sheet3!BW22/Sheet3!$F$1 -> 66 | BX25: =+Sheet3!BX22/Sheet3!$F$1 -> 15 | BY25: =+Sheet3!BY22/Sheet3!$F$1 -> 5 | BZ25: =+Sheet3!BZ22/Sheet3!$F$1 -> 0 | CA25: =+Sheet3!CA22/Sheet3!$F$1 -> 86 | CB25: =+Sheet3!CB22/Sheet3!$F$1 -> 52 | CC25: =+Sheet3!CC22/Sheet3!$F$1 -> 42 | CD25: =+Sheet3!CD22/Sheet3!$F$1 -> 4 | CE25: =+Sheet3!CE22/Sheet3!$F$1 -> 0 | CF25: =+Sheet3!CF22/Sheet3!$F$1 -> 0 | CG25: =+Sheet3!CG22/Sheet3!$F$1 -> 0 | CH25: =+Sheet3!CH22/Sheet3!$F$1 -> 0 | CI25: =+Sheet3!CI22/Sheet3!$F$1 -> 0 | CJ25: =+Sheet3!CJ22/Sheet3!$F$1 -> 0 | CK25: =+Sheet3!CK22/Sheet3!$F$1 -> 0 | CL25: =+Sheet3!CL22/Sheet3!$F$1 -> 0 | CM25: =+Sheet3!CM22/Sheet3!$F$1 -> 0 | CN25: =+Sheet3!CN22/Sheet3!$F$1 -> 0 | CO25: =+Sheet3!CO22/Sheet3!$F$1 -> 0 | CP25: =+Sheet3!CP22/Sheet3!$F$1 -> 11 | CQ25: =+Sheet3!CQ22/Sheet3!$F$1 -> 59 | CR25: =+Sheet3!CR22/Sheet3!$F$1 -> 66 | CS25: =+Sheet3!CS22/Sheet3!$F$1 -> 0 | CT25: =+Sheet3!CT22/Sheet3!$F$1 -> 3 | CU25: =+Sheet3!CU22/Sheet3!$F$1 -> 289 | CV25: =+Sheet3!CV22/Sheet3!$F$1 -> 57 | CW25: =+Sheet3!CW22/Sheet3!$F$1 -> 299 | CX25: =+Sheet3!CX22/Sheet3!$F$1 -> 645 | CY25: =+Sheet3!CY22/Sheet3!$F$1 -> 1583 | CZ25: =+Sheet3!CZ22/Sheet3!$F$1 -> 11 | DA25: =+Sheet3!DA22/Sheet3!$F$1 -> 101 | DB25: =+Sheet3!DB22/Sheet3!$F$1 -> 14 | DC25: =+Sheet3!DC22/Sheet3!$F$1 -> 402 | DD25: =+Sheet3!DD22/Sheet3!$F$1 -> 322 | DE25: =+Sheet3!DE22/Sheet3!$F$1 -> 186 | DF25: =+Sheet3!DF22/Sheet3!$F$1 -> 0 | DG25: =+Sheet3!DG22/Sheet3!$F$1 -> 0 | DH25: =+Sheet3!DH22/Sheet3!$F$1 -> 3152 | DI25: =+Sheet3!DI22/Sheet3!$F$1 -> 680 | DJ25: =+Sheet3!DJ22/Sheet3!$F$1 -> 195 | DK25: =+Sheet3!DK22/Sheet3!$F$1 -> 20 | DL25: =+Sheet3!DL22/Sheet3!$F$1 -> 0 | DM25: 4047
B26: 16J | C26: Beiras e Serra da Estrela | D26: =+Sheet3!D23/Sheet3!$F$1 -> 16 | E26: =+Sheet3!E23/Sheet3!$F$1 -> 8 | F26: =+Sheet3!F23/Sheet3!$F$1 -> 3 | G26: =+Sheet3!G23/Sheet3!$F$1 -> 0 | H26: =+Sheet3!H23/Sheet3!$F$1 -> 0 | I26: =+Sheet3!I23/Sheet3!$F$1 -> 54 | J26: =+Sheet3!J23/Sheet3!$F$1 -> 20 | K26: =+Sheet3!K23/Sheet3!$F$1 -> 5 | L26: =+Sheet3!L23/Sheet3!$F$1 -> 0 | M26: =+Sheet3!M23/Sheet3!$F$1 -> 0 | N26: =+Sheet3!N23/Sheet3!$F$1 -> 486 | O26: =+Sheet3!O23/Sheet3!$F$1 -> 321 | P26: =+Sheet3!P23/Sheet3!$F$1 -> 53 | Q26: =+Sheet3!Q23/Sheet3!$F$1 -> 0 | R26: =+Sheet3!R23/Sheet3!$F$1 -> 0 | S26: =+Sheet3!S23/Sheet3!$F$1 -> 0 | T26: =+Sheet3!T23/Sheet3!$F$1 -> 0 | U26: =+Sheet3!U23/Sheet3!$F$1 -> 0 | V26: =+Sheet3!V23/Sheet3!$F$1 -> 0 | W26: =+Sheet3!W23/Sheet3!$F$1 -> 0 | X26: =+Sheet3!X23/Sheet3!$F$1 -> 0 | Y26: =+Sheet3!Y23/Sheet3!$F$1 -> 0 | Z26: =+Sheet3!Z23/Sheet3!$F$1 -> 0 | AA26: =+Sheet3!AA23/Sheet3!$F$1 -> 0 | AB26: =+Sheet3!AB23/Sheet3!$F$1 -> 0 | AC26: =+Sheet3!AC23/Sheet3!$F$1 -> 1499 | AD26: =+Sheet3!AD23/Sheet3!$F$1 -> 193 | AE26: =+Sheet3!AE23/Sheet3!$F$1 -> 10 | AF26: =+Sheet3!AF23/Sheet3!$F$1 -> 0 | AG26: =+Sheet3!AG23/Sheet3!$F$1 -> 0 | AH26: =+Sheet3!AH23/Sheet3!$F$1 -> 282 | AI26: =+Sheet3!AI23/Sheet3!$F$1 -> 176 | AJ26: =+Sheet3!AJ23/Sheet3!$F$1 -> 41 | AK26: =+Sheet3!AK23/Sheet3!$F$1 -> 0 | AL26: =+Sheet3!AL23/Sheet3!$F$1 -> 0 | AM26: =+Sheet3!AM23/Sheet3!$F$1 -> 718 | AN26: =+Sheet3!AN23/Sheet3!$F$1 -> 455 | AO26: =+Sheet3!AO23/Sheet3!$F$1 -> 94 | AP26: =+Sheet3!AP23/Sheet3!$F$1 -> 0 | AQ26: =+Sheet3!AQ23/Sheet3!$F$1 -> 0 | AR26: =+Sheet3!AR23/Sheet3!$F$1 -> 529 | AS26: =+Sheet3!AS23/Sheet3!$F$1 -> 51 | AT26: =+Sheet3!AT23/Sheet3!$F$1 -> 10 | AU26: =+Sheet3!AU23/Sheet3!$F$1 -> 0 | AV26: =+Sheet3!AV23/Sheet3!$F$1 -> 0 | AW26: =+Sheet3!AW23/Sheet3!$F$1 -> 3827 | AX26: =+Sheet3!AX23/Sheet3!$F$1 -> 1570 | AY26: =+Sheet3!AY23/Sheet3!$F$1 -> 124 | AZ26: =+Sheet3!AZ23/Sheet3!$F$1 -> 0 | BA26: =+Sheet3!BA23/Sheet3!$F$1 -> 0 | BB26: =+Sheet3!BB23/Sheet3!$F$1 -> 5 | BC26: =+Sheet3!BC23/Sheet3!$F$1 -> 23 | BD26: =+Sheet3!BD23/Sheet3!$F$1 -> 26 | BE26: =+Sheet3!BE23/Sheet3!$F$1 -> 0 | BF26: =+Sheet3!BF23/Sheet3!$F$1 -> 0 | BG26: =+Sheet3!BG23/Sheet3!$F$1 -> 36 | BH26: =+Sheet3!BH23/Sheet3!$F$1 -> 155 | BI26: =+Sheet3!BI23/Sheet3!$F$1 -> 159 | BJ26: =+Sheet3!BJ23/Sheet3!$F$1 -> 0 | BK26: =+Sheet3!BK23/Sheet3!$F$1 -> 0 | BL26: =+Sheet3!BL23/Sheet3!$F$1 -> 3 | BM26: =+Sheet3!BM23/Sheet3!$F$1 -> 137 | BN26: =+Sheet3!BN23/Sheet3!$F$1 -> 373 | BO26: =+Sheet3!BO23/Sheet3!$F$1 -> 13 | BP26: =+Sheet3!BP23/Sheet3!$F$1 -> 0 | BQ26: =+Sheet3!BQ23/Sheet3!$F$1 -> 648 | BR26: =+Sheet3!BR23/Sheet3!$F$1 -> 956 | BS26: =+Sheet3!BS23/Sheet3!$F$1 -> 432 | BT26: =+Sheet3!BT23/Sheet3!$F$1 -> 8 | BU26: =+Sheet3!BU23/Sheet3!$F$1 -> 0 | BV26: =+Sheet3!BV23/Sheet3!$F$1 -> 362 | BW26: =+Sheet3!BW23/Sheet3!$F$1 -> 468 | BX26: =+Sheet3!BX23/Sheet3!$F$1 -> 130 | BY26: =+Sheet3!BY23/Sheet3!$F$1 -> 3 | BZ26: =+Sheet3!BZ23/Sheet3!$F$1 -> 0 | CA26: =+Sheet3!CA23/Sheet3!$F$1 -> 185 | CB26: =+Sheet3!CB23/Sheet3!$F$1 -> 162 | CC26: =+Sheet3!CC23/Sheet3!$F$1 -> 41 | CD26: =+Sheet3!CD23/Sheet3!$F$1 -> 0 | CE26: =+Sheet3!CE23/Sheet3!$F$1 -> 0 | CF26: =+Sheet3!CF23/Sheet3!$F$1 -> 0 | CG26: =+Sheet3!CG23/Sheet3!$F$1 -> 0 | CH26: =+Sheet3!CH23/Sheet3!$F$1 -> 0 | CI26: =+Sheet3!CI23/Sheet3!$F$1 -> 0 | CJ26: =+Sheet3!CJ23/Sheet3!$F$1 -> 0 | CK26: =+Sheet3!CK23/Sheet3!$F$1 -> 7 | CL26: =+Sheet3!CL23/Sheet3!$F$1 -> 0 | CM26: =+Sheet3!CM23/Sheet3!$F$1 -> 0 | CN26: =+Sheet3!CN23/Sheet3!$F$1 -> 0 | CO26: =+Sheet3!CO23/Sheet3!$F$1 -> 0 | CP26: =+Sheet3!CP23/Sheet3!$F$1 -> 32 | CQ26: =+Sheet3!CQ23/Sheet3!$F$1 -> 80 | CR26: =+Sheet3!CR23/Sheet3!$F$1 -> 861 | CS26: =+Sheet3!CS23/Sheet3!$F$1 -> 0 | CT26: =+Sheet3!CT23/Sheet3!$F$1 -> 3 | CU26: =+Sheet3!CU23/Sheet3!$F$1 -> 1704 | CV26: =+Sheet3!CV23/Sheet3!$F$1 -> 499 | CW26: =+Sheet3!CW23/Sheet3!$F$1 -> 1273 | CX26: =+Sheet3!CX23/Sheet3!$F$1 -> 591 | CY26: =+Sheet3!CY23/Sheet3!$F$1 -> 5525 | CZ26: =+Sheet3!CZ23/Sheet3!$F$1 -> 59 | DA26: =+Sheet3!DA23/Sheet3!$F$1 -> 352 | DB26: =+Sheet3!DB23/Sheet3!$F$1 -> 532 | DC26: =+Sheet3!DC23/Sheet3!$F$1 -> 2045 | DD26: =+Sheet3!DD23/Sheet3!$F$1 -> 963 | DE26: =+Sheet3!DE23/Sheet3!$F$1 -> 389 | DF26: =+Sheet3!DF23/Sheet3!$F$1 -> 0 | DG26: =+Sheet3!DG23/Sheet3!$F$1 -> 10 | DH26: =+Sheet3!DH23/Sheet3!$F$1 -> 8674 | DI26: =+Sheet3!DI23/Sheet3!$F$1 -> 4706 | DJ26: =+Sheet3!DJ23/Sheet3!$F$1 -> 1509 | DK26: =+Sheet3!DK23/Sheet3!$F$1 -> 29 | DL26: =+Sheet3!DL23/Sheet3!$F$1 -> 0 | DM26: 14918
A27: AML | B27: 170 | C27: Área Metropolitana de Lisboa | D27: =+Sheet3!D24/Sheet3!$F$1 -> 3 | E27: =+Sheet3!E24/Sheet3!$F$1 -> 0 | F27: =+Sheet3!F24/Sheet3!$F$1 -> 3 | G27: =+Sheet3!G24/Sheet3!$F$1 -> 0 | H27: =+Sheet3!H24/Sheet3!$F$1 -> 0 | I27: =+Sheet3!I24/Sheet3!$F$1 -> 3 | J27: =+Sheet3!J24/Sheet3!$F$1 -> 27 | K27: =+Sheet3!K24/Sheet3!$F$1 -> 22 | L27: =+Sheet3!L24/Sheet3!$F$1 -> 0 | M27: =+Sheet3!M24/Sheet3!$F$1 -> 0 | N27: =+Sheet3!N24/Sheet3!$F$1 -> 18 | O27: =+Sheet3!O24/Sheet3!$F$1 -> 21 | P27: =+Sheet3!P24/Sheet3!$F$1 -> 12 | Q27: =+Sheet3!Q24/Sheet3!$F$1 -> 0 | R27: =+Sheet3!R24/Sheet3!$F$1 -> 0 | S27: =+Sheet3!S24/Sheet3!$F$1 -> 0 | T27: =+Sheet3!T24/Sheet3!$F$1 -> 5 | U27: =+Sheet3!U24/Sheet3!$F$1 -> 48 | V27: =+Sheet3!V24/Sheet3!$F$1 -> 6 | W27: =+Sheet3!W24/Sheet3!$F$1 -> 0 | X27: =+Sheet3!X24/Sheet3!$F$1 -> 0 | Y27: =+Sheet3!Y24/Sheet3!$F$1 -> 0 | Z27: =+Sheet3!Z24/Sheet3!$F$1 -> 0 | AA27: =+Sheet3!AA24/Sheet3!$F$1 -> 0 | AB27: =+Sheet3!AB24/Sheet3!$F$1 -> 0 | AC27: =+Sheet3!AC24/Sheet3!$F$1 -> 39 | AD27: =+Sheet3!AD24/Sheet3!$F$1 -> 32 | AE27: =+Sheet3!AE24/Sheet3!$F$1 -> 9 | AF27: =+Sheet3!AF24/Sheet3!$F$1 -> 0 | AG27: =+Sheet3!AG24/Sheet3!$F$1 -> 0 | AH27: =+Sheet3!AH24/Sheet3!$F$1 -> 28 | AI27: =+Sheet3!AI24/Sheet3!$F$1 -> 80 | AJ27: =+Sheet3!AJ24/Sheet3!$F$1 -> 42 | AK27: =+Sheet3!AK24/Sheet3!$F$1 -> 3 | AL27: =+Sheet3!AL24/Sheet3!$F$1 -> 0 | AM27: =+Sheet3!AM24/Sheet3!$F$1 -> 37 | AN27: =+Sheet3!AN24/Sheet3!$F$1 -> 35 | AO27: =+Sheet3!AO24/Sheet3!$F$1 -> 17 | AP27: =+Sheet3!AP24/Sheet3!$F$1 -> 0 | AQ27: =+Sheet3!AQ24/Sheet3!$F$1 -> 0 | AR27: =+Sheet3!AR24/Sheet3!$F$1 -> 0 | AS27: =+Sheet3!AS24/Sheet3!$F$1 -> 0 | AT27: =+Sheet3!AT24/Sheet3!$F$1 -> 3 | AU27: =+Sheet3!AU24/Sheet3!$F$1 -> 0 | AV27: =+Sheet3!AV24/Sheet3!$F$1 -> 0 | AW27: =+Sheet3!AW24/Sheet3!$F$1 -> 45 | AX27: =+Sheet3!AX24/Sheet3!$F$1 -> 50 | AY27: =+Sheet3!AY24/Sheet3!$F$1 -> 29 | AZ27: =+Sheet3!AZ24/Sheet3!$F$1 -> 3 | BA27: =+Sheet3!BA24/Sheet3!$F$1 -> 0 | BB27: =+Sheet3!BB24/Sheet3!$F$1 -> 3 | BC27: =+Sheet3!BC24/Sheet3!$F$1 -> 13 | BD27: =+Sheet3!BD24/Sheet3!$F$1 -> 8 | BE27: =+Sheet3!BE24/Sheet3!$F$1 -> 0 | BF27: =+Sheet3!BF24/Sheet3!$F$1 -> 0 | BG27: =+Sheet3!BG24/Sheet3!$F$1 -> 64 | BH27: =+Sheet3!BH24/Sheet3!$F$1 -> 43 | BI27: =+Sheet3!BI24/Sheet3!$F$1 -> 22 | BJ27: =+Sheet3!BJ24/Sheet3!$F$1 -> 4 | BK27: =+Sheet3!BK24/Sheet3!$F$1 -> 0 | BL27: =+Sheet3!BL24/Sheet3!$F$1 -> 0 | BM27: =+Sheet3!BM24/Sheet3!$F$1 -> 15 | BN27: =+Sheet3!BN24/Sheet3!$F$1 -> 14 | BO27: =+Sheet3!BO24/Sheet3!$F$1 -> 8 | BP27: =+Sheet3!BP24/Sheet3!$F$1 -> 0 | BQ27: =+Sheet3!BQ24/Sheet3!$F$1 -> 268 | BR27: =+Sheet3!BR24/Sheet3!$F$1 -> 71 | BS27: =+Sheet3!BS24/Sheet3!$F$1 -> 20 | BT27: =+Sheet3!BT24/Sheet3!$F$1 -> 3 | BU27: =+Sheet3!BU24/Sheet3!$F$1 -> 0 | BV27: =+Sheet3!BV24/Sheet3!$F$1 -> 31 | BW27: =+Sheet3!BW24/Sheet3!$F$1 -> 19 | BX27: =+Sheet3!BX24/Sheet3!$F$1 -> 15 | BY27: =+Sheet3!BY24/Sheet3!$F$1 -> 10 | BZ27: =+Sheet3!BZ24/Sheet3!$F$1 -> 0 | CA27: =+Sheet3!CA24/Sheet3!$F$1 -> 73 | CB27: =+Sheet3!CB24/Sheet3!$F$1 -> 77 | CC27: =+Sheet3!CC24/Sheet3!$F$1 -> 41 | CD27: =+Sheet3!CD24/Sheet3!$F$1 -> 3 | CE27: =+Sheet3!CE24/Sheet3!$F$1 -> 0 | CF27: =+Sheet3!CF24/Sheet3!$F$1 -> 0 | CG27: =+Sheet3!CG24/Sheet3!$F$1 -> 9 | CH27: =+Sheet3!CH24/Sheet3!$F$1 -> 16 | CI27: =+Sheet3!CI24/Sheet3!$F$1 -> 10 | CJ27: =+Sheet3!CJ24/Sheet3!$F$1 -> 0 | CK27: =+Sheet3!CK24/Sheet3!$F$1 -> 5 | CL27: =+Sheet3!CL24/Sheet3!$F$1 -> 7 | CM27: =+Sheet3!CM24/Sheet3!$F$1 -> 0 | CN27: =+Sheet3!CN24/Sheet3!$F$1 -> 0 | CO27: =+Sheet3!CO24/Sheet3!$F$1 -> 0 | CP27: =+Sheet3!CP24/Sheet3!$F$1 -> 13 | CQ27: =+Sheet3!CQ24/Sheet3!$F$1 -> 55 | CR27: =+Sheet3!CR24/Sheet3!$F$1 -> 54 | CS27: =+Sheet3!CS24/Sheet3!$F$1 -> 59 | CT27: =+Sheet3!CT24/Sheet3!$F$1 -> 0 | CU27: =+Sheet3!CU24/Sheet3!$F$1 -> 87 | CV27: =+Sheet3!CV24/Sheet3!$F$1 -> 155 | CW27: =+Sheet3!CW24/Sheet3!$F$1 -> 97 | CX27: =+Sheet3!CX24/Sheet3!$F$1 -> 4 | CY27: =+Sheet3!CY24/Sheet3!$F$1 -> 135 | CZ27: =+Sheet3!CZ24/Sheet3!$F$1 -> 27 | DA27: =+Sheet3!DA24/Sheet3!$F$1 -> 139 | DB27: =+Sheet3!DB24/Sheet3!$F$1 -> 43 | DC27: =+Sheet3!DC24/Sheet3!$F$1 -> 363 | DD27: =+Sheet3!DD24/Sheet3!$F$1 -> 82 | DE27: =+Sheet3!DE24/Sheet3!$F$1 -> 198 | DF27: =+Sheet3!DF24/Sheet3!$F$1 -> 40 | DG27: =+Sheet3!DG24/Sheet3!$F$1 -> 16 | DH27: =+Sheet3!DH24/Sheet3!$F$1 -> 637 | DI27: =+Sheet3!DI24/Sheet3!$F$1 -> 530 | DJ27: =+Sheet3!DJ24/Sheet3!$F$1 -> 341 | DK27: =+Sheet3!DK24/Sheet3!$F$1 -> 58 | DL27: =+Sheet3!DL24/Sheet3!$F$1 -> 3 | DM27: 1569
A28: Alentejo | B28: 181 | C28: Alentejo Litoral | D28: =+Sheet3!D25/Sheet3!$F$1 -> 0 | E28: =+Sheet3!E25/Sheet3!$F$1 -> 5 | F28: =+Sheet3!F25/Sheet3!$F$1 -> 8 | G28: =+Sheet3!G25/Sheet3!$F$1 -> 5 | H28: =+Sheet3!H25/Sheet3!$F$1 -> 0 | I28: =+Sheet3!I25/Sheet3!$F$1 -> 0 | J28: =+Sheet3!J25/Sheet3!$F$1 -> 4 | K28: =+Sheet3!K25/Sheet3!$F$1 -> 5 | L28: =+Sheet3!L25/Sheet3!$F$1 -> 0 | M28: =+Sheet3!M25/Sheet3!$F$1 -> 0 | N28: =+Sheet3!N25/Sheet3!$F$1 -> 7 | O28: =+Sheet3!O25/Sheet3!$F$1 -> 21 | P28: =+Sheet3!P25/Sheet3!$F$1 -> 36 | Q28: =+Sheet3!Q25/Sheet3!$F$1 -> 8 | R28: =+Sheet3!R25/Sheet3!$F$1 -> 0 | S28: =+Sheet3!S25/Sheet3!$F$1 -> 10 | T28: =+Sheet3!T25/Sheet3!$F$1 -> 36 | U28: =+Sheet3!U25/Sheet3!$F$1 -> 38 | V28: =+Sheet3!V25/Sheet3!$F$1 -> 0 | W28: =+Sheet3!W25/Sheet3!$F$1 -> 0 | X28: =+Sheet3!X25/Sheet3!$F$1 -> 0 | Y28: =+Sheet3!Y25/Sheet3!$F$1 -> 0 | Z28: =+Sheet3!Z25/Sheet3!$F$1 -> 0 | AA28: =+Sheet3!AA25/Sheet3!$F$1 -> 0 | AB28: =+Sheet3!AB25/Sheet3!$F$1 -> 0 | AC28: =+Sheet3!AC25/Sheet3!$F$1 -> 62 | AD28: =+Sheet3!AD25/Sheet3!$F$1 -> 32 | AE28: =+Sheet3!AE25/Sheet3!$F$1 -> 15 | AF28: =+Sheet3!AF25/Sheet3!$F$1 -> 0 | AG28: =+Sheet3!AG25/Sheet3!$F$1 -> 0 | AH28: =+Sheet3!AH25/Sheet3!$F$1 -> 0 | AI28: =+Sheet3!AI25/Sheet3!$F$1 -> 5 | AJ28: =+Sheet3!AJ25/Sheet3!$F$1 -> 6 | AK28: =+Sheet3!AK25/Sheet3!$F$1 -> 0 | AL28: =+Sheet3!AL25/Sheet3!$F$1 -> 0 | AM28: =+Sheet3!AM25/Sheet3!$F$1 -> 23 | AN28: =+Sheet3!AN25/Sheet3!$F$1 -> 78 | AO28: =+Sheet3!AO25/Sheet3!$F$1 -> 139 | AP28: =+Sheet3!AP25/Sheet3!$F$1 -> 25 | AQ28: =+Sheet3!AQ25/Sheet3!$F$1 -> 0 | AR28: =+Sheet3!AR25/Sheet3!$F$1 -> 36 | AS28: =+Sheet3!AS25/Sheet3!$F$1 -> 10 | AT28: =+Sheet3!AT25/Sheet3!$F$1 -> 20 | AU28: =+Sheet3!AU25/Sheet3!$F$1 -> 0 | AV28: =+Sheet3!AV25/Sheet3!$F$1 -> 0 | AW28: =+Sheet3!AW25/Sheet3!$F$1 -> 75 | AX28: =+Sheet3!AX25/Sheet3!$F$1 -> 127 | AY28: =+Sheet3!AY25/Sheet3!$F$1 -> 91 | AZ28: =+Sheet3!AZ25/Sheet3!$F$1 -> 23 | BA28: =+Sheet3!BA25/Sheet3!$F$1 -> 3 | BB28: =+Sheet3!BB25/Sheet3!$F$1 -> 0 | BC28: =+Sheet3!BC25/Sheet3!$F$1 -> 0 | BD28: =+Sheet3!BD25/Sheet3!$F$1 -> 11 | BE28: =+Sheet3!BE25/Sheet3!$F$1 -> 4 | BF28: =+Sheet3!BF25/Sheet3!$F$1 -> 0 | BG28: =+Sheet3!BG25/Sheet3!$F$1 -> 38 | BH28: =+Sheet3!BH25/Sheet3!$F$1 -> 69 | BI28: =+Sheet3!BI25/Sheet3!$F$1 -> 81 | BJ28: =+Sheet3!BJ25/Sheet3!$F$1 -> 11 | BK28: =+Sheet3!BK25/Sheet3!$F$1 -> 0 | BL28: =+Sheet3!BL25/Sheet3!$F$1 -> 0 | BM28: =+Sheet3!BM25/Sheet3!$F$1 -> 38 | BN28: =+Sheet3!BN25/Sheet3!$F$1 -> 202 | BO28: =+Sheet3!BO25/Sheet3!$F$1 -> 107 | BP28: =+Sheet3!BP25/Sheet3!$F$1 -> 9 | BQ28: =+Sheet3!BQ25/Sheet3!$F$1 -> 142 | BR28: =+Sheet3!BR25/Sheet3!$F$1 -> 183 | BS28: =+Sheet3!BS25/Sheet3!$F$1 -> 241 | BT28: =+Sheet3!BT25/Sheet3!$F$1 -> 53 | BU28: =+Sheet3!BU25/Sheet3!$F$1 -> 0 | BV28: =+Sheet3!BV25/Sheet3!$F$1 -> 17 | BW28: =+Sheet3!BW25/Sheet3!$F$1 -> 54 | BX28: =+Sheet3!BX25/Sheet3!$F$1 -> 60 | BY28: =+Sheet3!BY25/Sheet3!$F$1 -> 45 | BZ28: =+Sheet3!BZ25/Sheet3!$F$1 -> 6 | CA28: =+Sheet3!CA25/Sheet3!$F$1 -> 84 | CB28: =+Sheet3!CB25/Sheet3!$F$1 -> 314 | CC28: =+Sheet3!CC25/Sheet3!$F$1 -> 423 | CD28: =+Sheet3!CD25/Sheet3!$F$1 -> 26 | CE28: =+Sheet3!CE25/Sheet3!$F$1 -> 0 | CF28: =+Sheet3!CF25/Sheet3!$F$1 -> 0 | CG28: =+Sheet3!CG25/Sheet3!$F$1 -> 0 | CH28: =+Sheet3!CH25/Sheet3!$F$1 -> 8 | CI28: =+Sheet3!CI25/Sheet3!$F$1 -> 0 | CJ28: =+Sheet3!CJ25/Sheet3!$F$1 -> 0 | CK28: =+Sheet3!CK25/Sheet3!$F$1 -> 0 | CL28: =+Sheet3!CL25/Sheet3!$F$1 -> 0 | CM28: =+Sheet3!CM25/Sheet3!$F$1 -> 0 | CN28: =+Sheet3!CN25/Sheet3!$F$1 -> 0 | CO28: =+Sheet3!CO25/Sheet3!$F$1 -> 0 | CP28: =+Sheet3!CP25/Sheet3!$F$1 -> 21 | CQ28: =+Sheet3!CQ25/Sheet3!$F$1 -> 16 | CR28: =+Sheet3!CR25/Sheet3!$F$1 -> 78 | CS28: =+Sheet3!CS25/Sheet3!$F$1 -> 88 | CT28: =+Sheet3!CT25/Sheet3!$F$1 -> 3 | CU28: =+Sheet3!CU25/Sheet3!$F$1 -> 113 | CV28: =+Sheet3!CV25/Sheet3!$F$1 -> 17 | CW28: =+Sheet3!CW25/Sheet3!$F$1 -> 266 | CX28: =+Sheet3!CX25/Sheet3!$F$1 -> 71 | CY28: =+Sheet3!CY25/Sheet3!$F$1 -> 320 | CZ28: =+Sheet3!CZ25/Sheet3!$F$1 -> 17 | DA28: =+Sheet3!DA25/Sheet3!$F$1 -> 202 | DB28: =+Sheet3!DB25/Sheet3!$F$1 -> 359 | DC28: =+Sheet3!DC25/Sheet3!$F$1 -> 622 | DD28: =+Sheet3!DD25/Sheet3!$F$1 -> 186 | DE28: =+Sheet3!DE25/Sheet3!$F$1 -> 848 | DF28: =+Sheet3!DF25/Sheet3!$F$1 -> 10 | DG28: =+Sheet3!DG25/Sheet3!$F$1 -> 0 | DH28: =+Sheet3!DH25/Sheet3!$F$1 -> 510 | DI28: =+Sheet3!DI25/Sheet3!$F$1 -> 990 | DJ28: =+Sheet3!DJ25/Sheet3!$F$1 -> 1401 | DK28: =+Sheet3!DK25/Sheet3!$F$1 -> 316 | DL28: =+Sheet3!DL25/Sheet3!$F$1 -> 21 | DM28: 3238
B29: 184 | C29: Baixo Alentejo | D29: =+Sheet3!D26/Sheet3!$F$1 -> 21 | E29: =+Sheet3!E26/Sheet3!$F$1 -> 4 | F29: =+Sheet3!F26/Sheet3!$F$1 -> 4 | G29: =+Sheet3!G26/Sheet3!$F$1 -> 0 | H29: =+Sheet3!H26/Sheet3!$F$1 -> 0 | I29: =+Sheet3!I26/Sheet3!$F$1 -> 5 | J29: =+Sheet3!J26/Sheet3!$F$1 -> 14 | K29: =+Sheet3!K26/Sheet3!$F$1 -> 38 | L29: =+Sheet3!L26/Sheet3!$F$1 -> 13 | M29: =+Sheet3!M26/Sheet3!$F$1 -> 0 | N29: =+Sheet3!N26/Sheet3!$F$1 -> 144 | O29: =+Sheet3!O26/Sheet3!$F$1 -> 245 | P29: =+Sheet3!P26/Sheet3!$F$1 -> 206 | Q29: =+Sheet3!Q26/Sheet3!$F$1 -> 42 | R29: =+Sheet3!R26/Sheet3!$F$1 -> 0 | S29: =+Sheet3!S26/Sheet3!$F$1 -> 0 | T29: =+Sheet3!T26/Sheet3!$F$1 -> 0 | U29: =+Sheet3!U26/Sheet3!$F$1 -> 0 | V29: =+Sheet3!V26/Sheet3!$F$1 -> 0 | W29: =+Sheet3!W26/Sheet3!$F$1 -> 0 | X29: =+Sheet3!X26/Sheet3!$F$1 -> 7 | Y29: =+Sheet3!Y26/Sheet3!$F$1 -> 24 | Z29: =+Sheet3!Z26/Sheet3!$F$1 -> 40 | AA29: =+Sheet3!AA26/Sheet3!$F$1 -> 4 | AB29: =+Sheet3!AB26/Sheet3!$F$1 -> 0 | AC29: =+Sheet3!AC26/Sheet3!$F$1 -> 48 | AD29: =+Sheet3!AD26/Sheet3!$F$1 -> 31 | AE29: =+Sheet3!AE26/Sheet3!$F$1 -> 20 | AF29: =+Sheet3!AF26/Sheet3!$F$1 -> 3 | AG29: =+Sheet3!AG26/Sheet3!$F$1 -> 0 | AH29: =+Sheet3!AH26/Sheet3!$F$1 -> 97 | AI29: =+Sheet3!AI26/Sheet3!$F$1 -> 98 | AJ29: =+Sheet3!AJ26/Sheet3!$F$1 -> 46 | AK29: =+Sheet3!AK26/Sheet3!$F$1 -> 4 | AL29: =+Sheet3!AL26/Sheet3!$F$1 -> 0 | AM29: =+Sheet3!AM26/Sheet3!$F$1 -> 48 | AN29: =+Sheet3!AN26/Sheet3!$F$1 -> 87 | AO29: =+Sheet3!AO26/Sheet3!$F$1 -> 238 | AP29: =+Sheet3!AP26/Sheet3!$F$1 -> 34 | AQ29: =+Sheet3!AQ26/Sheet3!$F$1 -> 0 | AR29: =+Sheet3!AR26/Sheet3!$F$1 -> 802 | AS29: =+Sheet3!AS26/Sheet3!$F$1 -> 563 | AT29: =+Sheet3!AT26/Sheet3!$F$1 -> 450 | AU29: =+Sheet3!AU26/Sheet3!$F$1 -> 75 | AV29: =+Sheet3!AV26/Sheet3!$F$1 -> 5 | AW29: =+Sheet3!AW26/Sheet3!$F$1 -> 328 | AX29: =+Sheet3!AX26/Sheet3!$F$1 -> 401 | AY29: =+Sheet3!AY26/Sheet3!$F$1 -> 252 | AZ29: =+Sheet3!AZ26/Sheet3!$F$1 -> 60 | BA29: =+Sheet3!BA26/Sheet3!$F$1 -> 5 | BB29: =+Sheet3!BB26/Sheet3!$F$1 -> 0 | BC29: =+Sheet3!BC26/Sheet3!$F$1 -> 0 | BD29: =+Sheet3!BD26/Sheet3!$F$1 -> 0 | BE29: =+Sheet3!BE26/Sheet3!$F$1 -> 0 | BF29: =+Sheet3!BF26/Sheet3!$F$1 -> 0 | BG29: =+Sheet3!BG26/Sheet3!$F$1 -> 35 | BH29: =+Sheet3!BH26/Sheet3!$F$1 -> 36 | BI29: =+Sheet3!BI26/Sheet3!$F$1 -> 82 | BJ29: =+Sheet3!BJ26/Sheet3!$F$1 -> 32 | BK29: =+Sheet3!BK26/Sheet3!$F$1 -> 0 | BL29: =+Sheet3!BL26/Sheet3!$F$1 -> 0 | BM29: =+Sheet3!BM26/Sheet3!$F$1 -> 13 | BN29: =+Sheet3!BN26/Sheet3!$F$1 -> 226 | BO29: =+Sheet3!BO26/Sheet3!$F$1 -> 220 | BP29: =+Sheet3!BP26/Sheet3!$F$1 -> 12 | BQ29: =+Sheet3!BQ26/Sheet3!$F$1 -> 421 | BR29: =+Sheet3!BR26/Sheet3!$F$1 -> 402 | BS29: =+Sheet3!BS26/Sheet3!$F$1 -> 536 | BT29: =+Sheet3!BT26/Sheet3!$F$1 -> 152 | BU29: =+Sheet3!BU26/Sheet3!$F$1 -> 3 | BV29: =+Sheet3!BV26/Sheet3!$F$1 -> 50 | BW29: =+Sheet3!BW26/Sheet3!$F$1 -> 119 | BX29: =+Sheet3!BX26/Sheet3!$F$1 -> 168 | BY29: =+Sheet3!BY26/Sheet3!$F$1 -> 125 | BZ29: =+Sheet3!BZ26/Sheet3!$F$1 -> 11 | CA29: =+Sheet3!CA26/Sheet3!$F$1 -> 161 | CB29: =+Sheet3!CB26/Sheet3!$F$1 -> 371 | CC29: =+Sheet3!CC26/Sheet3!$F$1 -> 521 | CD29: =+Sheet3!CD26/Sheet3!$F$1 -> 42 | CE29: =+Sheet3!CE26/Sheet3!$F$1 -> 0 | CF29: =+Sheet3!CF26/Sheet3!$F$1 -> 0 | CG29: =+Sheet3!CG26/Sheet3!$F$1 -> 0 | CH29: =+Sheet3!CH26/Sheet3!$F$1 -> 5 | CI29: =+Sheet3!CI26/Sheet3!$F$1 -> 0 | CJ29: =+Sheet3!CJ26/Sheet3!$F$1 -> 0 | CK29: =+Sheet3!CK26/Sheet3!$F$1 -> 0 | CL29: =+Sheet3!CL26/Sheet3!$F$1 -> 0 | CM29: =+Sheet3!CM26/Sheet3!$F$1 -> 0 | CN29: =+Sheet3!CN26/Sheet3!$F$1 -> 0 | CO29: =+Sheet3!CO26/Sheet3!$F$1 -> 0 | CP29: =+Sheet3!CP26/Sheet3!$F$1 -> 30 | CQ29: =+Sheet3!CQ26/Sheet3!$F$1 -> 72 | CR29: =+Sheet3!CR26/Sheet3!$F$1 -> 638 | CS29: =+Sheet3!CS26/Sheet3!$F$1 -> 0 | CT29: =+Sheet3!CT26/Sheet3!$F$1 -> 79 | CU29: =+Sheet3!CU26/Sheet3!$F$1 -> 102 | CV29: =+Sheet3!CV26/Sheet3!$F$1 -> 249 | CW29: =+Sheet3!CW26/Sheet3!$F$1 -> 413 | CX29: =+Sheet3!CX26/Sheet3!$F$1 -> 1897 | CY29: =+Sheet3!CY26/Sheet3!$F$1 -> 1049 | CZ29: =+Sheet3!CZ26/Sheet3!$F$1 -> 5 | DA29: =+Sheet3!DA26/Sheet3!$F$1 -> 188 | DB29: =+Sheet3!DB26/Sheet3!$F$1 -> 474 | DC29: =+Sheet3!DC26/Sheet3!$F$1 -> 1517 | DD29: =+Sheet3!DD26/Sheet3!$F$1 -> 477 | DE29: =+Sheet3!DE26/Sheet3!$F$1 -> 1097 | DF29: =+Sheet3!DF26/Sheet3!$F$1 -> 9 | DG29: =+Sheet3!DG26/Sheet3!$F$1 -> 0 | DH29: =+Sheet3!DH26/Sheet3!$F$1 -> 2177 | DI29: =+Sheet3!DI26/Sheet3!$F$1 -> 2420 | DJ29: =+Sheet3!DJ26/Sheet3!$F$1 -> 2845 | DK29: =+Sheet3!DK26/Sheet3!$F$1 -> 817 | DL29: =+Sheet3!DL26/Sheet3!$F$1 -> 39 | DM29: 8298
B30: 185 | C30: Lezíria do Tejo | D30: =+Sheet3!D27/Sheet3!$F$1 -> 13 | E30: =+Sheet3!E27/Sheet3!$F$1 -> 8 | F30: =+Sheet3!F27/Sheet3!$F$1 -> 11 | G30: =+Sheet3!G27/Sheet3!$F$1 -> 3 | H30: =+Sheet3!H27/Sheet3!$F$1 -> 0 | I30: =+Sheet3!I27/Sheet3!$F$1 -> 58 | J30: =+Sheet3!J27/Sheet3!$F$1 -> 89 | K30: =+Sheet3!K27/Sheet3!$F$1 -> 162 | L30: =+Sheet3!L27/Sheet3!$F$1 -> 19 | M30: =+Sheet3!M27/Sheet3!$F$1 -> 0 | N30: =+Sheet3!N27/Sheet3!$F$1 -> 34 | O30: =+Sheet3!O27/Sheet3!$F$1 -> 57 | P30: =+Sheet3!P27/Sheet3!$F$1 -> 48 | Q30: =+Sheet3!Q27/Sheet3!$F$1 -> 6 | R30: =+Sheet3!R27/Sheet3!$F$1 -> 0 | S30: =+Sheet3!S27/Sheet3!$F$1 -> 0 | T30: =+Sheet3!T27/Sheet3!$F$1 -> 24 | U30: =+Sheet3!U27/Sheet3!$F$1 -> 85 | V30: =+Sheet3!V27/Sheet3!$F$1 -> 9 | W30: =+Sheet3!W27/Sheet3!$F$1 -> 0 | X30: =+Sheet3!X27/Sheet3!$F$1 -> 3 | Y30: =+Sheet3!Y27/Sheet3!$F$1 -> 14 | Z30: =+Sheet3!Z27/Sheet3!$F$1 -> 5 | AA30: =+Sheet3!AA27/Sheet3!$F$1 -> 0 | AB30: =+Sheet3!AB27/Sheet3!$F$1 -> 0 | AC30: =+Sheet3!AC27/Sheet3!$F$1 -> 42 | AD30: =+Sheet3!AD27/Sheet3!$F$1 -> 29 | AE30: =+Sheet3!AE27/Sheet3!$F$1 -> 17 | AF30: =+Sheet3!AF27/Sheet3!$F$1 -> 0 | AG30: =+Sheet3!AG27/Sheet3!$F$1 -> 0 | AH30: =+Sheet3!AH27/Sheet3!$F$1 -> 34 | AI30: =+Sheet3!AI27/Sheet3!$F$1 -> 77 | AJ30: =+Sheet3!AJ27/Sheet3!$F$1 -> 26 | AK30: =+Sheet3!AK27/Sheet3!$F$1 -> 0 | AL30: =+Sheet3!AL27/Sheet3!$F$1 -> 0 | AM30: =+Sheet3!AM27/Sheet3!$F$1 -> 57 | AN30: =+Sheet3!AN27/Sheet3!$F$1 -> 49 | AO30: =+Sheet3!AO27/Sheet3!$F$1 -> 56 | AP30: =+Sheet3!AP27/Sheet3!$F$1 -> 12 | AQ30: =+Sheet3!AQ27/Sheet3!$F$1 -> 0 | AR30: =+Sheet3!AR27/Sheet3!$F$1 -> 127 | AS30: =+Sheet3!AS27/Sheet3!$F$1 -> 31 | AT30: =+Sheet3!AT27/Sheet3!$F$1 -> 16 | AU30: =+Sheet3!AU27/Sheet3!$F$1 -> 0 | AV30: =+Sheet3!AV27/Sheet3!$F$1 -> 0 | AW30: =+Sheet3!AW27/Sheet3!$F$1 -> 248 | AX30: =+Sheet3!AX27/Sheet3!$F$1 -> 188 | AY30: =+Sheet3!AY27/Sheet3!$F$1 -> 111 | AZ30: =+Sheet3!AZ27/Sheet3!$F$1 -> 34 | BA30: =+Sheet3!BA27/Sheet3!$F$1 -> 6 | BB30: =+Sheet3!BB27/Sheet3!$F$1 -> 7 | BC30: =+Sheet3!BC27/Sheet3!$F$1 -> 4 | BD30: =+Sheet3!BD27/Sheet3!$F$1 -> 5 | BE30: =+Sheet3!BE27/Sheet3!$F$1 -> 5 | BF30: =+Sheet3!BF27/Sheet3!$F$1 -> 0 | BG30: =+Sheet3!BG27/Sheet3!$F$1 -> 59 | BH30: =+Sheet3!BH27/Sheet3!$F$1 -> 36 | BI30: =+Sheet3!BI27/Sheet3!$F$1 -> 24 | BJ30: =+Sheet3!BJ27/Sheet3!$F$1 -> 8 | BK30: =+Sheet3!BK27/Sheet3!$F$1 -> 0 | BL30: =+Sheet3!BL27/Sheet3!$F$1 -> 0 | BM30: =+Sheet3!BM27/Sheet3!$F$1 -> 5 | BN30: =+Sheet3!BN27/Sheet3!$F$1 -> 23 | BO30: =+Sheet3!BO27/Sheet3!$F$1 -> 25 | BP30: =+Sheet3!BP27/Sheet3!$F$1 -> 0 | BQ30: =+Sheet3!BQ27/Sheet3!$F$1 -> 170 | BR30: =+Sheet3!BR27/Sheet3!$F$1 -> 58 | BS30: =+Sheet3!BS27/Sheet3!$F$1 -> 38 | BT30: =+Sheet3!BT27/Sheet3!$F$1 -> 4 | BU30: =+Sheet3!BU27/Sheet3!$F$1 -> 0 | BV30: =+Sheet3!BV27/Sheet3!$F$1 -> 28 | BW30: =+Sheet3!BW27/Sheet3!$F$1 -> 31 | BX30: =+Sheet3!BX27/Sheet3!$F$1 -> 26 | BY30: =+Sheet3!BY27/Sheet3!$F$1 -> 26 | BZ30: =+Sheet3!BZ27/Sheet3!$F$1 -> 10 | CA30: =+Sheet3!CA27/Sheet3!$F$1 -> 174 | CB30: =+Sheet3!CB27/Sheet3!$F$1 -> 184 | CC30: =+Sheet3!CC27/Sheet3!$F$1 -> 123 | CD30: =+Sheet3!CD27/Sheet3!$F$1 -> 14 | CE30: =+Sheet3!CE27/Sheet3!$F$1 -> 0 | CF30: =+Sheet3!CF27/Sheet3!$F$1 -> 0 | CG30: =+Sheet3!CG27/Sheet3!$F$1 -> 43 | CH30: =+Sheet3!CH27/Sheet3!$F$1 -> 99 | CI30: =+Sheet3!CI27/Sheet3!$F$1 -> 17 | CJ30: =+Sheet3!CJ27/Sheet3!$F$1 -> 0 | CK30: =+Sheet3!CK27/Sheet3!$F$1 -> 0 | CL30: =+Sheet3!CL27/Sheet3!$F$1 -> 5 | CM30: =+Sheet3!CM27/Sheet3!$F$1 -> 4 | CN30: =+Sheet3!CN27/Sheet3!$F$1 -> 0 | CO30: =+Sheet3!CO27/Sheet3!$F$1 -> 0 | CP30: =+Sheet3!CP27/Sheet3!$F$1 -> 41 | CQ30: =+Sheet3!CQ27/Sheet3!$F$1 -> 334 | CR30: =+Sheet3!CR27/Sheet3!$F$1 -> 151 | CS30: =+Sheet3!CS27/Sheet3!$F$1 -> 122 | CT30: =+Sheet3!CT27/Sheet3!$F$1 -> 26 | CU30: =+Sheet3!CU27/Sheet3!$F$1 -> 93 | CV30: =+Sheet3!CV27/Sheet3!$F$1 -> 140 | CW30: =+Sheet3!CW27/Sheet3!$F$1 -> 180 | CX30: =+Sheet3!CX27/Sheet3!$F$1 -> 177 | CY30: =+Sheet3!CY27/Sheet3!$F$1 -> 589 | CZ30: =+Sheet3!CZ27/Sheet3!$F$1 -> 21 | DA30: =+Sheet3!DA27/Sheet3!$F$1 -> 129 | DB30: =+Sheet3!DB27/Sheet3!$F$1 -> 61 | DC30: =+Sheet3!DC27/Sheet3!$F$1 -> 278 | DD30: =+Sheet3!DD27/Sheet3!$F$1 -> 126 | DE30: =+Sheet3!DE27/Sheet3!$F$1 -> 495 | DF30: =+Sheet3!DF27/Sheet3!$F$1 -> 160 | DG30: =+Sheet3!DG27/Sheet3!$F$1 -> 13 | DH30: =+Sheet3!DH27/Sheet3!$F$1 -> 1078 | DI30: =+Sheet3!DI27/Sheet3!$F$1 -> 953 | DJ30: =+Sheet3!DJ27/Sheet3!$F$1 -> 895 | DK30: =+Sheet3!DK27/Sheet3!$F$1 -> 187 | DL30: =+Sheet3!DL27/Sheet3!$F$1 -> 23 | DM30: 3136
B31: 186 | C31: Alto Alentejo | D31: =+Sheet3!D28/Sheet3!$F$1 -> 3 | E31: =+Sheet3!E28/Sheet3!$F$1 -> 0 | F31: =+Sheet3!F28/Sheet3!$F$1 -> 3 | G31: =+Sheet3!G28/Sheet3!$F$1 -> 0 | H31: =+Sheet3!H28/Sheet3!$F$1 -> 0 | I31: =+Sheet3!I28/Sheet3!$F$1 -> 0 | J31: =+Sheet3!J28/Sheet3!$F$1 -> 7 | K31: =+Sheet3!K28/Sheet3!$F$1 -> 19 | L31: =+Sheet3!L28/Sheet3!$F$1 -> 0 | M31: =+Sheet3!M28/Sheet3!$F$1 -> 0 | N31: =+Sheet3!N28/Sheet3!$F$1 -> 18 | O31: =+Sheet3!O28/Sheet3!$F$1 -> 36 | P31: =+Sheet3!P28/Sheet3!$F$1 -> 27 | Q31: =+Sheet3!Q28/Sheet3!$F$1 -> 8 | R31: =+Sheet3!R28/Sheet3!$F$1 -> 0 | S31: =+Sheet3!S28/Sheet3!$F$1 -> 0 | T31: =+Sheet3!T28/Sheet3!$F$1 -> 0 | U31: =+Sheet3!U28/Sheet3!$F$1 -> 3 | V31: =+Sheet3!V28/Sheet3!$F$1 -> 0 | W31: =+Sheet3!W28/Sheet3!$F$1 -> 0 | X31: =+Sheet3!X28/Sheet3!$F$1 -> 0 | Y31: =+Sheet3!Y28/Sheet3!$F$1 -> 0 | Z31: =+Sheet3!Z28/Sheet3!$F$1 -> 8 | AA31: =+Sheet3!AA28/Sheet3!$F$1 -> 0 | AB31: =+Sheet3!AB28/Sheet3!$F$1 -> 0 | AC31: =+Sheet3!AC28/Sheet3!$F$1 -> 70 | AD31: =+Sheet3!AD28/Sheet3!$F$1 -> 24 | AE31: =+Sheet3!AE28/Sheet3!$F$1 -> 32 | AF31: =+Sheet3!AF28/Sheet3!$F$1 -> 16 | AG31: =+Sheet3!AG28/Sheet3!$F$1 -> 0 | AH31: =+Sheet3!AH28/Sheet3!$F$1 -> 29 | AI31: =+Sheet3!AI28/Sheet3!$F$1 -> 27 | AJ31: =+Sheet3!AJ28/Sheet3!$F$1 -> 23 | AK31: =+Sheet3!AK28/Sheet3!$F$1 -> 0 | AL31: =+Sheet3!AL28/Sheet3!$F$1 -> 0 | AM31: =+Sheet3!AM28/Sheet3!$F$1 -> 50 | AN31: =+Sheet3!AN28/Sheet3!$F$1 -> 51 | AO31: =+Sheet3!AO28/Sheet3!$F$1 -> 42 | AP31: =+Sheet3!AP28/Sheet3!$F$1 -> 6 | AQ31: =+Sheet3!AQ28/Sheet3!$F$1 -> 0 | AR31: =+Sheet3!AR28/Sheet3!$F$1 -> 819 | AS31: =+Sheet3!AS28/Sheet3!$F$1 -> 328 | AT31: =+Sheet3!AT28/Sheet3!$F$1 -> 118 | AU31: =+Sheet3!AU28/Sheet3!$F$1 -> 17 | AV31: =+Sheet3!AV28/Sheet3!$F$1 -> 0 | AW31: =+Sheet3!AW28/Sheet3!$F$1 -> 420 | AX31: =+Sheet3!AX28/Sheet3!$F$1 -> 271 | AY31: =+Sheet3!AY28/Sheet3!$F$1 -> 124 | AZ31: =+Sheet3!AZ28/Sheet3!$F$1 -> 26 | BA31: =+Sheet3!BA28/Sheet3!$F$1 -> 0 | BB31: =+Sheet3!BB28/Sheet3!$F$1 -> 0 | BC31: =+Sheet3!BC28/Sheet3!$F$1 -> 0 | BD31: =+Sheet3!BD28/Sheet3!$F$1 -> 9 | BE31: =+Sheet3!BE28/Sheet3!$F$1 -> 3 | BF31: =+Sheet3!BF28/Sheet3!$F$1 -> 0 | BG31: =+Sheet3!BG28/Sheet3!$F$1 -> 11 | BH31: =+Sheet3!BH28/Sheet3!$F$1 -> 55 | BI31: =+Sheet3!BI28/Sheet3!$F$1 -> 91 | BJ31: =+Sheet3!BJ28/Sheet3!$F$1 -> 30 | BK31: =+Sheet3!BK28/Sheet3!$F$1 -> 0 | BL31: =+Sheet3!BL28/Sheet3!$F$1 -> 0 | BM31: =+Sheet3!BM28/Sheet3!$F$1 -> 23 | BN31: =+Sheet3!BN28/Sheet3!$F$1 -> 299 | BO31: =+Sheet3!BO28/Sheet3!$F$1 -> 272 | BP31: =+Sheet3!BP28/Sheet3!$F$1 -> 21 | BQ31: =+Sheet3!BQ28/Sheet3!$F$1 -> 465 | BR31: =+Sheet3!BR28/Sheet3!$F$1 -> 457 | BS31: =+Sheet3!BS28/Sheet3!$F$1 -> 297 | BT31: =+Sheet3!BT28/Sheet3!$F$1 -> 76 | BU31: =+Sheet3!BU28/Sheet3!$F$1 -> 3 | BV31: =+Sheet3!BV28/Sheet3!$F$1 -> 117 | BW31: =+Sheet3!BW28/Sheet3!$F$1 -> 131 | BX31: =+Sheet3!BX28/Sheet3!$F$1 -> 100 | BY31: =+Sheet3!BY28/Sheet3!$F$1 -> 61 | BZ31: =+Sheet3!BZ28/Sheet3!$F$1 -> 14 | CA31: =+Sheet3!CA28/Sheet3!$F$1 -> 92 | CB31: =+Sheet3!CB28/Sheet3!$F$1 -> 131 | CC31: =+Sheet3!CC28/Sheet3!$F$1 -> 193 | CD31: =+Sheet3!CD28/Sheet3!$F$1 -> 24 | CE31: =+Sheet3!CE28/Sheet3!$F$1 -> 0 | CF31: =+Sheet3!CF28/Sheet3!$F$1 -> 0 | CG31: =+Sheet3!CG28/Sheet3!$F$1 -> 0 | CH31: =+Sheet3!CH28/Sheet3!$F$1 -> 5 | CI31: =+Sheet3!CI28/Sheet3!$F$1 -> 0 | CJ31: =+Sheet3!CJ28/Sheet3!$F$1 -> 0 | CK31: =+Sheet3!CK28/Sheet3!$F$1 -> 0 | CL31: =+Sheet3!CL28/Sheet3!$F$1 -> 0 | CM31: =+Sheet3!CM28/Sheet3!$F$1 -> 0 | CN31: =+Sheet3!CN28/Sheet3!$F$1 -> 0 | CO31: =+Sheet3!CO28/Sheet3!$F$1 -> 0 | CP31: =+Sheet3!CP28/Sheet3!$F$1 -> 8 | CQ31: =+Sheet3!CQ28/Sheet3!$F$1 -> 29 | CR31: =+Sheet3!CR28/Sheet3!$F$1 -> 90 | CS31: =+Sheet3!CS28/Sheet3!$F$1 -> 5 | CT31: =+Sheet3!CT28/Sheet3!$F$1 -> 14 | CU31: =+Sheet3!CU28/Sheet3!$F$1 -> 143 | CV31: =+Sheet3!CV28/Sheet3!$F$1 -> 82 | CW31: =+Sheet3!CW28/Sheet3!$F$1 -> 152 | CX31: =+Sheet3!CX28/Sheet3!$F$1 -> 1288 | CY31: =+Sheet3!CY28/Sheet3!$F$1 -> 844 | CZ31: =+Sheet3!CZ28/Sheet3!$F$1 -> 14 | DA31: =+Sheet3!DA28/Sheet3!$F$1 -> 189 | DB31: =+Sheet3!DB28/Sheet3!$F$1 -> 621 | DC31: =+Sheet3!DC28/Sheet3!$F$1 -> 1299 | DD31: =+Sheet3!DD28/Sheet3!$F$1 -> 425 | DE31: =+Sheet3!DE28/Sheet3!$F$1 -> 443 | DF31: =+Sheet3!DF28/Sheet3!$F$1 -> 7 | DG31: =+Sheet3!DG28/Sheet3!$F$1 -> 0 | DH31: =+Sheet3!DH28/Sheet3!$F$1 -> 2103 | DI31: =+Sheet3!DI28/Sheet3!$F$1 -> 1558 | DJ31: =+Sheet3!DJ28/Sheet3!$F$1 -> 1405 | DK31: =+Sheet3!DK28/Sheet3!$F$1 -> 546 | DL31: =+Sheet3!DL28/Sheet3!$F$1 -> 43 | DM31: 5655
B32: 187 | C32: Alentejo Central | D32: =+Sheet3!D29/Sheet3!$F$1 -> 6 | E32: =+Sheet3!E29/Sheet3!$F$1 -> 6 | F32: =+Sheet3!F29/Sheet3!$F$1 -> 5 | G32: =+Sheet3!G29/Sheet3!$F$1 -> 5 | H32: =+Sheet3!H29/Sheet3!$F$1 -> 0 | I32: =+Sheet3!I29/Sheet3!$F$1 -> 12 | J32: =+Sheet3!J29/Sheet3!$F$1 -> 7 | K32: =+Sheet3!K29/Sheet3!$F$1 -> 4 | L32: =+Sheet3!L29/Sheet3!$F$1 -> 0 | M32: =+Sheet3!M29/Sheet3!$F$1 -> 0 | N32: =+Sheet3!N29/Sheet3!$F$1 -> 84 | O32: =+Sheet3!O29/Sheet3!$F$1 -> 108 | P32: =+Sheet3!P29/Sheet3!$F$1 -> 42 | Q32: =+Sheet3!Q29/Sheet3!$F$1 -> 7 | R32: =+Sheet3!R29/Sheet3!$F$1 -> 0 | S32: =+Sheet3!S29/Sheet3!$F$1 -> 0 | T32: =+Sheet3!T29/Sheet3!$F$1 -> 0 | U32: =+Sheet3!U29/Sheet3!$F$1 -> 5 | V32: =+Sheet3!V29/Sheet3!$F$1 -> 0 | W32: =+Sheet3!W29/Sheet3!$F$1 -> 0 | X32: =+Sheet3!X29/Sheet3!$F$1 -> 0 | Y32: =+Sheet3!Y29/Sheet3!$F$1 -> 6 | Z32: =+Sheet3!Z29/Sheet3!$F$1 -> 9 | AA32: =+Sheet3!AA29/Sheet3!$F$1 -> 0 | AB32: =+Sheet3!AB29/Sheet3!$F$1 -> 0 | AC32: =+Sheet3!AC29/Sheet3!$F$1 -> 56 | AD32: =+Sheet3!AD29/Sheet3!$F$1 -> 18 | AE32: =+Sheet3!AE29/Sheet3!$F$1 -> 38 | AF32: =+Sheet3!AF29/Sheet3!$F$1 -> 20 | AG32: =+Sheet3!AG29/Sheet3!$F$1 -> 0 | AH32: =+Sheet3!AH29/Sheet3!$F$1 -> 144 | AI32: =+Sheet3!AI29/Sheet3!$F$1 -> 296 | AJ32: =+Sheet3!AJ29/Sheet3!$F$1 -> 141 | AK32: =+Sheet3!AK29/Sheet3!$F$1 -> 14 | AL32: =+Sheet3!AL29/Sheet3!$F$1 -> 0 | AM32: =+Sheet3!AM29/Sheet3!$F$1 -> 87 | AN32: =+Sheet3!AN29/Sheet3!$F$1 -> 52 | AO32: =+Sheet3!AO29/Sheet3!$F$1 -> 45 | AP32: =+Sheet3!AP29/Sheet3!$F$1 -> 15 | AQ32: =+Sheet3!AQ29/Sheet3!$F$1 -> 0 | AR32: =+Sheet3!AR29/Sheet3!$F$1 -> 644 | AS32: =+Sheet3!AS29/Sheet3!$F$1 -> 192 | AT32: =+Sheet3!AT29/Sheet3!$F$1 -> 65 | AU32: =+Sheet3!AU29/Sheet3!$F$1 -> 15 | AV32: =+Sheet3!AV29/Sheet3!$F$1 -> 0 | AW32: =+Sheet3!AW29/Sheet3!$F$1 -> 317 | AX32: =+Sheet3!AX29/Sheet3!$F$1 -> 283 | AY32: =+Sheet3!AY29/Sheet3!$F$1 -> 130 | AZ32: =+Sheet3!AZ29/Sheet3!$F$1 -> 37 | BA32: =+Sheet3!BA29/Sheet3!$F$1 -> 0 | BB32: =+Sheet3!BB29/Sheet3!$F$1 -> 0 | BC32: =+Sheet3!BC29/Sheet3!$F$1 -> 5 | BD32: =+Sheet3!BD29/Sheet3!$F$1 -> 15 | BE32: =+Sheet3!BE29/Sheet3!$F$1 -> 4 | BF32: =+Sheet3!BF29/Sheet3!$F$1 -> 0 | BG32: =+Sheet3!BG29/Sheet3!$F$1 -> 63 | BH32: =+Sheet3!BH29/Sheet3!$F$1 -> 32 | BI32: =+Sheet3!BI29/Sheet3!$F$1 -> 105 | BJ32: =+Sheet3!BJ29/Sheet3!$F$1 -> 38 | BK32: =+Sheet3!BK29/Sheet3!$F$1 -> 0 | BL32: =+Sheet3!BL29/Sheet3!$F$1 -> 0 | BM32: =+Sheet3!BM29/Sheet3!$F$1 -> 16 | BN32: =+Sheet3!BN29/Sheet3!$F$1 -> 239 | BO32: =+Sheet3!BO29/Sheet3!$F$1 -> 386 | BP32: =+Sheet3!BP29/Sheet3!$F$1 -> 31 | BQ32: =+Sheet3!BQ29/Sheet3!$F$1 -> 600 | BR32: =+Sheet3!BR29/Sheet3!$F$1 -> 387 | BS32: =+Sheet3!BS29/Sheet3!$F$1 -> 287 | BT32: =+Sheet3!BT29/Sheet3!$F$1 -> 78 | BU32: =+Sheet3!BU29/Sheet3!$F$1 -> 7 | BV32: =+Sheet3!BV29/Sheet3!$F$1 -> 111 | BW32: =+Sheet3!BW29/Sheet3!$F$1 -> 141 | BX32: =+Sheet3!BX29/Sheet3!$F$1 -> 113 | BY32: =+Sheet3!BY29/Sheet3!$F$1 -> 97 | BZ32: =+Sheet3!BZ29/Sheet3!$F$1 -> 14 | CA32: =+Sheet3!CA29/Sheet3!$F$1 -> 148 | CB32: =+Sheet3!CB29/Sheet3!$F$1 -> 220 | CC32: =+Sheet3!CC29/Sheet3!$F$1 -> 330 | CD32: =+Sheet3!CD29/Sheet3!$F$1 -> 53 | CE32: =+Sheet3!CE29/Sheet3!$F$1 -> 0 | CF32: =+Sheet3!CF29/Sheet3!$F$1 -> 0 | CG32: =+Sheet3!CG29/Sheet3!$F$1 -> 0 | CH32: =+Sheet3!CH29/Sheet3!$F$1 -> 7 | CI32: =+Sheet3!CI29/Sheet3!$F$1 -> 0 | CJ32: =+Sheet3!CJ29/Sheet3!$F$1 -> 0 | CK32: =+Sheet3!CK29/Sheet3!$F$1 -> 0 | CL32: =+Sheet3!CL29/Sheet3!$F$1 -> 0 | CM32: =+Sheet3!CM29/Sheet3!$F$1 -> 0 | CN32: =+Sheet3!CN29/Sheet3!$F$1 -> 0 | CO32: =+Sheet3!CO29/Sheet3!$F$1 -> 0 | CP32: =+Sheet3!CP29/Sheet3!$F$1 -> 24 | CQ32: =+Sheet3!CQ29/Sheet3!$F$1 -> 24 | CR32: =+Sheet3!CR29/Sheet3!$F$1 -> 243 | CS32: =+Sheet3!CS29/Sheet3!$F$1 -> 6 | CT32: =+Sheet3!CT29/Sheet3!$F$1 -> 18 | CU32: =+Sheet3!CU29/Sheet3!$F$1 -> 140 | CV32: =+Sheet3!CV29/Sheet3!$F$1 -> 598 | CW32: =+Sheet3!CW29/Sheet3!$F$1 -> 201 | CX32: =+Sheet3!CX29/Sheet3!$F$1 -> 918 | CY32: =+Sheet3!CY29/Sheet3!$F$1 -> 772 | CZ32: =+Sheet3!CZ29/Sheet3!$F$1 -> 25 | DA32: =+Sheet3!DA29/Sheet3!$F$1 -> 246 | DB32: =+Sheet3!DB29/Sheet3!$F$1 -> 677 | DC32: =+Sheet3!DC29/Sheet3!$F$1 -> 1361 | DD32: =+Sheet3!DD29/Sheet3!$F$1 -> 478 | DE32: =+Sheet3!DE29/Sheet3!$F$1 -> 755 | DF32: =+Sheet3!DF29/Sheet3!$F$1 -> 7 | DG32: =+Sheet3!DG29/Sheet3!$F$1 -> 0 | DH32: =+Sheet3!DH29/Sheet3!$F$1 -> 2285 | DI32: =+Sheet3!DI29/Sheet3!$F$1 -> 1777 | DJ32: =+Sheet3!DJ29/Sheet3!$F$1 -> 1592 | DK32: =+Sheet3!DK29/Sheet3!$F$1 -> 780 | DL32: =+Sheet3!DL29/Sheet3!$F$1 -> 59 | DM32: 6493
A33: Algarve | B33: 150 | C33: Algarve | D33: =+Sheet3!D30/Sheet3!$F$1 -> 6 | E33: =+Sheet3!E30/Sheet3!$F$1 -> 0 | F33: =+Sheet3!F30/Sheet3!$F$1 -> 0 | G33: =+Sheet3!G30/Sheet3!$F$1 -> 0 | H33: =+Sheet3!H30/Sheet3!$F$1 -> 0 | I33: =+Sheet3!I30/Sheet3!$F$1 -> 0 | J33: =+Sheet3!J30/Sheet3!$F$1 -> 0 | K33: =+Sheet3!K30/Sheet3!$F$1 -> 0 | L33: =+Sheet3!L30/Sheet3!$F$1 -> 0 | M33: =+Sheet3!M30/Sheet3!$F$1 -> 0 | N33: =+Sheet3!N30/Sheet3!$F$1 -> 29 | O33: =+Sheet3!O30/Sheet3!$F$1 -> 27 | P33: =+Sheet3!P30/Sheet3!$F$1 -> 12 | Q33: =+Sheet3!Q30/Sheet3!$F$1 -> 0 | R33: =+Sheet3!R30/Sheet3!$F$1 -> 0 | S33: =+Sheet3!S30/Sheet3!$F$1 -> 0 | T33: =+Sheet3!T30/Sheet3!$F$1 -> 0 | U33: =+Sheet3!U30/Sheet3!$F$1 -> 0 | V33: =+Sheet3!V30/Sheet3!$F$1 -> 0 | W33: =+Sheet3!W30/Sheet3!$F$1 -> 0 | X33: =+Sheet3!X30/Sheet3!$F$1 -> 0 | Y33: =+Sheet3!Y30/Sheet3!$F$1 -> 0 | Z33: =+Sheet3!Z30/Sheet3!$F$1 -> 0 | AA33: =+Sheet3!AA30/Sheet3!$F$1 -> 0 | AB33: =+Sheet3!AB30/Sheet3!$F$1 -> 0 | AC33: =+Sheet3!AC30/Sheet3!$F$1 -> 165 | AD33: =+Sheet3!AD30/Sheet3!$F$1 -> 92 | AE33: =+Sheet3!AE30/Sheet3!$F$1 -> 4 | AF33: =+Sheet3!AF30/Sheet3!$F$1 -> 0 | AG33: =+Sheet3!AG30/Sheet3!$F$1 -> 0 | AH33: =+Sheet3!AH30/Sheet3!$F$1 -> 0 | AI33: =+Sheet3!AI30/Sheet3!$F$1 -> 0 | AJ33: =+Sheet3!AJ30/Sheet3!$F$1 -> 0 | AK33: =+Sheet3!AK30/Sheet3!$F$1 -> 0 | AL33: =+Sheet3!AL30/Sheet3!$F$1 -> 0 | AM33: =+Sheet3!AM30/Sheet3!$F$1 -> 370 | AN33: =+Sheet3!AN30/Sheet3!$F$1 -> 726 | AO33: =+Sheet3!AO30/Sheet3!$F$1 -> 205 | AP33: =+Sheet3!AP30/Sheet3!$F$1 -> 3 | AQ33: =+Sheet3!AQ30/Sheet3!$F$1 -> 0 | AR33: =+Sheet3!AR30/Sheet3!$F$1 -> 15 | AS33: =+Sheet3!AS30/Sheet3!$F$1 -> 0 | AT33: =+Sheet3!AT30/Sheet3!$F$1 -> 0 | AU33: =+Sheet3!AU30/Sheet3!$F$1 -> 0 | AV33: =+Sheet3!AV30/Sheet3!$F$1 -> 0 | AW33: =+Sheet3!AW30/Sheet3!$F$1 -> 893 | AX33: =+Sheet3!AX30/Sheet3!$F$1 -> 1071 | AY33: =+Sheet3!AY30/Sheet3!$F$1 -> 120 | AZ33: =+Sheet3!AZ30/Sheet3!$F$1 -> 3 | BA33: =+Sheet3!BA30/Sheet3!$F$1 -> 0 | BB33: =+Sheet3!BB30/Sheet3!$F$1 -> 0 | BC33: =+Sheet3!BC30/Sheet3!$F$1 -> 0 | BD33: =+Sheet3!BD30/Sheet3!$F$1 -> 0 | BE33: =+Sheet3!BE30/Sheet3!$F$1 -> 0 | BF33: =+Sheet3!BF30/Sheet3!$F$1 -> 0 | BG33: =+Sheet3!BG30/Sheet3!$F$1 -> 25 | BH33: =+Sheet3!BH30/Sheet3!$F$1 -> 37 | BI33: =+Sheet3!BI30/Sheet3!$F$1 -> 18 | BJ33: =+Sheet3!BJ30/Sheet3!$F$1 -> 0 | BK33: =+Sheet3!BK30/Sheet3!$F$1 -> 0 | BL33: =+Sheet3!BL30/Sheet3!$F$1 -> 4 | BM33: =+Sheet3!BM30/Sheet3!$F$1 -> 10 | BN33: =+Sheet3!BN30/Sheet3!$F$1 -> 28 | BO33: =+Sheet3!BO30/Sheet3!$F$1 -> 0 | BP33: =+Sheet3!BP30/Sheet3!$F$1 -> 0 | BQ33: =+Sheet3!BQ30/Sheet3!$F$1 -> 122 | BR33: =+Sheet3!BR30/Sheet3!$F$1 -> 90 | BS33: =+Sheet3!BS30/Sheet3!$F$1 -> 50 | BT33: =+Sheet3!BT30/Sheet3!$F$1 -> 3 | BU33: =+Sheet3!BU30/Sheet3!$F$1 -> 0 | BV33: =+Sheet3!BV30/Sheet3!$F$1 -> 34 | BW33: =+Sheet3!BW30/Sheet3!$F$1 -> 83 | BX33: =+Sheet3!BX30/Sheet3!$F$1 -> 44 | BY33: =+Sheet3!BY30/Sheet3!$F$1 -> 4 | BZ33: =+Sheet3!BZ30/Sheet3!$F$1 -> 0 | CA33: =+Sheet3!CA30/Sheet3!$F$1 -> 71 | CB33: =+Sheet3!CB30/Sheet3!$F$1 -> 102 | CC33: =+Sheet3!CC30/Sheet3!$F$1 -> 34 | CD33: =+Sheet3!CD30/Sheet3!$F$1 -> 0 | CE33: =+Sheet3!CE30/Sheet3!$F$1 -> 0 | CF33: =+Sheet3!CF30/Sheet3!$F$1 -> 0 | CG33: =+Sheet3!CG30/Sheet3!$F$1 -> 0 | CH33: =+Sheet3!CH30/Sheet3!$F$1 -> 0 | CI33: =+Sheet3!CI30/Sheet3!$F$1 -> 0 | CJ33: =+Sheet3!CJ30/Sheet3!$F$1 -> 0 | CK33: =+Sheet3!CK30/Sheet3!$F$1 -> 0 | CL33: =+Sheet3!CL30/Sheet3!$F$1 -> 0 | CM33: =+Sheet3!CM30/Sheet3!$F$1 -> 0 | CN33: =+Sheet3!CN30/Sheet3!$F$1 -> 0 | CO33: =+Sheet3!CO30/Sheet3!$F$1 -> 0 | CP33: =+Sheet3!CP30/Sheet3!$F$1 -> 14 | CQ33: =+Sheet3!CQ30/Sheet3!$F$1 -> 3 | CR33: =+Sheet3!CR30/Sheet3!$F$1 -> 71 | CS33: =+Sheet3!CS30/Sheet3!$F$1 -> 0 | CT33: =+Sheet3!CT30/Sheet3!$F$1 -> 7 | CU33: =+Sheet3!CU30/Sheet3!$F$1 -> 266 | CV33: =+Sheet3!CV30/Sheet3!$F$1 -> 8 | CW33: =+Sheet3!CW30/Sheet3!$F$1 -> 1307 | CX33: =+Sheet3!CX30/Sheet3!$F$1 -> 18 | CY33: =+Sheet3!CY30/Sheet3!$F$1 -> 2088 | CZ33: =+Sheet3!CZ30/Sheet3!$F$1 -> 0 | DA33: =+Sheet3!DA30/Sheet3!$F$1 -> 82 | DB33: =+Sheet3!DB30/Sheet3!$F$1 -> 46 | DC33: =+Sheet3!DC30/Sheet3!$F$1 -> 269 | DD33: =+Sheet3!DD30/Sheet3!$F$1 -> 167 | DE33: =+Sheet3!DE30/Sheet3!$F$1 -> 210 | DF33: =+Sheet3!DF30/Sheet3!$F$1 -> 0 | DG33: =+Sheet3!DG30/Sheet3!$F$1 -> 0 | DH33: =+Sheet3!DH30/Sheet3!$F$1 -> 1747 | DI33: =+Sheet3!DI30/Sheet3!$F$1 -> 2259 | DJ33: =+Sheet3!DJ30/Sheet3!$F$1 -> 535 | DK33: =+Sheet3!DK30/Sheet3!$F$1 -> 17 | DL33: =+Sheet3!DL30/Sheet3!$F$1 -> 0 | DM33: 4558
A34: Continente | D34: =+Sheet3!D31/Sheet3!$F$1 -> 275 | E34: =+Sheet3!E31/Sheet3!$F$1 -> 110 | F34: =+Sheet3!F31/Sheet3!$F$1 -> 54 | G34: =+Sheet3!G31/Sheet3!$F$1 -> 16 | H34: =+Sheet3!H31/Sheet3!$F$1 -> 1 | I34: =+Sheet3!I31/Sheet3!$F$1 -> 5805 | J34: =+Sheet3!J31/Sheet3!$F$1 -> 611 | K34: =+Sheet3!K31/Sheet3!$F$1 -> 349 | L34: =+Sheet3!L31/Sheet3!$F$1 -> 38 | M34: =+Sheet3!M31/Sheet3!$F$1 -> 1 | N34: =+Sheet3!N31/Sheet3!$F$1 -> 3831 | O34: =+Sheet3!O31/Sheet3!$F$1 -> 1520 | P34: =+Sheet3!P31/Sheet3!$F$1 -> 531 | Q34: =+Sheet3!Q31/Sheet3!$F$1 -> 75 | R34: =+Sheet3!R31/Sheet3!$F$1 -> 2 | S34: =+Sheet3!S31/Sheet3!$F$1 -> 154 | T34: =+Sheet3!T31/Sheet3!$F$1 -> 201 | U34: =+Sheet3!U31/Sheet3!$F$1 -> 238 | V34: =+Sheet3!V31/Sheet3!$F$1 -> 18 | W34: =+Sheet3!W31/Sheet3!$F$1 -> 0 | X34: =+Sheet3!X31/Sheet3!$F$1 -> 40 | Y34: =+Sheet3!Y31/Sheet3!$F$1 -> 67 | Z34: =+Sheet3!Z31/Sheet3!$F$1 -> 69 | AA34: =+Sheet3!AA31/Sheet3!$F$1 -> 7 | AB34: =+Sheet3!AB31/Sheet3!$F$1 -> 0 | AC34: =+Sheet3!AC31/Sheet3!$F$1 -> 11761 | AD34: =+Sheet3!AD31/Sheet3!$F$1 -> 2575 | AE34: =+Sheet3!AE31/Sheet3!$F$1 -> 309 | AF34: =+Sheet3!AF31/Sheet3!$F$1 -> 46 | AG34: =+Sheet3!AG31/Sheet3!$F$1 -> 0 | AH34: =+Sheet3!AH31/Sheet3!$F$1 -> 6475 | AI34: =+Sheet3!AI31/Sheet3!$F$1 -> 3300 | AJ34: =+Sheet3!AJ31/Sheet3!$F$1 -> 720 | AK34: =+Sheet3!AK31/Sheet3!$F$1 -> 37 | AL34: =+Sheet3!AL31/Sheet3!$F$1 -> 1 | AM34: =+Sheet3!AM31/Sheet3!$F$1 -> 6828 | AN34: =+Sheet3!AN31/Sheet3!$F$1 -> 4487 | AO34: =+Sheet3!AO31/Sheet3!$F$1 -> 1173 | AP34: =+Sheet3!AP31/Sheet3!$F$1 -> 105 | AQ34: =+Sheet3!AQ31/Sheet3!$F$1 -> 4 | AR34: =+Sheet3!AR31/Sheet3!$F$1 -> 6802 | AS34: =+Sheet3!AS31/Sheet3!$F$1 -> 1860 | AT34: =+Sheet3!AT31/Sheet3!$F$1 -> 811 | AU34: =+Sheet3!AU31/Sheet3!$F$1 -> 117 | AV34: =+Sheet3!AV31/Sheet3!$F$1 -> 8 | AW34: =+Sheet3!AW31/Sheet3!$F$1 -> 38312 | AX34: =+Sheet3!AX31/Sheet3!$F$1 -> 12972 | AY34: =+Sheet3!AY31/Sheet3!$F$1 -> 1783 | AZ34: =+Sheet3!AZ31/Sheet3!$F$1 -> 201 | BA34: =+Sheet3!BA31/Sheet3!$F$1 -> 18 | BB34: =+Sheet3!BB31/Sheet3!$F$1 -> 581 | BC34: =+Sheet3!BC31/Sheet3!$F$1 -> 1349 | BD34: =+Sheet3!BD31/Sheet3!$F$1 -> 209 | BE34: =+Sheet3!BE31/Sheet3!$F$1 -> 21 | BF34: =+Sheet3!BF31/Sheet3!$F$1 -> 0 | BG34: =+Sheet3!BG31/Sheet3!$F$1 -> 3161 | BH34: =+Sheet3!BH31/Sheet3!$F$1 -> 1524 | BI34: =+Sheet3!BI31/Sheet3!$F$1 -> 779 | BJ34: =+Sheet3!BJ31/Sheet3!$F$1 -> 133 | BK34: =+Sheet3!BK31/Sheet3!$F$1 -> 2 | BL34: =+Sheet3!BL31/Sheet3!$F$1 -> 1292 | BM34: =+Sheet3!BM31/Sheet3!$F$1 -> 2533 | BN34: =+Sheet3!BN31/Sheet3!$F$1 -> 2111 | BO34: =+Sheet3!BO31/Sheet3!$F$1 -> 1114 | BP34: =+Sheet3!BP31/Sheet3!$F$1 -> 85 | BQ34: =+Sheet3!BQ31/Sheet3!$F$1 -> 8349 | BR34: =+Sheet3!BR31/Sheet3!$F$1 -> 5885 | BS34: =+Sheet3!BS31/Sheet3!$F$1 -> 2709 | BT34: =+Sheet3!BT31/Sheet3!$F$1 -> 434 | BU34: =+Sheet3!BU31/Sheet3!$F$1 -> 21 | BV34: =+Sheet3!BV31/Sheet3!$F$1 -> 7205 | BW34: =+Sheet3!BW31/Sheet3!$F$1 -> 2935 | BX34: =+Sheet3!BX31/Sheet3!$F$1 -> 1155 | BY34: =+Sheet3!BY31/Sheet3!$F$1 -> 389 | BZ34: =+Sheet3!BZ31/Sheet3!$F$1 -> 59 | CA34: =+Sheet3!CA31/Sheet3!$F$1 -> 5480 | CB34: =+Sheet3!CB31/Sheet3!$F$1 -> 2522 | CC34: =+Sheet3!CC31/Sheet3!$F$1 -> 1945 | CD34: =+Sheet3!CD31/Sheet3!$F$1 -> 194 | CE34: =+Sheet3!CE31/Sheet3!$F$1 -> 5 | CF34: =+Sheet3!CF31/Sheet3!$F$1 -> 3 | CG34: =+Sheet3!CG31/Sheet3!$F$1 -> 59 | CH34: =+Sheet3!CH31/Sheet3!$F$1 -> 144 | CI34: =+Sheet3!CI31/Sheet3!$F$1 -> 30 | CJ34: =+Sheet3!CJ31/Sheet3!$F$1 -> 0 | CK34: =+Sheet3!CK31/Sheet3!$F$1 -> 264 | CL34: =+Sheet3!CL31/Sheet3!$F$1 -> 31 | CM34: =+Sheet3!CM31/Sheet3!$F$1 -> 11 | CN34: =+Sheet3!CN31/Sheet3!$F$1 -> 0 | CO34: =+Sheet3!CO31/Sheet3!$F$1 -> 0 | CP34: =+Sheet3!CP31/Sheet3!$F$1 -> 456 | CQ34: =+Sheet3!CQ31/Sheet3!$F$1 -> 6804 | CR34: =+Sheet3!CR31/Sheet3!$F$1 -> 5959 | CS34: =+Sheet3!CS31/Sheet3!$F$1 -> 611 | CT34: =+Sheet3!CT31/Sheet3!$F$1 -> 183 | CU34: =+Sheet3!CU31/Sheet3!$F$1 -> 14691 | CV34: =+Sheet3!CV31/Sheet3!$F$1 -> 10533 | CW34: =+Sheet3!CW31/Sheet3!$F$1 -> 12597 | CX34: =+Sheet3!CX31/Sheet3!$F$1 -> 9598 | CY34: =+Sheet3!CY31/Sheet3!$F$1 -> 53286 | CZ34: =+Sheet3!CZ31/Sheet3!$F$1 -> 2160 | DA34: =+Sheet3!DA31/Sheet3!$F$1 -> 5599 | DB34: =+Sheet3!DB31/Sheet3!$F$1 -> 7135 | DC34: =+Sheet3!DC31/Sheet3!$F$1 -> 17398 | DD34: =+Sheet3!DD31/Sheet3!$F$1 -> 11743 | DE34: =+Sheet3!DE31/Sheet3!$F$1 -> 10146 | DF34: =+Sheet3!DF31/Sheet3!$F$1 -> 236 | DG34: =+Sheet3!DG31/Sheet3!$F$1 -> 306 | DH34: =+Sheet3!DH31/Sheet3!$F$1 -> 106618 | DI34: =+Sheet3!DI31/Sheet3!$F$1 -> 44541 | DJ34: =+Sheet3!DJ31/Sheet3!$F$1 -> 15100 | DK34: =+Sheet3!DK31/Sheet3!$F$1 -> 2975 | DL34: =+Sheet3!DL31/Sheet3!$F$1 -> 207 | DM34: =SUM(DH34:DL34) -> 169441
B37: Legenda
B38: MP | C38: =+INDEX(Sheet6!O8:Q8,1,Sheet3!$B$1) -> < 5 ha
B39: P | C39: =+INDEX(Sheet6!O9:Q9,1,Sheet3!$B$1) -> >= 5 e < 25 ha
B40: M | C40: =+INDEX(Sheet6!O10:Q10,1,Sheet3!$B$1) -> >= 25 e < 200 ha
B41: G | C41: =+INDEX(Sheet6!O11:Q11,1,Sheet3!$B$1) -> >= 200 e < 1 000 ha
B42: MG | C42: =+INDEX(Sheet6!O12:Q12,1,Sheet3!$B$1) -> >= 1 000 ha
A43: Fonte: GPP a partir de dados IFAP
D45: =+INDEX(Sheet6!$D$2:$D$117,Sheet3!$C$1)&" segundo Orientação Técnico Económica e "&INDEX(Sheet6!$M$3:$M$6,Sheet3!$B$1)&" e por NUTSIII em " &Sheet6!$B$1 -> (1) - Nº de Beneficiários segundo Orientação Técnico Económica e Classes de Superfície Agrícola e por NUTSIII em 2019 | AH45: =+D45& " (cont.)" -> (1) - Nº de Beneficiários segundo Orientação Técnico Económica e Classes de Superfície Agrícola e por NUTSIII em 2019 (cont.) | BL45: =+AH45 -> (1) - Nº de Beneficiários segundo Orientação Técnico Económica e Classes de Superfície Agrícola e por NUTSIII em 2019 (cont.) | CP45: =+INDEX(Sheet6!$D$2:$D$117,Sheet3!$C$1)&" segundo Orientação Técnico Económica por NUTSIII em " &Sheet6!B43 -> (1) - Nº de Beneficiários segundo Orientação Técnico Económica por NUTSIII em 42 | DH45: =+INDEX(Sheet6!$D$2:$D$117,Sheet3!$C$1)&CHAR(10)& "segundo "&INDEX(Sheet6!$M$3:$M$6,Sheet3!$B$1)& " por NUTSIII em " &Sheet6!$B$1 -> (1) - Nº de Beneficiários segundo Classes de Superfície Agrícola por NUTSIII em 2019
C46: Unidade (%)
C47: OTE | D47: Não classificadas | I47: Arvenses e Outras Cult pred. Regadio | N47: Arvenses e Outras Cult pred. Sequeiro | S47: Arroz | X47: Horticultura e Industriais | AC47: Horticultura e Floricultura | AH47: Vinhos | AM47: Fruticultura | AR47: Olival | AW47: Policultura | BB47: Bovinos Leite | BG47: Bovinos Carne pred. Intensivos | BL47: Bovinos Carne pred. Extensivos | BQ47: Outros Ruminantes | BV47: Mistas | CA47: Pousio e Pastagem | CF47: Tomate Indústria | CK47: Plantas tuberosas | CP47: Não classificadas | CQ47: Arvenses e Outras Cult pred. Regadio | CR47: Arvenses e Outras Cult pred. Sequeiro | CS47: Arroz | CT47: Horticultura e Industriais | CU47: Horticultura e Floricultura | CV47: Vinhos | CW47: Fruticultura | CX47: Olival | CY47: Policultura | CZ47: Bovinos Leite | DA47: Bovinos Carne pred. Intensivos | DB47: Bovinos Carne pred. Extensivos | DC47: Outros Ruminantes | DD47: Mistas | DE47: Pousio e Pastagem | DF47: Tomate Indústria | DG47: Plantas tuberosas | DH47: MP | DI47: P | DJ47: M | DK47: G | DL47: MG | DM47: Total
C48: =+C9 -> Classes de Superfície Agrícola | D48: MP | E48: P | F48: M | G48: G | H48: MG | I48: MP | J48: P | K48: M | L48: G | M48: MG | N48: MP | O48: P | P48: M | Q48: G | R48: MG | S48: MP | T48: P | U48: M | V48: G | W48: MG | X48: MP | Y48: P | Z48: M | AA48: G | AB48: MG | AC48: MP | AD48: P | AE48: M | AF48: G | AG48: MG | AH48: MP | AI48: P | AJ48: M | AK48: G | AL48: MG | AM48: MP | AN48: P | AO48: M | AP48: G | AQ48: MG | AR48: MP | AS48: P | AT48: M | AU48: G | AV48: MG | AW48: MP | AX48: P | AY48: M | AZ48: G | BA48: MG | BB48: MP | BC48: P | BD48: M | BE48: G | BF48: MG | BG48: MP | BH48: P | BI48: M | BJ48: G | BK48: MG | BL48: MP | BM48: P | BN48: M | BO48: G | BP48: MG | BQ48: MP | BR48: P | BS48: M | BT48: G | BU48: MG | BV48: MP | BW48: P | BX48: M | BY48: G | BZ48: MG | CA48: MP | CB48: P | CC48: M | CD48: G | CE48: MG | CF48: MP | CG48: P | CH48: M | CI48: G | CJ48: MG | CK48: MP | CL48: P | CM48: M | CN48: G | CO48: MG | CQ48: Arvenses e Outras Cult pred. Regadio
A49: NUTS II | B49: Cód. | C49: NUTS III | AG49: =+"Unidade: % " -> Unidade: % | BK49: =+"Unidade: % " -> Unidade: % | CO49: =+"Unidade: % " -> Unidade: % | DM49: Unidade: %
A50: Norte | B50: 111 | C50: Alto Minho | D50: =+D11/$DM$34*100 -> 0 | E50: =+E11/$DM$34*100 -> 0 | F50: 0 | G50: 0 | H50: 0 | I50: 0.1923973537 | J50: 0.005311583383 | K50: 0 | L50: 0 | M50: 0 | N50: 0.09206744531 | O50: 0.002950879657 | P50: 0 | Q50: 0 | R50: 0 | S50: 0 | T50: 0 | U50: 0 | V50: 0 | W50: 0 | X50: 0 | Y50: 0 | Z50: 0 | AA50: 0 | AB50: 0 | AC50: 0.09206744531 | AD50: 0.002950879657 | AE50: 0 | AF50: 0 | AG50: 0 | AH50: 0.3369904569 | AI50: 0.05606671349 | AJ50: =+AJ11/$DM$34*100 -> 0.005901759314 | AK50: 0 | AL50: 0 | AM50: 0.0843951582 | AN50: 0.01062316677 | AO50: 0 | AP50: 0 | AQ50: 0 | AR50: 0 | AS50: 0 | AT50: 0 | AU50: 0 | AV50: 0 | AW50: 1.274189836 | AX50: 0.01888562981 | AY50: 0 | AZ50: 0 | BA50: 0 | BB50: 0.005901759314 | BC50: 0.03127932437 | BD50: 0.004721407452 | BE50: 0 | BF50: 0 | BG50: 0.1729215479 | BH50: 0.0619684728 | BI50: 0.007672287109 | BJ50: 0 | BK50: 0 | BL50: 0.2478738912 | BM50: 0.2213159743 | BN50: 0.0714112877 | BO50: 0.003541055589 | BP50: =+BP11/$DM$34*100 -> 0.002950879657 | BQ50: 0.576601885 | BR50: 0.2106928075 | BS50: 0.02360703726 | BT50: 0 | BU50: 0 | BV50: 0.6320784226 | BW50: 0.03600073182 | BX50: 0 | BY50: 0 | BZ50: 0 | CA50: 0.1994794648 | CB50: 0.00826246304 | CC50: 0 | CD50: 0 | CE50: 0 | CF50: 0 | CG50: 0 | CH50: 0 | CI50: 0 | CJ50: 0 | CK50: 0 | CL50: 0 | CM50: 0 | CN50: 0 | CO50: 0 | CP50: 0.001770527794 | CQ50: 0.197708937 | CR50: 0.09619867683 | CS50: 0 | CT50: 0 | CU50: 0.09619867683 | CV50: =+CV11/$DM$34*100 -> 0.3995491056 | CW50: 0.09737902869 | CX50: 0 | CY50: 1.29543617 | CZ50: 0.04190249113 | DA50: 0.2449230115 | DB50: 0.5470930884 | DC50: 0.8126722576 | DD50: 0.6698496822 | DE50: 0.2106928075 | DF50: 0 | DG50: 0 | DH50: 3.908735194 | DI50: 0.6745710896 | DJ50: 0.1209860659 | DK50: 0.00413123152 | DL50: 0.002950879657 | DM50: =SUM(DH50:DL50) -> 4.711374461
B51: 112 | C51: Cávado | D51: =+D12/$DM$34*100 -> 0.001770527794 | E51: 0 | F51: 0 | G51: 0 | H51: 0 | I51: 0.5624376627 | J51: 0.01180351863 | K51: 0 | L51: 0 | M51: 0 | N51: 0.1605278534 | O51: 0 | P51: 0 | Q51: 0 | R51: 0 | S51: 0 | T51: 0 | U51: 0 | V51: 0 | W51: 0 | X51: 0 | Y51: 0 | Z51: 0 | AA51: 0 | AB51: 0 | AC51: 0.2419721319 | AD51: 0.00413123152 | AE51: 0 | AF51: 0 | AG51: 0 | AH51: 0.04013196334 | AI51: 0.01770527794 | AJ51: =+AJ12/$DM$34*100 -> 0.003541055589 | AK51: 0 | AL51: 0 | AM51: 0.1327895846 | AN51: 0.01711510201 | AO51: 0 | AP51: 0 | AQ51: 0 | AR51: 0 | AS51: 0 | AT51: 0 | AU51: 0 | AV51: 0 | AW51: 1.180351863 | AX51: 0.03777125961 | AY51: 0 | AZ51: 0 | BA51: 0 | BB51: 0.08203445447 | BC51: 0.1770527794 | BD51: 0.00826246304 | BE51: 0 | BF51: 0 | BG51: 0.3682697812 | BH51: 0.07436216736 | BI51: 0.002360703726 | BJ51: 0 | BK51: 0 | BL51: 0.08144427854 | BM51: 0.05370600976 | BN51: 0.01062316677 | BO51: 0 | BP51: =+BP12/$DM$34*100 -> 0 | BQ51: 0.1262976493 | BR51: 0.04367301893 | BS51: 0.007082111177 | BT51: 0 | BU51: 0 | BV51: 0.3535153829 | BW51: 0.02891862064 | BX51: 0 | BY51: 0 | BZ51: 0 | CA51: 0.4266971984 | CB51: 0.04544354672 | CC51: 0 | CD51: 0 | CE51: 0 | CF51: 0 | CG51: 0 | CH51: 0 | CI51: 0 | CJ51: 0 | CK51: 0.003541055589 | CL51: 0 | CM51: 0 | CN51: 0 | CO51: 0 | CP51: 0.002360703726 | CQ51: 0.5760117091 | CR51: 0.1611180293 | CS51: 0 | CT51: 0 | CU51: 0.2472837153 | CV51: =+CV12/$DM$34*100 -> 0.0619684728 | CW51: 0.1510850384 | CX51: 0 | CY51: 1.21989365 | CZ51: 0.2673496969 | DA51: 0.447353356 | DB51: 0.1475439829 | DC51: 0.1776429554 | DD51: 0.3836143554 | DE51: 0.4745014489 | DF51: 0 | DG51: 0.003541055589 | DH51: 3.76709297 | DI51: 0.5211253475 | DJ51: 0.03304985216 | DK51: 0 | DL51: 0 | DM51: =SUM(DH51:DL51) -> 4.32126817
B52: 119 | C52: Ave | D52: =+D13/$DM$34*100 -> 0 | E52: 0 | F52: 0 | G52: 0 | H52: 0 | I52: 0.327547642 | J52: 0.01062316677 | K52: 0 | L52: 0 | M52: 0 | N52: 0.05016495417 | O52: 0.002950879657 | P52: 0 | Q52: 0 | R52: 0 | S52: 0 | T52: 0 | U52: 0 | V52: 0 | W52: 0 | X52: 0 | Y52: 0 | Z52: 0 | AA52: 0 | AB52: 0 | AC52: 0.05960776908 | AD52: 0.004721407452 | AE52: 0 | AF52: 0 | AG52: 0 | AH52: 0.1021004361 | AI52: 0.03777125961 | AJ52: =+AJ13/$DM$34*100 -> 0.00413123152 | AK52: 0 | AL52: 0 | AM52: 0.08675586192 | AN52: 0.01652492608 | AO52: 0.002360703726 | AP52: 0 | AQ52: 0 | AR52: 0 | AS52: 0 | AT52: 0 | AU52: 0 | AV52: 0 | AW52: 0.430238254 | AX52: 0.0318695003 | AY52: 0.003541055589 | AZ52: 0 | BA52: 0 | BB52: 0.02183650946 | BC52: 0.0619684728 | BD52: 0.002360703726 | BE52: 0 | BF52: 0 | BG52: 0.1988892889 | BH52: 0.06314882466 | BI52: 0.002950879657 | BJ52: 0 | BK52: 0 | BL52: 0.1009200843 | BM52: 0.1900366499 | BN52: 0.02006598167 | BO52: 0 | BP52: =+BP13/$DM$34*100 -> 0 | BQ52: 0.2289882614 | BR52: 0.1876759462 | BS52: 0.03127932437 | BT52: 0 | BU52: 0 | BV52: 0.2095124557 | BW52: 0.04603372265 | BX52: 0.004721407452 | BY52: 0 | BZ52: 0 | CA52: 0.3116128918 | CB52: 0.0318695003 | CC52: 0 | CD52: 0 | CE52: 0 | CF52: 0 | CG52: 0 | CH52: 0 | CI52: 0 | CJ52: 0 | CK52: 0 | CL52: 0 | CM52: 0 | CN52: 0 | CO52: 0 | CP52: 0.00413123152 | CQ52: 0.3393511606 | CR52: 0.05370600976 | CS52: 0 | CT52: 0 | CU52: 0.06550952839 | CV52: =+CV13/$DM$34*100 -> 0.1457734551 | CW52: 0.1074120195 | CX52: 0.002360703726 | CY52: 0.4668291618 | CZ52: 0.08852638972 | DA52: 0.266759521 | DB52: 0.3133834196 | DC52: 0.4503042357 | DD52: 0.2608577617 | DE52: 0.3452529199 | DF52: 0 | DG52: 0 | DH52: 2.138797576 | DI52: 0.6952272472 | DJ52: 0.07731304702 | DK52: 0 | DL52: 0 | DM52: 2.91133787
B53: 11A | C53: Área Metropolitana do Porto | D53: =+D14/$DM$34*100 -> 0 | E53: 0 | F53: 0 | G53: 0 | H53: 0 | I53: 0.4827639119 | J53: 0.01475439829 | K53: 0 | L53: 0 | M53: 0 | N53: 0.05724706535 | O53: 0 | P53: 0 | Q53: 0 | R53: 0 | S53: 0 | T53: 0 | U53: 0 | V53: 0 | W53: 0 | X53: 0 | Y53: 0 | Z53: 0 | AA53: 0 | AB53: 0 | AC53: 0.1316092327 | AD53: 0.00826246304 | AE53: 0 | AF53: 0 | AG53: 0 | AH53: 0.03659090775 | AI53: 0.01475439829 | AJ53: =+AJ14/$DM$34*100 -> 0 | AK53: 0 | AL53: 0 | AM53: 0.1026906121 | AN53: 0.02183650946 | AO53: 0 | AP53: 0 | AQ53: 0 | AR53: 0 | AS53: 0 | AT53: 0 | AU53: 0 | AV53: 0 | AW53: 0.4709603933 | AX53: 0.02950879657 | AY53: 0 | AZ53: 0 | BA53: 0 | BB53: 0.07436216736 | BC53: 0.2691202247 | BD53: 0.01534457422 | BE53: 0 | BF53: 0 | BG53: 0.24079178 | BH53: 0.0731818155 | BI53: 0.002360703726 | BJ53: 0 | BK53: 0 | BL53: 0.04367301893 | BM53: 0.02714809285 | BN53: 0 | BO53: 0 | BP53: =+BP14/$DM$34*100 -> 0 | BQ53: 0.05488636162 | BR53: 0.03127932437 | BS53: 0 | BT53: 0 | BU53: 0 | BV53: 0.2207257984 | BW53: 0.02183650946 | BX53: 0 | BY53: 0 | BZ53: 0 | CA53: 0.4013196334 | CB53: 0.09914955648 | CC53: 0 | CD53: 0 | CE53: 0 | CF53: 0 | CG53: 0 | CH53: 0 | CI53: 0 | CJ53: 0 | CK53: 0.001770527794 | CL53: 0 | CM53: 0 | CN53: 0 | CO53: 0 | CP53: 0 | CQ53: 0.4986986621 | CR53: 0.05842741721 | CS53: 0 | CT53: 0 | CU53: 0.1404618717 | CV53: =+CV14/$DM$34*100 -> 0.0525256579 | CW53: 0.1251172975 | CX53: 0 | CY53: 0.5016495417 | CZ53: 0.3600073182 | DA53: 0.3169244752 | DB53: 0.07436216736 | DC53: 0.08911656565 | DD53: 0.2443328356 | DE53: 0.5028298936 | DF53: 0 | DG53: 0.002950879657 | DH53: 2.325883346 | DI53: 0.6173240243 | DJ53: 0.02596774098 | DK53: 0 | DL53: 0 | DM53: 2.969175111
B54: 11B | C54: Alto Tâmega | D54: =+D15/$DM$34*100 -> 0.01003299083 | E54: 0.005311583383 | F54: 0 | G54: 0 | H54: 0 | I54: 0.1009200843 | J54: 0.0206561576 | K54: 0 | L54: 0 | M54: 0 | N54: 0.3086620121 | O54: 0.05665688942 | P54: 0.001770527794 | Q54: 0 | R54: 0 | S54: 0 | T54: 0 | U54: 0 | V54: 0 | W54: 0 | X54: 0 | Y54: 0 | Z54: 0 | AA54: 0 | AB54: 0 | AC54: 0.680472849 | AD54: 0.07849339888 | AE54: 0 | AF54: 0 | AG54: 0 | AH54: 0.05016495417 | AI54: 0.01357404642 | AJ54: =+AJ15/$DM$34*100 -> 0 | AK54: 0 | AL54: 0 | AM54: 0.5305681624 | AN54: 0.2260373817 | AO54: 0.01003299083 | AP54: 0 | AQ54: 0 | AR54: 0.1192155382 | AS54: 0.01888562981 | AT54: 0.002950879657 | AU54: 0 | AV54: 0 | AW54: 1.873808582 | AX54: 0.5777822369 | AY54: 0.009442814903 | AZ54: 0 | BA54: 0 | BB54: 0.007082111177 | BC54: 0.03245967623 | BD54: 0.006491935246 | BE54: 0 | BF54: 0 | BG54: 0.03954178741 | BH54: 0.06668988025 | BI54: 0.01475439829 | BJ54: 0 | BK54: 0 | BL54: 0.09619867683 | BM54: 0.5901759314 | BN54: 0.1729215479 | BO54: 0.004721407452 | BP54: =+BP15/$DM$34*100 -> 0 | BQ54: 0.3163342993 | BR54: 0.5748313572 | BS54: 0.08675586192 | BT54: 0 | BU54: 0 | BV54: 0.197708937 | BW54: 0.2425623078 | BX54: 0.01180351863 | BY54: 0 | BZ54: 0 | CA54: 0.2201356224 | CB54: 0.06137829687 | CC54: 0.001770527794 | CD54: 0 | CE54: 0 | CF54: 0 | CG54: 0 | CH54: 0 | CI54: 0 | CJ54: 0 | CK54: 0.02891862064 | CL54: 0 | CM54: 0 | CN54: 0 | CO54: 0 | CP54: 0.01829545387 | CQ54: 0.1227565937 | CR54: 0.3670894294 | CS54: 0 | CT54: 0.001770527794 | CU54: 0.7625073034 | CV54: =+CV15/$DM$34*100 -> 0.06668988025 | CW54: 0.7689992387 | CX54: 0.1410520476 | CY54: 2.462213986 | CZ54: 0.04957477824 | DA54: 0.1239369456 | DB54: 0.8646077396 | DC54: 0.9796920462 | DD54: 0.4520747635 | DE54: 0.284464799 | DF54: 0 | DG54: 0.02950879657 | DH54: 4.587437515 | DI54: 2.576117941 | DJ54: 0.3257771142 | DK54: 0.005901759314 | DL54: 0 | DM54: 7.495234329
B55: 11C | C55: Tâmega e Sousa | D55: =+D16/$DM$34*100 -> 0 | E55: 0 | F55: 0 | G55: 0 | H55: 0 | I55: 0.3169244752 | J55: 0.009442814903 | K55: 0 | L55: 0 | M55: 0 | N55: 0.02832844471 | O55: 0.002950879657 | P55: 0 | Q55: 0 | R55: 0 | S55: 0 | T55: 0 | U55: 0 | V55: 0 | W55: 0 | X55: 0 | Y55: 0 | Z55: 0 | AA55: 0 | AB55: 0 | AC55: 0.2219061502 | AD55: 0.003541055589 | AE55: 0 | AF55: 0 | AG55: 0 | AH55: 0.3293181697 | AI55: 0.1316092327 | AJ55: =+AJ16/$DM$34*100 -> 0.01475439829 | AK55: 0 | AL55: 0 | AM55: 0.2809237434 | AN55: 0.08498533413 | AO55: 0 | AP55: 0 | AQ55: 0 | AR55: 0.002950879657 | AS55: 0 | AT55: 0 | AU55: 0 | AV55: 0 | AW55: 1.615311524 | AX55: 0.09855938055 | AY55: 0.001770527794 | AZ55: 0 | BA55: 0 | BB55: 0.003541055589 | BC55: 0.01180351863 | BD55: 0.001770527794 | BE55: 0 | BF55: 0 | BG55: 0.1923973537 | BH55: 0.04367301893 | BI55: 0.001770527794 | BJ55: 0 | BK55: 0 | BL55: 0.03127932437 | BM55: 0.02478738912 | BN55: 0.003541055589 | BO55: 0 | BP55: =+BP16/$DM$34*100 -> 0 | BQ55: 0.1440029273 | BR55: 0.04544354672 | BS55: 0.01003299083 | BT55: 0 | BU55: 0 | BV55: 0.4084017446 | BW55: 0.03954178741 | BX55: 0.002360703726 | BY55: 0 | BZ55: 0 | CA55: 0.1581671496 | CB55: 0.01829545387 | CC55: 0 | CD55: 0 | CE55: 0 | CF55: 0 | CG55: 0 | CH55: 0 | CI55: 0 | CJ55: 0 | CK55: 0 | CL55: 0 | CM55: 0 | CN55: 0 | CO55: 0 | CP55: 0.003541055589 | CQ55: 0.3263672901 | CR55: 0.03127932437 | CS55: 0 | CT55: 0 | CU55: 0.2272177336 | CV55: =+CV16/$DM$34*100 -> 0.4768621526 | CW55: 0.3670894294 | CX55: 0.004721407452 | CY55: 1.716821785 | CZ55: 0.01770527794 | DA55: 0.24079178 | DB55: 0.05960776908 | DC55: 0.2000696408 | DD55: 0.4520747635 | DE55: 0.1788233072 | DF55: 0 | DG55: 0.001770527794 | DH55: 3.742895757 | DI55: 0.5228958753 | DJ55: 0.03895161148 | DK55: 0 | DL55: 0 | DM55: 4.304743244
B56: 11D | C56: Douro | D56: =+D17/$DM$34*100 -> 0.01298387049 | E56: 0 | F56: 0 | G56: 0 | H56: 0 | I56: 0.02478738912 | J56: 0 | K56: 0 | L56: 0 | M56: 0 | N56: 0.07672287109 | O56: 0.01770527794 | P56: 0 | Q56: 0 | R56: 0 | S56: 0 | T56: 0 | U56: 0 | V56: 0 | W56: 0 | X56: 0 | Y56: 0 | Z56: 0 | AA56: 0 | AB56: 0 | AC56: 0.8899853046 | AD56: 0.05606671349 | AE56: 0 | AF56: 0 | AG56: 0 | AH56: 2.225553437 | AI56: 0.9944464445 | AJ56: =+AJ17/$DM$34*100 -> 0.1363306402 | AK56: 0.004721407452 | AL56: 0 | AM56: 0.4863049675 | AN56: 0.3735813646 | AO56: 0.03541055589 | AP56: 0 | AQ56: 0 | AR56: 0.3104325399 | AS56: 0.03068914844 | AT56: 0.00413123152 | AU56: 0 | AV56: 0 | AW56: 3.864471999 | AX56: 1.013332074 | AY56: 0.07613269516 | AZ56: 0 | BA56: 0 | BB56: 0.01711510201 | BC56: 0.02891862064 | BD56: 0.007672287109 | BE56: 0 | BF56: 0 | BG56: 0.0206561576 | BH56: 0.01711510201 | BI56: 0.002950879657 | BJ56: 0 | BK56: 0 | BL56: 0.06905058398 | BM56: 0.1062316677 | BN56: 0.02006598167 | BO56: 0 | BP56: =+BP17/$DM$34*100 -> 0 | BQ56: 0.2142338631 | BR56: 0.1965285852 | BS56: 0.0300989725 | BT56: 0 | BU56: 0 | BV56: 0.1888562981 | BW56: 0.07908357481 | BX56: 0.01180351863 | BY56: 0 | BZ56: 0 | CA56: 0.04249266706 | CB56: 0.01003299083 | CC56: 0.002950879657 | CD56: 0 | CE56: 0 | CF56: 0 | CG56: 0 | CH56: 0 | CI56: 0 | CJ56: 0 | CK56: 0.02891862064 | CL56: 0 | CM56: 0 | CN56: 0 | CO56: 0 | CP56: 0.01416422235 | CQ56: 0.02596774098 | CR56: 0.09619867683 | CS56: 0 | CT56: 0 | CU56: 0.9478225459 | CV56: =+CV17/$DM$34*100 -> 3.361642106 | CW56: 0.8964772399 | CX56: 0.3452529199 | CY56: 4.95511712 | CZ56: 0.05488636162 | DA56: 0.04249266706 | DB56: 0.1965285852 | DC56: 0.4420417727 | DD56: 0.2797433915 | DE56: 0.05606671349 | DF56: 0 | DG56: 0.02950879657 | DH56: 8.4743362 | DI56: 2.931994027 | DJ56: 0.3328592253 | DK56: 0.005311583383 | DL56: 0 | DM56: 11.74450104
B57: 11E | C57: Terras de Trás-os-Montes | D57: =+D18/$DM$34*100 -> 0.01593475015 | E57: 0.009442814903 | F57: 0.002950879657 | G57: 0 | H57: 0 | I57: 0.001770527794 | J57: 0 | K57: 0 | L57: 0 | M57: 0 | N57: 0.1534457422 | O57: 0.1847250665 | P57: 0.02242668539 | Q57: 0 | R57: 0 | S57: 0 | T57: 0 | U57: 0 | V57: 0 | W57: 0 | X57: 0.001770527794 | Y57: 0.002360703726 | Z57: 0 | AA57: 0 | AB57: 0 | AC57: 1.869087175 | AD57: 0.9602162405 | AE57: 0.06905058398 | AF57: 0 | AG57: 0 | AH57: 0.05842741721 | AI57: 0.04072213927 | AJ57: =+AJ18/$DM$34*100 -> 0.00413123152 | AK57: 0 | AL57: 0 | AM57: 0.6385703578 | AN57: 0.5718804776 | AO57: 0.05311583383 | AP57: 0 | AQ57: 0 | AR57: 0.9348386754 | AS57: 0.2372507244 | AT57: 0.04190249113 | AU57: 0 | AV57: 0 | AW57: 3.165703696 | AX57: 2.859402388 | AY57: 0.2880058545 | AZ57: 0 | BA57: 0 | BB57: 0 | BC57: 0 | BD57: 0.01298387049 | BE57: 0 | BF57: 0 | BG57: 0.01888562981 | BH57: 0.03895161148 | BI57: 0.03836143554 | BJ57: 0 | BK57: 0 | BL57: 0.001770527794 | BM57: 0.02950879657 | BN57: 0.04367301893 | BO57: 0 | BP57: =+BP18/$DM$34*100 -> 0 | BQ57: 0.1310190568 | BR57: 0.2112829835 | BS57: 0.08911656565 | BT57: 0 | BU57: 0 | BV57: 0.07908357481 | BW57: 0.335810105 | BX57: 0.2165945668 | BY57: 0 | BZ57: 0 | CA57: 0.07908357481 | CB57: 0.06314882466 | CC57: 0.00826246304 | CD57: 0 | CE57: 0 | CF57: 0 | CG57: 0 | CH57: 0 | CI57: 0 | CJ57: 0 | CK57: 0 | CL57: 0 | CM57: 0 | CN57: 0 | CO57: 0 | CP57: 0.0300989725 | CQ57: 0.002950879657 | CR57: 0.361777846 | CS57: 0 | CT57: 0.005901759314 | CU57: 2.900124527 | CV57: =+CV18/$DM$34*100 -> 0.1044611399 | CW57: 1.265337197 | CX57: 1.216352595 | CY57: 6.315472642 | CZ57: 0.01593475015 | DA57: 0.09855938055 | DB57: 0.08144427854 | DC57: 0.4320087818 | DD57: 0.6326685985 | DE57: 0.1522653903 | DF57: 0 | DG57: 0.003541055589 | DH57: 7.160604576 | DI57: 5.552375163 | DJ57: 0.8988379436 | DK57: 0.006491935246 | DL57: 0 | DM57: 13.61830962
A58: Centro | B58: 16B | C58: Oeste | D58: =+D19/$DM$34*100 -> 0.01062316677 | E58: 0.003541055589 | F58: 0.002950879657 | G58: 0 | H58: 0 | I58: 0 | J58: 0 | K58: 0 | L58: 0 | M58: 0 | N58: 0.02478738912 | O58: 0.01593475015 | P58: 0.003541055589 | Q58: 0 | R58: 0 | S58: 0 | T58: 0 | U58: 0 | V58: 0 | W58: 0 | X58: 0 | Y58: 0 | Z58: 0 | AA58: 0 | AB58: 0 | AC58: 0.0525256579 | AD58: 0.05134530604 | AE58: 0.00413123152 | AF58: 0 | AG58: 0 | AH58: 0.02537756505 | AI58: 0.07082111177 | AJ58: =+AJ19/$DM$34*100 -> 0.03541055589 | AK58: 0 | AL58: 0 | AM58: 0.1026906121 | AN58: 0.2289882614 | AO58: 0.05311583383 | AP58: 0 | AQ58: 0 | AR58: 0 | AS58: 0 | AT58: 0 | AU58: 0 | AV58: 0 | AW58: 0.07377199143 | AX58: 0.05783724128 | AY58: 0.01593475015 | AZ58: 0 | BA58: 0 | BB58: 0 | BC58: 0.00413123152 | BD58: 0 | BE58: 0 | BF58: 0 | BG58: 0.0507551301 | BH58: 0.02242668539 | BI58: 0.005311583383 | BJ58: 0 | BK58: 0 | BL58: 0.003541055589 | BM58: 0.002950879657 | BN58: 0.002950879657 | BO58: 0 | BP58: =+BP19/$DM$34*100 -> 0 | BQ58: 0.2171847428 | BR58: 0.02242668539 | BS58: 0 | BT58: 0 | BU58: 0 | BV58: 0.03718108368 | BW58: 0.02006598167 | BX58: 0.001770527794 | BY58: 0 | BZ58: 0 | CA58: 0.08321480633 | CB58: 0.02773826878 | CC58: 0.006491935246 | CD58: 0 | CE58: 0 | CF58: 0 | CG58: 0 | CH58: 0 | CI58: 0 | CJ58: 0 | CK58: 0.01003299083 | CL58: 0.00413123152 | CM58: 0 | CN58: 0 | CO58: 0 | CP58: 0.01888562981 | CQ58: 0.002360703726 | CR58: 0.04721407452 | CS58: 0 | CT58: 0.002360703726 | CU58: 0.1085923714 | CV58: =+CV19/$DM$34*100 -> 0.1327895846 | CW58: 0.3865652351 | CX58: 0 | CY58: 0.1493145107 | CZ58: 0.006491935246 | DA58: 0.07908357481 | DB58: 0.01062316677 | DC58: 0.2419721319 | DD58: 0.06255864873 | DE58: 0.1174450104 | DF58: 0 | DG58: 0.01534457422 | DH58: 0.7005388306 | DI58: 0.5417815051 | DJ58: 0.138101168 | DK58: 0.00413123152 | DL58: 0 | DM58: 1.384552735
B59: 16D | C59: Região de Aveiro | D59: =+D20/$DM$34*100 -> 0.005901759314 | E59: 0 | F59: 0 | G59: 0 | H59: 0 | I59: 0.533519042 | J59: 0.0300989725 | K59: 0.005311583383 | L59: 0 | M59: 0 | N59: 0.3346297531 | O59: 0.02596774098 | P59: 0 | Q59: 0 | R59: 0 | S59: 0 | T59: 0 | U59: 0.002360703726 | V59: 0 | W59: 0 | X59: 0 | Y59: 0 | Z59: 0 | AA59: 0 | AB59: 0 | AC59: 0.1280681771 | AD59: 0.007672287109 | AE59: 0 | AF59: 0 | AG59: 0 | AH59: 0.0206561576 | AI59: 0.01180351863 | AJ59: =+AJ20/$DM$34*100 -> 0.002950879657 | AK59: 0 | AL59: 0 | AM59: 0.111543251 | AN59: 0.008852638972 | AO59: 0 | AP59: 0 | AQ59: 0 | AR59: 0 | AS59: 0 | AT59: 0 | AU59: 0 | AV59: 0 | AW59: 0.4721407452 | AX59: 0.02950879657 | AY59: 0.002360703726 | AZ59: 0 | BA59: 0 | BB59: 0.03718108368 | BC59: 0.08380498227 | BD59: 0.01062316677 | BE59: 0 | BF59: 0 | BG59: 0.1139039548 | BH59: 0.03600073182 | BI59: 0.00413123152 | BJ59: 0 | BK59: 0 | BL59: 0.02124633353 | BM59: 0.01239369456 | BN59: 0 | BO59: 0 | BP59: =+BP20/$DM$34*100 -> 0 | BQ59: 0.03423020402 | BR59: 0.005311583383 | BS59: 0 | BT59: 0 | BU59: 0 | BV59: 0.1941678814 | BW59: 0.02124633353 | BX59: 0 | BY59: 0 | BZ59: 0 | CA59: 0.2283980855 | CB59: 0.043082843 | CC59: 0.001770527794 | CD59: 0 | CE59: 0 | CF59: 0 | CG59: 0 | CH59: 0 | CI59: 0 | CJ59: 0 | CK59: 0.01947580574 | CL59: 0.002360703726 | CM59: 0 | CN59: 0 | CO59: 0 | CP59: 0.006491935246 | CQ59: 0.5695197738 | CR59: 0.36118767 | CS59: 0.00413123152 | CT59: 0 | CU59: 0.1404618717 | CV59: =+CV20/$DM$34*100 -> 0.03659090775 | CW59: 0.1215762419 | CX59: 0 | CY59: 0.5046004214 | CZ59: 0.1321994086 | DA59: 0.15521627 | DB59: 0.03364002809 | DC59: 0.04072213927 | DD59: 0.215414215 | DE59: 0.2738416322 | DF59: 0 | DG59: 0.02242668539 | DH59: 2.259193466 | DI59: 0.3257771142 | DJ59: 0.03364002809 | DK59: 0 | DL59: 0 | DM59: 2.618610608
B60: 16E | C60: Região de Coimbra | D60: =+D21/$DM$34*100 -> 0.0206561576 | E60: 0 | F60: 0 | G60: 0 | H60: 0 | I60: 0.465058634 | J60: 0.1233467697 | K60: 0.03127932437 | L60: 0 | M60: 0 | N60: 0.2012499926 | O60: 0.007672287109 | P60: 0.002360703726 | Q60: 0 | R60: 0 | S60: 0.07436216736 | T60: 0.07023093584 | U60: 0.02832844471 | V60: 0 | W60: 0 | X60: 0.001770527794 | Y60: 0 | Z60: 0 | AA60: 0 | AB60: 0 | AC60: 0.3682697812 | AD60: 0.02183650946 | AE60: 0.00413123152 | AF60: 0 | AG60: 0 | AH60: 0.04544354672 | AI60: 0.02006598167 | AJ60: =+AJ21/$DM$34*100 -> 0 | AK60: 0 | AL60: 0 | AM60: 0.1162646585 | AN60: 0.03364002809 | AO60: 0.001770527794 | AP60: 0 | AQ60: 0 | AR60: 0.07200146364 | AS60: 0 | AT60: 0 | AU60: 0 | AV60: 0 | AW60: 1.085333538 | AX60: 0.08675586192 | AY60: 0.009442814903 | AZ60: 0 | BA60: 0 | BB60: 0.04190249113 | BC60: 0.03600073182 | BD60: 0.002360703726 | BE60: 0 | BF60: 0 | BG60: 0.08026392668 | BH60: 0.01888562981 | BI60: 0.003541055589 | BJ60: 0 | BK60: 0 | BL60: 0.01180351863 | BM60: 0.004721407452 | BN60: 0 | BO60: 0 | BP60: =+BP21/$DM$34*100 -> 0 | BQ60: 0.2354801966 | BR60: 0.05134530604 | BS60: 0.005311583383 | BT60: 0 | BU60: 0 | BV60: 0.2738416322 | BW60: 0.03541055589 | BX60: 0.001770527794 | BY60: 0 | BZ60: 0 | CA60: 0.2508247709 | CB60: 0.02419721319 | CC60: 0.002360703726 | CD60: 0 | CE60: 0 | CF60: 0 | CG60: 0 | CH60: 0 | CI60: 0 | CJ60: 0 | CK60: 0.01888562981 | CL60: 0 | CM60: 0 | CN60: 0 | CO60: 0 | CP60: 0.02183650946 | CQ60: 0.6238159595 | CR60: 0.2130535113 | CS60: 0.1746920757 | CT60: 0.002950879657 | CU60: 0.3948276981 | CV60: =+CV21/$DM$34*100 -> 0.06609970432 | CW60: 0.1516752144 | CX60: 0.0731818155 | CY60: 1.182122391 | CZ60: 0.08026392668 | DA60: 0.103280788 | DB60: 0.02006598167 | DC60: 0.2944977898 | DD60: 0.3127932437 | DE60: 0.2797433915 | DF60: 0 | DG60: 0.01947580574 | DH60: 3.368724217 | DI60: 0.5476832644 | DJ60: 0.09678885276 | DK60: 0 | DL60: 0 | DM60: 4.013196334
B61: 16F | C61: Região de Leiria | D61: =+D22/$DM$34*100 -> 0.01180351863 | E61: 0 | F61: 0 | G61: 0 | H61: 0 | I61: 0.07613269516 | J61: 0.009442814903 | K61: 0.002360703726 | L61: 0 | M61: 0 | N61: 0.06432917653 | O61: 0.003541055589 | P61: 0 | Q61: 0 | R61: 0 | S61: 0.005311583383 | T61: 0.005901759314 | U61: 0.001770527794 | V61: 0 | W61: 0 | X61: 0 | Y61: 0 | Z61: 0 | AA61: 0 | AB61: 0 | AC61: 0.2348900207 | AD61: 0.009442814903 | AE61: 0.002360703726 | AF61: 0 | AG61: 0 | AH61: 0.00413123152 | AI61: 0.001770527794 | AJ61: =+AJ22/$DM$34*100 -> 0 | AK61: 0 | AL61: 0 | AM61: 0.04780425045 | AN61: 0.01770527794 | AO61: 0.001770527794 | AP61: 0 | AQ61: 0 | AR61: 0.1369208161 | AS61: 0.006491935246 | AT61: 0.001770527794 | AU61: 0 | AV61: 0 | AW61: 0.5535850237 | AX61: 0.02714809285 | AY61: 0 | AZ61: 0 | BA61: 0 | BB61: 0 | BC61: 0.005901759314 | BD61: 0.001770527794 | BE61: 0 | BF61: 0 | BG61: 0.06019794501 | BH61: 0.02714809285 | BI61: 0.00413123152 | BJ61: 0 | BK61: 0 | BL61: 0.001770527794 | BM61: 0.004721407452 | BN61: 0.00413123152 | BO61: 0 | BP61: =+BP22/$DM$34*100 -> 0 | BQ61: 0.1912170018 | BR61: 0.02832844471 | BS61: 0.007672287109 | BT61: 0 | BU61: 0 | BV61: 0.1770527794 | BW61: 0.0318695003 | BX61: 0.00413123152 | BY61: 0 | BZ61: 0 | CA61: 0.06550952839 | CB61: 0.005901759314 | CC61: 0 | CD61: 0 | CE61: 0 | CF61: 0 | CG61: 0 | CH61: 0 | CI61: 0 | CJ61: 0 | CK61: 0 | CL61: 0 | CM61: 0 | CN61: 0 | CO61: 0 | CP61: 0.01416422235 | CQ61: 0.08911656565 | CR61: 0.06905058398 | CS61: 0.01416422235 | CT61: 0 | CU61: 0.2472837153 | CV61: =+CV22/$DM$34*100 -> 0.007082111177 | CW61: 0.06846040805 | CX61: 0.146363631 | CY61: 0.5830938203 | CZ61: 0.01003299083 | DA61: 0.09147726937 | DB61: 0.0112133427 | DC61: 0.2278079095 | DD61: 0.2130535113 | DE61: 0.0731818155 | DF61: 0 | DG61: 0 | DH61: 1.638328386 | DI61: 0.1929875296 | DJ61: 0.03482037996 | DK61: 0 | DL61: 0 | DM61: 1.866136295
B62: 16G | C62: Viseu Dão Lafões | D62: =+D23/$DM$34*100 -> 0.008852638972 | E62: 0.001770527794 | F62: 0 | G62: 0 | H62: 0 | I62: 0.2354801966 | J62: 0.001770527794 | K62: 0 | L62: 0 | M62: 0 | N62: 0.1617082052 | O62: 0.01180351863 | P62: 0 | Q62: 0 | R62: 0 | S62: 0 | T62: 0 | U62: 0 | V62: 0 | W62: 0 | X62: 0 | Y62: 0 | Z62: 0 | AA62: 0 | AB62: 0 | AC62: 0.465058634 | AD62: 0.007672287109 | AE62: 0 | AF62: 0 | AG62: 0 | AH62: 0.1516752144 | AI62: 0.07200146364 | AJ62: =+AJ23/$DM$34*100 -> 0.00826246304 | AK62: 0 | AL62: 0 | AM62: 0.2307587892 | AN62: 0.03836143554 | AO62: 0.002950879657 | AP62: 0 | AQ62: 0 | AR62: 0.0300989725 | AS62: 0 | AT62: 0 | AU62: 0 | AV62: 0 | AW62: 1.595835719 | AX62: 0.09265762124 | AY62: 0.003541055589 | AZ62: 0 | BA62: 0 | BB62: 0.02478738912 | BC62: 0.01475439829 | BD62: 0 | BE62: 0 | BF62: 0 | BG62: 0.06905058398 | BH62: 0.02832844471 | BI62: 0.002950879657 | BJ62: 0 | BK62: 0 | BL62: 0.0318695003 | BM62: 0.05193548197 | BN62: 0.005901759314 | BO62: 0 | BP62: =+BP23/$DM$34*100 -> 0 | BQ62: 0.4013196334 | BR62: 0.1144941307 | BS62: 0.01357404642 | BT62: 0 | BU62: 0 | BV62: 0.6238159595 | BW62: 0.06787023212 | BX62: 0.003541055589 | BY62: 0 | BZ62: 0 | CA62: 0.07790322295 | CB62: 0.00413123152 | CC62: 0 | CD62: 0 | CE62: 0 | CF62: 0 | CG62: 0 | CH62: 0 | CI62: 0 | CJ62: 0 | CK62: 0.02596774098 | CL62: 0 | CM62: 0 | CN62: 0 | CO62: 0 | CP62: 0.01180351863 | CQ62: 0.2384310763 | CR62: 0.1741018998 | CS62: 0 | CT62: 0 | CU62: 0.4750916248 | CV62: =+CV23/$DM$34*100 -> 0.232529317 | CW62: 0.2720711044 | CX62: 0.0318695003 | CY62: 1.692624571 | CZ62: 0.04249266706 | DA62: 0.1021004361 | DB62: 0.09088709344 | DC62: 0.5305681624 | DD62: 0.6958174232 | DE62: 0.08203445447 | DF62: 0 | DG62: 0.02596774098 | DH62: 4.138903807 | DI62: 0.5152235882 | DJ62: 0.04485337079 | DK62: 0 | DL62: 0 | DM62: 4.698980766
B63: 16H | C63: Beira Baixa | D63: =+D24/$DM$34*100 -> 0.001770527794 | E63: 0 | F63: 0 | G63: 0 | H63: 0 | I63: 0.002950879657 | J63: 0.002360703726 | K63: 0 | L63: 0 | M63: 0 | N63: 0.03777125961 | O63: 0.04662389858 | P63: 0.0112133427 | Q63: 0 | R63: 0 | S63: 0 | T63: 0 | U63: 0 | V63: 0 | W63: 0 | X63: 0 | Y63: 0 | Z63: 0 | AA63: 0 | AB63: 0 | AC63: 0.1622983811 | AD63: 0.01652492608 | AE63: 0.003541055589 | AF63: 0 | AG63: 0 | AH63: 0 | AI63: 0 | AJ63: =+AJ24/$DM$34*100 -> 0 | AK63: 0 | AL63: 0 | AM63: 0.1274780012 | AN63: 0.03777125961 | AO63: 0.01475439829 | AP63: 0 | AQ63: 0 | AR63: 0.3104325399 | AS63: 0.06609970432 | AT63: 0.01298387049 | AU63: 0 | AV63: 0 | AW63: 0.5394208013 | AX63: 0.2036106963 | AY63: 0.04072213927 | AZ63: 0.001770527794 | BA63: 0 | BB63: 0 | BC63: 0 | BD63: 0 | BE63: 0 | BF63: 0 | BG63: 0.005311583383 | BH63: 0.01062316677 | BI63: 0.01239369456 | BJ63: 0.001770527794 | BK63: 0 | BL63: 0 | BM63: 0.006491935246 | BN63: 0.04544354672 | BO63: 0.03541055589 | BP63: =+BP24/$DM$34*100 -> 0 | BQ63: 0.1929875296 | BR63: 0.1664296127 | BS63: 0.1410520476 | BT63: 0.03068914844 | BU63: 0.002950879657 | BV63: 0.07436216736 | BW63: 0.05783724128 | BX63: 0.01298387049 | BY63: 0.005311583383 | BZ63: 0 | CA63: 0.05370600976 | CB63: 0.08203445447 | CC63: 0.07967375075 | CD63: 0.01180351863 | CE63: 0 | CF63: 0 | CG63: 0 | CH63: 0 | CI63: 0 | CJ63: 0 | CK63: 0 | CL63: 0 | CM63: 0 | CN63: 0 | CO63: 0 | CP63: 0.006491935246 | CQ63: 0.005901759314 | CR63: 0.09737902869 | CS63: 0 | CT63: 0 | CU63: 0.1835447147 | CV63: =+CV24/$DM$34*100 -> 0.006491935246 | CW63: 0.1835447147 | CX63: 0.3901062907 | CY63: 0.7867045166 | CZ63: 0.001770527794 | DA63: 0.03068914844 | DB63: 0.09147726937 | DC63: 0.5352895698 | DD63: 0.1516752144 | DE63: 0.2295784373 | DF63: 0 | DG63: 0 | DH63: 1.513801264 | DI63: 0.7040798862 | DJ63: 0.3842045314 | DK63: 0.09265762124 | DL63: 0.006491935246 | DM63: 2.701235238
B64: 16I | C64: Médio Tejo | D64: =+D25/$DM$34*100 -> 0.001770527794 | E64: 0.002360703726 | F64: 0 | G64: 0 | H64: 0 | I64: 0.01475439829 | J64: 0.005901759314 | K64: 0.01180351863 | L64: 0 | M64: 0 | N64: 0.02006598167 | O64: 0.0112133427 | P64: 0.006491935246 | Q64: 0 | R64: 0 | S64: 0 | T64: 0 | U64: 0 | V64: 0 | W64: 0 | X64: 0 | Y64: 0.001770527794 | Z64: 0 | AA64: 0 | AB64: 0 | AC64: 0.1617082052 | AD64: 0.005901759314 | AE64: 0 | AF64: 0 | AG64: 0 | AH64: 0.02360703726 | AI64: 0.006491935246 | AJ64: =+AJ25/$DM$34*100 -> 0.002360703726 | AK64: 0 | AL64: 0 | AM64: 0.1209860659 | AN64: 0.04544354672 | AO64: 0.01003299083 | AP64: 0 | AQ64: 0 | AR64: 0.3346297531 | AS64: 0.03777125961 | AT64: 0.007082111177 | AU64: 0 | AV64: 0 | AW64: 0.7766715258 | AX64: 0.1386913439 | AY64: 0.01298387049 | AZ64: 0.002950879657 | BA64: 0 | BB64: 0 | BC64: 0.00413123152 | BD64: 0 | BE64: 0 | BF64: 0 | BG64: 0.02537756505 | BH64: 0.02655791692 | BI64: 0.005901759314 | BJ64: 0 | BK64: 0 | BL64: 0 | BM64: 0.002360703726 | BN64: 0.003541055589 | BO64: 0 | BP64: =+BP25/$DM$34*100 -> 0 | BQ64: 0.1870857703 | BR64: 0.03541055589 | BS64: 0.01357404642 | BT64: 0 | BU64: 0 | BV64: 0.137510992 | BW64: 0.03895161148 | BX64: 0.008852638972 | BY64: 0.002950879657 | BZ64: 0 | CA64: 0.0507551301 | CB64: 0.03068914844 | CC64: 0.02478738912 | CD64: 0.002360703726 | CE64: 0 | CF64: 0 | CG64: 0 | CH64: 0 | CI64: 0 | CJ64: 0 | CK64: 0 | CL64: 0 | CM64: 0 | CN64: 0 | CO64: 0 | CP64: 0.006491935246 | CQ64: 0.03482037996 | CR64: 0.03895161148 | CS64: 0 | CT64: 0.001770527794 | CU64: 0.1705608442 | CV64: =+CV25/$DM$34*100 -> 0.03364002809 | CW64: 0.1764626035 | CX64: 0.3806634758 | CY64: 0.9342484995 | CZ64: 0.006491935246 | DA64: 0.05960776908 | DB64: 0.00826246304 | DC64: 0.2372507244 | DD64: 0.1900366499 | DE64: 0.1097727232 | DF64: 0 | DG64: 0 | DH64: 1.860234536 | DI64: 0.4013196334 | DJ64: 0.1150843066 | DK64: 0.01180351863 | DL64: 0 | DM64: 2.388441995
B65: 16J | C65: Beiras e Serra da Estrela | D65: =+D26/$DM$34*100 -> 0.009442814903 | E65: 0.004721407452 | F65: 0.001770527794 | G65: 0 | H65: 0 | I65: 0.0318695003 | J65: 0.01180351863 | K65: 0.002950879657 | L65: 0 | M65: 0 | N65: 0.2868255027 | O65: 0.189446474 | P65: 0.03127932437 | Q65: 0 | R65: 0 | S65: 0 | T65: 0 | U65: 0 | V65: 0 | W65: 0 | X65: 0 | Y65: 0 | Z65: 0 | AA65: 0 | AB65: 0 | AC65: 0.8846737212 | AD65: 0.1139039548 | AE65: 0.005901759314 | AF65: 0 | AG65: 0 | AH65: 0.1664296127 | AI65: 0.1038709639 | AJ65: =+AJ26/$DM$34*100 -> 0.02419721319 | AK65: 0 | AL65: 0 | AM65: 0.4237463188 | AN65: 0.2685300488 | AO65: 0.05547653756 | AP65: 0 | AQ65: 0 | AR65: 0.3122030677 | AS65: 0.0300989725 | AT65: 0.005901759314 | AU65: 0 | AV65: 0 | AW65: 2.25860329 | AX65: 0.9265762124 | AY65: 0.0731818155 | AZ65: 0 | BA65: 0 | BB65: 0.002950879657 | BC65: 0.01357404642 | BD65: 0.01534457422 | BE65: 0 | BF65: 0 | BG65: 0.02124633353 | BH65: 0.09147726937 | BI65: 0.0938379731 | BJ65: 0 | BK65: 0 | BL65: 0.001770527794 | BM65: 0.08085410261 | BN65: 0.2201356224 | BO65: 0.007672287109 | BP65: =+BP26/$DM$34*100 -> 0 | BQ65: 0.3824340036 | BR65: 0.5642081905 | BS65: 0.2549560024 | BT65: 0.004721407452 | BU65: 0 | BV65: 0.2136436872 | BW65: 0.2762023359 | BX65: 0.07672287109 | BY65: 0.001770527794 | BZ65: 0 | CA65: 0.1091825473 | CB65: 0.09560850089 | CC65: 0.02419721319 | CD65: 0 | CE65: 0 | CF65: 0 | CG65: 0 | CH65: 0 | CI65: 0 | CJ65: 0 | CK65: 0.00413123152 | CL65: 0 | CM65: 0 | CN65: 0 | CO65: 0 | CP65: 0.01888562981 | CQ65: 0.04721407452 | CR65: 0.508141477 | CS65: 0 | CT65: 0.001770527794 | CU65: 1.005659787 | CV65: =+CV26/$DM$34*100 -> 0.2944977898 | CW65: 0.7512939607 | CX65: 0.3487939755 | CY65: 3.260722021 | CZ65: 0.03482037996 | DA65: 0.2077419279 | DB65: 0.3139735955 | DC65: 1.20690978 | DD65: 0.568339422 | DE65: 0.2295784373 | DF65: 0 | DG65: 0.005901759314 | DH65: 5.119186029 | DI65: 2.777367933 | DJ65: 0.8905754806 | DK65: 0.01711510201 | DL65: 0 | DM65: 8.804244545
A66: AML | B66: 170 | C66: Área Metropolitana de Lisboa | D66: =+D27/$DM$34*100 -> 0.001770527794 | E66: 0 | F66: 0.001770527794 | G66: 0 | H66: 0 | I66: 0.001770527794 | J66: 0.01593475015 | K66: 0.01298387049 | L66: 0 | M66: 0 | N66: 0.01062316677 | O66: 0.01239369456 | P66: 0.007082111177 | Q66: 0 | R66: 0 | S66: 0 | T66: 0.002950879657 | U66: 0.02832844471 | V66: 0.003541055589 | W66: 0 | X66: 0 | Y66: 0 | Z66: 0 | AA66: 0 | AB66: 0 | AC66: 0.02301686133 | AD66: 0.01888562981 | AE66: 0.005311583383 | AF66: 0 | AG66: 0 | AH66: 0.01652492608 | AI66: 0.04721407452 | AJ66: =+AJ27/$DM$34*100 -> 0.02478738912 | AK66: 0.001770527794 | AL66: 0 | AM66: 0.02183650946 | AN66: 0.0206561576 | AO66: 0.01003299083 | AP66: 0 | AQ66: 0 | AR66: 0 | AS66: 0 | AT66: 0.001770527794 | AU66: 0 | AV66: 0 | AW66: 0.02655791692 | AX66: 0.02950879657 | AY66: 0.01711510201 | AZ66: 0.001770527794 | BA66: 0 | BB66: 0.001770527794 | BC66: 0.007672287109 | BD66: 0.004721407452 | BE66: 0 | BF66: 0 | BG66: 0.03777125961 | BH66: 0.02537756505 | BI66: 0.01298387049 | BJ66: 0.002360703726 | BK66: 0 | BL66: 0 | BM66: 0.008852638972 | BN66: 0.00826246304 | BO66: 0.004721407452 | BP66: =+BP27/$DM$34*100 -> 0 | BQ66: 0.1581671496 | BR66: 0.04190249113 | BS66: 0.01180351863 | BT66: 0.001770527794 | BU66: 0 | BV66: 0.01829545387 | BW66: 0.0112133427 | BX66: 0.008852638972 | BY66: 0.005901759314 | BZ66: 0 | CA66: 0.043082843 | CB66: 0.04544354672 | CC66: 0.02419721319 | CD66: 0.001770527794 | CE66: 0 | CF66: 0 | CG66: 0.005311583383 | CH66: 0.009442814903 | CI66: 0.005901759314 | CJ66: 0 | CK66: 0.002950879657 | CL66: 0.00413123152 | CM66: 0 | CN66: 0 | CO66: 0 | CP66: 0.007672287109 | CQ66: 0.03245967623 | CR66: 0.0318695003 | CS66: 0.03482037996 | CT66: 0 | CU66: 0.05134530604 | CV66: =+CV27/$DM$34*100 -> 0.09147726937 | CW66: 0.05724706535 | CX66: 0.002360703726 | CY66: 0.07967375075 | CZ66: 0.01593475015 | DA66: 0.08203445447 | DB66: 0.02537756505 | DC66: 0.2142338631 | DD66: 0.04839442638 | DE66: 0.1168548344 | DF66: 0.02360703726 | DG66: 0.009442814903 | DH66: 0.3759420683 | DI66: 0.3127932437 | DJ66: 0.2012499926 | DK66: 0.03423020402 | DL66: 0.001770527794 | DM66: 0.9259860364
A67: Alentejo | B67: 181 | C67: Alentejo Litoral | D67: =+D28/$DM$34*100 -> 0 | E67: 0.002950879657 | F67: 0.004721407452 | G67: 0.002950879657 | H67: 0 | I67: 0 | J67: 0.002360703726 | K67: 0.002950879657 | L67: 0 | M67: 0 | N67: 0.00413123152 | O67: 0.01239369456 | P67: 0.02124633353 | Q67: 0.004721407452 | R67: 0 | S67: 0.005901759314 | T67: 0.02124633353 | U67: 0.02242668539 | V67: 0 | W67: 0 | X67: 0 | Y67: 0 | Z67: 0 | AA67: 0 | AB67: 0 | AC67: 0.03659090775 | AD67: 0.01888562981 | AE67: 0.008852638972 | AF67: 0 | AG67: 0 | AH67: 0 | AI67: 0.002950879657 | AJ67: =+AJ28/$DM$34*100 -> 0.003541055589 | AK67: 0 | AL67: 0 | AM67: 0.01357404642 | AN67: 0.04603372265 | AO67: 0.08203445447 | AP67: 0.01475439829 | AQ67: 0 | AR67: 0.02124633353 | AS67: 0.005901759314 | AT67: 0.01180351863 | AU67: 0 | AV67: 0 | AW67: 0.04426319486 | AX67: 0.07495234329 | AY67: 0.05370600976 | AZ67: 0.01357404642 | BA67: 0.001770527794 | BB67: 0 | BC67: 0 | BD67: 0.006491935246 | BE67: 0.002360703726 | BF67: 0 | BG67: 0.02242668539 | BH67: 0.04072213927 | BI67: 0.04780425045 | BJ67: 0.006491935246 | BK67: 0 | BL67: 0 | BM67: 0.02242668539 | BN67: 0.1192155382 | BO67: 0.06314882466 | BP67: =+BP28/$DM$34*100 -> 0.005311583383 | BQ67: 0.08380498227 | BR67: 0.1080021955 | BS67: 0.1422323995 | BT67: 0.03127932437 | BU67: 0 | BV67: 0.01003299083 | BW67: 0.0318695003 | BX67: 0.03541055589 | BY67: 0.02655791692 | BZ67: 0.003541055589 | CA67: 0.04957477824 | CB67: 0.1853152425 | CC67: 0.249644419 | CD67: 0.01534457422 | CE67: 0 | CF67: 0 | CG67: 0 | CH67: 0.004721407452 | CI67: 0 | CJ67: 0 | CK67: 0 | CL67: 0 | CM67: 0 | CN67: 0 | CO67: 0 | CP67: 0.01239369456 | CQ67: 0.009442814903 | CR67: 0.04603372265 | CS67: 0.05193548197 | CT67: 0.001770527794 | CU67: 0.06668988025 | CV67: =+CV28/$DM$34*100 -> 0.01003299083 | CW67: 0.1569867978 | CX67: 0.04190249113 | CY67: 0.1888562981 | CZ67: 0.01003299083 | DA67: 0.1192155382 | DB67: 0.2118731594 | DC67: 0.3670894294 | DD67: 0.1097727232 | DE67: 0.5004691899 | DF67: 0.005901759314 | DG67: 0 | DH67: 0.300989725 | DI67: 0.5842741721 | DJ67: 0.82683648 | DK67: 0.1864955943 | DL67: 0.01239369456 | DM67: 1.910989666
B68: 184 | C68: Baixo Alentejo | D68: =+D29/$DM$34*100 -> 0.01239369456 | E68: 0.002360703726 | F68: 0.002360703726 | G68: 0 | H68: 0 | I68: 0.002950879657 | J68: 0.00826246304 | K68: 0.02242668539 | L68: 0.007672287109 | M68: 0 | N68: 0.08498533413 | O68: 0.1445931032 | P68: 0.1215762419 | Q68: 0.02478738912 | R68: 0 | S68: 0 | T68: 0 | U68: 0 | V68: 0 | W68: 0 | X68: 0.00413123152 | Y68: 0.01416422235 | Z68: 0.02360703726 | AA68: 0.002360703726 | AB68: 0 | AC68: 0.02832844471 | AD68: 0.01829545387 | AE68: 0.01180351863 | AF68: 0.001770527794 | AG68: 0 | AH68: 0.05724706535 | AI68: 0.05783724128 | AJ68: =+AJ29/$DM$34*100 -> 0.02714809285 | AK68: 0.002360703726 | AL68: 0 | AM68: 0.02832844471 | AN68: 0.05134530604 | AO68: 0.1404618717 | AP68: 0.02006598167 | AQ68: 0 | AR68: 0.473321097 | AS68: 0.3322690494 | AT68: 0.2655791692 | AU68: 0.04426319486 | AV68: 0.002950879657 | AW68: 0.1935777055 | AX68: 0.2366605485 | AY68: 0.1487243347 | AZ68: 0.03541055589 | BA68: 0.002950879657 | BB68: 0 | BC68: 0 | BD68: 0 | BE68: 0 | BF68: 0 | BG68: 0.0206561576 | BH68: 0.02124633353 | BI68: 0.04839442638 | BJ68: 0.01888562981 | BK68: 0 | BL68: 0 | BM68: 0.007672287109 | BN68: 0.1333797605 | BO68: 0.1298387049 | BP68: =+BP29/$DM$34*100 -> 0.007082111177 | BQ68: 0.2484640671 | BR68: 0.2372507244 | BS68: 0.3163342993 | BT68: 0.08970674158 | BU68: 0.001770527794 | BV68: 0.02950879657 | BW68: 0.07023093584 | BX68: 0.09914955648 | BY68: 0.07377199143 | BZ68: 0.006491935246 | CA68: 0.09501832496 | CB68: 0.2189552706 | CC68: 0.3074816603 | CD68: 0.02478738912 | CE68: 0 | CF68: 0 | CG68: 0 | CH68: 0.002950879657 | CI68: 0 | CJ68: 0 | CK68: 0 | CL68: 0 | CM68: 0 | CN68: 0 | CO68: 0 | CP68: 0.01770527794 | CQ68: 0.04249266706 | CR68: 0.3765322443 | CS68: 0 | CT68: 0.04662389858 | CU68: 0.06019794501 | CV68: =+CV29/$DM$34*100 -> 0.1469538069 | CW68: 0.2437426597 | CX68: 1.119563742 | CY68: 0.6190945521 | CZ68: 0.002950879657 | DA68: 0.1109530751 | DB68: 0.2797433915 | DC68: 0.895296888 | DD68: 0.2815139193 | DE68: 0.6474229968 | DF68: 0.005311583383 | DG68: 0 | DH68: 1.284813003 | DI68: 1.428225754 | DJ68: 1.679050525 | DK68: 0.482173736 | DL68: 0.02301686133 | DM68: 4.897279879
B69: 185 | C69: Lezíria do Tejo | D69: =+D30/$DM$34*100 -> 0.007672287109 | E69: 0.004721407452 | F69: 0.006491935246 | G69: 0.001770527794 | H69: 0 | I69: 0.03423020402 | J69: 0.0525256579 | K69: 0.09560850089 | L69: 0.0112133427 | M69: 0 | N69: 0.02006598167 | O69: 0.03364002809 | P69: 0.02832844471 | Q69: 0.003541055589 | R69: 0 | S69: 0 | T69: 0.01416422235 | U69: 0.05016495417 | V69: 0.005311583383 | W69: 0 | X69: 0.001770527794 | Y69: 0.00826246304 | Z69: 0.002950879657 | AA69: 0 | AB69: 0 | AC69: 0.02478738912 | AD69: 0.01711510201 | AE69: 0.01003299083 | AF69: 0 | AG69: 0 | AH69: 0.02006598167 | AI69: 0.04544354672 | AJ69: =+AJ30/$DM$34*100 -> 0.01534457422 | AK69: 0 | AL69: 0 | AM69: 0.03364002809 | AN69: 0.02891862064 | AO69: 0.03304985216 | AP69: 0.007082111177 | AQ69: 0 | AR69: 0.07495234329 | AS69: 0.01829545387 | AT69: 0.009442814903 | AU69: 0 | AV69: 0 | AW69: 0.146363631 | AX69: 0.1109530751 | AY69: 0.06550952839 | AZ69: 0.02006598167 | BA69: 0.003541055589 | BB69: 0.00413123152 | BC69: 0.002360703726 | BD69: 0.002950879657 | BE69: 0.002950879657 | BF69: 0 | BG69: 0.03482037996 | BH69: 0.02124633353 | BI69: 0.01416422235 | BJ69: 0.004721407452 | BK69: 0 | BL69: 0 | BM69: 0.002950879657 | BN69: 0.01357404642 | BO69: 0.01475439829 | BP69: =+BP30/$DM$34*100 -> 0 | BQ69: 0.1003299083 | BR69: 0.03423020402 | BS69: 0.02242668539 | BT69: 0.002360703726 | BU69: 0 | BV69: 0.01652492608 | BW69: 0.01829545387 | BX69: 0.01534457422 | BY69: 0.01534457422 | BZ69: 0.005901759314 | CA69: 0.1026906121 | CB69: 0.1085923714 | CC69: 0.07259163957 | CD69: 0.00826246304 | CE69: 0 | CF69: 0 | CG69: 0.02537756505 | CH69: 0.05842741721 | CI69: 0.01003299083 | CJ69: 0 | CK69: 0 | CL69: 0.002950879657 | CM69: 0.002360703726 | CN69: 0 | CO69: 0 | CP69: 0.02419721319 | CQ69: 0.1971187611 | CR69: 0.08911656565 | CS69: 0.07200146364 | CT69: 0.01534457422 | CU69: 0.05488636162 | CV69: =+CV30/$DM$34*100 -> 0.0826246304 | CW69: 0.1062316677 | CX69: 0.1044611399 | CY69: 0.3476136236 | CZ69: 0.01239369456 | DA69: 0.07613269516 | DB69: 0.03600073182 | DC69: 0.1640689089 | DD69: 0.07436216736 | DE69: 0.2921370861 | DF69: 0.09442814903 | DG69: 0.007672287109 | DH69: 0.6362096541 | DI69: 0.5624376627 | DJ69: 0.5282074586 | DK69: 0.1103628992 | DL69: 0.01357404642 | DM69: 1.850791721
B70: 186 | C70: Alto Alentejo | D70: =+D31/$DM$34*100 -> 0.001770527794 | E70: 0 | F70: 0.001770527794 | G70: 0 | H70: 0 | I70: 0 | J70: 0.00413123152 | K70: 0.0112133427 | L70: 0 | M70: 0 | N70: 0.01062316677 | O70: 0.02124633353 | P70: 0.01593475015 | Q70: 0.004721407452 | R70: 0 | S70: 0 | T70: 0 | U70: 0.001770527794 | V70: 0 | W70: 0 | X70: 0 | Y70: 0 | Z70: 0.004721407452 | AA70: 0 | AB70: 0 | AC70: 0.0413123152 | AD70: 0.01416422235 | AE70: 0.01888562981 | AF70: 0.009442814903 | AG70: 0 | AH70: 0.01711510201 | AI70: 0.01593475015 | AJ70: =+AJ31/$DM$34*100 -> 0.01357404642 | AK70: 0 | AL70: 0 | AM70: 0.02950879657 | AN70: 0.0300989725 | AO70: 0.02478738912 | AP70: 0.003541055589 | AQ70: 0 | AR70: 0.4833540879 | AS70: 0.1935777055 | AT70: 0.06964075991 | AU70: 0.01003299083 | AV70: 0 | AW70: 0.2478738912 | AX70: 0.1599376774 | AY70: 0.0731818155 | AZ70: 0.01534457422 | BA70: 0 | BB70: 0 | BC70: 0 | BD70: 0.005311583383 | BE70: 0.001770527794 | BF70: 0 | BG70: 0.006491935246 | BH70: 0.03245967623 | BI70: 0.05370600976 | BJ70: 0.01770527794 | BK70: 0 | BL70: 0 | BM70: 0.01357404642 | BN70: 0.1764626035 | BO70: 0.1605278534 | BP70: =+BP31/$DM$34*100 -> 0.01239369456 | BQ70: 0.2744318081 | BR70: 0.2697104007 | BS70: 0.1752822516 | BT70: 0.04485337079 | BU70: 0.001770527794 | BV70: 0.06905058398 | BW70: 0.07731304702 | BX70: 0.05901759314 | BY70: 0.03600073182 | BZ70: 0.00826246304 | CA70: 0.05429618569 | CB70: 0.07731304702 | CC70: 0.1139039548 | CD70: 0.01416422235 | CE70: 0 | CF70: 0 | CG70: 0 | CH70: 0.002950879657 | CI70: 0 | CJ70: 0 | CK70: 0 | CL70: 0 | CM70: 0 | CN70: 0 | CO70: 0 | CP70: 0.004721407452 | CQ70: 0.01711510201 | CR70: 0.05311583383 | CS70: 0.002950879657 | CT70: 0.00826246304 | CU70: 0.0843951582 | CV70: =+CV31/$DM$34*100 -> 0.04839442638 | CW70: 0.08970674158 | CX70: 0.7601465997 | CY70: 0.4981084861 | CZ70: 0.00826246304 | DA70: 0.111543251 | DB70: 0.3664992534 | DC70: 0.7666385349 | DD70: 0.2508247709 | DE70: 0.2614479376 | DF70: 0.00413123152 | DG70: 0 | DH70: 1.241139984 | DI70: 0.9194941012 | DJ70: 0.8291971837 | DK70: 0.3222360586 | DL70: 0.02537756505 | DM70: 3.337444892
B71: 187 | C71: Alentejo Central | D71: =+D32/$DM$34*100 -> 0.003541055589 | E71: 0.003541055589 | F71: 0.002950879657 | G71: 0.002950879657 | H71: 0 | I71: 0.007082111177 | J71: 0.00413123152 | K71: 0.002360703726 | L71: 0 | M71: 0 | N71: 0.04957477824 | O71: 0.0637390006 | P71: 0.02478738912 | Q71: 0.00413123152 | R71: 0 | S71: 0 | T71: 0 | U71: 0.002950879657 | V71: 0 | W71: 0 | X71: 0 | Y71: 0.003541055589 | Z71: 0.005311583383 | AA71: 0 | AB71: 0 | AC71: 0.03304985216 | AD71: 0.01062316677 | AE71: 0.02242668539 | AF71: 0.01180351863 | AG71: 0 | AH71: 0.08498533413 | AI71: 0.1746920757 | AJ71: =+AJ32/$DM$34*100 -> 0.08321480633 | AK71: 0.00826246304 | AL71: 0 | AM71: 0.05134530604 | AN71: 0.03068914844 | AO71: 0.02655791692 | AP71: 0.008852638972 | AQ71: 0 | AR71: 0.3800732999 | AS71: 0.1133137788 | AT71: 0.03836143554 | AU71: 0.008852638972 | AV71: 0 | AW71: 0.1870857703 | AX71: 0.1670197886 | AY71: 0.07672287109 | AZ71: 0.02183650946 | BA71: 0 | BB71: 0 | BC71: 0.002950879657 | BD71: 0.008852638972 | BE71: 0.002360703726 | BF71: 0 | BG71: 0.03718108368 | BH71: 0.01888562981 | BI71: 0.0619684728 | BJ71: 0.02242668539 | BK71: 0 | BL71: 0 | BM71: 0.009442814903 | BN71: 0.1410520476 | BO71: 0.2278079095 | BP71: =+BP32/$DM$34*100 -> 0.01829545387 | BQ71: 0.3541055589 | BR71: 0.2283980855 | BS71: 0.1693804923 | BT71: 0.04603372265 | BU71: 0.00413123152 | BV71: 0.06550952839 | BW71: 0.08321480633 | BX71: 0.06668988025 | BY71: 0.05724706535 | BZ71: 0.00826246304 | CA71: 0.08734603785 | CB71: 0.1298387049 | CC71: 0.1947580574 | CD71: 0.03127932437 | CE71: 0 | CF71: 0 | CG71: 0 | CH71: 0.00413123152 | CI71: 0 | CJ71: 0 | CK71: 0 | CL71: 0 | CM71: 0 | CN71: 0 | CO71: 0 | CP71: 0.01416422235 | CQ71: 0.01416422235 | CR71: 0.1434127513 | CS71: 0.003541055589 | CT71: 0.01062316677 | CU71: 0.0826246304 | CV71: =+CV32/$DM$34*100 -> 0.352925207 | CW71: 0.1186253622 | CX71: 0.5417815051 | CY71: 0.4556158191 | CZ71: 0.01475439829 | DA71: 0.1451832791 | DB71: 0.3995491056 | DC71: 0.8032294427 | DD71: 0.2821040952 | DE71: 0.4455828282 | DF71: 0.00413123152 | DG71: 0 | DH71: 1.348552003 | DI71: 1.04874263 | DJ71: 0.9395600829 | DK71: 0.4603372265 | DL71: 0.03482037996 | DM71: 3.832012323
A72: Algarve | B72: 150 | C72: Algarve | D72: =+D33/$DM$34*100 -> 0.003541055589 | E72: 0 | F72: 0 | G72: 0 | H72: 0 | I72: 0 | J72: 0 | K72: 0 | L72: 0 | M72: 0 | N72: 0.01711510201 | O72: 0.01593475015 | P72: 0.007082111177 | Q72: 0 | R72: 0 | S72: 0 | T72: 0 | U72: 0 | V72: 0 | W72: 0 | X72: 0 | Y72: 0 | Z72: 0 | AA72: 0 | AB72: 0 | AC72: 0.09737902869 | AD72: 0.05429618569 | AE72: 0.002360703726 | AF72: 0 | AG72: 0 | AH72: 0 | AI72: 0 | AJ72: =+AJ33/$DM$34*100 -> 0 | AK72: 0 | AL72: 0 | AM72: 0.2183650946 | AN72: 0.4284677262 | AO72: 0.1209860659 | AP72: 0.001770527794 | AQ72: 0 | AR72: 0.008852638972 | AS72: 0 | AT72: 0 | AU72: 0 | AV72: 0 | AW72: 0.5270271068 | AX72: 0.6320784226 | AY72: 0.07082111177 | AZ72: 0.001770527794 | BA72: 0 | BB72: 0 | BC72: 0 | BD72: 0 | BE72: 0 | BF72: 0 | BG72: 0.01475439829 | BH72: 0.02183650946 | BI72: 0.01062316677 | BJ72: 0 | BK72: 0 | BL72: 0.002360703726 | BM72: 0.005901759314 | BN72: 0.01652492608 | BO72: 0 | BP72: =+BP33/$DM$34*100 -> 0 | BQ72: 0.07200146364 | BR72: 0.05311583383 | BS72: 0.02950879657 | BT72: 0.001770527794 | BU72: 0 | BV72: 0.02006598167 | BW72: 0.04898460231 | BX72: 0.02596774098 | BY72: 0.002360703726 | BZ72: 0 | CA72: 0.04190249113 | CB72: 0.06019794501 | CC72: 0.02006598167 | CD72: 0 | CE72: 0 | CF72: 0 | CG72: 0 | CH72: 0 | CI72: 0 | CJ72: 0 | CK72: 0 | CL72: 0 | CM72: 0 | CN72: 0 | CO72: 0 | CP72: 0.00826246304 | CQ72: 0.001770527794 | CR72: 0.04190249113 | CS72: 0 | CT72: 0.00413123152 | CU72: 0.1569867978 | CV72: =+CV33/$DM$34*100 -> 0.004721407452 | CW72: 0.7713599424 | CX72: 0.01062316677 | CY72: 1.232287345 | CZ72: 0 | DA72: 0.04839442638 | DB72: 0.02714809285 | DC72: 0.1587573256 | DD72: 0.09855938055 | DE72: 0.1239369456 | DF72: 0 | DG72: 0 | DH72: 1.031037352 | DI72: 1.333207429 | DJ72: 0.3157441233 | DK72: 0.01003299083 | DL72: 0 | DM72: 2.690021896
A73: Continente | D73: =+D34/$DM$34*100 -> 0.1622983811 | E73: 0.06491935246 | F73: 0.0318695003 | G73: 0.009442814903 | H73: 0.0005901759314 | I73: 3.425971282 | J73: 0.3605974941 | K73: 0.2059714001 | L73: 0.02242668539 | M73: 0.0005901759314 | N73: 2.260963993 | O73: 0.8970674158 | P73: 0.3133834196 | Q73: 0.04426319486 | R73: 0.001180351863 | S73: 0.09088709344 | T73: 0.1186253622 | U73: 0.1404618717 | V73: 0.01062316677 | W73: 0 | X73: 0.02360703726 | Y73: 0.03954178741 | Z73: 0.04072213927 | AA73: 0.00413123152 | AB73: 0 | AC73: 6.94105913 | AD73: 1.519703023 | AE73: 0.1823643628 | AF73: 0.02714809285 | AG73: 0 | AH73: 3.821389156 | AI73: 1.947580574 | AJ73: =+AJ34/$DM$34*100 -> 0.4249266706 | AK73: 0.02183650946 | AL73: 0.0005901759314 | AM73: 4.02972126 | AN73: 2.648119404 | AO73: 0.6922763676 | AP73: 0.0619684728 | AQ73: 0.002360703726 | AR73: 4.014376686 | AS73: 1.097727232 | AT73: 0.4786326804 | AU73: 0.06905058398 | AV73: 0.004721407452 | AW73: 22.61082029 | AX73: 7.655762183 | AY73: 1.052283686 | AZ73: 0.1186253622 | BA73: 0.01062316677 | BB73: 0.3428922162 | BC73: 0.7961473315 | BD73: 0.1233467697 | BE73: 0.01239369456 | BF73: 0 | BG73: 1.865546119 | BH73: 0.8994281195 | BI73: 0.4597470506 | BJ73: 0.07849339888 | BK73: 0.001180351863 | BL73: 0.7625073034 | BM73: 1.494915634 | BN73: 1.245861391 | BO73: 0.6574559876 | BP73: =+BP34/$DM$34*100 -> 0.05016495417 | BQ73: 4.927378852 | BR73: 3.473185357 | BS73: 1.598786598 | BT73: 0.2561363542 | BU73: 0.01239369456 | BV73: 4.252217586 | BW73: 1.732166359 | BX73: 0.6816532008 | BY73: 0.2295784373 | BZ73: 0.03482037996 | CA73: 3.234164104 | CB73: 1.488423699 | CC73: 1.147892187 | CD73: 0.1144941307 | CE73: 0.002950879657 | CF73: 0.001770527794 | CG73: 0.03482037996 | CH73: 0.08498533413 | CI73: 0.01770527794 | CJ73: 0 | CK73: 0.1558064459 | CL73: 0.01829545387 | CM73: 0.006491935246 | CN73: 0 | CO73: 0 | CP73: 0.2691202247 | CQ73: 4.015557038 | CR73: 3.516858375 | CS73: 0.3605974941 | CT73: 0.1080021955 | CU73: 8.670274609 | CV73: =+CV34/$DM$34*100 -> 6.216323086 | CW73: 7.434446208 | CX73: 5.66450859 | CY73: 31.44811468 | CZ73: 1.274780012 | DA73: 3.30439504 | DB73: 4.210905271 | DC73: 10.26788086 | DD73: 6.930435963 | DE73: 5.987925 | DF73: 0.1392815198 | DG73: 0.180593835 | DH73: 62.92337746 | DI73: 26.28702616 | DJ73: 8.911656565 | DK73: 1.755773396 | DL73: 0.1221664178 | DM73: =SUM(DM50:DM72) -> 99.99586877
B76: Legenda
B77: MP | C77: =+C38 -> < 5 ha
B78: P | C78: =+C39 -> >= 5 e < 25 ha
B79: M | C79: >= 25 e < 200 ha
B80: G | C80: >= 200 e < 1 000 ha
B81: MG | C81: >= 1 000 ha
A82: Fonte: GPP a partir de dados IFAP

Sheet CHART-Geral (hidden)
A1: =+"Valores Globais " & TRIM(INDEX(Sheet6!$D$2:$D$117,Sheet3!$C$1)) -> Valores Globais (1) - Nº de Beneficiários
B3: Tipo de Beneficiário: | C3: =INDEX(Sheet6!$P$1:$P$6,Sheet3!$A$2) -> Todos os Produtores do PU | O3: Valor total: | P3: =+Base!$DM$34 -> 169441 | Q3: =+"(" & (INDEX(Sheet6!$G$2:$G$117,Sheet3!$C$1)) & ")" -> (Nº )
AK4: =+Base!A11 -> Norte | AL4: =+SUM(Base!DM11:DM18) -> 88238
C5: =+"Por " & INDEX(Sheet6!$M$3:$M$6,Sheet3!$B$1) -> Por Classes de Superfície Agrícola | M5: Por NUTII | AK5: =+Base!A19 -> Centro | AL5: =+SUM(Base!DM19:DM26) -> 48249
AK6: =+Base!A27 -> AML | AL6: =+SUM(Base!DM27) -> 1569
AK7: =+Base!A28 -> Alentejo | AL7: =+SUM(Base!DM28:DM32) -> 26820
AK8: =+Base!A33 -> Algarve | AL8: =+SUM(Base!DM33) -> 4558
AL9: =SUM(AL4:AL8) -> 169434 | AM9: =+AL9-Base!DM34 -> -7
AK13: Grandes Culturas (Arvenses e Industriais) | AL13: =+SUM(Base!CQ34:CT34)+Base!DF34+Base!DG34 -> 14099
AK14: Horticultura Intensiva | AL14: =+Base!CU34 -> 14691
AK15: Culturas Permanentes | AL15: =+SUM(Base!CV34:CX34) -> 32728
AK16: Leite | AL16: =+Base!CZ34 -> 2160
AK17: Outros herbívoros | AL17: =+SUM(Base!DA34:DC34) -> 30132
AK18: Mistas | AL18: =+Base!CY34+Base!DD34+Base!DE34+Base!CP34 -> 75631
AL19: =SUM(AL13:AL18) -> 169441
A25: Legenda
A26: MP | B26: =+Base!C38 -> < 5 ha
A27: P | B27: =+Base!C39 -> >= 5 e < 25 ha
A28: M | B28: =+Base!C40 -> >= 25 e < 200 ha
A29: G | B29: =+Base!C41 -> >= 200 e < 1 000 ha
A30: MG | B30: =+Base!C42 -> >= 1 000 ha
H31: Por Grande Orientação Produtiva
A59: Fonte: GPP a partir de dados IFAP

Sheet CHART-NUTIII-DE (hidden)
A1: =+INDEX(Sheet6!$D$2:$D$117,Sheet3!$C$1)& " por NUTIII e por " & INDEX(Sheet6!$M$3:$M$6,Sheet3!$B$1) -> (1) - Nº de Beneficiários por NUTIII e por Classes de Superfície Agrícola
A3: =+Base!C7 -> Unidade: Nº | D3: Tipo de Beneficiário: | E3: =INDEX(Sheet6!$P$1:$P$6,Sheet3!$A$2) -> Todos os Produtores do PU | P3: Valor total: | Q3: =+Base!$DM$34 -> 169441 | S3: =+"(" & (INDEX(Sheet6!$G$2:$G$117,Sheet3!$C$1)) & ")" -> (Nº )
A40: Legenda
A41: MP | B41: =+Base!C38 -> < 5 ha
A42: P | B42: =+Base!C39 -> >= 5 e < 25 ha
A43: M | B43: =+Base!C40 -> >= 25 e < 200 ha
A44: G | B44: =+Base!C41 -> >= 200 e < 1 000 ha
A45: MG | B45: =+Base!C42 -> >= 1 000 ha
A47: =+"Estrutura: "&INDEX(Sheet6!$D$2:$D$117,Sheet3!$C$1)& ", por NUTIII e por " & INDEX(Sheet6!$M$3:$M$6,Sheet3!$B$1) -> Estrutura: (1) - Nº de Beneficiários, por NUTIII e por Classes de Superfície Agrícola
A89: Fonte: GPP a partir de dados IFAP

Sheet CHART-NUTIII-GOP (hidden)
A1: =+INDEX(Sheet6!$D$2:$D$117,Sheet3!$C$1)& " por NUTIII e por Grande Orientação Produtiva" -> (1) - Nº de Beneficiários por NUTIII e por Grande Orientação Produtiva
A3: =+Base!C7 -> Unidade: Nº | D3: Tipo de Beneficiário: | E3: =INDEX(Sheet6!$P$1:$P$6,Sheet3!$A$2) -> Todos os Produtores do PU | P3: Valor total: | Q3: =+Base!$DM$34 -> 169441 | S3: =+"(" & (INDEX(Sheet6!$G$2:$G$117,Sheet3!$C$1)) & ")" -> (Nº )
AK5: Grandes Culturas (Arvenses e Industriais) | AL5: Horticultura Intensiva | AM5: Culturas Permanentes | AN5: Leite | AO5: Outros herbívoros | AP5: Mistas
AJ6: =Base!C11 -> Alto Minho | AK6: =SUM(Base!CQ11:CT11)+Base!DF11+Base!DG11 -> 498 | AL6: =Base!CU11 -> 163 | AM6: =SUM(Base!CV11:CX11) -> 842 | AN6: =Base!CZ11 -> 71 | AO6: =SUM(Base!DA11:DC11) -> 2719 | AP6: =Base!CY11+Base!DD11+Base!DE11+Base!CP11 -> 3690
AJ7: =Base!C12 -> Cávado | AK7: =SUM(Base!CQ12:CT12)+Base!DF12+Base!DG12 -> 1255 | AL7: =Base!CU12 -> 419 | AM7: =SUM(Base!CV12:CX12) -> 361 | AN7: =Base!CZ12 -> 453 | AO7: =SUM(Base!DA12:DC12) -> 1309 | AP7: =Base!CY12+Base!DD12+Base!DE12+Base!CP12 -> 3525
AJ8: =Base!C13 -> Ave | AK8: =SUM(Base!CQ13:CT13)+Base!DF13+Base!DG13 -> 666 | AL8: =Base!CU13 -> 111 | AM8: =SUM(Base!CV13:CX13) -> 433 | AN8: =Base!CZ13 -> 150 | AO8: =SUM(Base!DA13:DC13) -> 1746 | AP8: =Base!CY13+Base!DD13+Base!DE13+Base!CP13 -> 1825
AJ9: =Base!C14 -> Área Metropolitana do Porto | AK9: =SUM(Base!CQ14:CT14)+Base!DF14+Base!DG14 -> 949 | AL9: =Base!CU14 -> 238 | AM9: =SUM(Base!CV14:CX14) -> 301 | AN9: =Base!CZ14 -> 610 | AO9: =SUM(Base!DA14:DC14) -> 814 | AP9: =Base!CY14+Base!DD14+Base!DE14+Base!CP14 -> 2116
AJ10: =Base!C15 -> Alto Tâmega | AK10: =SUM(Base!CQ15:CT15)+Base!DF15+Base!DG15 -> 883 | AL10: =Base!CU15 -> 1292 | AM10: =SUM(Base!CV15:CX15) -> 1655 | AN10: =Base!CZ15 -> 84 | AO10: =SUM(Base!DA15:DC15) -> 3335 | AP10: =Base!CY15+Base!DD15+Base!DE15+Base!CP15 -> 5451
AJ11: =Base!C16 -> Tâmega e Sousa | AK11: =SUM(Base!CQ16:CT16)+Base!DF16+Base!DG16 -> 609 | AL11: =Base!CU16 -> 385 | AM11: =SUM(Base!CV16:CX16) -> 1438 | AN11: =Base!CZ16 -> 30 | AO11: =SUM(Base!DA16:DC16) -> 848 | AP11: =Base!CY16+Base!DD16+Base!DE16+Base!CP16 -> 3984
AJ12: =Base!C17 -> Douro | AK12: =SUM(Base!CQ17:CT17)+Base!DF17+Base!DG17 -> 257 | AL12: =Base!CU17 -> 1606 | AM12: =SUM(Base!CV17:CX17) -> 7800 | AN12: =Base!CZ17 -> 93 | AO12: =SUM(Base!DA17:DC17) -> 1154 | AP12: =Base!CY17+Base!DD17+Base!DE17+Base!CP17 -> 8989
AJ13: =Base!C18 -> Terras de Trás-os-Montes | AK13: =SUM(Base!CQ18:CT18)+Base!DF18+Base!DG18 -> 634 | AL13: =Base!CU18 -> 4914 | AM13: =SUM(Base!CV18:CX18) -> 4382 | AN13: =Base!CZ18 -> 27 | AO13: =SUM(Base!DA18:DC18) -> 1037 | AP13: =Base!CY18+Base!DD18+Base!DE18+Base!CP18 -> 12082
AJ14: =Base!C19 -> Oeste | AK14: =SUM(Base!CQ19:CT19)+Base!DF19+Base!DG19 -> 114 | AL14: =Base!CU19 -> 184 | AM14: =SUM(Base!CV19:CX19) -> 880 | AN14: =Base!CZ19 -> 11 | AO14: =SUM(Base!DA19:DC19) -> 562 | AP14: =Base!CY19+Base!DD19+Base!DE19+Base!CP19 -> 590
AJ15: =Base!C20 -> Região de Aveiro | AK15: =SUM(Base!CQ20:CT20)+Base!DF20+Base!DG20 -> 1622 | AL15: =Base!CU20 -> 238 | AM15: =SUM(Base!CV20:CX20) -> 268 | AN15: =Base!CZ20 -> 224 | AO15: =SUM(Base!DA20:DC20) -> 389 | AP15: =Base!CY20+Base!DD20+Base!DE20+Base!CP20 -> 1695
AJ16: =Base!C21 -> Região de Coimbra | AK16: =SUM(Base!CQ21:CT21)+Base!DF21+Base!DG21 -> 1752 | AL16: =Base!CU21 -> 669 | AM16: =SUM(Base!CV21:CX21) -> 493 | AN16: =Base!CZ21 -> 136 | AO16: =SUM(Base!DA21:DC21) -> 708 | AP16: =Base!CY21+Base!DD21+Base!DE21+Base!CP21 -> 3044
AJ17: =Base!C22 -> Região de Leiria | AK17: =SUM(Base!CQ22:CT22)+Base!DF22+Base!DG22 -> 292 | AL17: =Base!CU22 -> 419 | AM17: =SUM(Base!CV22:CX22) -> 376 | AN17: =Base!CZ22 -> 17 | AO17: =SUM(Base!DA22:DC22) -> 560 | AP17: =Base!CY22+Base!DD22+Base!DE22+Base!CP22 -> 1497
AJ18: =Base!C23 -> Viseu Dão Lafões | AK18: =SUM(Base!CQ23:CT23)+Base!DF23+Base!DG23 -> 743 | AL18: =Base!CU23 -> 805 | AM18: =SUM(Base!CV23:CX23) -> 909 | AN18: =Base!CZ23 -> 72 | AO18: =SUM(Base!DA23:DC23) -> 1226 | AP18: =Base!CY23+Base!DD23+Base!DE23+Base!CP23 -> 4206
AJ19: =Base!C24 -> Beira Baixa | AK19: =SUM(Base!CQ24:CT24)+Base!DF24+Base!DG24 -> 175 | AL19: =Base!CU24 -> 311 | AM19: =SUM(Base!CV24:CX24) -> 983 | AN19: =Base!CZ24 -> 3 | AO19: =SUM(Base!DA24:DC24) -> 1114 | AP19: =Base!CY24+Base!DD24+Base!DE24+Base!CP24 -> 1990
AJ20: =Base!C25 -> Médio Tejo | AK20: =SUM(Base!CQ25:CT25)+Base!DF25+Base!DG25 -> 128 | AL20: =Base!CU25 -> 289 | AM20: =SUM(Base!CV25:CX25) -> 1001 | AN20: =Base!CZ25 -> 11 | AO20: =SUM(Base!DA25:DC25) -> 517 | AP20: =Base!CY25+Base!DD25+Base!DE25+Base!CP25 -> 2102
AJ21: =Base!C26 -> Beiras e Serra da Estrela | AK21: =SUM(Base!CQ26:CT26)+Base!DF26+Base!DG26 -> 954 | AL21: =Base!CU26 -> 1704 | AM21: =SUM(Base!CV26:CX26) -> 2363 | AN21: =Base!CZ26 -> 59 | AO21: =SUM(Base!DA26:DC26) -> 2929 | AP21: =Base!CY26+Base!DD26+Base!DE26+Base!CP26 -> 6909
AJ22: =Base!C27 -> Área Metropolitana de Lisboa | AK22: =SUM(Base!CQ27:CT27)+Base!DF27+Base!DG27 -> 224 | AL22: =Base!CU27 -> 87 | AM22: =SUM(Base!CV27:CX27) -> 256 | AN22: =Base!CZ27 -> 27 | AO22: =SUM(Base!DA27:DC27) -> 545 | AP22: =Base!CY27+Base!DD27+Base!DE27+Base!CP27 -> 428
AJ23: =Base!C28 -> Alentejo Litoral | AK23: =SUM(Base!CQ28:CT28)+Base!DF28+Base!DG28 -> 195 | AL23: =Base!CU28 -> 113 | AM23: =SUM(Base!CV28:CX28) -> 354 | AN23: =Base!CZ28 -> 17 | AO23: =SUM(Base!DA28:DC28) -> 1183 | AP23: =Base!CY28+Base!DD28+Base!DE28+Base!CP28 -> 1375
AJ24: =Base!C29 -> Baixo Alentejo | AK24: =SUM(Base!CQ29:CT29)+Base!DF29+Base!DG29 -> 798 | AL24: =Base!CU29 -> 102 | AM24: =SUM(Base!CV29:CX29) -> 2559 | AN24: =Base!CZ29 -> 5 | AO24: =SUM(Base!DA29:DC29) -> 2179 | AP24: =Base!CY29+Base!DD29+Base!DE29+Base!CP29 -> 2653
AJ25: =Base!C30 -> Lezíria do Tejo | AK25: =SUM(Base!CQ30:CT30)+Base!DF30+Base!DG30 -> 806 | AL25: =Base!CU30 -> 93 | AM25: =SUM(Base!CV30:CX30) -> 497 | AN25: =Base!CZ30 -> 21 | AO25: =SUM(Base!DA30:DC30) -> 468 | AP25: =Base!CY30+Base!DD30+Base!DE30+Base!CP30 -> 1251
AJ26: =Base!C31 -> Alto Alentejo | AK26: =SUM(Base!CQ31:CT31)+Base!DF31+Base!DG31 -> 145 | AL26: =Base!CU31 -> 143 | AM26: =SUM(Base!CV31:CX31) -> 1522 | AN26: =Base!CZ31 -> 14 | AO26: =SUM(Base!DA31:DC31) -> 2109 | AP26: =Base!CY31+Base!DD31+Base!DE31+Base!CP31 -> 1720
AJ27: =Base!C32 -> Alentejo Central | AK27: =SUM(Base!CQ32:CT32)+Base!DF32+Base!DG32 -> 298 | AL27: =Base!CU32 -> 140 | AM27: =SUM(Base!CV32:CX32) -> 1717 | AN27: =Base!CZ32 -> 25 | AO27: =SUM(Base!DA32:DC32) -> 2284 | AP27: =Base!CY32+Base!DD32+Base!DE32+Base!CP32 -> 2029
AJ28: =Base!C33 -> Algarve | AK28: =SUM(Base!CQ33:CT33)+Base!DF33+Base!DG33 -> 81 | AL28: =Base!CU33 -> 266 | AM28: =SUM(Base!CV33:CX33) -> 1333 | AN28: =Base!CZ33 -> 0 | AO28: =SUM(Base!DA33:DC33) -> 397 | AP28: =Base!CY33+Base!DD33+Base!DE33+Base!CP33 -> 2479
AJ29: Continente | AK29: =SUM(AK6:AK28) -> 14078 | AL29: =SUM(AL6:AL28) -> 14691 | AM29: 32723 | AN29: 2160 | AO29: 30132 | AP29: 75630
A47: =+"Estrutura: "&INDEX(Sheet6!$D$2:$D$117,Sheet3!$C$1)& ", por NUTIII e por Grande Orientação Produtiva" -> Estrutura: (1) - Nº de Beneficiários, por NUTIII e por Grande Orientação Produtiva
A89: Fonte: GPP a partir de dados IFAP

Sheet CHART-OTE-DE (hidden)
A1: =+INDEX(Sheet6!$D$2:$D$117,Sheet3!$C$1)& " por OTE e por " & INDEX(Sheet6!$M$3:$M$6,Sheet3!$B$1) -> (1) - Nº de Beneficiários por OTE e por Classes de Superfície Agrícola
A3: =+Base!C7 -> Unidade: Nº | D3: Tipo de Beneficiário: | E3: =INDEX(Sheet6!$P$1:$P$6,Sheet3!$A$2) -> Todos os Produtores do PU | P3: Valor total: | Q3: =+Base!$DM$34 -> 169441 | S3: =+"(" & (INDEX(Sheet6!$G$2:$G$117,Sheet3!$C$1)) & ")" -> (Nº )
A43: Legenda
A44: MP | B44: =+Base!C38 -> < 5 ha
A45: P | B45: =+Base!C39 -> >= 5 e < 25 ha
A46: M | B46: =+Base!C40 -> >= 25 e < 200 ha
A47: G | B47: =+Base!C41 -> >= 200 e < 1 000 ha
A48: MG | B48: =+Base!C42 -> >= 1 000 ha
A50: Fonte: GPP a partir de dados IFAP

Sheet Sheet6 (hidden)
A1: Ano | B1: 2019 | F1: desmultiplicador | G1: Unidade | K1: =+INDEX(K2:K105,Sheet3!C1) -> Beneficiarios_PU_2019.pdf | P1: Todos os Produtores do PU | Q1: <5
B2: 1 | C2: ContarDeGPP_ID | D2: (1) - Nº de Beneficiários | E2: 1 | F2: 1 | G2: Nº | H2: Nº de Beneficiários | I2: 1 | K2: Beneficiarios_PU_2019.pdf | P2: Beneficiários do RPA | Q2: 1 | U2: ContarDeGPP_ID
B3: 2 | C3: SomaDeVpp | D3: (2) - Valor de Produção Padrão | E3: 2 | F3: 1000 | G3: 1000 € | H3: Valor de Produção Padrão | I3: =+I2+1 -> 2 | M3: Classe de DE | N3: 1 | P3: Beneficiários do RPB | Q3: 2 | U3: SomaDeVpp
B4: 3 | C4: SomaDeSAU | D4: (3) - Superfície Elegível (inclui Superfície Agrícola e Agro-Florestal Elegível) | E4: 3 | F4: 1 | G4: ha | H4: Superfície Elegível (inclui Superfície Agrícola e Agro-Florestal Elegível) | I4: =+I3+1 -> 3 | K4: SPE_PU_2019.pdf | M4: Classes de Superfície Agrícola | N4: 2 | P4: Apenas Pagamentos ligados e 2º Pilar | Q4: 3 | U4: SomaDeSAU
B5: 4 | C5: SumD_RPB | D5: (3a) - Nº de Direitos de RPB | E5: 3a | F5: 1 | G5: Nº | H5: Nº de Direitos de RPB | I5: =+E5 -> 3a | M5: Classe de AD | N5: 3 | P5: Apenas outras ajudas 2º Pilar | Q5: 4
B6: 5 | C6: SumMG_Direitos | D6: (3b) - Montante Global dos Direitos de RPB | E6: 3b | F6: 1000 | G6: 1000 € | H6: Montante Global dos Direitos de RPB | I6: =+E6 -> 3b | U6: SomaDeSAU_IRRIG
B7: 6 | C7: SUmofSAU_est | D7: (3c) - Superfície Agrícola (inc. Pastagens arbustivas) | E7: 3c | F7: 1 | G7: ha | H7: Superfície Agrícola (inc. Pastagens arbustivas) | I7: =+E7 -> 3c | U7: SomaDeCult_Temp
B8: 7 | C8: SomaDeSAU_IRRIG | D8: (4) - Superfície Agrícola de Regadio | E8: 4 | F8: 1 | G8: ha | H8: Superfície Agrícola de Regadio | I8: =+E8 -> 4 | M8: MP | N8: Muito Pequenas | O8: < 4 000 € de VPP | P8: < 5 ha | Q8: < 1250 € | U8: SomaDeSF
B9: 8 | C9: SomaDeCult_Temp | D9: (5) - Culturas Temporárias | E9: 5 | F9: 1 | G9: ha | H9: Culturas Temporárias | I9: 5 | M9: P | N9: Pequenas | O9: >= 4 000 e < 25 000 € de VPP | P9: >= 5 e < 25 ha | Q9: >= 1 250 e < 5 000 € | U9: SomaDePousio
B10: 9 | C10: SumOf_ARV_Ind_SEQ | D10: (5a) - Culturas Arvenses e Indústriais de sequeiro | E10: 5a | F10: 1 | G10: ha | H10: Culturas Arvenses e Indústriais de sequeiro | I10: =+E10 -> 5a | M10: MP | N10: Médias | O10: >= 25 000 e < 100 000 € de VPP | P10: >= 25 e < 200 ha | Q10: >= 5 000 e < 50 000 € | U10: SomaDeCP
B11: 10 | C11: SumOf_ARV_Ind_Reg | D11: (5b) - Culturas Arvenses e Indústriais de regadio | E11: 5b | F11: 1 | G11: ha | H11: Culturas Arvenses e Indústriais de regadio | I11: =+E11 -> 5b | M11: G | N11: Grandes | O11: >= 100 000 e < 500 000 € de VPP | P11: >= 200 e < 1 000 ha | Q11: >= 50 000 e < 300 000 € | U11: SomaDePP
B12: 11 | C12: SomaDeSF | D12: (6) - Superfície Forrageira Temporária | E12: 6 | F12: 1 | G12: ha | H12: Superfície Forrageira Temporária | I12: 6 | M12: MG | N12: Muito Grandes | O12: >= 500 000 € de VPP | P12: >= 1 000 ha | Q12: >= 300 000 € | U12: SomaDeCNH
B13: 12 | C13: SomaDePousio | D13: (7) - Superfície de Pousio | E13: 7 | F13: 1 | G13: ha | H13: Superfície de Pousio | I13: 7 | U13: SomaDeCNT
B14: 13 | C14: SomaDeCP | D14: (8) - Culturas Permanentes | E14: 8 | F14: 1 | G14: ha | H14: Culturas Permanentes | I14: 8 | U14: SomaDeS_RPB
B15: 14 | C15: SomaDePP | D15: (9) - Superfície de Pastagens Permanentes | E15: 9 | F15: 1 | G15: ha | H15: Superfície de Pastagens Permanentes | I15: 9 | M15: MP | N15: P | O15: MP | P15: G | Q15: MG | U15: SomaDeS_MAA
B16: 15 | C16: Sumpp_02cn | D16: (9a) - Superfície de Pastagens com encabeçamento inferior a 0,2CN/ha de PP | E16: 9a | F16: 1 | G16: ha | H16: Superfície de Pastagens com encabeçamento inferior a 0,2CN/ha de PP | I16: 9a | M16: MP | N16: P | O16: MP | P16: G | Q16: MG | U16: SomaDeS_MZD
B17: 16 | C17: SomaDeCNH | D17: (10) - Nº de Cabeças Normais (Cn) de Herbívoros | E17: 10 | F17: 1 | G17: CN | H17: Nº de Cabeças Normais (Cn) de Herbívoros | I17: 10 | M17: Muito Pequenas | N17: Pequenas | O17: Médias | P17: Grandes | Q17: Muito Grandes | U17: SomaDeAD_Totais2015
B18: 17 | C18: SomaDeCNT | D18: (11) - Nº de Cabeças Normais (Cn) Totais | E18: 11 | F18: 1 | G18: CN | H18: Nº de Cabeças Normais (Cn) Totais | I18: 11 | M18: < 4000€ de VPP | N18: >= 4000 e <25 000€ de VPP | O18: >=25000 e <100 000€ de VPP | P18: >= 100 000 e < 500 000 € de VPP | Q18: >= 500 000 € de VPP | U18: Ajudas_desligadas
B19: 18 | C19: SomaDeS_RPB | D19: (12) - Superfície Agrícola Declarada para Activar Direitos de RPB | E19: 12 | F19: 1 | G19: ha | H19: Superfície Agrícola Declarada para Activar Direitos de RPB | I19: 12 | M19: < 5 ha | N19: >= 5 e < 25 ha | O19: >= 25 e < 200 ha | P19: = 200 e < 1 000 ha | Q19: >= 1 000 ha | U19: SomaDeRPA
B20: 19 | C20: SomaDeS_MAA | D20: (13) - Superfície Agrícola Declarada para Medidas Agroambientais | E20: 13 | F20: 1 | G20: ha | H20: Superfície Agrícola Declarada para Medidas Agroambientais | I20: 13 | M20: =+M$16& CHAR(10) & M18 -> MP < 4000€ de VPP | N20: P >= 4000 e <25 000€ de VPP | O20: MP >=25000 e <100 000€ de VPP | P20: G >= 100 000 e < 500 000 € de VPP | Q20: MG >= 500 000 € de VPP | U20: RPB_Total
B21: 20 | C21: SomaDeS_MZD | D21: (14) - Superfície Agrícola Declarada para MZDs | E21: 14 | F21: 1 | G21: ha | H21: Superfície Agrícola Declarada para MZDs | I21: 14 | M21: MP < 5 ha | N21: P >= 5 e < 25 ha | O21: MP >= 25 e < 200 ha | P21: G = 200 e < 1 000 ha | Q21: MG >= 1 000 ha | U21: SomaDeRPBAJU
B22: 21 | C22: SomaDeAD_Totais2015 | D22: (15) - Montante Total das AD 1º Pilar (16+22) | E22: 15 | F22: 1000 | G22: 1000 € | H22: Montante Total das AD 1º Pilar (16+22) | I22: 15 | K22: AD_PU_2019.pdf | U22: SomaDeRPBJOV
B23: 22 | C23: Ajudas_desligadas | D23: (16) - Total de pagamentos desligados (17+18+21+21a) | E23: 16 | F23: 1000 | G23: 1000 € | H23: Total de pagamentos desligados (17+18+21+21a) | I23: 16 | U23: SomaDeGREEN
B24: 23 | C24: SomaDeRPA | D24: (17) - Montante Regime Pequena Agricultura | E24: 17 | F24: 1000 | G24: 1000 € | H24: Montante Regime Pequena Agricultura | I24: 17
B25: 24 | C25: RPB_Total | D25: (18) - Regime Pagamento Base (RPB) [(19)+(20)] | E25: 18 | F25: 1000 | G25: 1000 € | H25: Regime Pagamento Base (RPB) [(19)+(20)] | I25: 18 | U25: Pag_ligados
B26: 25 | C26: SomaDeRPBAJU | D26: (19) - RPB normal | E26: 19 | F26: 1000 | G26: 1000 € | H26: RPB normal | I26: 19 | M26: MP | N26: Muito Pequenas | O26: < 4 000 € de VPP | P26: < 4 ha | Q26: < 1250 € | U26: SomaDeVACAS_ALEIT
B27: 26 | C27: SomaDeRPBJOV | D27: (20) - RPB Jovens agricultores | E27: 20 | F27: 1000 | G27: 1000 € | H27: RPB Jovens agricultores | I27: 20 | M27: P | N27: Pequenas | O27: >= 4 000 e < 25 000 € de VPP | P27: >= 4 e < 25 ha | Q27: >= 1 250 e < 5 000 € | U27: SomaDePAG_OV_CAP
B28: 27 | C28: SomaDeGREEN | D28: (21) - Pagamento por Práticas Agrícolas Benéficas para o Ambiente (Greening) | E28: 21 | F28: 1000 | G28: 1000 € | H28: Pagamento por Práticas Agrícolas Benéficas para o Ambiente (Greening) | I28: 21 | M28: MP | N28: Médias | O28: >= 25 000 e < 100 000 € de VPP | P28: >= 25 e < 200 ha | Q28: >= 5 000 e < 50 000 € | U28: SomaDeVACAS_leite
B29: 28 | D29: (21a) - Pagamento Redistributivo | E29: 21a | F29: 1000 | G29: 1000 € | H29: Pagamento Redistributivo | I29: 21a | M29: G | N29: Grandes | O29: >= 100 000 e < 500 000 € de VPP | P29: = 200 e < 1 000 ha | Q29: >= 50 000 e < 300 000 € | U29: SomaDePAG_COMPL_Leite
B30: 29 | C30: Pag_ligados | D30: (22) - Total de pagamentos ligados (23+…..+28) | E30: 22 | F30: 1000 | G30: 1000 € | H30: Total de pagamentos ligados (23+…..+28) | I30: 22 | M30: MG | N30: Muito Grandes | O30: >= 500 000 € de VPP | P30: >= 1 000 ha | Q30: >= 300 000 € | U30: SomaDePAG_TOMATE
B31: 30 | C31: SomaDeVACAS_ALEIT | D31: (23) - Prémio às vacas em aleitamento | E31: 23 | F31: 1000 | G31: 1000 € | H31: Prémio às vacas em aleitamento | I31: 23 | U31: SomaDePAG_ARROZ
B32: 31 | C32: SomaDePAG_OV_CAP | D32: (24) - Prémio aos ovinos e caprinos | E32: 24 | F32: 1000 | G32: 1000 € | H32: Prémio aos ovinos e caprinos | I32: 24
B33: 32 | C33: SomaDeVACAS_leite | D33: (25) - Prémio à vaca leiteira | E33: 25 | F33: 1000 | G33: 1000 € | H33: Prémio à vaca leiteira | I33: 25
B34: 33 | C34: SomaDePAG_COMPL_Leite | D34: (26) - Apoio Específico aos produtores de Leite (Medida 1 e 2) 2016 | E34: 26 | F34: 1000 | G34: 1000 € | H34: Apoio Específico aos produtores de Leite (Medida 1 e 2) 2016 | I34: 26
B35: 34 | C35: SomaDePAG_TOMATE | D35: (27) - Pagamento Específico por superfície ao tomate | E35: 27 | F35: 1000 | G35: 1000 € | H35: Pagamento Específico por superfície ao tomate | I35: 27
B36: 35 | C36: SomaDePAG_ARROZ | D36: (28) - Pagamento Específico por superfície ao arroz | E36: 28 | F36: 1000 | G36: 1000 € | H36: Pagamento Específico por superfície ao arroz | I36: 28
B37: 36 | C37: 2_pilar | D37: (29) - Total de Pagamentos Superfície Desenvolvimento Rural ((30)+(34)) | E37: 29 | F37: 1000 | G37: 1000 € | H37: Total de Pagamentos Superfície Desenvolvimento Rural ((30)+(34)) | I37: 29 | K37: MAA_MZD_PU_2019.pdf
B38: 37 | C38: MZD | D38: (30) - Medida Zonas Desfavorecidas (MZD) | E38: 30 | F38: 1000 | G38: 1000 € | H38: Medida Zonas Desfavorecidas (MZD) | I38: 30 | K38: MZD_Medida Zonas desfavorecidas.pdf
B39: 38 | C39: AZDZCE | D39: (31) - Zona Condicionantes Específicas | E39: 31 | F39: 1000 | G39: 1000 € | H39: Zona Condicionantes Específicas | I39: 31 | K39: MZD_ZCE Zona Condicionantes Específicas.pdf
B40: 39 | C40: AZDZCN | D40: (32) - Zona Outras Condicionantes Naturais | E40: 32 | F40: 1000 | G40: 1000 € | H40: Zona Outras Condicionantes Naturais | I40: 32 | K40: MZD_ZCN Zona Outras Condicionantes Naturais.pdf
B41: 40 | C41: AZDZMT | D41: (33) - Zona De Montanha | E41: 33 | F41: 1000 | G41: 1000 € | H41: Zona De Montanha (mapa) | I41: 33 | K41: MZD_ZM Zona de Montanha.pdf
B42: 41 | C42: MAA | D42: (34) - Medidas Agroambientais | E42: 34 | F42: 1000 | G42: 1000 € | H42: Medidas Agroambientais | I42: 34 | K42: MAA_Medidas Agroambientais.pdf
B43: 42 | C43: MAAABC | D43: (35) - Maa-Agric.Biológica - Conv | E43: 35 | F43: 1000 | G43: 1000 € | H43: Maa-Agric.Biológica - Conv | I43: 35 | K43: MAAABC_Agricultura Biológica - Transitada da Produção Integrada.pdf
B44: 43 | C44: MAAABM | D44: (36) - Maa-Agric.Biológica - Manut | E44: 36 | F44: 1000 | G44: 1000 € | H44: Maa-Agric.Biológica - Manut | I44: 36 | K44: MAAABM_Agricultura Biológica – Manutenção.pdf
B45: 44 | C45: MAAAPI | D45: (37) - Apoio Agroambiental À Apicultura | E45: 37 | F45: 1000 | G45: 1000 € | H45: Apoio Agroambiental À Apicultura | I45: 37 | K45: MAAPI_apoio à Apicultura.pdf
B46: 45 | C46: MAACPD | D46: (38) - Maa - Douro Vinhateiro | E46: 38 | F46: 1000 | G46: 1000 € | H46: Maa - Douro Vinhateiro | I46: 38 | K46: MAACPD_apoio Douro Vinhateiro.pdf
B47: 46 | C47: MAACPT | D47: (39) - Culturas Permanentes Tradicionais | E47: 39 | F47: 1000 | G47: 1000 € | H47: Culturas Permanentes Tradicionais | I47: 39 | K47: MAACPT_ Culturas Permanentes Tradicionais.pdf
B48: 47 | C48: MAACSE | D48: (40) - Maa-Conservação Solo-Enr.Entr | E48: 40 | F48: 1000 | G48: 1000 € | H48: Maa-Conservação Solo-Enr.Entr | I48: 40 | K48: MAACSE_Conservação do Solo - Enrelvamento da Entrelinha de Culturas Permanentes.pdf
B49: 48 | C49: MAACSS | D49: (41) - Maa-Conservação Solo-Sem Dir | E49: 41 | F49: 1000 | G49: 1000 € | H49: Maa-Conservação Solo-Sem Dir | I49: 41 | K49: MAACSS_Conservação do Solo - Sementeira Direta ou Mobilização na Linha.pdf
B50: 49 | C50: MAAMAF | D50: (42) - Mosaico Agroflorestal | E50: 42 | F50: 1000 | G50: 1000 € | H50: Mosaico Agroflorestal | I50: 42 | K50: MAAMAF_ Mosaico AgroFlorestal.pdf
B51: 50 | C51: MAAMNS | D51: (43) - Maa - Soutos Notáveis | E51: 43 | F51: 1000 | G51: 1000 € | H51: Maa - Soutos Notáveis | I51: 43 | K51: MAAMNS_Conservação dos Soutos Notáveis da Terra Fria.pdf
B52: 51 | C52: MAAPDI | D52: (44) - Maa - Produçao Integrada | E52: 44 | F52: 1000 | G52: 1000 € | H52: Maa - Produçao Integrada | I52: 44 | K52: MAAPDI_Produção Integrada.pdf
B53: 52 | C53: MAAPGP | D53: (45) - Maa - Az Peneda/Gerês | E53: 45 | F53: 1000 | G53: 1000 € | H53: Maa - Az Peneda/Gerês | I53: 45 | K53: MAAPGP_Gestão de Pastoreio em áreas de Baldio -Peneda_Gerês.pdf
B54: 53 | C54: MAAPGS | D54: (46) - Maa - Manut. Socalcos | E54: 46 | F54: 1000 | G54: 1000 € | H54: Maa - Manut. Socalcos | I54: 46 | K54: MAAPGS_Manutenção de Socalcos - Peneda_Gerês.pdf
B55: 54 | C55: MAAPLR | D55: (47) - Maa - Lameiros De Regadio | E55: 47 | F55: 1000 | G55: 1000 € | H55: Maa - Lameiros De Regadio | I55: 47 | K55: MAAPLR_Pastoreio Extensivo - Apoio à Manutenção de Lameiros de Alto Valor Natural - Regadio.pdf
B56: 55 | C56: MAAPLS | D56: (48) - Maa - Lameiros De Sequeiro | E56: 48 | F56: 1000 | G56: 1000 € | H56: Maa - Lameiros De Sequeiro | I56: 48 | K56: MAAPLS_Pastoreio Extensivo - Apoio à Manutenção de Lameiros de Alto Valor Natural – Sequeiro.pdf
B57: 56 | C57: MAAPMT | D57: (49) - Maa - Pastoreio Extensivo Ii | E57: 49 | F57: 1000 | G57: 1000 € | H57: Maa - Pastoreio Extensivo Ii | I57: 49 | K57: MAAPMT_Pastoreio Extensivo -Apoio à Manutenção de Sistemas Agro-silvo-pastoris sob Montado.pdf
B58: 57 | C58: MAAPPL | D58: (50) - Maa - Pastoreio Extensivo Iii | E58: 50 | F58: 1000 | G58: 1000 € | H58: Maa - Pastoreio Extensivo Iii | I58: 50 | K58: MAAPPL_Pastoreio Extensivo - Apoio à Proteção do Lobo Ibérico.pdf
B59: 58 | C59: MAARAE | D59: (51) - Maa - Rot. De Seq Iii | E59: 51 | F59: 1000 | G59: 1000 € | H59: Maa - Rot. De Seq Iii | I59: 51 | K59: MAARAE_Manutenção de Rotação de Sequeiro Cereal-Pousio - Outras Áreas Estepárias.pdf
B60: 59 | C60: MAARCV | D60: (52) - Maa - Rot. De Seq Ii | E60: 52 | F60: 1000 | G60: 1000 € | H60: Maa - Rot. De Seq Ii | I60: 52 | K60: MAARCV_Manutenção de Rotação de Sequeiro Cereal-Pousio AZ Castro Verde.pdf
B61: 60 | C61: MAARGN | D61: (53) - Raças | E61: 53 | F61: 1000 | G61: 1000 € | H61: Raças | I61: 53 | K61: MAARGN_ Recursos Genéticos – Manutenção de Raças Autóctones em risco.pdf
B62: 61 | C62: MAAROA | D62: (54) - Maa - Rot. De Seq I | E62: 54 | F62: 1000 | G62: 1000 € | H62: Maa - Rot. De Seq I | I62: 54 | K62: MAAROA_Manutenção de Rotação de Sequeiro Cereal-Pousio - AZ Montesinho_Nogueira e Douro Internacional, Sabor, Maçãs e Vale do Côa.pdf
B63: 62 | C63: MAAUEA | D63: (55) - Uso Eficiente Da Água Na Agricultura | E63: 55 | F63: 1000 | G63: 1000 € | H63: Uso Eficiente Da Água Na Agricultura | I63: 55 | K63: MAAUEA_Uso Eficiente da Água na Agricultura.pdf
B64: 63 | C64: PAg_Natura | D64: (56) - Pagamentos Natura | E64: 56 | F64: 1000 | G64: 1000 € | H64: Pagamentos Natura | I64: 56 | K64: PAgamentos_natura2018.pdf
B65: 64 | D65: (57) - Total de Pagamentos aos Produtores (15+29) | E65: 57 | F65: 1000 | G65: 1000 € | H65: Total de Pagamentos aos Produtores (15+29) | I65: 57
B66: 65 | C66: Cereais_seq | D66: (58) - Superfície de Cereais De Outono-Inverno | E66: 58 | F66: 1 | G66: ha | H66: Superfície de Cereais De Outono-Inverno | I66: 58
B67: 66 | C67: Milho_grao | D67: (59) - Superfície de Milho Grão; | E67: 59 | F67: 1 | G67: ha | H67: Superfície de Milho Grão; | I67: 59
B68: 67 | C68: Arroz | D68: (60) - Superfície de Arroz; | E68: 60 | F68: 1 | G68: ha | H68: Superfície de Arroz; | I68: 60
B69: 68 | C69: Oleag_proteag | D69: (61) - Superfície de Oleaginosas E Proteaginosas; | E69: 61 | F69: 1 | G69: ha | H69: Superfície de Oleaginosas E Proteaginosas; | I69: 61
B70: 69 | C70: Horticolas | D70: (62) - Superfície de Hortícolas, Batata, Plantas E Flores; | E70: 62 | F70: 1 | G70: ha | H70: Superfície de Hortícolas, Batata, Plantas E Flores; | I70: 62
B71: 70 | C71: Forrag_prados_temp | D71: (63) - Superfície de Forragens E Prados Temporários; | E71: 63 | F71: 1 | G71: ha | H71: Superfície de Forragens E Prados Temporários; | I71: 63
B72: 71 | C72: Pousios | D72: (64) - Superfície de Pousios; | E72: 64 | F72: 1 | G72: ha | H72: Superfície de Pousios; | I72: 64
B73: 72 | C73: Pomares | D73: (65) - Superfície de Pomares; | E73: 65 | F73: 1 | G73: ha | H73: Superfície de Pomares; | I73: 65
B74: 73 | C74: Vinha | D74: (66) - Superfície de Vinha; | E74: 66 | F74: 1 | G74: ha | H74: Superfície de Vinha; | I74: 66
B75: 74 | C75: Olival | D75: (67) - Superfície de Olival; | E75: 67 | F75: 1 | G75: ha | H75: Superfície de Olival; | I75: =+E75 -> 67
B76: 75 | C76: Past_prados_perm | D76: (68) - Superfície de Prados E Pastagens Permanentes; | E76: 68 | F76: 1 | G76: ha | H76: Superfície de Prados E Pastagens Permanentes; | I76: 68
B77: 76 | C77: Vacas_leite1 | D77: (69) - Cabeças de Vacas Leiteiras | E77: 69 | F77: 1 | G77: Cab. | H77: Cabeças de Vacas Leiteiras | I77: 69
B78: 77 | C78: Vacas_aleit1 | D78: (70) - Cabeças de Vacas Aleitantes | E78: 70 | F78: 1 | G78: Cab. | H78: Cabeças de Vacas Aleitantes | I78: 70
B79: 78 | C79: Outros_bov | D79: (71) - Cabeças de Outros Bovinos | E79: 71 | F79: 1 | G79: Cab. | H79: Cabeças de Outros Bovinos | I79: 71
B80: 79 | C80: Ovelhas | D80: (72) - Cabeças de Ovelhas | E80: 72 | F80: 1 | G80: Cab. | H80: Cabeças de Ovelhas | I80: 72
B81: 80 | C81: Outros_ovinos | D81: (73) - Cabeças de Outros Ovinos | E81: 73 | F81: 1 | G81: Cab. | H81: Cabeças de Outros Ovinos | I81: 73
B82: 81 | C82: Cabras | D82: (74) - Cabeças de Cabras | E82: 74 | F82: 1 | G82: Cab. | H82: Cabeças de Cabras | I82: 74 | K82: www.gpp.pt
B83: 82 | C83: Outros_cap | D83: (75) - Cabeças de Outros Caprinos | E83: 75 | F83: 1 | G83: Cab. | H83: Cabeças de Outros Caprinos | I83: 75
B84: 83 | C84: PI_N | D84: (76) - Número de Produtores Maa - Produçao Integrada | E84: 76 | F84: 1 | G84: Nº | H84: Número de Produtores Maa - Produçao Integrada | I84: 76
B85: 84 | C85: PI_SAU | D85: (77) - SA Declarada para Maa - Produçao Integrada | E85: 77 | F85: 1 | G85: ha | H85: SA Declarada para Maa - Produçao Integrada | I85: 77 | K85: MAAPDI_PI_SAU.pdf
B86: 85 | C86: PABC_N | D86: (78) - Número de Produtores Maa-Agric.Biológica - Conv | E86: 78 | F86: 1 | G86: Nº | H86: Número de Produtores Maa-Agric.Biológica - Conv | I86: 78
B87: 86 | C87: PABC_SAU | D87: (79) - SA Declarada para Maa-Agric.Biológica - Conv | E87: 79 | F87: 1 | G87: ha | H87: SA Declarada para Maa-Agric.Biológica - Conv | I87: 79 | K87: MAAABC_PABC_SAU.pdf
B88: 87 | C88: PABM_N | D88: (80) - Número de Produtores Maa-Agric.Biológica - Manut | E88: 80 | F88: 1 | G88: Nº | H88: Número de Produtores Maa-Agric.Biológica - Manut | I88: 80
B89: 88 | C89: PABM_SAU | D89: (81) - SA Declarada para Maa-Agric.Biológica - Manut | E89: 81 | F89: 1 | G89: ha | H89: SA Declarada para Maa-Agric.Biológica - Manut | I89: 81 | K89: MAAABM_PABM_SAU.pdf
B90: 89 | C90: PUEA_N | D90: (82) - Número de Produtores Uso Eficiente Da Água Na Agricultura | E90: 82 | F90: 1 | G90: Nº | H90: Número de Produtores Uso Eficiente Da Água Na Agricultura | I90: 82
B91: 90 | C91: PUEA_SAU | D91: (83) - SA Declarada para Uso Eficiente Da Água Na Agricultura | E91: 83 | F91: 1 | G91: ha | H91: SA Declarada para Uso Eficiente Da Água Na Agricultura | I91: 83 | K91: MAAUEA_PUEA_SAU_Uso Eficiente da Água na Agricultura.pdf
B92: 91 | C92: PCPT_N | D92: (84) - Número de Produtores Culturas Permanentes Tradicionais | E92: 84 | F92: 1 | G92: Nº | H92: Número de Produtores Culturas Permanentes Tradicionais | I92: 84
B93: 92 | C93: PCPT_SAU | D93: (85) - SA Declarada para Culturas Permanentes Tradicionais | E93: 85 | F93: 1 | G93: ha | H93: SA Declarada para Culturas Permanentes Tradicionais | I93: 85 | K93: MAACPT_PCPT_SAU_Culturas Permanentes Tradicionais.pdf
B94: 93 | C94: PCSS_N | D94: (86) - Número de Produtores Maa-Conservação Solo-Sem Dir | E94: 86 | F94: 1 | G94: Nº | H94: Número de Produtores Maa-Conservação Solo-Sem Dir | I94: 86
B95: 94 | C95: PCSS_SAU | D95: (87) - SA Declarada para Maa-Conservação Solo-Sem Dir | E95: 87 | F95: 1 | G95: ha | H95: SA Declarada para Maa-Conservação Solo-Sem Dir | I95: 87 | K95: MAACSS_PCSS_SAU_Conservação do Solo - Sementeira Direta ou mobilização na linha.pdf
B96: 95 | C96: PCSE_N | D96: (88) - Número de Produtores Maa-Conservação Solo-Enr.Entr | E96: 88 | F96: 1 | G96: Nº | H96: Número de Produtores Maa-Conservação Solo-Enr.Entr | I96: 88
B97: 96 | C97: PCSE_SAU | D97: (89) - SA Declarada para Maa-Conservação Solo-Enr.Entr | E97: 89 | F97: 1 | G97: ha | H97: SA Declarada para Maa-Conservação Solo-Enr.Entr | I97: 89 | K97: MAACSE_PCSE_SAU_Conservação do Solo - Enrelvamento da Entrelinha de culuras permanentes.pdf
B98: 97 | C98: PPLS_N | D98: (90) - Número de Produtores Maa - Lameiros De Sequeiro | E98: 90 | F98: 1 | G98: Nº | H98: Número de Produtores Maa - Lameiros De Sequeiro | I98: 90
B99: 98 | C99: PPLS_SAU | D99: (91) - SA Declarada para Maa - Lameiros De Sequeiro | E99: 91 | F99: 1 | G99: ha | H99: SA Declarada para Maa - Lameiros De Sequeiro | I99: 91 | K99: MAAPLS_PPLS_SAU_Pastoreio Extensivo - Apoio à Manutenção de Lameiros de Alto Valor Natural – Sequeiro.pdf
B100: 99 | C100: PPLR_N | D100: (92) - Número de Produtores Maa - Lameiros De Regadio | E100: 92 | F100: 1 | G100: Nº | H100: Número de Produtores Maa - Lameiros De Regadio | I100: 92
B101: 100 | C101: PPLR_SAU | D101: (93) - SA Declarada para Maa - Lameiros De Regadio | E101: 93 | F101: 1 | G101: ha | H101: SA Declarada para Maa - Lameiros De Regadio | I101: 93 | K101: MAAPLR_PPLR_SAU_Pastoreio Extensivo - Apoio à Manutenção de Lameiros de Alto Valor Natural – Regadio.pdf
B102: 101 | C102: PPMT_N | D102: (94) - Número de Produtores Maa -Pastoreio Extensivo -Apoio à Manutenção de Sistemas Agro-silvo-pastoris sob Montado Ii | E102: 94 | F102: 1 | G102: Nº | H102: Número de Produtores Maa -Pastoreio Extensivo -Apoio à Manutenção de Sistemas Agro-silvo-pastoris sob Montado Ii | I102: 94
B103: 102 | C103: PPMT_SAU | D103: (95) - SA Declarada para Maa - Pastoreio Extensivo -Apoio à Manutenção de Sistemas Agro-silvo-pastoris sob Montado Ii | E103: 95 | F103: 1 | G103: ha | H103: SA Declarada para Maa - Pastoreio Extensivo -Apoio à Manutenção de Sistemas Agro-silvo-pastoris sob Montado Ii | I103: 95 | K103: MAAPPMT_PPMT_SAU_Pastoreio Extensivo -Apoio à Manutenção de Sistemas Agro-silvo-pastoris sob Montado.pdf
B104: 103 | C104: PPPL_N | D104: (96) - Número de Produtores Maa - Pastoreio Extensivo Apoio à Proteção do Lobo Ibérico | E104: 96 | F104: 1 | G104: Nº | H104: Número de Produtores Maa - Pastoreio Extensivo Apoio à Proteção do Lobo Ibérico | I104: 96
B105: 104 | C105: PPPL_SAU | D105: (97) - SA Declarada para Maa - Pastoreio Extensivo Apoio à Proteção do Lobo Ibérico | E105: 97 | F105: 1 | G105: ha | H105: SA Declarada para Maa - Pastoreio Extensivo Apoio à Proteção do Lobo Ibérico | I105: 97 | K105: MAAPPL_SAU_Pastoreio Extensivo - Apoio à Proteção do Lobo Ibérico.pdf
B106: 105
B107: 106

Sheet Sheet3 (hidden)
B1: 2 | C1: 1 | E1: 22 | F1: =+INDEX(Sheet6!F2:F117,C1) -> 1
A2: 1 | B2: =+A2-1 -> 0
A3: =+INDEX(Sheet6!Q1:Q5,Sheet3!A2) -> <5 | C3: =SUM(I8:M8) -> 335 | D3: 0 | E3: 0 | F3: 0 | G3: 0 | H3: 0 | I3: 1_1 | J3: 1_1 | K3: 1_1 | L3: 1_1 | M3: 1_1 | N3: 1_2 | O3: 1_2 | P3: 1_2 | Q3: 1_2 | R3: 1_2 | S3: 2 | T3: 2 | U3: 2 | V3: 2 | W3: 2 | X3: 3 | Y3: 3 | Z3: 3 | AA3: 3 | AB3: 3 | AC3: 4 | AD3: 4 | AE3: 4 | AF3: 4 | AG3: 4 | AH3: 5 | AI3: 5 | AJ3: 5 | AK3: 5 | AL3: 5 | AM3: 6 | AN3: 6 | AO3: 6 | AP3: 6 | AQ3: 6 | AR3: 7 | AS3: 7 | AT3: 7 | AU3: 7 | AV3: 7 | AW3: 8 | AX3: 8 | AY3: 8 | AZ3: 8 | BA3: 8 | BB3: 9 | BC3: 9 | BD3: 9 | BE3: 9 | BF3: 9 | BG3: 10_1 | BH3: 10_1 | BI3: 10_1 | BJ3: 10_1 | BK3: 10_1 | BL3: 10_2 | BM3: 10_2 | BN3: 10_2 | BO3: 10_2 | BP3: 10_2 | BQ3: 11 | BR3: 11 | BS3: 11 | BT3: 11 | BU3: 11 | BV3: 12 | BW3: 12 | BX3: 12 | BY3: 12 | BZ3: 12 | CA3: 13 | CB3: 13 | CC3: 13 | CD3: 13 | CE3: 13 | CF3: 14 | CG3: 14 | CH3: 14 | CI3: 14 | CJ3: 14 | CK3: 15 | CL3: 15 | CM3: 15 | CN3: 15 | CO3: 15 | CP3: 0 | CQ3: 1_1 | CR3: 1_2 | CS3: 2 | CT3: 3 | CU3: 4 | CV3: 5 | CW3: 6 | CX3: 7 | CY3: 8 | CZ3: 9 | DA3: 10_1 | DB3: 10_2 | DC3: 11 | DD3: 12 | DE3: 13 | DF3: 14 | DG3: 15 | DH3: 1 | DI3: 2 | DJ3: 3 | DK3: 4 | DL3: 5
D4: 1 | E4: 2 | F4: 3 | G4: 4 | H4: 5 | I4: 1 | J4: 2 | K4: 3 | L4: 4 | M4: 5 | N4: 1 | O4: 2 | P4: 3 | Q4: 4 | R4: 5 | S4: 1 | T4: 2 | U4: 3 | V4: 4 | W4: 5 | X4: 1 | Y4: 2 | Z4: 3 | AA4: 4 | AB4: 5 | AC4: 1 | AD4: 2 | AE4: 3 | AF4: 4 | AG4: 5 | AH4: 1 | AI4: 2 | AJ4: 3 | AK4: 4 | AL4: 5 | AM4: 1 | AN4: 2 | AO4: 3 | AP4: 4 | AQ4: 5 | AR4: 1 | AS4: 2 | AT4: 3 | AU4: 4 | AV4: 5 | AW4: 1 | AX4: 2 | AY4: 3 | AZ4: 4 | BA4: 5 | BB4: 1 | BC4: 2 | BD4: 3 | BE4: 4 | BF4: 5 | BG4: 1 | BH4: 2 | BI4: 3 | BJ4: 4 | BK4: 5 | BL4: 1 | BM4: 2 | BN4: 3 | BO4: 4 | BP4: 5 | BQ4: 1 | BR4: 2 | BS4: 3 | BT4: 4 | BU4: 5 | BV4: 1 | BW4: 2 | BX4: 3 | BY4: 4 | BZ4: 5 | CA4: 1 | CB4: 2 | CC4: 3 | CD4: 4 | CE4: 5 | CF4: 1 | CG4: 2 | CH4: 3 | CI4: 4 | CJ4: 5 | CK4: 1 | CL4: 2 | CM4: 3 | CN4: 4 | CO4: 5 | DH4: 1 | DI4: 2 | DJ4: 3 | DK4: 4 | DL4: 5
I5: Arvenses e Outras Cult pred. Regadio | J5: Arvenses e Outras Cult pred. Regadio | K5: Arvenses e Outras Cult pred. Regadio | L5: Arvenses e Outras Cult pred. Regadio | M5: Arvenses e Outras Cult pred. Regadio | N5: Arvenses e Outras Cult pred. Sequeiro | O5: Arvenses e Outras Cult pred. Sequeiro | P5: Arvenses e Outras Cult pred. Sequeiro | Q5: Arvenses e Outras Cult pred. Sequeiro | R5: Arvenses e Outras Cult pred. Sequeiro | S5: Arroz | T5: Arroz | U5: Arroz | V5: Arroz | W5: Arroz | X5: Horticultura e Industriais | Y5: Horticultura e Industriais | Z5: Horticultura e Industriais | AA5: Horticultura e Industriais | AB5: Horticultura e Industriais | AC5: Horticultura e Floricultura | AD5: Horticultura e Floricultura | AE5: Horticultura e Floricultura | AF5: Horticultura e Floricultura | AG5: Horticultura e Floricultura | AH5: Vinhos | AI5: Vinhos
I6: Muito Pequenas | J6: Pequenas | K6: Médias | L6: Grandes | M6: Muito Grandes | N6: Muito Pequenas | O6: Pequenas | P6: Médias | Q6: Grandes | R6: Muito Grandes | S6: Muito Pequenas | T6: Pequenas | U6: Médias | V6: Grandes | W6: Muito Grandes | X6: Muito Pequenas | Y6: Pequenas | Z6: Médias | AA6: Grandes | AB6: Muito Grandes | AC6: Muito Pequenas | AD6: Pequenas | AE6: Médias | AF6: Grandes | AG6: Muito Grandes | AH6: Muito Pequenas | AI6: Pequenas
C7: NUT'S III
A8: 1 | B8: 111 | C8: Alto Minho | D8: =+SUMIFS(Sheet4!$DM$2:$DM$8270,Sheet4!$C$2:$C$8270,Sheet3!$B8,Sheet4!$D$2:$D$8270,Sheet3!D$3,Sheet4!$E$2:$E$8270,Sheet3!D$4,Sheet4!$A$2:$A$8270,Sheet3!$B$1,Sheet4!$B$2:$B$8270,Sheet3!$A$3) -> 0 | E8: =+SUMIFS(Sheet4!$DM$2:$DM$8270,Sheet4!$C$2:$C$8270,Sheet3!$B8,Sheet4!$D$2:$D$8270,Sheet3!E$3,Sheet4!$E$2:$E$8270,Sheet3!E$4,Sheet4!$A$2:$A$8270,Sheet3!$B$1,Sheet4!$B$2:$B$8270,Sheet3!$A$3) -> 0 | F8: =+SUMIFS(Sheet4!$DM$2:$DM$8270,Sheet4!$C$2:$C$8270,Sheet3!$B8,Sheet4!$D$2:$D$8270,Sheet3!F$3,Sheet4!$E$2:$E$8270,Sheet3!F$4,Sheet4!$A$2:$A$8270,Sheet3!$B$1,Sheet4!$B$2:$B$8270,Sheet3!$A$3) -> 0 | G8: =+SUMIFS(Sheet4!$DM$2:$DM$8270,Sheet4!$C$2:$C$8270,Sheet3!$B8,Sheet4!$D$2:$D$8270,Sheet3!G$3,Sheet4!$E$2:$E$8270,Sheet3!G$4,Sheet4!$A$2:$A$8270,Sheet3!$B$1,Sheet4!$B$2:$B$8270,Sheet3!$A$3) -> 0 | H8: =+SUMIFS(Sheet4!$DM$2:$DM$8270,Sheet4!$C$2:$C$8270,Sheet3!$B8,Sheet4!$D$2:$D$8270,Sheet3!H$3,Sheet4!$E$2:$E$8270,Sheet3!H$4,Sheet4!$A$2:$A$8270,Sheet3!$B$1,Sheet4!$B$2:$B$8270,Sheet3!$A$3) -> 0 | I8: =+SUMIFS(Sheet4!$DM$2:$DM$8270,Sheet4!$C$2:$C$8270,Sheet3!$B8,Sheet4!$D$2:$D$8270,Sheet3!I$3,Sheet4!$E$2:$E$8270,Sheet3!I$4,Sheet4!$A$2:$A$8270,Sheet3!$B$1,Sheet4!$B$2:$B$8270,Sheet3!$A$3) -> 326 | J8: =+SUMIFS(Sheet4!$DM$2:$DM$8270,Sheet4!$C$2:$C$8270,Sheet3!$B8,Sheet4!$D$2:$D$8270,Sheet3!J$3,Sheet4!$E$2:$E$8270,Sheet3!J$4,Sheet4!$A$2:$A$8270,Sheet3!$B$1,Sheet4!$B$2:$B$8270,Sheet3!$A$3) -> 9 | K8: =+SUMIFS(Sheet4!$DM$2:$DM$8270,Sheet4!$C$2:$C$8270,Sheet3!$B8,Sheet4!$D$2:$D$8270,Sheet3!K$3,Sheet4!$E$2:$E$8270,Sheet3!K$4,Sheet4!$A$2:$A$8270,Sheet3!$B$1,Sheet4!$B$2:$B$8270,Sheet3!$A$3) -> 0 | L8: =+SUMIFS(Sheet4!$DM$2:$DM$8270,Sheet4!$C$2:$C$8270,Sheet3!$B8,Sheet4!$D$2:$D$8270,Sheet3!L$3,Sheet4!$E$2:$E$8270,Sheet3!L$4,Sheet4!$A$2:$A$8270,Sheet3!$B$1,Sheet4!$B$2:$B$8270,Sheet3!$A$3) -> 0 | M8: =+SUMIFS(Sheet4!$DM$2:$DM$8270,Sheet4!$C$2:$C$8270,Sheet3!$B8,Sheet4!$D$2:$D$8270,Sheet3!M$3,Sheet4!$E$2:$E$8270,Sheet3!M$4,Sheet4!$A$2:$A$8270,Sheet3!$B$1,Sheet4!$B$2:$B$8270,Sheet3!$A$3) -> 0 | N8: =+SUMIFS(Sheet4!$DM$2:$DM$8270,Sheet4!$C$2:$C$8270,Sheet3!$B8,Sheet4!$D$2:$D$8270,Sheet3!N$3,Sheet4!$E$2:$E$8270,Sheet3!N$4,Sheet4!$A$2:$A$8270,Sheet3!$B$1,Sheet4!$B$2:$B$8270,Sheet3!$A$3) -> 156 | O8: =+SUMIFS(Sheet4!$DM$2:$DM$8270,Sheet4!$C$2:$C$8270,Sheet3!$B8,Sheet4!$D$2:$D$8270,Sheet3!O$3,Sheet4!$E$2:$E$8270,Sheet3!O$4,Sheet4!$A$2:$A$8270,Sheet3!$B$1,Sheet4!$B$2:$B$8270,Sheet3!$A$3) -> 5 | P8: =+SUMIFS(Sheet4!$DM$2:$DM$8270,Sheet4!$C$2:$C$8270,Sheet3!$B8,Sheet4!$D$2:$D$8270,Sheet3!P$3,Sheet4!$E$2:$E$8270,Sheet3!P$4,Sheet4!$A$2:$A$8270,Sheet3!$B$1,Sheet4!$B$2:$B$8270,Sheet3!$A$3) -> 0 | Q8: =+SUMIFS(Sheet4!$DM$2:$DM$8270,Sheet4!$C$2:$C$8270,Sheet3!$B8,Sheet4!$D$2:$D$8270,Sheet3!Q$3,Sheet4!$E$2:$E$8270,Sheet3!Q$4,Sheet4!$A$2:$A$8270,Sheet3!$B$1,Sheet4!$B$2:$B$8270,Sheet3!$A$3) -> 0 | R8: =+SUMIFS(Sheet4!$DM$2:$DM$8270,Sheet4!$C$2:$C$8270,Sheet3!$B8,Sheet4!$D$2:$D$8270,Sheet3!R$3,Sheet4!$E$2:$E$8270,Sheet3!R$4,Sheet4!$A$2:$A$8270,Sheet3!$B$1,Sheet4!$B$2:$B$8270,Sheet3!$A$3) -> 0 | S8: =+SUMIFS(Sheet4!$DM$2:$DM$8270,Sheet4!$C$2:$C$8270,Sheet3!$B8,Sheet4!$D$2:$D$8270,Sheet3!S$3,Sheet4!$E$2:$E$8270,Sheet3!S$4,Sheet4!$A$2:$A$8270,Sheet3!$B$1,Sheet4!$B$2:$B$8270,Sheet3!$A$3) -> 0 | T8: =+SUMIFS(Sheet4!$DM$2:$DM$8270,Sheet4!$C$2:$C$8270,Sheet3!$B8,Sheet4!$D$2:$D$8270,Sheet3!T$3,Sheet4!$E$2:$E$8270,Sheet3!T$4,Sheet4!$A$2:$A$8270,Sheet3!$B$1,Sheet4!$B$2:$B$8270,Sheet3!$A$3) -> 0 | U8: =+SUMIFS(Sheet4!$DM$2:$DM$8270,Sheet4!$C$2:$C$8270,Sheet3!$B8,Sheet4!$D$2:$D$8270,Sheet3!U$3,Sheet4!$E$2:$E$8270,Sheet3!U$4,Sheet4!$A$2:$A$8270,Sheet3!$B$1,Sheet4!$B$2:$B$8270,Sheet3!$A$3) -> 0 | V8: =+SUMIFS(Sheet4!$DM$2:$DM$8270,Sheet4!$C$2:$C$8270,Sheet3!$B8,Sheet4!$D$2:$D$8270,Sheet3!V$3,Sheet4!$E$2:$E$8270,Sheet3!V$4,Sheet4!$A$2:$A$8270,Sheet3!$B$1,Sheet4!$B$2:$B$8270,Sheet3!$A$3) -> 0 | W8: =+SUMIFS(Sheet4!$DM$2:$DM$8270,Sheet4!$C$2:$C$8270,Sheet3!$B8,Sheet4!$D$2:$D$8270,Sheet3!W$3,Sheet4!$E$2:$E$8270,Sheet3!W$4,Sheet4!$A$2:$A$8270,Sheet3!$B$1,Sheet4!$B$2:$B$8270,Sheet3!$A$3) -> 0 | X8: =+SUMIFS(Sheet4!$DM$2:$DM$8270,Sheet4!$C$2:$C$8270,Sheet3!$B8,Sheet4!$D$2:$D$8270,Sheet3!X$3,Sheet4!$E$2:$E$8270,Sheet3!X$4,Sheet4!$A$2:$A$8270,Sheet3!$B$1,Sheet4!$B$2:$B$8270,Sheet3!$A$3) -> 0 | Y8: =+SUMIFS(Sheet4!$DM$2:$DM$8270,Sheet4!$C$2:$C$8270,Sheet3!$B8,Sheet4!$D$2:$D$8270,Sheet3!Y$3,Sheet4!$E$2:$E$8270,Sheet3!Y$4,Sheet4!$A$2:$A$8270,Sheet3!$B$1,Sheet4!$B$2:$B$8270,Sheet3!$A$3) -> 0 | Z8: =+SUMIFS(Sheet4!$DM$2:$DM$8270,Sheet4!$C$2:$C$8270,Sheet3!$B8,Sheet4!$D$2:$D$8270,Sheet3!Z$3,Sheet4!$E$2:$E$8270,Sheet3!Z$4,Sheet4!$A$2:$A$8270,Sheet3!$B$1,Sheet4!$B$2:$B$8270,Sheet3!$A$3) -> 0 | AA8: =+SUMIFS(Sheet4!$DM$2:$DM$8270,Sheet4!$C$2:$C$8270,Sheet3!$B8,Sheet4!$D$2:$D$8270,Sheet3!AA$3,Sheet4!$E$2:$E$8270,Sheet3!AA$4,Sheet4!$A$2:$A$8270,Sheet3!$B$1,Sheet4!$B$2:$B$8270,Sheet3!$A$3) -> 0 | AB8: =+SUMIFS(Sheet4!$DM$2:$DM$8270,Sheet4!$C$2:$C$8270,Sheet3!$B8,Sheet4!$D$2:$D$8270,Sheet3!AB$3,Sheet4!$E$2:$E$8270,Sheet3!AB$4,Sheet4!$A$2:$A$8270,Sheet3!$B$1,Sheet4!$B$2:$B$8270,Sheet3!$A$3) -> 0 | AC8: =+SUMIFS(Sheet4!$DM$2:$DM$8270,Sheet4!$C$2:$C$8270,Sheet3!$B8,Sheet4!$D$2:$D$8270,Sheet3!AC$3,Sheet4!$E$2:$E$8270,Sheet3!AC$4,Sheet4!$A$2:$A$8270,Sheet3!$B$1,Sheet4!$B$2:$B$8270,Sheet3!$A$3) -> 156 | AD8: =+SUMIFS(Sheet4!$DM$2:$DM$8270,Sheet4!$C$2:$C$8270,Sheet3!$B8,Sheet4!$D$2:$D$8270,Sheet3!AD$3,Sheet4!$E$2:$E$8270,Sheet3!AD$4,Sheet4!$A$2:$A$8270,Sheet3!$B$1,Sheet4!$B$2:$B$8270,Sheet3!$A$3) -> 5 | AE8: =+SUMIFS(Sheet4!$DM$2:$DM$8270,Sheet4!$C$2:$C$8270,Sheet3!$B8,Sheet4!$D$2:$D$8270,Sheet3!AE$3,Sheet4!$E$2:$E$8270,Sheet3!AE$4,Sheet4!$A$2:$A$8270,Sheet3!$B$1,Sheet4!$B$2:$B$8270,Sheet3!$A$3) -> 0 | AF8: =+SUMIFS(Sheet4!$DM$2:$DM$8270,Sheet4!$C$2:$C$8270,Sheet3!$B8,Sheet4!$D$2:$D$8270,Sheet3!AF$3,Sheet4!$E$2:$E$8270,Sheet3!AF$4,Sheet4!$A$2:$A$8270,Sheet3!$B$1,Sheet4!$B$2:$B$8270,Sheet3!$A$3) -> 0 | AG8: =+SUMIFS(Sheet4!$DM$2:$DM$8270,Sheet4!$C$2:$C$8270,Sheet3!$B8,Sheet4!$D$2:$D$8270,Sheet3!AG$3,Sheet4!$E$2:$E$8270,Sheet3!AG$4,Sheet4!$A$2:$A$8270,Sheet3!$B$1,Sheet4!$B$2:$B$8270,Sheet3!$A$3) -> 0 | AH8: =+SUMIFS(Sheet4!$DM$2:$DM$8270,Sheet4!$C$2:$C$8270,Sheet3!$B8,Sheet4!$D$2:$D$8270,Sheet3!AH$3,Sheet4!$E$2:$E$8270,Sheet3!AH$4,Sheet4!$A$2:$A$8270,Sheet3!$B$1,Sheet4!$B$2:$B$8270,Sheet3!$A$3) -> 571 | AI8: =+SUMIFS(Sheet4!$DM$2:$DM$8270,Sheet4!$C$2:$C$8270,Sheet3!$B8,Sheet4!$D$2:$D$8270,Sheet3!AI$3,Sheet4!$E$2:$E$8270,Sheet3!AI$4,Sheet4!$A$2:$A$8270,Sheet3!$B$1,Sheet4!$B$2:$B$8270,Sheet3!$A$3) -> 95 | AJ8: =+SUMIFS(Sheet4!$DM$2:$DM$8270,Sheet4!$C$2:$C$8270,Sheet3!$B8,Sheet4!$D$2:$D$8270,Sheet3!AJ$3,Sheet4!$E$2:$E$8270,Sheet3!AJ$4,Sheet4!$A$2:$A$8270,Sheet3!$B$1,Sheet4!$B$2:$B$8270,Sheet3!$A$3) -> 10 | AK8: =+SUMIFS(Sheet4!$DM$2:$DM$8270,Sheet4!$C$2:$C$8270,Sheet3!$B8,Sheet4!$D$2:$D$8270,Sheet3!AK$3,Sheet4!$E$2:$E$8270,Sheet3!AK$4,Sheet4!$A$2:$A$8270,Sheet3!$B$1,Sheet4!$B$2:$B$8270,Sheet3!$A$3) -> 0 | AL8: =+SUMIFS(Sheet4!$DM$2:$DM$8270,Sheet4!$C$2:$C$8270,Sheet3!$B8,Sheet4!$D$2:$D$8270,Sheet3!AL$3,Sheet4!$E$2:$E$8270,Sheet3!AL$4,Sheet4!$A$2:$A$8270,Sheet3!$B$1,Sheet4!$B$2:$B$8270,Sheet3!$A$3) -> 0 | AM8: =+SUMIFS(Sheet4!$DM$2:$DM$8270,Sheet4!$C$2:$C$8270,Sheet3!$B8,Sheet4!$D$2:$D$8270,Sheet3!AM$3,Sheet4!$E$2:$E$8270,Sheet3!AM$4,Sheet4!$A$2:$A$8270,Sheet3!$B$1,Sheet4!$B$2:$B$8270,Sheet3!$A$3) -> 143 | AN8: =+SUMIFS(Sheet4!$DM$2:$DM$8270,Sheet4!$C$2:$C$8270,Sheet3!$B8,Sheet4!$D$2:$D$8270,Sheet3!AN$3,Sheet4!$E$2:$E$8270,Sheet3!AN$4,Sheet4!$A$2:$A$8270,Sheet3!$B$1,Sheet4!$B$2:$B$8270,Sheet3!$A$3) -> 18 | AO8: =+SUMIFS(Sheet4!$DM$2:$DM$8270,Sheet4!$C$2:$C$8270,Sheet3!$B8,Sheet4!$D$2:$D$8270,Sheet3!AO$3,Sheet4!$E$2:$E$8270,Sheet3!AO$4,Sheet4!$A$2:$A$8270,Sheet3!$B$1,Sheet4!$B$2:$B$8270,Sheet3!$A$3) -> 0 | AP8: =+SUMIFS(Sheet4!$DM$2:$DM$8270,Sheet4!$C$2:$C$8270,Sheet3!$B8,Sheet4!$D$2:$D$8270,Sheet3!AP$3,Sheet4!$E$2:$E$8270,Sheet3!AP$4,Sheet4!$A$2:$A$8270,Sheet3!$B$1,Sheet4!$B$2:$B$8270,Sheet3!$A$3) -> 0 | AQ8: =+SUMIFS(Sheet4!$DM$2:$DM$8270,Sheet4!$C$2:$C$8270,Sheet3!$B8,Sheet4!$D$2:$D$8270,Sheet3!AQ$3,Sheet4!$E$2:$E$8270,Sheet3!AQ$4,Sheet4!$A$2:$A$8270,Sheet3!$B$1,Sheet4!$B$2:$B$8270,Sheet3!$A$3) -> 0 | AR8: =+SUMIFS(Sheet4!$DM$2:$DM$8270,Sheet4!$C$2:$C$8270,Sheet3!$B8,Sheet4!$D$2:$D$8270,Sheet3!AR$3,Sheet4!$E$2:$E$8270,Sheet3!AR$4,Sheet4!$A$2:$A$8270,Sheet3!$B$1,Sheet4!$B$2:$B$8270,Sheet3!$A$3) -> 0 | AS8: =+SUMIFS(Sheet4!$DM$2:$DM$8270,Sheet4!$C$2:$C$8270,Sheet3!$B8,Sheet4!$D$2:$D$8270,Sheet3!AS$3,Sheet4!$E$2:$E$8270,Sheet3!AS$4,Sheet4!$A$2:$A$8270,Sheet3!$B$1,Sheet4!$B$2:$B$8270,Sheet3!$A$3) -> 0 | AT8: =+SUMIFS(Sheet4!$DM$2:$DM$8270,Sheet4!$C$2:$C$8270,Sheet3!$B8,Sheet4!$D$2:$D$8270,Sheet3!AT$3,Sheet4!$E$2:$E$8270,Sheet3!AT$4,Sheet4!$A$2:$A$8270,Sheet3!$B$1,Sheet4!$B$2:$B$8270,Sheet3!$A$3) -> 0 | AU8: =+SUMIFS(Sheet4!$DM$2:$DM$8270,Sheet4!$C$2:$C$8270,Sheet3!$B8,Sheet4!$D$2:$D$8270,Sheet3!AU$3,Sheet4!$E$2:$E$8270,Sheet3!AU$4,Sheet4!$A$2:$A$8270,Sheet3!$B$1,Sheet4!$B$2:$B$8270,Sheet3!$A$3) -> 0 | AV8: =+SUMIFS(Sheet4!$DM$2:$DM$8270,Sheet4!$C$2:$C$8270,Sheet3!$B8,Sheet4!$D$2:$D$8270,Sheet3!AV$3,Sheet4!$E$2:$E$8270,Sheet3!AV$4,Sheet4!$A$2:$A$8270,Sheet3!$B$1,Sheet4!$B$2:$B$8270,Sheet3!$A$3) -> 0 | AW8: =+SUMIFS(Sheet4!$DM$2:$DM$8270,Sheet4!$C$2:$C$8270,Sheet3!$B8,Sheet4!$D$2:$D$8270,Sheet3!AW$3,Sheet4!$E$2:$E$8270,Sheet3!AW$4,Sheet4!$A$2:$A$8270,Sheet3!$B$1,Sheet4!$B$2:$B$8270,Sheet3!$A$3) -> 2159 | AX8: =+SUMIFS(Sheet4!$DM$2:$DM$8270,Sheet4!$C$2:$C$8270,Sheet3!$B8,Sheet4!$D$2:$D$8270,Sheet3!AX$3,Sheet4!$E$2:$E$8270,Sheet3!AX$4,Sheet4!$A$2:$A$8270,Sheet3!$B$1,Sheet4!$B$2:$B$8270,Sheet3!$A$3) -> 32 | AY8: =+SUMIFS(Sheet4!$DM$2:$DM$8270,Sheet4!$C$2:$C$8270,Sheet3!$B8,Sheet4!$D$2:$D$8270,Sheet3!AY$3,Sheet4!$E$2:$E$8270,Sheet3!AY$4,Sheet4!$A$2:$A$8270,Sheet3!$B$1,Sheet4!$B$2:$B$8270,Sheet3!$A$3) -> 0 | AZ8: =+SUMIFS(Sheet4!$DM$2:$DM$8270,Sheet4!$C$2:$C$8270,Sheet3!$B8,Sheet4!$D$2:$D$8270,Sheet3!AZ$3,Sheet4!$E$2:$E$8270,Sheet3!AZ$4,Sheet4!$A$2:$A$8270,Sheet3!$B$1,Sheet4!$B$2:$B$8270,Sheet3!$A$3) -> 0 | BA8: =+SUMIFS(Sheet4!$DM$2:$DM$8270,Sheet4!$C$2:$C$8270,Sheet3!$B8,Sheet4!$D$2:$D$8270,Sheet3!BA$3,Sheet4!$E$2:$E$8270,Sheet3!BA$4,Sheet4!$A$2:$A$8270,Sheet3!$B$1,Sheet4!$B$2:$B$8270,Sheet3!$A$3) -> 0 | BB8: =+SUMIFS(Sheet4!$DM$2:$DM$8270,Sheet4!$C$2:$C$8270,Sheet3!$B8,Sheet4!$D$2:$D$8270,Sheet3!BB$3,Sheet4!$E$2:$E$8270,Sheet3!BB$4,Sheet4!$A$2:$A$8270,Sheet3!$B$1,Sheet4!$B$2:$B$8270,Sheet3!$A$3) -> 10 | BC8: =+SUMIFS(Sheet4!$DM$2:$DM$8270,Sheet4!$C$2:$C$8270,Sheet3!$B8,Sheet4!$D$2:$D$8270,Sheet3!BC$3,Sheet4!$E$2:$E$8270,Sheet3!BC$4,Sheet4!$A$2:$A$8270,Sheet3!$B$1,Sheet4!$B$2:$B$8270,Sheet3!$A$3) -> 53 | BD8: =+SUMIFS(Sheet4!$DM$2:$DM$8270,Sheet4!$C$2:$C$8270,Sheet3!$B8,Sheet4!$D$2:$D$8270,Sheet3!BD$3,Sheet4!$E$2:$E$8270,Sheet3!BD$4,Sheet4!$A$2:$A$8270,Sheet3!$B$1,Sheet4!$B$2:$B$8270,Sheet3!$A$3) -> 8 | BE8: =+SUMIFS(Sheet4!$DM$2:$DM$8270,Sheet4!$C$2:$C$8270,Sheet3!$B8,Sheet4!$D$2:$D$8270,Sheet3!BE$3,Sheet4!$E$2:$E$8270,Sheet3!BE$4,Sheet4!$A$2:$A$8270,Sheet3!$B$1,Sheet4!$B$2:$B$8270,Sheet3!$A$3) -> 0 | BF8: =+SUMIFS(Sheet4!$DM$2:$DM$8270,Sheet4!$C$2:$C$8270,Sheet3!$B8,Sheet4!$D$2:$D$8270,Sheet3!BF$3,Sheet4!$E$2:$E$8270,Sheet3!BF$4,Sheet4!$A$2:$A$8270,Sheet3!$B$1,Sheet4!$B$2:$B$8270,Sheet3!$A$3) -> 0 | BG8: =+SUMIFS(Sheet4!$DM$2:$DM$8270,Sheet4!$C$2:$C$8270,Sheet3!$B8,Sheet4!$D$2:$D$8270,Sheet3!BG$3,Sheet4!$E$2:$E$8270,Sheet3!BG$4,Sheet4!$A$2:$A$8270,Sheet3!$B$1,Sheet4!$B$2:$B$8270,Sheet3!$A$3) -> 293 | BH8: =+SUMIFS(Sheet4!$DM$2:$DM$8270,Sheet4!$C$2:$C$8270,Sheet3!$B8,Sheet4!$D$2:$D$8270,Sheet3!BH$3,Sheet4!$E$2:$E$8270,Sheet3!BH$4,Sheet4!$A$2:$A$8270,Sheet3!$B$1,Sheet4!$B$2:$B$8270,Sheet3!$A$3) -> 105 | BI8: =+SUMIFS(Sheet4!$DM$2:$DM$8270,Sheet4!$C$2:$C$8270,Sheet3!$B8,Sheet4!$D$2:$D$8270,Sheet3!BI$3,Sheet4!$E$2:$E$8270,Sheet3!BI$4,Sheet4!$A$2:$A$8270,Sheet3!$B$1,Sheet4!$B$2:$B$8270,Sheet3!$A$3) -> 13 | BJ8: =+SUMIFS(Sheet4!$DM$2:$DM$8270,Sheet4!$C$2:$C$8270,Sheet3!$B8,Sheet4!$D$2:$D$8270,Sheet3!BJ$3,Sheet4!$E$2:$E$8270,Sheet3!BJ$4,Sheet4!$A$2:$A$8270,Sheet3!$B$1,Sheet4!$B$2:$B$8270,Sheet3!$A$3) -> 0 | BK8: =+SUMIFS(Sheet4!$DM$2:$DM$8270,Sheet4!$C$2:$C$8270,Sheet3!$B8,Sheet4!$D$2:$D$8270,Sheet3!BK$3,Sheet4!$E$2:$E$8270,Sheet3!BK$4,Sheet4!$A$2:$A$8270,Sheet3!$B$1,Sheet4!$B$2:$B$8270,Sheet3!$A$3) -> 0 | BL8: =+SUMIFS(Sheet4!$DM$2:$DM$8270,Sheet4!$C$2:$C$8270,Sheet3!$B8,Sheet4!$D$2:$D$8270,Sheet3!BL$3,Sheet4!$E$2:$E$8270,Sheet3!BL$4,Sheet4!$A$2:$A$8270,Sheet3!$B$1,Sheet4!$B$2:$B$8270,Sheet3!$A$3) -> 420 | BM8: =+SUMIFS(Sheet4!$DM$2:$DM$8270,Sheet4!$C$2:$C$8270,Sheet3!$B8,Sheet4!$D$2:$D$8270,Sheet3!BM$3,Sheet4!$E$2:$E$8270,Sheet3!BM$4,Sheet4!$A$2:$A$8270,Sheet3!$B$1,Sheet4!$B$2:$B$8270,Sheet3!$A$3) -> 375 | BN8: =+SUMIFS(Sheet4!$DM$2:$DM$8270,Sheet4!$C$2:$C$8270,Sheet3!$B8,Sheet4!$D$2:$D$8270,Sheet3!BN$3,Sheet4!$E$2:$E$8270,Sheet3!BN$4,Sheet4!$A$2:$A$8270,Sheet3!$B$1,Sheet4!$B$2:$B$8270,Sheet3!$A$3) -> 121 | BO8: =+SUMIFS(Sheet4!$DM$2:$DM$8270,Sheet4!$C$2:$C$8270,Sheet3!$B8,Sheet4!$D$2:$D$8270,Sheet3!BO$3,Sheet4!$E$2:$E$8270,Sheet3!BO$4,Sheet4!$A$2:$A$8270,Sheet3!$B$1,Sheet4!$B$2:$B$8270,Sheet3!$A$3) -> 6 | BP8: =+SUMIFS(Sheet4!$DM$2:$DM$8270,Sheet4!$C$2:$C$8270,Sheet3!$B8,Sheet4!$D$2:$D$8270,Sheet3!BP$3,Sheet4!$E$2:$E$8270,Sheet3!BP$4,Sheet4!$A$2:$A$8270,Sheet3!$B$1,Sheet4!$B$2:$B$8270,Sheet3!$A$3) -> 5 | BQ8: =+SUMIFS(Sheet4!$DM$2:$DM$8270,Sheet4!$C$2:$C$8270,Sheet3!$B8,Sheet4!$D$2:$D$8270,Sheet3!BQ$3,Sheet4!$E$2:$E$8270,Sheet3!BQ$4,Sheet4!$A$2:$A$8270,Sheet3!$B$1,Sheet4!$B$2:$B$8270,Sheet3!$A$3) -> 977 | BR8: =+SUMIFS(Sheet4!$DM$2:$DM$8270,Sheet4!$C$2:$C$8270,Sheet3!$B8,Sheet4!$D$2:$D$8270,Sheet3!BR$3,Sheet4!$E$2:$E$8270,Sheet3!BR$4,Sheet4!$A$2:$A$8270,Sheet3!$B$1,Sheet4!$B$2:$B$8270,Sheet3!$A$3) -> 357 | BS8: =+SUMIFS(Sheet4!$DM$2:$DM$8270,Sheet4!$C$2:$C$8270,Sheet3!$B8,Sheet4!$D$2:$D$8270,Sheet3!BS$3,Sheet4!$E$2:$E$8270,Sheet3!BS$4,Sheet4!$A$2:$A$8270,Sheet3!$B$1,Sheet4!$B$2:$B$8270,Sheet3!$A$3) -> 40 | BT8: =+SUMIFS(Sheet4!$DM$2:$DM$8270,Sheet4!$C$2:$C$8270,Sheet3!$B8,Sheet4!$D$2:$D$8270,Sheet3!BT$3,Sheet4!$E$2:$E$8270,Sheet3!BT$4,Sheet4!$A$2:$A$8270,Sheet3!$B$1,Sheet4!$B$2:$B$8270,Sheet3!$A$3) -> 0 | BU8: =+SUMIFS(Sheet4!$DM$2:$DM$8270,Sheet4!$C$2:$C$8270,Sheet3!$B8,Sheet4!$D$2:$D$8270,Sheet3!BU$3,Sheet4!$E$2:$E$8270,Sheet3!BU$4,Sheet4!$A$2:$A$8270,Sheet3!$B$1,Sheet4!$B$2:$B$8270,Sheet3!$A$3) -> 0 | BV8: =+SUMIFS(Sheet4!$DM$2:$DM$8270,Sheet4!$C$2:$C$8270,Sheet3!$B8,Sheet4!$D$2:$D$8270,Sheet3!BV$3,Sheet4!$E$2:$E$8270,Sheet3!BV$4,Sheet4!$A$2:$A$8270,Sheet3!$B$1,Sheet4!$B$2:$B$8270,Sheet3!$A$3) -> 1071 | BW8: =+SUMIFS(Sheet4!$DM$2:$DM$8270,Sheet4!$C$2:$C$8270,Sheet3!$B8,Sheet4!$D$2:$D$8270,Sheet3!BW$3,Sheet4!$E$2:$E$8270,Sheet3!BW$4,Sheet4!$A$2:$A$8270,Sheet3!$B$1,Sheet4!$B$2:$B$8270,Sheet3!$A$3) -> 61 | BX8: =+SUMIFS(Sheet4!$DM$2:$DM$8270,Sheet4!$C$2:$C$8270,Sheet3!$B8,Sheet4!$D$2:$D$8270,Sheet3!BX$3,Sheet4!$E$2:$E$8270,Sheet3!BX$4,Sheet4!$A$2:$A$8270,Sheet3!$B$1,Sheet4!$B$2:$B$8270,Sheet3!$A$3) -> 0 | BY8: =+SUMIFS(Sheet4!$DM$2:$DM$8270,Sheet4!$C$2:$C$8270,Sheet3!$B8,Sheet4!$D$2:$D$8270,Sheet3!BY$3,Sheet4!$E$2:$E$8270,Sheet3!BY$4,Sheet4!$A$2:$A$8270,Sheet3!$B$1,Sheet4!$B$2:$B$8270,Sheet3!$A$3) -> 0 | BZ8: =+SUMIFS(Sheet4!$DM$2:$DM$8270,Sheet4!$C$2:$C$8270,Sheet3!$B8,Sheet4!$D$2:$D$8270,Sheet3!BZ$3,Sheet4!$E$2:$E$8270,Sheet3!BZ$4,Sheet4!$A$2:$A$8270,Sheet3!$B$1,Sheet4!$B$2:$B$8270,Sheet3!$A$3) -> 0 | CA8: =+SUMIFS(Sheet4!$DM$2:$DM$8270,Sheet4!$C$2:$C$8270,Sheet3!$B8,Sheet4!$D$2:$D$8270,Sheet3!CA$3,Sheet4!$E$2:$E$8270,Sheet3!CA$4,Sheet4!$A$2:$A$8270,Sheet3!$B$1,Sheet4!$B$2:$B$8270,Sheet3!$A$3) -> 338 | CB8: =+SUMIFS(Sheet4!$DM$2:$DM$8270,Sheet4!$C$2:$C$8270,Sheet3!$B8,Sheet4!$D$2:$D$8270,Sheet3!CB$3,Sheet4!$E$2:$E$8270,Sheet3!CB$4,Sheet4!$A$2:$A$8270,Sheet3!$B$1,Sheet4!$B$2:$B$8270,Sheet3!$A$3) -> 14 | CC8: =+SUMIFS(Sheet4!$DM$2:$DM$8270,Sheet4!$C$2:$C$8270,Sheet3!$B8,Sheet4!$D$2:$D$8270,Sheet3!CC$3,Sheet4!$E$2:$E$8270,Sheet3!CC$4,Sheet4!$A$2:$A$8270,Sheet3!$B$1,Sheet4!$B$2:$B$8270,Sheet3!$A$3) -> 0 | CD8: =+SUMIFS(Sheet4!$DM$2:$DM$8270,Sheet4!$C$2:$C$8270,Sheet3!$B8,Sheet4!$D$2:$D$8270,Sheet3!CD$3,Sheet4!$E$2:$E$8270,Sheet3!CD$4,Sheet4!$A$2:$A$8270,Sheet3!$B$1,Sheet4!$B$2:$B$8270,Sheet3!$A$3) -> 0 | CE8: =+SUMIFS(Sheet4!$DM$2:$DM$8270,Sheet4!$C$2:$C$8270,Sheet3!$B8,Sheet4!$D$2:$D$8270,Sheet3!CE$3,Sheet4!$E$2:$E$8270,Sheet3!CE$4,Sheet4!$A$2:$A$8270,Sheet3!$B$1,Sheet4!$B$2:$B$8270,Sheet3!$A$3) -> 0 | CF8: =+SUMIFS(Sheet4!$DM$2:$DM$8270,Sheet4!$C$2:$C$8270,Sheet3!$B8,Sheet4!$D$2:$D$8270,Sheet3!CF$3,Sheet4!$E$2:$E$8270,Sheet3!CF$4,Sheet4!$A$2:$A$8270,Sheet3!$B$1,Sheet4!$B$2:$B$8270,Sheet3!$A$3) -> 0 | CG8: =+SUMIFS(Sheet4!$DM$2:$DM$8270,Sheet4!$C$2:$C$8270,Sheet3!$B8,Sheet4!$D$2:$D$8270,Sheet3!CG$3,Sheet4!$E$2:$E$8270,Sheet3!CG$4,Sheet4!$A$2:$A$8270,Sheet3!$B$1,Sheet4!$B$2:$B$8270,Sheet3!$A$3) -> 0 | CH8: =+SUMIFS(Sheet4!$DM$2:$DM$8270,Sheet4!$C$2:$C$8270,Sheet3!$B8,Sheet4!$D$2:$D$8270,Sheet3!CH$3,Sheet4!$E$2:$E$8270,Sheet3!CH$4,Sheet4!$A$2:$A$8270,Sheet3!$B$1,Sheet4!$B$2:$B$8270,Sheet3!$A$3) -> 0 | CI8: =+SUMIFS(Sheet4!$DM$2:$DM$8270,Sheet4!$C$2:$C$8270,Sheet3!$B8,Sheet4!$D$2:$D$8270,Sheet3!CI$3,Sheet4!$E$2:$E$8270,Sheet3!CI$4,Sheet4!$A$2:$A$8270,Sheet3!$B$1,Sheet4!$B$2:$B$8270,Sheet3!$A$3) -> 0 | CJ8: =+SUMIFS(Sheet4!$DM$2:$DM$8270,Sheet4!$C$2:$C$8270,Sheet3!$B8,Sheet4!$D$2:$D$8270,Sheet3!CJ$3,Sheet4!$E$2:$E$8270,Sheet3!CJ$4,Sheet4!$A$2:$A$8270,Sheet3!$B$1,Sheet4!$B$2:$B$8270,Sheet3!$A$3) -> 0 | CK8: =+SUMIFS(Sheet4!$DM$2:$DM$8270,Sheet4!$C$2:$C$8270,Sheet3!$B8,Sheet4!$D$2:$D$8270,Sheet3!CK$3,Sheet4!$E$2:$E$8270,Sheet3!CK$4,Sheet4!$A$2:$A$8270,Sheet3!$B$1,Sheet4!$B$2:$B$8270,Sheet3!$A$3) -> 0 | CL8: =+SUMIFS(Sheet4!$DM$2:$DM$8270,Sheet4!$C$2:$C$8270,Sheet3!$B8,Sheet4!$D$2:$D$8270,Sheet3!CL$3,Sheet4!$E$2:$E$8270,Sheet3!CL$4,Sheet4!$A$2:$A$8270,Sheet3!$B$1,Sheet4!$B$2:$B$8270,Sheet3!$A$3) -> 0 | CM8: =+SUMIFS(Sheet4!$DM$2:$DM$8270,Sheet4!$C$2:$C$8270,Sheet3!$B8,Sheet4!$D$2:$D$8270,Sheet3!CM$3,Sheet4!$E$2:$E$8270,Sheet3!CM$4,Sheet4!$A$2:$A$8270,Sheet3!$B$1,Sheet4!$B$2:$B$8270,Sheet3!$A$3) -> 0 | CN8: =+SUMIFS(Sheet4!$DM$2:$DM$8270,Sheet4!$C$2:$C$8270,Sheet3!$B8,Sheet4!$D$2:$D$8270,Sheet3!CN$3,Sheet4!$E$2:$E$8270,Sheet3!CN$4,Sheet4!$A$2:$A$8270,Sheet3!$B$1,Sheet4!$B$2:$B$8270,Sheet3!$A$3) -> 0 | CO8: =+SUMIFS(Sheet4!$DM$2:$DM$8270,Sheet4!$C$2:$C$8270,Sheet3!$B8,Sheet4!$D$2:$D$8270,Sheet3!CO$3,Sheet4!$E$2:$E$8270,Sheet3!CO$4,Sheet4!$A$2:$A$8270,Sheet3!$B$1,Sheet4!$B$2:$B$8270,Sheet3!$A$3) -> 0 | CP8: =+IF(SUMIFS(Sheet4!$DN$2:$DN$8270,Sheet4!$C$2:$C$8270,Sheet3!$B8,Sheet4!$D$2:$D$8270,Sheet3!CP$3,Sheet4!$A$2:$A$8270,Sheet3!$B$1,Sheet4!$B$2:$B$8270,Sheet3!$A$3)<3,0,SUMIFS(Sheet4!$DN$2:$DN$8270,Sheet4!$C$2:$C$8270,Sheet3!$B8,Sheet4!$D$2:$D$8270,Sheet3!CP$3,Sheet4!$A$2:$A$8270,Sheet3!$B$1,Sheet4!$B$2:$B$8270,Sheet3!$A$3)) -> 3 | CQ8: =+IF(SUMIFS(Sheet4!$DN$2:$DN$8270,Sheet4!$C$2:$C$8270,Sheet3!$B8,Sheet4!$D$2:$D$8270,Sheet3!CQ$3,Sheet4!$A$2:$A$8270,Sheet3!$B$1,Sheet4!$B$2:$B$8270,Sheet3!$A$3)<3,0,SUMIFS(Sheet4!$DN$2:$DN$8270,Sheet4!$C$2:$C$8270,Sheet3!$B8,Sheet4!$D$2:$D$8270,Sheet3!CQ$3,Sheet4!$A$2:$A$8270,Sheet3!$B$1,Sheet4!$B$2:$B$8270,Sheet3!$A$3)) -> 335 | CR8: =+IF(SUMIFS(Sheet4!$DN$2:$DN$8270,Sheet4!$C$2:$C$8270,Sheet3!$B8,Sheet4!$D$2:$D$8270,Sheet3!CR$3,Sheet4!$A$2:$A$8270,Sheet3!$B$1,Sheet4!$B$2:$B$8270,Sheet3!$A$3)<3,0,SUMIFS(Sheet4!$DN$2:$DN$8270,Sheet4!$C$2:$C$8270,Sheet3!$B8,Sheet4!$D$2:$D$8270,Sheet3!CR$3,Sheet4!$A$2:$A$8270,Sheet3!$B$1,Sheet4!$B$2:$B$8270,Sheet3!$A$3)) -> 163 | CS8: =+IF(SUMIFS(Sheet4!$DN$2:$DN$8270,Sheet4!$C$2:$C$8270,Sheet3!$B8,Sheet4!$D$2:$D$8270,Sheet3!CS$3,Sheet4!$A$2:$A$8270,Sheet3!$B$1,Sheet4!$B$2:$B$8270,Sheet3!$A$3)<3,0,SUMIFS(Sheet4!$DN$2:$DN$8270,Sheet4!$C$2:$C$8270,Sheet3!$B8,Sheet4!$D$2:$D$8270,Sheet3!CS$3,Sheet4!$A$2:$A$8270,Sheet3!$B$1,Sheet4!$B$2:$B$8270,Sheet3!$A$3)) -> 0 | CT8: =+IF(SUMIFS(Sheet4!$DN$2:$DN$8270,Sheet4!$C$2:$C$8270,Sheet3!$B8,Sheet4!$D$2:$D$8270,Sheet3!CT$3,Sheet4!$A$2:$A$8270,Sheet3!$B$1,Sheet4!$B$2:$B$8270,Sheet3!$A$3)<3,0,SUMIFS(Sheet4!$DN$2:$DN$8270,Sheet4!$C$2:$C$8270,Sheet3!$B8,Sheet4!$D$2:$D$8270,Sheet3!CT$3,Sheet4!$A$2:$A$8270,Sheet3!$B$1,Sheet4!$B$2:$B$8270,Sheet3!$A$3)) -> 0 | CU8: =+IF(SUMIFS(Sheet4!$DN$2:$DN$8270,Sheet4!$C$2:$C$8270,Sheet3!$B8,Sheet4!$D$2:$D$8270,Sheet3!CU$3,Sheet4!$A$2:$A$8270,Sheet3!$B$1,Sheet4!$B$2:$B$8270,Sheet3!$A$3)<3,0,SUMIFS(Sheet4!$DN$2:$DN$8270,Sheet4!$C$2:$C$8270,Sheet3!$B8,Sheet4!$D$2:$D$8270,Sheet3!CU$3,Sheet4!$A$2:$A$8270,Sheet3!$B$1,Sheet4!$B$2:$B$8270,Sheet3!$A$3)) -> 163 | CV8: =+IF(SUMIFS(Sheet4!$DN$2:$DN$8270,Sheet4!$C$2:$C$8270,Sheet3!$B8,Sheet4!$D$2:$D$8270,Sheet3!CV$3,Sheet4!$A$2:$A$8270,Sheet3!$B$1,Sheet4!$B$2:$B$8270,Sheet3!$A$3)<3,0,SUMIFS(Sheet4!$DN$2:$DN$8270,Sheet4!$C$2:$C$8270,Sheet3!$B8,Sheet4!$D$2:$D$8270,Sheet3!CV$3,Sheet4!$A$2:$A$8270,Sheet3!$B$1,Sheet4!$B$2:$B$8270,Sheet3!$A$3)) -> 677 | CW8: =+IF(SUMIFS(Sheet4!$DN$2:$DN$8270,Sheet4!$C$2:$C$8270,Sheet3!$B8,Sheet4!$D$2:$D$8270,Sheet3!CW$3,Sheet4!$A$2:$A$8270,Sheet3!$B$1,Sheet4!$B$2:$B$8270,Sheet3!$A$3)<3,0,SUMIFS(Sheet4!$DN$2:$DN$8270,Sheet4!$C$2:$C$8270,Sheet3!$B8,Sheet4!$D$2:$D$8270,Sheet3!CW$3,Sheet4!$A$2:$A$8270,Sheet3!$B$1,Sheet4!$B$2:$B$8270,Sheet3!$A$3)) -> 165 | CX8: =+IF(SUMIFS(Sheet4!$DN$2:$DN$8270,Sheet4!$C$2:$C$8270,Sheet3!$B8,Sheet4!$D$2:$D$8270,Sheet3!CX$3,Sheet4!$A$2:$A$8270,Sheet3!$B$1,Sheet4!$B$2:$B$8270,Sheet3!$A$3)<3,0,SUMIFS(Sheet4!$DN$2:$DN$8270,Sheet4!$C$2:$C$8270,Sheet3!$B8,Sheet4!$D$2:$D$8270,Sheet3!CX$3,Sheet4!$A$2:$A$8270,Sheet3!$B$1,Sheet4!$B$2:$B$8270,Sheet3!$A$3)) -> 0 | CY8: =+IF(SUMIFS(Sheet4!$DN$2:$DN$8270,Sheet4!$C$2:$C$8270,Sheet3!$B8,Sheet4!$D$2:$D$8270,Sheet3!CY$3,Sheet4!$A$2:$A$8270,Sheet3!$B$1,Sheet4!$B$2:$B$8270,Sheet3!$A$3)<3,0,SUMIFS(Sheet4!$DN$2:$DN$8270,Sheet4!$C$2:$C$8270,Sheet3!$B8,Sheet4!$D$2:$D$8270,Sheet3!CY$3,Sheet4!$A$2:$A$8270,Sheet3!$B$1,Sheet4!$B$2:$B$8270,Sheet3!$A$3)) -> 2195 | CZ8: =+IF(SUMIFS(Sheet4!$DN$2:$DN$8270,Sheet4!$C$2:$C$8270,Sheet3!$B8,Sheet4!$D$2:$D$8270,Sheet3!CZ$3,Sheet4!$A$2:$A$8270,Sheet3!$B$1,Sheet4!$B$2:$B$8270,Sheet3!$A$3)<3,0,SUMIFS(Sheet4!$DN$2:$DN$8270,Sheet4!$C$2:$C$8270,Sheet3!$B8,Sheet4!$D$2:$D$8270,Sheet3!CZ$3,Sheet4!$A$2:$A$8270,Sheet3!$B$1,Sheet4!$B$2:$B$8270,Sheet3!$A$3)) -> 71 | DA8: =+IF(SUMIFS(Sheet4!$DN$2:$DN$8270,Sheet4!$C$2:$C$8270,Sheet3!$B8,Sheet4!$D$2:$D$8270,Sheet3!DA$3,Sheet4!$A$2:$A$8270,Sheet3!$B$1,Sheet4!$B$2:$B$8270,Sheet3!$A$3)<3,0,SUMIFS(Sheet4!$DN$2:$DN$8270,Sheet4!$C$2:$C$8270,Sheet3!$B8,Sheet4!$D$2:$D$8270,Sheet3!DA$3,Sheet4!$A$2:$A$8270,Sheet3!$B$1,Sheet4!$B$2:$B$8270,Sheet3!$A$3)) -> 415 | DB8: =+IF(SUMIFS(Sheet4!$DN$2:$DN$8270,Sheet4!$C$2:$C$8270,Sheet3!$B8,Sheet4!$D$2:$D$8270,Sheet3!DB$3,Sheet4!$A$2:$A$8270,Sheet3!$B$1,Sheet4!$B$2:$B$8270,Sheet3!$A$3)<3,0,SUMIFS(Sheet4!$DN$2:$DN$8270,Sheet4!$C$2:$C$8270,Sheet3!$B8,Sheet4!$D$2:$D$8270,Sheet3!DB$3,Sheet4!$A$2:$A$8270,Sheet3!$B$1,Sheet4!$B$2:$B$8270,Sheet3!$A$3)) -> 927 | DC8: =+IF(SUMIFS(Sheet4!$DN$2:$DN$8270,Sheet4!$C$2:$C$8270,Sheet3!$B8,Sheet4!$D$2:$D$8270,Sheet3!DC$3,Sheet4!$A$2:$A$8270,Sheet3!$B$1,Sheet4!$B$2:$B$8270,Sheet3!$A$3)<3,0,SUMIFS(Sheet4!$DN$2:$DN$8270,Sheet4!$C$2:$C$8270,Sheet3!$B8,Sheet4!$D$2:$D$8270,Sheet3!DC$3,Sheet4!$A$2:$A$8270,Sheet3!$B$1,Sheet4!$B$2:$B$8270,Sheet3!$A$3)) -> 1377 | DD8: =+IF(SUMIFS(Sheet4!$DN$2:$DN$8270,Sheet4!$C$2:$C$8270,Sheet3!$B8,Sheet4!$D$2:$D$8270,Sheet3!DD$3,Sheet4!$A$2:$A$8270,Sheet3!$B$1,Sheet4!$B$2:$B$8270,Sheet3!$A$3)<3,0,SUMIFS(Sheet4!$DN$2:$DN$8270,Sheet4!$C$2:$C$8270,Sheet3!$B8,Sheet4!$D$2:$D$8270,Sheet3!DD$3,Sheet4!$A$2:$A$8270,Sheet3!$B$1,Sheet4!$B$2:$B$8270,Sheet3!$A$3)) -> 1135 | DE8: =+IF(SUMIFS(Sheet4!$DN$2:$DN$8270,Sheet4!$C$2:$C$8270,Sheet3!$B8,Sheet4!$D$2:$D$8270,Sheet3!DE$3,Sheet4!$A$2:$A$8270,Sheet3!$B$1,Sheet4!$B$2:$B$8270,Sheet3!$A$3)<3,0,SUMIFS(Sheet4!$DN$2:$DN$8270,Sheet4!$C$2:$C$8270,Sheet3!$B8,Sheet4!$D$2:$D$8270,Sheet3!DE$3,Sheet4!$A$2:$A$8270,Sheet3!$B$1,Sheet4!$B$2:$B$8270,Sheet3!$A$3)) -> 357 | DF8: =+IF(SUMIFS(Sheet4!$DN$2:$DN$8270,Sheet4!$C$2:$C$8270,Sheet3!$B8,Sheet4!$D$2:$D$8270,Sheet3!DF$3,Sheet4!$A$2:$A$8270,Sheet3!$B$1,Sheet4!$B$2:$B$8270,Sheet3!$A$3)<3,0,SUMIFS(Sheet4!$DN$2:$DN$8270,Sheet4!$C$2:$C$8270,Sheet3!$B8,Sheet4!$D$2:$D$8270,Sheet3!DF$3,Sheet4!$A$2:$A$8270,Sheet3!$B$1,Sheet4!$B$2:$B$8270,Sheet3!$A$3)) -> 0 | DG8: =+IF(SUMIFS(Sheet4!$DN$2:$DN$8270,Sheet4!$C$2:$C$8270,Sheet3!$B8,Sheet4!$D$2:$D$8270,Sheet3!DG$3,Sheet4!$A$2:$A$8270,Sheet3!$B$1,Sheet4!$B$2:$B$8270,Sheet3!$A$3)<3,0,SUMIFS(Sheet4!$DN$2:$DN$8270,Sheet4!$C$2:$C$8270,Sheet3!$B8,Sheet4!$D$2:$D$8270,Sheet3!DG$3,Sheet4!$A$2:$A$8270,Sheet3!$B$1,Sheet4!$B$2:$B$8270,Sheet3!$A$3)) -> 0 | DH8: =+IF(SUMIFS(Sheet4!$DN$2:$DN$8270,Sheet4!$C$2:$C$8270,Sheet3!$B8,Sheet4!$E$2:$E$8270,Sheet3!DH$4,Sheet4!$A$2:$A$8270,Sheet3!$B$1,Sheet4!$B$2:$B$8270,Sheet3!$A$3)<3,0,SUMIFS(Sheet4!$DN$2:$DN$8270,Sheet4!$C$2:$C$8270,Sheet3!$B8,Sheet4!$E$2:$E$8270,Sheet3!DH$4,Sheet4!$A$2:$A$8270,Sheet3!$B$1,Sheet4!$B$2:$B$8270,Sheet3!$A$3)) -> 6623 | DI8: =+IF(SUMIFS(Sheet4!$DN$2:$DN$8270,Sheet4!$C$2:$C$8270,Sheet3!$B8,Sheet4!$E$2:$E$8270,Sheet3!DI$4,Sheet4!$A$2:$A$8270,Sheet3!$B$1,Sheet4!$B$2:$B$8270,Sheet3!$A$3)<3,0,SUMIFS(Sheet4!$DN$2:$DN$8270,Sheet4!$C$2:$C$8270,Sheet3!$B8,Sheet4!$E$2:$E$8270,Sheet3!DI$4,Sheet4!$A$2:$A$8270,Sheet3!$B$1,Sheet4!$B$2:$B$8270,Sheet3!$A$3)) -> 1143 | DJ8: =+IF(SUMIFS(Sheet4!$DN$2:$DN$8270,Sheet4!$C$2:$C$8270,Sheet3!$B8,Sheet4!$E$2:$E$8270,Sheet3!DJ$4,Sheet4!$A$2:$A$8270,Sheet3!$B$1,Sheet4!$B$2:$B$8270,Sheet3!$A$3)<3,0,SUMIFS(Sheet4!$DN$2:$DN$8270,Sheet4!$C$2:$C$8270,Sheet3!$B8,Sheet4!$E$2:$E$8270,Sheet3!DJ$4,Sheet4!$A$2:$A$8270,Sheet3!$B$1,Sheet4!$B$2:$B$8270,Sheet3!$A$3)) -> 205 | DK8: =+IF(SUMIFS(Sheet4!$DN$2:$DN$8270,Sheet4!$C$2:$C$8270,Sheet3!$B8,Sheet4!$E$2:$E$8270,Sheet3!DK$4,Sheet4!$A$2:$A$8270,Sheet3!$B$1,Sheet4!$B$2:$B$8270,Sheet3!$A$3)<3,0,SUMIFS(Sheet4!$DN$2:$DN$8270,Sheet4!$C$2:$C$8270,Sheet3!$B8,Sheet4!$E$2:$E$8270,Sheet3!DK$4,Sheet4!$A$2:$A$8270,Sheet3!$B$1,Sheet4!$B$2:$B$8270,Sheet3!$A$3)) -> 7 | DL8: =+IF(SUMIFS(Sheet4!$DN$2:$DN$8270,Sheet4!$C$2:$C$8270,Sheet3!$B8,Sheet4!$E$2:$E$8270,Sheet3!DL$4,Sheet4!$A$2:$A$8270,Sheet3!$B$1,Sheet4!$B$2:$B$8270,Sheet3!$A$3)<3,0,SUMIFS(Sheet4!$DN$2:$DN$8270,Sheet4!$C$2:$C$8270,Sheet3!$B8,Sheet4!$E$2:$E$8270,Sheet3!DL$4,Sheet4!$A$2:$A$8270,Sheet3!$B$1,Sheet4!$B$2:$B$8270,Sheet3!$A$3)) -> 5
A9: 1 | B9: 112 | C9: Cávado | D9: =+SUMIFS(Sheet4!$DM$2:$DM$8270,Sheet4!$C$2:$C$8270,Sheet3!$B9,Sheet4!$D$2:$D$8270,Sheet3!D$3,Sheet4!$E$2:$E$8270,Sheet3!D$4,Sheet4!$A$2:$A$8270,Sheet3!$B$1,Sheet4!$B$2:$B$8270,Sheet3!$A$3) -> 3 | E9: =+SUMIFS(Sheet4!$DM$2:$DM$8270,Sheet4!$C$2:$C$8270,Sheet3!$B9,Sheet4!$D$2:$D$8270,Sheet3!E$3,Sheet4!$E$2:$E$8270,Sheet3!E$4,Sheet4!$A$2:$A$8270,Sheet3!$B$1,Sheet4!$B$2:$B$8270,Sheet3!$A$3) -> 0 | F9: =+SUMIFS(Sheet4!$DM$2:$DM$8270,Sheet4!$C$2:$C$8270,Sheet3!$B9,Sheet4!$D$2:$D$8270,Sheet3!F$3,Sheet4!$E$2:$E$8270,Sheet3!F$4,Sheet4!$A$2:$A$8270,Sheet3!$B$1,Sheet4!$B$2:$B$8270,Sheet3!$A$3) -> 0 | G9: =+SUMIFS(Sheet4!$DM$2:$DM$8270,Sheet4!$C$2:$C$8270,Sheet3!$B9,Sheet4!$D$2:$D$8270,Sheet3!G$3,Sheet4!$E$2:$E$8270,Sheet3!G$4,Sheet4!$A$2:$A$8270,Sheet3!$B$1,Sheet4!$B$2:$B$8270,Sheet3!$A$3) -> 0 | H9: =+SUMIFS(Sheet4!$DM$2:$DM$8270,Sheet4!$C$2:$C$8270,Sheet3!$B9,Sheet4!$D$2:$D$8270,Sheet3!H$3,Sheet4!$E$2:$E$8270,Sheet3!H$4,Sheet4!$A$2:$A$8270,Sheet3!$B$1,Sheet4!$B$2:$B$8270,Sheet3!$A$3) -> 0 | I9: =+SUMIFS(Sheet4!$DM$2:$DM$8270,Sheet4!$C$2:$C$8270,Sheet3!$B9,Sheet4!$D$2:$D$8270,Sheet3!I$3,Sheet4!$E$2:$E$8270,Sheet3!I$4,Sheet4!$A$2:$A$8270,Sheet3!$B$1,Sheet4!$B$2:$B$8270,Sheet3!$A$3) -> 953 | J9: =+SUMIFS(Sheet4!$DM$2:$DM$8270,Sheet4!$C$2:$C$8270,Sheet3!$B9,Sheet4!$D$2:$D$8270,Sheet3!J$3,Sheet4!$E$2:$E$8270,Sheet3!J$4,Sheet4!$A$2:$A$8270,Sheet3!$B$1,Sheet4!$B$2:$B$8270,Sheet3!$A$3) -> 20 | K9: =+SUMIFS(Sheet4!$DM$2:$DM$8270,Sheet4!$C$2:$C$8270,Sheet3!$B9,Sheet4!$D$2:$D$8270,Sheet3!K$3,Sheet4!$E$2:$E$8270,Sheet3!K$4,Sheet4!$A$2:$A$8270,Sheet3!$B$1,Sheet4!$B$2:$B$8270,Sheet3!$A$3) -> 0 | L9: =+SUMIFS(Sheet4!$DM$2:$DM$8270,Sheet4!$C$2:$C$8270,Sheet3!$B9,Sheet4!$D$2:$D$8270,Sheet3!L$3,Sheet4!$E$2:$E$8270,Sheet3!L$4,Sheet4!$A$2:$A$8270,Sheet3!$B$1,Sheet4!$B$2:$B$8270,Sheet3!$A$3) -> 0 | M9: =+SUMIFS(Sheet4!$DM$2:$DM$8270,Sheet4!$C$2:$C$8270,Sheet3!$B9,Sheet4!$D$2:$D$8270,Sheet3!M$3,Sheet4!$E$2:$E$8270,Sheet3!M$4,Sheet4!$A$2:$A$8270,Sheet3!$B$1,Sheet4!$B$2:$B$8270,Sheet3!$A$3) -> 0 | N9: =+SUMIFS(Sheet4!$DM$2:$DM$8270,Sheet4!$C$2:$C$8270,Sheet3!$B9,Sheet4!$D$2:$D$8270,Sheet3!N$3,Sheet4!$E$2:$E$8270,Sheet3!N$4,Sheet4!$A$2:$A$8270,Sheet3!$B$1,Sheet4!$B$2:$B$8270,Sheet3!$A$3) -> 272 | O9: =+SUMIFS(Sheet4!$DM$2:$DM$8270,Sheet4!$C$2:$C$8270,Sheet3!$B9,Sheet4!$D$2:$D$8270,Sheet3!O$3,Sheet4!$E$2:$E$8270,Sheet3!O$4,Sheet4!$A$2:$A$8270,Sheet3!$B$1,Sheet4!$B$2:$B$8270,Sheet3!$A$3) -> 0 | P9: =+SUMIFS(Sheet4!$DM$2:$DM$8270,Sheet4!$C$2:$C$8270,Sheet3!$B9,Sheet4!$D$2:$D$8270,Sheet3!P$3,Sheet4!$E$2:$E$8270,Sheet3!P$4,Sheet4!$A$2:$A$8270,Sheet3!$B$1,Sheet4!$B$2:$B$8270,Sheet3!$A$3) -> 0 | Q9: =+SUMIFS(Sheet4!$DM$2:$DM$8270,Sheet4!$C$2:$C$8270,Sheet3!$B9,Sheet4!$D$2:$D$8270,Sheet3!Q$3,Sheet4!$E$2:$E$8270,Sheet3!Q$4,Sheet4!$A$2:$A$8270,Sheet3!$B$1,Sheet4!$B$2:$B$8270,Sheet3!$A$3) -> 0 | R9: =+SUMIFS(Sheet4!$DM$2:$DM$8270,Sheet4!$C$2:$C$8270,Sheet3!$B9,Sheet4!$D$2:$D$8270,Sheet3!R$3,Sheet4!$E$2:$E$8270,Sheet3!R$4,Sheet4!$A$2:$A$8270,Sheet3!$B$1,Sheet4!$B$2:$B$8270,Sheet3!$A$3) -> 0 | S9: =+SUMIFS(Sheet4!$DM$2:$DM$8270,Sheet4!$C$2:$C$8270,Sheet3!$B9,Sheet4!$D$2:$D$8270,Sheet3!S$3,Sheet4!$E$2:$E$8270,Sheet3!S$4,Sheet4!$A$2:$A$8270,Sheet3!$B$1,Sheet4!$B$2:$B$8270,Sheet3!$A$3) -> 0 | T9: =+SUMIFS(Sheet4!$DM$2:$DM$8270,Sheet4!$C$2:$C$8270,Sheet3!$B9,Sheet4!$D$2:$D$8270,Sheet3!T$3,Sheet4!$E$2:$E$8270,Sheet3!T$4,Sheet4!$A$2:$A$8270,Sheet3!$B$1,Sheet4!$B$2:$B$8270,Sheet3!$A$3) -> 0 | U9: =+SUMIFS(Sheet4!$DM$2:$DM$8270,Sheet4!$C$2:$C$8270,Sheet3!$B9,Sheet4!$D$2:$D$8270,Sheet3!U$3,Sheet4!$E$2:$E$8270,Sheet3!U$4,Sheet4!$A$2:$A$8270,Sheet3!$B$1,Sheet4!$B$2:$B$8270,Sheet3!$A$3) -> 0 | V9: =+SUMIFS(Sheet4!$DM$2:$DM$8270,Sheet4!$C$2:$C$8270,Sheet3!$B9,Sheet4!$D$2:$D$8270,Sheet3!V$3,Sheet4!$E$2:$E$8270,Sheet3!V$4,Sheet4!$A$2:$A$8270,Sheet3!$B$1,Sheet4!$B$2:$B$8270,Sheet3!$A$3) -> 0 | W9: =+SUMIFS(Sheet4!$DM$2:$DM$8270,Sheet4!$C$2:$C$8270,Sheet3!$B9,Sheet4!$D$2:$D$8270,Sheet3!W$3,Sheet4!$E$2:$E$8270,Sheet3!W$4,Sheet4!$A$2:$A$8270,Sheet3!$B$1,Sheet4!$B$2:$B$8270,Sheet3!$A$3) -> 0 | X9: =+SUMIFS(Sheet4!$DM$2:$DM$8270,Sheet4!$C$2:$C$8270,Sheet3!$B9,Sheet4!$D$2:$D$8270,Sheet3!X$3,Sheet4!$E$2:$E$8270,Sheet3!X$4,Sheet4!$A$2:$A$8270,Sheet3!$B$1,Sheet4!$B$2:$B$8270,Sheet3!$A$3) -> 0 | Y9: =+SUMIFS(Sheet4!$DM$2:$DM$8270,Sheet4!$C$2:$C$8270,Sheet3!$B9,Sheet4!$D$2:$D$8270,Sheet3!Y$3,Sheet4!$E$2:$E$8270,Sheet3!Y$4,Sheet4!$A$2:$A$8270,Sheet3!$B$1,Sheet4!$B$2:$B$8270,Sheet3!$A$3) -> 0 | Z9: =+SUMIFS(Sheet4!$DM$2:$DM$8270,Sheet4!$C$2:$C$8270,Sheet3!$B9,Sheet4!$D$2:$D$8270,Sheet3!Z$3,Sheet4!$E$2:$E$8270,Sheet3!Z$4,Sheet4!$A$2:$A$8270,Sheet3!$B$1,Sheet4!$B$2:$B$8270,Sheet3!$A$3) -> 0 | AA9: =+SUMIFS(Sheet4!$DM$2:$DM$8270,Sheet4!$C$2:$C$8270,Sheet3!$B9,Sheet4!$D$2:$D$8270,Sheet3!AA$3,Sheet4!$E$2:$E$8270,Sheet3!AA$4,Sheet4!$A$2:$A$8270,Sheet3!$B$1,Sheet4!$B$2:$B$8270,Sheet3!$A$3) -> 0 | AB9: =+SUMIFS(Sheet4!$DM$2:$DM$8270,Sheet4!$C$2:$C$8270,Sheet3!$B9,Sheet4!$D$2:$D$8270,Sheet3!AB$3,Sheet4!$E$2:$E$8270,Sheet3!AB$4,Sheet4!$A$2:$A$8270,Sheet3!$B$1,Sheet4!$B$2:$B$8270,Sheet3!$A$3) -> 0 | AC9: =+SUMIFS(Sheet4!$DM$2:$DM$8270,Sheet4!$C$2:$C$8270,Sheet3!$B9,Sheet4!$D$2:$D$8270,Sheet3!AC$3,Sheet4!$E$2:$E$8270,Sheet3!AC$4,Sheet4!$A$2:$A$8270,Sheet3!$B$1,Sheet4!$B$2:$B$8270,Sheet3!$A$3) -> 410 | AD9: =+SUMIFS(Sheet4!$DM$2:$DM$8270,Sheet4!$C$2:$C$8270,Sheet3!$B9,Sheet4!$D$2:$D$8270,Sheet3!AD$3,Sheet4!$E$2:$E$8270,Sheet3!AD$4,Sheet4!$A$2:$A$8270,Sheet3!$B$1,Sheet4!$B$2:$B$8270,Sheet3!$A$3) -> 7 | AE9: =+SUMIFS(Sheet4!$DM$2:$DM$8270,Sheet4!$C$2:$C$8270,Sheet3!$B9,Sheet4!$D$2:$D$8270,Sheet3!AE$3,Sheet4!$E$2:$E$8270,Sheet3!AE$4,Sheet4!$A$2:$A$8270,Sheet3!$B$1,Sheet4!$B$2:$B$8270,Sheet3!$A$3) -> 0 | AF9: =+SUMIFS(Sheet4!$DM$2:$DM$8270,Sheet4!$C$2:$C$8270,Sheet3!$B9,Sheet4!$D$2:$D$8270,Sheet3!AF$3,Sheet4!$E$2:$E$8270,Sheet3!AF$4,Sheet4!$A$2:$A$8270,Sheet3!$B$1,Sheet4!$B$2:$B$8270,Sheet3!$A$3) -> 0 | AG9: =+SUMIFS(Sheet4!$DM$2:$DM$8270,Sheet4!$C$2:$C$8270,Sheet3!$B9,Sheet4!$D$2:$D$8270,Sheet3!AG$3,Sheet4!$E$2:$E$8270,Sheet3!AG$4,Sheet4!$A$2:$A$8270,Sheet3!$B$1,Sheet4!$B$2:$B$8270,Sheet3!$A$3) -> 0 | AH9: =+SUMIFS(Sheet4!$DM$2:$DM$8270,Sheet4!$C$2:$C$8270,Sheet3!$B9,Sheet4!$D$2:$D$8270,Sheet3!AH$3,Sheet4!$E$2:$E$8270,Sheet3!AH$4,Sheet4!$A$2:$A$8270,Sheet3!$B$1,Sheet4!$B$2:$B$8270,Sheet3!$A$3) -> 68 | AI9: =+SUMIFS(Sheet4!$DM$2:$DM$8270,Sheet4!$C$2:$C$8270,Sheet3!$B9,Sheet4!$D$2:$D$8270,Sheet3!AI$3,Sheet4!$E$2:$E$8270,Sheet3!AI$4,Sheet4!$A$2:$A$8270,Sheet3!$B$1,Sheet4!$B$2:$B$8270,Sheet3!$A$3) -> 30 | AJ9: =+SUMIFS(Sheet4!$DM$2:$DM$8270,Sheet4!$C$2:$C$8270,Sheet3!$B9,Sheet4!$D$2:$D$8270,Sheet3!AJ$3,Sheet4!$E$2:$E$8270,Sheet3!AJ$4,Sheet4!$A$2:$A$8270,Sheet3!$B$1,Sheet4!$B$2:$B$8270,Sheet3!$A$3) -> 6 | AK9: =+SUMIFS(Sheet4!$DM$2:$DM$8270,Sheet4!$C$2:$C$8270,Sheet3!$B9,Sheet4!$D$2:$D$8270,Sheet3!AK$3,Sheet4!$E$2:$E$8270,Sheet3!AK$4,Sheet4!$A$2:$A$8270,Sheet3!$B$1,Sheet4!$B$2:$B$8270,Sheet3!$A$3) -> 0 | AL9: =+SUMIFS(Sheet4!$DM$2:$DM$8270,Sheet4!$C$2:$C$8270,Sheet3!$B9,Sheet4!$D$2:$D$8270,Sheet3!AL$3,Sheet4!$E$2:$E$8270,Sheet3!AL$4,Sheet4!$A$2:$A$8270,Sheet3!$B$1,Sheet4!$B$2:$B$8270,Sheet3!$A$3) -> 0 | AM9: =+SUMIFS(Sheet4!$DM$2:$DM$8270,Sheet4!$C$2:$C$8270,Sheet3!$B9,Sheet4!$D$2:$D$8270,Sheet3!AM$3,Sheet4!$E$2:$E$8270,Sheet3!AM$4,Sheet4!$A$2:$A$8270,Sheet3!$B$1,Sheet4!$B$2:$B$8270,Sheet3!$A$3) -> 225 | AN9: =+SUMIFS(Sheet4!$DM$2:$DM$8270,Sheet4!$C$2:$C$8270,Sheet3!$B9,Sheet4!$D$2:$D$8270,Sheet3!AN$3,Sheet4!$E$2:$E$8270,Sheet3!AN$4,Sheet4!$A$2:$A$8270,Sheet3!$B$1,Sheet4!$B$2:$B$8270,Sheet3!$A$3) -> 29 | AO9: =+SUMIFS(Sheet4!$DM$2:$DM$8270,Sheet4!$C$2:$C$8270,Sheet3!$B9,Sheet4!$D$2:$D$8270,Sheet3!AO$3,Sheet4!$E$2:$E$8270,Sheet3!AO$4,Sheet4!$A$2:$A$8270,Sheet3!$B$1,Sheet4!$B$2:$B$8270,Sheet3!$A$3) -> 0 | AP9: =+SUMIFS(Sheet4!$DM$2:$DM$8270,Sheet4!$C$2:$C$8270,Sheet3!$B9,Sheet4!$D$2:$D$8270,Sheet3!AP$3,Sheet4!$E$2:$E$8270,Sheet3!AP$4,Sheet4!$A$2:$A$8270,Sheet3!$B$1,Sheet4!$B$2:$B$8270,Sheet3!$A$3) -> 0 | AQ9: =+SUMIFS(Sheet4!$DM$2:$DM$8270,Sheet4!$C$2:$C$8270,Sheet3!$B9,Sheet4!$D$2:$D$8270,Sheet3!AQ$3,Sheet4!$E$2:$E$8270,Sheet3!AQ$4,Sheet4!$A$2:$A$8270,Sheet3!$B$1,Sheet4!$B$2:$B$8270,Sheet3!$A$3) -> 0 | AR9: =+SUMIFS(Sheet4!$DM$2:$DM$8270,Sheet4!$C$2:$C$8270,Sheet3!$B9,Sheet4!$D$2:$D$8270,Sheet3!AR$3,Sheet4!$E$2:$E$8270,Sheet3!AR$4,Sheet4!$A$2:$A$8270,Sheet3!$B$1,Sheet4!$B$2:$B$8270,Sheet3!$A$3) -> 0 | AS9: =+SUMIFS(Sheet4!$DM$2:$DM$8270,Sheet4!$C$2:$C$8270,Sheet3!$B9,Sheet4!$D$2:$D$8270,Sheet3!AS$3,Sheet4!$E$2:$E$8270,Sheet3!AS$4,Sheet4!$A$2:$A$8270,Sheet3!$B$1,Sheet4!$B$2:$B$8270,Sheet3!$A$3) -> 0 | AT9: =+SUMIFS(Sheet4!$DM$2:$DM$8270,Sheet4!$C$2:$C$8270,Sheet3!$B9,Sheet4!$D$2:$D$8270,Sheet3!AT$3,Sheet4!$E$2:$E$8270,Sheet3!AT$4,Sheet4!$A$2:$A$8270,Sheet3!$B$1,Sheet4!$B$2:$B$8270,Sheet3!$A$3) -> 0 | AU9: =+SUMIFS(Sheet4!$DM$2:$DM$8270,Sheet4!$C$2:$C$8270,Sheet3!$B9,Sheet4!$D$2:$D$8270,Sheet3!AU$3,Sheet4!$E$2:$E$8270,Sheet3!AU$4,Sheet4!$A$2:$A$8270,Sheet3!$B$1,Sheet4!$B$2:$B$8270,Sheet3!$A$3) -> 0 | AV9: =+SUMIFS(Sheet4!$DM$2:$DM$8270,Sheet4!$C$2:$C$8270,Sheet3!$B9,Sheet4!$D$2:$D$8270,Sheet3!AV$3,Sheet4!$E$2:$E$8270,Sheet3!AV$4,Sheet4!$A$2:$A$8270,Sheet3!$B$1,Sheet4!$B$2:$B$8270,Sheet3!$A$3) -> 0 | AW9: =+SUMIFS(Sheet4!$DM$2:$DM$8270,Sheet4!$C$2:$C$8270,Sheet3!$B9,Sheet4!$D$2:$D$8270,Sheet3!AW$3,Sheet4!$E$2:$E$8270,Sheet3!AW$4,Sheet4!$A$2:$A$8270,Sheet3!$B$1,Sheet4!$B$2:$B$8270,Sheet3!$A$3) -> 2000 | AX9: =+SUMIFS(Sheet4!$DM$2:$DM$8270,Sheet4!$C$2:$C$8270,Sheet3!$B9,Sheet4!$D$2:$D$8270,Sheet3!AX$3,Sheet4!$E$2:$E$8270,Sheet3!AX$4,Sheet4!$A$2:$A$8270,Sheet3!$B$1,Sheet4!$B$2:$B$8270,Sheet3!$A$3) -> 64 | AY9: =+SUMIFS(Sheet4!$DM$2:$DM$8270,Sheet4!$C$2:$C$8270,Sheet3!$B9,Sheet4!$D$2:$D$8270,Sheet3!AY$3,Sheet4!$E$2:$E$8270,Sheet3!AY$4,Sheet4!$A$2:$A$8270,Sheet3!$B$1,Sheet4!$B$2:$B$8270,Sheet3!$A$3) -> 0 | AZ9: =+SUMIFS(Sheet4!$DM$2:$DM$8270,Sheet4!$C$2:$C$8270,Sheet3!$B9,Sheet4!$D$2:$D$8270,Sheet3!AZ$3,Sheet4!$E$2:$E$8270,Sheet3!AZ$4,Sheet4!$A$2:$A$8270,Sheet3!$B$1,Sheet4!$B$2:$B$8270,Sheet3!$A$3) -> 0 | BA9: =+SUMIFS(Sheet4!$DM$2:$DM$8270,Sheet4!$C$2:$C$8270,Sheet3!$B9,Sheet4!$D$2:$D$8270,Sheet3!BA$3,Sheet4!$E$2:$E$8270,Sheet3!BA$4,Sheet4!$A$2:$A$8270,Sheet3!$B$1,Sheet4!$B$2:$B$8270,Sheet3!$A$3) -> 0 | BB9: =+SUMIFS(Sheet4!$DM$2:$DM$8270,Sheet4!$C$2:$C$8270,Sheet3!$B9,Sheet4!$D$2:$D$8270,Sheet3!BB$3,Sheet4!$E$2:$E$8270,Sheet3!BB$4,Sheet4!$A$2:$A$8270,Sheet3!$B$1,Sheet4!$B$2:$B$8270,Sheet3!$A$3) -> 139 | BC9: =+SUMIFS(Sheet4!$DM$2:$DM$8270,Sheet4!$C$2:$C$8270,Sheet3!$B9,Sheet4!$D$2:$D$8270,Sheet3!BC$3,Sheet4!$E$2:$E$8270,Sheet3!BC$4,Sheet4!$A$2:$A$8270,Sheet3!$B$1,Sheet4!$B$2:$B$8270,Sheet3!$A$3) -> 300 | BD9: =+SUMIFS(Sheet4!$DM$2:$DM$8270,Sheet4!$C$2:$C$8270,Sheet3!$B9,Sheet4!$D$2:$D$8270,Sheet3!BD$3,Sheet4!$E$2:$E$8270,Sheet3!BD$4,Sheet4!$A$2:$A$8270,Sheet3!$B$1,Sheet4!$B$2:$B$8270,Sheet3!$A$3) -> 14 | BE9: =+SUMIFS(Sheet4!$DM$2:$DM$8270,Sheet4!$C$2:$C$8270,Sheet3!$B9,Sheet4!$D$2:$D$8270,Sheet3!BE$3,Sheet4!$E$2:$E$8270,Sheet3!BE$4,Sheet4!$A$2:$A$8270,Sheet3!$B$1,Sheet4!$B$2:$B$8270,Sheet3!$A$3) -> 0 | BF9: =+SUMIFS(Sheet4!$DM$2:$DM$8270,Sheet4!$C$2:$C$8270,Sheet3!$B9,Sheet4!$D$2:$D$8270,Sheet3!BF$3,Sheet4!$E$2:$E$8270,Sheet3!BF$4,Sheet4!$A$2:$A$8270,Sheet3!$B$1,Sheet4!$B$2:$B$8270,Sheet3!$A$3) -> 0 | BG9: =+SUMIFS(Sheet4!$DM$2:$DM$8270,Sheet4!$C$2:$C$8270,Sheet3!$B9,Sheet4!$D$2:$D$8270,Sheet3!BG$3,Sheet4!$E$2:$E$8270,Sheet3!BG$4,Sheet4!$A$2:$A$8270,Sheet3!$B$1,Sheet4!$B$2:$B$8270,Sheet3!$A$3) -> 624 | BH9: =+SUMIFS(Sheet4!$DM$2:$DM$8270,Sheet4!$C$2:$C$8270,Sheet3!$B9,Sheet4!$D$2:$D$8270,Sheet3!BH$3,Sheet4!$E$2:$E$8270,Sheet3!BH$4,Sheet4!$A$2:$A$8270,Sheet3!$B$1,Sheet4!$B$2:$B$8270,Sheet3!$A$3) -> 126 | BI9: =+SUMIFS(Sheet4!$DM$2:$DM$8270,Sheet4!$C$2:$C$8270,Sheet3!$B9,Sheet4!$D$2:$D$8270,Sheet3!BI$3,Sheet4!$E$2:$E$8270,Sheet3!BI$4,Sheet4!$A$2:$A$8270,Sheet3!$B$1,Sheet4!$B$2:$B$8270,Sheet3!$A$3) -> 4 | BJ9: =+SUMIFS(Sheet4!$DM$2:$DM$8270,Sheet4!$C$2:$C$8270,Sheet3!$B9,Sheet4!$D$2:$D$8270,Sheet3!BJ$3,Sheet4!$E$2:$E$8270,Sheet3!BJ$4,Sheet4!$A$2:$A$8270,Sheet3!$B$1,Sheet4!$B$2:$B$8270,Sheet3!$A$3) -> 0 | BK9: =+SUMIFS(Sheet4!$DM$2:$DM$8270,Sheet4!$C$2:$C$8270,Sheet3!$B9,Sheet4!$D$2:$D$8270,Sheet3!BK$3,Sheet4!$E$2:$E$8270,Sheet3!BK$4,Sheet4!$A$2:$A$8270,Sheet3!$B$1,Sheet4!$B$2:$B$8270,Sheet3!$A$3) -> 0 | BL9: =+SUMIFS(Sheet4!$DM$2:$DM$8270,Sheet4!$C$2:$C$8270,Sheet3!$B9,Sheet4!$D$2:$D$8270,Sheet3!BL$3,Sheet4!$E$2:$E$8270,Sheet3!BL$4,Sheet4!$A$2:$A$8270,Sheet3!$B$1,Sheet4!$B$2:$B$8270,Sheet3!$A$3) -> 138 | BM9: =+SUMIFS(Sheet4!$DM$2:$DM$8270,Sheet4!$C$2:$C$8270,Sheet3!$B9,Sheet4!$D$2:$D$8270,Sheet3!BM$3,Sheet4!$E$2:$E$8270,Sheet3!BM$4,Sheet4!$A$2:$A$8270,Sheet3!$B$1,Sheet4!$B$2:$B$8270,Sheet3!$A$3) -> 91 | BN9: =+SUMIFS(Sheet4!$DM$2:$DM$8270,Sheet4!$C$2:$C$8270,Sheet3!$B9,Sheet4!$D$2:$D$8270,Sheet3!BN$3,Sheet4!$E$2:$E$8270,Sheet3!BN$4,Sheet4!$A$2:$A$8270,Sheet3!$B$1,Sheet4!$B$2:$B$8270,Sheet3!$A$3) -> 18 | BO9: =+SUMIFS(Sheet4!$DM$2:$DM$8270,Sheet4!$C$2:$C$8270,Sheet3!$B9,Sheet4!$D$2:$D$8270,Sheet3!BO$3,Sheet4!$E$2:$E$8270,Sheet3!BO$4,Sheet4!$A$2:$A$8270,Sheet3!$B$1,Sheet4!$B$2:$B$8270,Sheet3!$A$3) -> 0 | BP9: =+SUMIFS(Sheet4!$DM$2:$DM$8270,Sheet4!$C$2:$C$8270,Sheet3!$B9,Sheet4!$D$2:$D$8270,Sheet3!BP$3,Sheet4!$E$2:$E$8270,Sheet3!BP$4,Sheet4!$A$2:$A$8270,Sheet3!$B$1,Sheet4!$B$2:$B$8270,Sheet3!$A$3) -> 0 | BQ9: =+SUMIFS(Sheet4!$DM$2:$DM$8270,Sheet4!$C$2:$C$8270,Sheet3!$B9,Sheet4!$D$2:$D$8270,Sheet3!BQ$3,Sheet4!$E$2:$E$8270,Sheet3!BQ$4,Sheet4!$A$2:$A$8270,Sheet3!$B$1,Sheet4!$B$2:$B$8270,Sheet3!$A$3) -> 214 | BR9: =+SUMIFS(Sheet4!$DM$2:$DM$8270,Sheet4!$C$2:$C$8270,Sheet3!$B9,Sheet4!$D$2:$D$8270,Sheet3!BR$3,Sheet4!$E$2:$E$8270,Sheet3!BR$4,Sheet4!$A$2:$A$8270,Sheet3!$B$1,Sheet4!$B$2:$B$8270,Sheet3!$A$3) -> 74 | BS9: =+SUMIFS(Sheet4!$DM$2:$DM$8270,Sheet4!$C$2:$C$8270,Sheet3!$B9,Sheet4!$D$2:$D$8270,Sheet3!BS$3,Sheet4!$E$2:$E$8270,Sheet3!BS$4,Sheet4!$A$2:$A$8270,Sheet3!$B$1,Sheet4!$B$2:$B$8270,Sheet3!$A$3) -> 12 | BT9: =+SUMIFS(Sheet4!$DM$2:$DM$8270,Sheet4!$C$2:$C$8270,Sheet3!$B9,Sheet4!$D$2:$D$8270,Sheet3!BT$3,Sheet4!$E$2:$E$8270,Sheet3!BT$4,Sheet4!$A$2:$A$8270,Sheet3!$B$1,Sheet4!$B$2:$B$8270,Sheet3!$A$3) -> 0 | BU9: =+SUMIFS(Sheet4!$DM$2:$DM$8270,Sheet4!$C$2:$C$8270,Sheet3!$B9,Sheet4!$D$2:$D$8270,Sheet3!BU$3,Sheet4!$E$2:$E$8270,Sheet3!BU$4,Sheet4!$A$2:$A$8270,Sheet3!$B$1,Sheet4!$B$2:$B$8270,Sheet3!$A$3) -> 0 | BV9: =+SUMIFS(Sheet4!$DM$2:$DM$8270,Sheet4!$C$2:$C$8270,Sheet3!$B9,Sheet4!$D$2:$D$8270,Sheet3!BV$3,Sheet4!$E$2:$E$8270,Sheet3!BV$4,Sheet4!$A$2:$A$8270,Sheet3!$B$1,Sheet4!$B$2:$B$8270,Sheet3!$A$3) -> 599 | BW9: =+SUMIFS(Sheet4!$DM$2:$DM$8270,Sheet4!$C$2:$C$8270,Sheet3!$B9,Sheet4!$D$2:$D$8270,Sheet3!BW$3,Sheet4!$E$2:$E$8270,Sheet3!BW$4,Sheet4!$A$2:$A$8270,Sheet3!$B$1,Sheet4!$B$2:$B$8270,Sheet3!$A$3) -> 49 | BX9: =+SUMIFS(Sheet4!$DM$2:$DM$8270,Sheet4!$C$2:$C$8270,Sheet3!$B9,Sheet4!$D$2:$D$8270,Sheet3!BX$3,Sheet4!$E$2:$E$8270,Sheet3!BX$4,Sheet4!$A$2:$A$8270,Sheet3!$B$1,Sheet4!$B$2:$B$8270,Sheet3!$A$3) -> 0 | BY9: =+SUMIFS(Sheet4!$DM$2:$DM$8270,Sheet4!$C$2:$C$8270,Sheet3!$B9,Sheet4!$D$2:$D$8270,Sheet3!BY$3,Sheet4!$E$2:$E$8270,Sheet3!BY$4,Sheet4!$A$2:$A$8270,Sheet3!$B$1,Sheet4!$B$2:$B$8270,Sheet3!$A$3) -> 0 | BZ9: =+SUMIFS(Sheet4!$DM$2:$DM$8270,Sheet4!$C$2:$C$8270,Sheet3!$B9,Sheet4!$D$2:$D$8270,Sheet3!BZ$3,Sheet4!$E$2:$E$8270,Sheet3!BZ$4,Sheet4!$A$2:$A$8270,Sheet3!$B$1,Sheet4!$B$2:$B$8270,Sheet3!$A$3) -> 0 | CA9: =+SUMIFS(Sheet4!$DM$2:$DM$8270,Sheet4!$C$2:$C$8270,Sheet3!$B9,Sheet4!$D$2:$D$8270,Sheet3!CA$3,Sheet4!$E$2:$E$8270,Sheet3!CA$4,Sheet4!$A$2:$A$8270,Sheet3!$B$1,Sheet4!$B$2:$B$8270,Sheet3!$A$3) -> 723 | CB9: =+SUMIFS(Sheet4!$DM$2:$DM$8270,Sheet4!$C$2:$C$8270,Sheet3!$B9,Sheet4!$D$2:$D$8270,Sheet3!CB$3,Sheet4!$E$2:$E$8270,Sheet3!CB$4,Sheet4!$A$2:$A$8270,Sheet3!$B$1,Sheet4!$B$2:$B$8270,Sheet3!$A$3) -> 77 | CC9: =+SUMIFS(Sheet4!$DM$2:$DM$8270,Sheet4!$C$2:$C$8270,Sheet3!$B9,Sheet4!$D$2:$D$8270,Sheet3!CC$3,Sheet4!$E$2:$E$8270,Sheet3!CC$4,Sheet4!$A$2:$A$8270,Sheet3!$B$1,Sheet4!$B$2:$B$8270,Sheet3!$A$3) -> 0 | CD9: =+SUMIFS(Sheet4!$DM$2:$DM$8270,Sheet4!$C$2:$C$8270,Sheet3!$B9,Sheet4!$D$2:$D$8270,Sheet3!CD$3,Sheet4!$E$2:$E$8270,Sheet3!CD$4,Sheet4!$A$2:$A$8270,Sheet3!$B$1,Sheet4!$B$2:$B$8270,Sheet3!$A$3) -> 0 | CE9: =+SUMIFS(Sheet4!$DM$2:$DM$8270,Sheet4!$C$2:$C$8270,Sheet3!$B9,Sheet4!$D$2:$D$8270,Sheet3!CE$3,Sheet4!$E$2:$E$8270,Sheet3!CE$4,Sheet4!$A$2:$A$8270,Sheet3!$B$1,Sheet4!$B$2:$B$8270,Sheet3!$A$3) -> 0 | CF9: =+SUMIFS(Sheet4!$DM$2:$DM$8270,Sheet4!$C$2:$C$8270,Sheet3!$B9,Sheet4!$D$2:$D$8270,Sheet3!CF$3,Sheet4!$E$2:$E$8270,Sheet3!CF$4,Sheet4!$A$2:$A$8270,Sheet3!$B$1,Sheet4!$B$2:$B$8270,Sheet3!$A$3) -> 0 | CG9: =+SUMIFS(Sheet4!$DM$2:$DM$8270,Sheet4!$C$2:$C$8270,Sheet3!$B9,Sheet4!$D$2:$D$8270,Sheet3!CG$3,Sheet4!$E$2:$E$8270,Sheet3!CG$4,Sheet4!$A$2:$A$8270,Sheet3!$B$1,Sheet4!$B$2:$B$8270,Sheet3!$A$3) -> 0 | CH9: =+SUMIFS(Sheet4!$DM$2:$DM$8270,Sheet4!$C$2:$C$8270,Sheet3!$B9,Sheet4!$D$2:$D$8270,Sheet3!CH$3,Sheet4!$E$2:$E$8270,Sheet3!CH$4,Sheet4!$A$2:$A$8270,Sheet3!$B$1,Sheet4!$B$2:$B$8270,Sheet3!$A$3) -> 0 | CI9: =+SUMIFS(Sheet4!$DM$2:$DM$8270,Sheet4!$C$2:$C$8270,Sheet3!$B9,Sheet4!$D$2:$D$8270,Sheet3!CI$3,Sheet4!$E$2:$E$8270,Sheet3!CI$4,Sheet4!$A$2:$A$8270,Sheet3!$B$1,Sheet4!$B$2:$B$8270,Sheet3!$A$3) -> 0 | CJ9: =+SUMIFS(Sheet4!$DM$2:$DM$8270,Sheet4!$C$2:$C$8270,Sheet3!$B9,Sheet4!$D$2:$D$8270,Sheet3!CJ$3,Sheet4!$E$2:$E$8270,Sheet3!CJ$4,Sheet4!$A$2:$A$8270,Sheet3!$B$1,Sheet4!$B$2:$B$8270,Sheet3!$A$3) -> 0 | CK9: =+SUMIFS(Sheet4!$DM$2:$DM$8270,Sheet4!$C$2:$C$8270,Sheet3!$B9,Sheet4!$D$2:$D$8270,Sheet3!CK$3,Sheet4!$E$2:$E$8270,Sheet3!CK$4,Sheet4!$A$2:$A$8270,Sheet3!$B$1,Sheet4!$B$2:$B$8270,Sheet3!$A$3) -> 6 | CL9: =+SUMIFS(Sheet4!$DM$2:$DM$8270,Sheet4!$C$2:$C$8270,Sheet3!$B9,Sheet4!$D$2:$D$8270,Sheet3!CL$3,Sheet4!$E$2:$E$8270,Sheet3!CL$4,Sheet4!$A$2:$A$8270,Sheet3!$B$1,Sheet4!$B$2:$B$8270,Sheet3!$A$3) -> 0 | CM9: =+SUMIFS(Sheet4!$DM$2:$DM$8270,Sheet4!$C$2:$C$8270,Sheet3!$B9,Sheet4!$D$2:$D$8270,Sheet3!CM$3,Sheet4!$E$2:$E$8270,Sheet3!CM$4,Sheet4!$A$2:$A$8270,Sheet3!$B$1,Sheet4!$B$2:$B$8270,Sheet3!$A$3) -> 0 | CN9: =+SUMIFS(Sheet4!$DM$2:$DM$8270,Sheet4!$C$2:$C$8270,Sheet3!$B9,Sheet4!$D$2:$D$8270,Sheet3!CN$3,Sheet4!$E$2:$E$8270,Sheet3!CN$4,Sheet4!$A$2:$A$8270,Sheet3!$B$1,Sheet4!$B$2:$B$8270,Sheet3!$A$3) -> 0 | CO9: =+SUMIFS(Sheet4!$DM$2:$DM$8270,Sheet4!$C$2:$C$8270,Sheet3!$B9,Sheet4!$D$2:$D$8270,Sheet3!CO$3,Sheet4!$E$2:$E$8270,Sheet3!CO$4,Sheet4!$A$2:$A$8270,Sheet3!$B$1,Sheet4!$B$2:$B$8270,Sheet3!$A$3) -> 0 | CP9: =+IF(SUMIFS(Sheet4!$DN$2:$DN$8270,Sheet4!$C$2:$C$8270,Sheet3!$B9,Sheet4!$D$2:$D$8270,Sheet3!CP$3,Sheet4!$A$2:$A$8270,Sheet3!$B$1,Sheet4!$B$2:$B$8270,Sheet3!$A$3)<3,0,SUMIFS(Sheet4!$DN$2:$DN$8270,Sheet4!$C$2:$C$8270,Sheet3!$B9,Sheet4!$D$2:$D$8270,Sheet3!CP$3,Sheet4!$A$2:$A$8270,Sheet3!$B$1,Sheet4!$B$2:$B$8270,Sheet3!$A$3)) -> 4 | CQ9: =+IF(SUMIFS(Sheet4!$DN$2:$DN$8270,Sheet4!$C$2:$C$8270,Sheet3!$B9,Sheet4!$D$2:$D$8270,Sheet3!CQ$3,Sheet4!$A$2:$A$8270,Sheet3!$B$1,Sheet4!$B$2:$B$8270,Sheet3!$A$3)<3,0,SUMIFS(Sheet4!$DN$2:$DN$8270,Sheet4!$C$2:$C$8270,Sheet3!$B9,Sheet4!$D$2:$D$8270,Sheet3!CQ$3,Sheet4!$A$2:$A$8270,Sheet3!$B$1,Sheet4!$B$2:$B$8270,Sheet3!$A$3)) -> 976 | CR9: =+IF(SUMIFS(Sheet4!$DN$2:$DN$8270,Sheet4!$C$2:$C$8270,Sheet3!$B9,Sheet4!$D$2:$D$8270,Sheet3!CR$3,Sheet4!$A$2:$A$8270,Sheet3!$B$1,Sheet4!$B$2:$B$8270,Sheet3!$A$3)<3,0,SUMIFS(Sheet4!$DN$2:$DN$8270,Sheet4!$C$2:$C$8270,Sheet3!$B9,Sheet4!$D$2:$D$8270,Sheet3!CR$3,Sheet4!$A$2:$A$8270,Sheet3!$B$1,Sheet4!$B$2:$B$8270,Sheet3!$A$3)) -> 273 | CS9: =+IF(SUMIFS(Sheet4!$DN$2:$DN$8270,Sheet4!$C$2:$C$8270,Sheet3!$B9,Sheet4!$D$2:$D$8270,Sheet3!CS$3,Sheet4!$A$2:$A$8270,Sheet3!$B$1,Sheet4!$B$2:$B$8270,Sheet3!$A$3)<3,0,SUMIFS(Sheet4!$DN$2:$DN$8270,Sheet4!$C$2:$C$8270,Sheet3!$B9,Sheet4!$D$2:$D$8270,Sheet3!CS$3,Sheet4!$A$2:$A$8270,Sheet3!$B$1,Sheet4!$B$2:$B$8270,Sheet3!$A$3)) -> 0 | CT9: =+IF(SUMIFS(Sheet4!$DN$2:$DN$8270,Sheet4!$C$2:$C$8270,Sheet3!$B9,Sheet4!$D$2:$D$8270,Sheet3!CT$3,Sheet4!$A$2:$A$8270,Sheet3!$B$1,Sheet4!$B$2:$B$8270,Sheet3!$A$3)<3,0,SUMIFS(Sheet4!$DN$2:$DN$8270,Sheet4!$C$2:$C$8270,Sheet3!$B9,Sheet4!$D$2:$D$8270,Sheet3!CT$3,Sheet4!$A$2:$A$8270,Sheet3!$B$1,Sheet4!$B$2:$B$8270,Sheet3!$A$3)) -> 0 | CU9: =+IF(SUMIFS(Sheet4!$DN$2:$DN$8270,Sheet4!$C$2:$C$8270,Sheet3!$B9,Sheet4!$D$2:$D$8270,Sheet3!CU$3,Sheet4!$A$2:$A$8270,Sheet3!$B$1,Sheet4!$B$2:$B$8270,Sheet3!$A$3)<3,0,SUMIFS(Sheet4!$DN$2:$DN$8270,Sheet4!$C$2:$C$8270,Sheet3!$B9,Sheet4!$D$2:$D$8270,Sheet3!CU$3,Sheet4!$A$2:$A$8270,Sheet3!$B$1,Sheet4!$B$2:$B$8270,Sheet3!$A$3)) -> 419 | CV9: =+IF(SUMIFS(Sheet4!$DN$2:$DN$8270,Sheet4!$C$2:$C$8270,Sheet3!$B9,Sheet4!$D$2:$D$8270,Sheet3!CV$3,Sheet4!$A$2:$A$8270,Sheet3!$B$1,Sheet4!$B$2:$B$8270,Sheet3!$A$3)<3,0,SUMIFS(Sheet4!$DN$2:$DN$8270,Sheet4!$C$2:$C$8270,Sheet3!$B9,Sheet4!$D$2:$D$8270,Sheet3!CV$3,Sheet4!$A$2:$A$8270,Sheet3!$B$1,Sheet4!$B$2:$B$8270,Sheet3!$A$3)) -> 105 | CW9: =+IF(SUMIFS(Sheet4!$DN$2:$DN$8270,Sheet4!$C$2:$C$8270,Sheet3!$B9,Sheet4!$D$2:$D$8270,Sheet3!CW$3,Sheet4!$A$2:$A$8270,Sheet3!$B$1,Sheet4!$B$2:$B$8270,Sheet3!$A$3)<3,0,SUMIFS(Sheet4!$DN$2:$DN$8270,Sheet4!$C$2:$C$8270,Sheet3!$B9,Sheet4!$D$2:$D$8270,Sheet3!CW$3,Sheet4!$A$2:$A$8270,Sheet3!$B$1,Sheet4!$B$2:$B$8270,Sheet3!$A$3)) -> 256 | CX9: =+IF(SUMIFS(Sheet4!$DN$2:$DN$8270,Sheet4!$C$2:$C$8270,Sheet3!$B9,Sheet4!$D$2:$D$8270,Sheet3!CX$3,Sheet4!$A$2:$A$8270,Sheet3!$B$1,Sheet4!$B$2:$B$8270,Sheet3!$A$3)<3,0,SUMIFS(Sheet4!$DN$2:$DN$8270,Sheet4!$C$2:$C$8270,Sheet3!$B9,Sheet4!$D$2:$D$8270,Sheet3!CX$3,Sheet4!$A$2:$A$8270,Sheet3!$B$1,Sheet4!$B$2:$B$8270,Sheet3!$A$3)) -> 0 | CY9: =+IF(SUMIFS(Sheet4!$DN$2:$DN$8270,Sheet4!$C$2:$C$8270,Sheet3!$B9,Sheet4!$D$2:$D$8270,Sheet3!CY$3,Sheet4!$A$2:$A$8270,Sheet3!$B$1,Sheet4!$B$2:$B$8270,Sheet3!$A$3)<3,0,SUMIFS(Sheet4!$DN$2:$DN$8270,Sheet4!$C$2:$C$8270,Sheet3!$B9,Sheet4!$D$2:$D$8270,Sheet3!CY$3,Sheet4!$A$2:$A$8270,Sheet3!$B$1,Sheet4!$B$2:$B$8270,Sheet3!$A$3)) -> 2067 | CZ9: =+IF(SUMIFS(Sheet4!$DN$2:$DN$8270,Sheet4!$C$2:$C$8270,Sheet3!$B9,Sheet4!$D$2:$D$8270,Sheet3!CZ$3,Sheet4!$A$2:$A$8270,Sheet3!$B$1,Sheet4!$B$2:$B$8270,Sheet3!$A$3)<3,0,SUMIFS(Sheet4!$DN$2:$DN$8270,Sheet4!$C$2:$C$8270,Sheet3!$B9,Sheet4!$D$2:$D$8270,Sheet3!CZ$3,Sheet4!$A$2:$A$8270,Sheet3!$B$1,Sheet4!$B$2:$B$8270,Sheet3!$A$3)) -> 453 | DA9: =+IF(SUMIFS(Sheet4!$DN$2:$DN$8270,Sheet4!$C$2:$C$8270,Sheet3!$B9,Sheet4!$D$2:$D$8270,Sheet3!DA$3,Sheet4!$A$2:$A$8270,Sheet3!$B$1,Sheet4!$B$2:$B$8270,Sheet3!$A$3)<3,0,SUMIFS(Sheet4!$DN$2:$DN$8270,Sheet4!$C$2:$C$8270,Sheet3!$B9,Sheet4!$D$2:$D$8270,Sheet3!DA$3,Sheet4!$A$2:$A$8270,Sheet3!$B$1,Sheet4!$B$2:$B$8270,Sheet3!$A$3)) -> 758 | DB9: =+IF(SUMIFS(Sheet4!$DN$2:$DN$8270,Sheet4!$C$2:$C$8270,Sheet3!$B9,Sheet4!$D$2:$D$8270,Sheet3!DB$3,Sheet4!$A$2:$A$8270,Sheet3!$B$1,Sheet4!$B$2:$B$8270,Sheet3!$A$3)<3,0,SUMIFS(Sheet4!$DN$2:$DN$8270,Sheet4!$C$2:$C$8270,Sheet3!$B9,Sheet4!$D$2:$D$8270,Sheet3!DB$3,Sheet4!$A$2:$A$8270,Sheet3!$B$1,Sheet4!$B$2:$B$8270,Sheet3!$A$3)) -> 250 | DC9: =+IF(SUMIFS(Sheet4!$DN$2:$DN$8270,Sheet4!$C$2:$C$8270,Sheet3!$B9,Sheet4!$D$2:$D$8270,Sheet3!DC$3,Sheet4!$A$2:$A$8270,Sheet3!$B$1,Sheet4!$B$2:$B$8270,Sheet3!$A$3)<3,0,SUMIFS(Sheet4!$DN$2:$DN$8270,Sheet4!$C$2:$C$8270,Sheet3!$B9,Sheet4!$D$2:$D$8270,Sheet3!DC$3,Sheet4!$A$2:$A$8270,Sheet3!$B$1,Sheet4!$B$2:$B$8270,Sheet3!$A$3)) -> 301 | DD9: =+IF(SUMIFS(Sheet4!$DN$2:$DN$8270,Sheet4!$C$2:$C$8270,Sheet3!$B9,Sheet4!$D$2:$D$8270,Sheet3!DD$3,Sheet4!$A$2:$A$8270,Sheet3!$B$1,Sheet4!$B$2:$B$8270,Sheet3!$A$3)<3,0,SUMIFS(Sheet4!$DN$2:$DN$8270,Sheet4!$C$2:$C$8270,Sheet3!$B9,Sheet4!$D$2:$D$8270,Sheet3!DD$3,Sheet4!$A$2:$A$8270,Sheet3!$B$1,Sheet4!$B$2:$B$8270,Sheet3!$A$3)) -> 650 | DE9: =+IF(SUMIFS(Sheet4!$DN$2:$DN$8270,Sheet4!$C$2:$C$8270,Sheet3!$B9,Sheet4!$D$2:$D$8270,Sheet3!DE$3,Sheet4!$A$2:$A$8270,Sheet3!$B$1,Sheet4!$B$2:$B$8270,Sheet3!$A$3)<3,0,SUMIFS(Sheet4!$DN$2:$DN$8270,Sheet4!$C$2:$C$8270,Sheet3!$B9,Sheet4!$D$2:$D$8270,Sheet3!DE$3,Sheet4!$A$2:$A$8270,Sheet3!$B$1,Sheet4!$B$2:$B$8270,Sheet3!$A$3)) -> 804 | DF9: =+IF(SUMIFS(Sheet4!$DN$2:$DN$8270,Sheet4!$C$2:$C$8270,Sheet3!$B9,Sheet4!$D$2:$D$8270,Sheet3!DF$3,Sheet4!$A$2:$A$8270,Sheet3!$B$1,Sheet4!$B$2:$B$8270,Sheet3!$A$3)<3,0,SUMIFS(Sheet4!$DN$2:$DN$8270,Sheet4!$C$2:$C$8270,Sheet3!$B9,Sheet4!$D$2:$D$8270,Sheet3!DF$3,Sheet4!$A$2:$A$8270,Sheet3!$B$1,Sheet4!$B$2:$B$8270,Sheet3!$A$3)) -> 0 | DG9: =+IF(SUMIFS(Sheet4!$DN$2:$DN$8270,Sheet4!$C$2:$C$8270,Sheet3!$B9,Sheet4!$D$2:$D$8270,Sheet3!DG$3,Sheet4!$A$2:$A$8270,Sheet3!$B$1,Sheet4!$B$2:$B$8270,Sheet3!$A$3)<3,0,SUMIFS(Sheet4!$DN$2:$DN$8270,Sheet4!$C$2:$C$8270,Sheet3!$B9,Sheet4!$D$2:$D$8270,Sheet3!DG$3,Sheet4!$A$2:$A$8270,Sheet3!$B$1,Sheet4!$B$2:$B$8270,Sheet3!$A$3)) -> 6 | DH9: =+IF(SUMIFS(Sheet4!$DN$2:$DN$8270,Sheet4!$C$2:$C$8270,Sheet3!$B9,Sheet4!$E$2:$E$8270,Sheet3!DH$4,Sheet4!$A$2:$A$8270,Sheet3!$B$1,Sheet4!$B$2:$B$8270,Sheet3!$A$3)<3,0,SUMIFS(Sheet4!$DN$2:$DN$8270,Sheet4!$C$2:$C$8270,Sheet3!$B9,Sheet4!$E$2:$E$8270,Sheet3!DH$4,Sheet4!$A$2:$A$8270,Sheet3!$B$1,Sheet4!$B$2:$B$8270,Sheet3!$A$3)) -> 6383 | DI9: =+IF(SUMIFS(Sheet4!$DN$2:$DN$8270,Sheet4!$C$2:$C$8270,Sheet3!$B9,Sheet4!$E$2:$E$8270,Sheet3!DI$4,Sheet4!$A$2:$A$8270,Sheet3!$B$1,Sheet4!$B$2:$B$8270,Sheet3!$A$3)<3,0,SUMIFS(Sheet4!$DN$2:$DN$8270,Sheet4!$C$2:$C$8270,Sheet3!$B9,Sheet4!$E$2:$E$8270,Sheet3!DI$4,Sheet4!$A$2:$A$8270,Sheet3!$B$1,Sheet4!$B$2:$B$8270,Sheet3!$A$3)) -> 883 | DJ9: =+IF(SUMIFS(Sheet4!$DN$2:$DN$8270,Sheet4!$C$2:$C$8270,Sheet3!$B9,Sheet4!$E$2:$E$8270,Sheet3!DJ$4,Sheet4!$A$2:$A$8270,Sheet3!$B$1,Sheet4!$B$2:$B$8270,Sheet3!$A$3)<3,0,SUMIFS(Sheet4!$DN$2:$DN$8270,Sheet4!$C$2:$C$8270,Sheet3!$B9,Sheet4!$E$2:$E$8270,Sheet3!DJ$4,Sheet4!$A$2:$A$8270,Sheet3!$B$1,Sheet4!$B$2:$B$8270,Sheet3!$A$3)) -> 56 | DK9: =+IF(SUMIFS(Sheet4!$DN$2:$DN$8270,Sheet4!$C$2:$C$8270,Sheet3!$B9,Sheet4!$E$2:$E$8270,Sheet3!DK$4,Sheet4!$A$2:$A$8270,Sheet3!$B$1,Sheet4!$B$2:$B$8270,Sheet3!$A$3)<3,0,SUMIFS(Sheet4!$DN$2:$DN$8270,Sheet4!$C$2:$C$8270,Sheet3!$B9,Sheet4!$E$2:$E$8270,Sheet3!DK$4,Sheet4!$A$2:$A$8270,Sheet3!$B$1,Sheet4!$B$2:$B$8270,Sheet3!$A$3)) -> 0 | DL9: =+IF(SUMIFS(Sheet4!$DN$2:$DN$8270,Sheet4!$C$2:$C$8270,Sheet3!$B9,Sheet4!$E$2:$E$8270,Sheet3!DL$4,Sheet4!$A$2:$A$8270,Sheet3!$B$1,Sheet4!$B$2:$B$8270,Sheet3!$A$3)<3,0,SUMIFS(Sheet4!$DN$2:$DN$8270,Sheet4!$C$2:$C$8270,Sheet3!$B9,Sheet4!$E$2:$E$8270,Sheet3!DL$4,Sheet4!$A$2:$A$8270,Sheet3!$B$1,Sheet4!$B$2:$B$8270,Sheet3!$A$3)) -> 0
A10: 1 | B10: 119 | C10: Ave | D10: =+SUMIFS(Sheet4!$DM$2:$DM$8270,Sheet4!$C$2:$C$8270,Sheet3!$B10,Sheet4!$D$2:$D$8270,Sheet3!D$3,Sheet4!$E$2:$E$8270,Sheet3!D$4,Sheet4!$A$2:$A$8270,Sheet3!$B$1,Sheet4!$B$2:$B$8270,Sheet3!$A$3) -> 0 | E10: =+SUMIFS(Sheet4!$DM$2:$DM$8270,Sheet4!$C$2:$C$8270,Sheet3!$B10,Sheet4!$D$2:$D$8270,Sheet3!E$3,Sheet4!$E$2:$E$8270,Sheet3!E$4,Sheet4!$A$2:$A$8270,Sheet3!$B$1,Sheet4!$B$2:$B$8270,Sheet3!$A$3) -> 0 | F10: =+SUMIFS(Sheet4!$DM$2:$DM$8270,Sheet4!$C$2:$C$8270,Sheet3!$B10,Sheet4!$D$2:$D$8270,Sheet3!F$3,Sheet4!$E$2:$E$8270,Sheet3!F$4,Sheet4!$A$2:$A$8270,Sheet3!$B$1,Sheet4!$B$2:$B$8270,Sheet3!$A$3) -> 0 | G10: =+SUMIFS(Sheet4!$DM$2:$DM$8270,Sheet4!$C$2:$C$8270,Sheet3!$B10,Sheet4!$D$2:$D$8270,Sheet3!G$3,Sheet4!$E$2:$E$8270,Sheet3!G$4,Sheet4!$A$2:$A$8270,Sheet3!$B$1,Sheet4!$B$2:$B$8270,Sheet3!$A$3) -> 0 | H10: =+SUMIFS(Sheet4!$DM$2:$DM$8270,Sheet4!$C$2:$C$8270,Sheet3!$B10,Sheet4!$D$2:$D$8270,Sheet3!H$3,Sheet4!$E$2:$E$8270,Sheet3!H$4,Sheet4!$A$2:$A$8270,Sheet3!$B$1,Sheet4!$B$2:$B$8270,Sheet3!$A$3) -> 0 | I10: =+SUMIFS(Sheet4!$DM$2:$DM$8270,Sheet4!$C$2:$C$8270,Sheet3!$B10,Sheet4!$D$2:$D$8270,Sheet3!I$3,Sheet4!$E$2:$E$8270,Sheet3!I$4,Sheet4!$A$2:$A$8270,Sheet3!$B$1,Sheet4!$B$2:$B$8270,Sheet3!$A$3) -> 555 | J10: =+SUMIFS(Sheet4!$DM$2:$DM$8270,Sheet4!$C$2:$C$8270,Sheet3!$B10,Sheet4!$D$2:$D$8270,Sheet3!J$3,Sheet4!$E$2:$E$8270,Sheet3!J$4,Sheet4!$A$2:$A$8270,Sheet3!$B$1,Sheet4!$B$2:$B$8270,Sheet3!$A$3) -> 18 | K10: =+SUMIFS(Sheet4!$DM$2:$DM$8270,Sheet4!$C$2:$C$8270,Sheet3!$B10,Sheet4!$D$2:$D$8270,Sheet3!K$3,Sheet4!$E$2:$E$8270,Sheet3!K$4,Sheet4!$A$2:$A$8270,Sheet3!$B$1,Sheet4!$B$2:$B$8270,Sheet3!$A$3) -> 0 | L10: =+SUMIFS(Sheet4!$DM$2:$DM$8270,Sheet4!$C$2:$C$8270,Sheet3!$B10,Sheet4!$D$2:$D$8270,Sheet3!L$3,Sheet4!$E$2:$E$8270,Sheet3!L$4,Sheet4!$A$2:$A$8270,Sheet3!$B$1,Sheet4!$B$2:$B$8270,Sheet3!$A$3) -> 0 | M10: =+SUMIFS(Sheet4!$DM$2:$DM$8270,Sheet4!$C$2:$C$8270,Sheet3!$B10,Sheet4!$D$2:$D$8270,Sheet3!M$3,Sheet4!$E$2:$E$8270,Sheet3!M$4,Sheet4!$A$2:$A$8270,Sheet3!$B$1,Sheet4!$B$2:$B$8270,Sheet3!$A$3) -> 0 | N10: =+SUMIFS(Sheet4!$DM$2:$DM$8270,Sheet4!$C$2:$C$8270,Sheet3!$B10,Sheet4!$D$2:$D$8270,Sheet3!N$3,Sheet4!$E$2:$E$8270,Sheet3!N$4,Sheet4!$A$2:$A$8270,Sheet3!$B$1,Sheet4!$B$2:$B$8270,Sheet3!$A$3) -> 85 | O10: =+SUMIFS(Sheet4!$DM$2:$DM$8270,Sheet4!$C$2:$C$8270,Sheet3!$B10,Sheet4!$D$2:$D$8270,Sheet3!O$3,Sheet4!$E$2:$E$8270,Sheet3!O$4,Sheet4!$A$2:$A$8270,Sheet3!$B$1,Sheet4!$B$2:$B$8270,Sheet3!$A$3) -> 5 | P10: =+SUMIFS(Sheet4!$DM$2:$DM$8270,Sheet4!$C$2:$C$8270,Sheet3!$B10,Sheet4!$D$2:$D$8270,Sheet3!P$3,Sheet4!$E$2:$E$8270,Sheet3!P$4,Sheet4!$A$2:$A$8270,Sheet3!$B$1,Sheet4!$B$2:$B$8270,Sheet3!$A$3) -> 0 | Q10: =+SUMIFS(Sheet4!$DM$2:$DM$8270,Sheet4!$C$2:$C$8270,Sheet3!$B10,Sheet4!$D$2:$D$8270,Sheet3!Q$3,Sheet4!$E$2:$E$8270,Sheet3!Q$4,Sheet4!$A$2:$A$8270,Sheet3!$B$1,Sheet4!$B$2:$B$8270,Sheet3!$A$3) -> 0 | R10: =+SUMIFS(Sheet4!$DM$2:$DM$8270,Sheet4!$C$2:$C$8270,Sheet3!$B10,Sheet4!$D$2:$D$8270,Sheet3!R$3,Sheet4!$E$2:$E$8270,Sheet3!R$4,Sheet4!$A$2:$A$8270,Sheet3!$B$1,Sheet4!$B$2:$B$8270,Sheet3!$A$3) -> 0 | S10: =+SUMIFS(Sheet4!$DM$2:$DM$8270,Sheet4!$C$2:$C$8270,Sheet3!$B10,Sheet4!$D$2:$D$8270,Sheet3!S$3,Sheet4!$E$2:$E$8270,Sheet3!S$4,Sheet4!$A$2:$A$8270,Sheet3!$B$1,Sheet4!$B$2:$B$8270,Sheet3!$A$3) -> 0 | T10: =+SUMIFS(Sheet4!$DM$2:$DM$8270,Sheet4!$C$2:$C$8270,Sheet3!$B10,Sheet4!$D$2:$D$8270,Sheet3!T$3,Sheet4!$E$2:$E$8270,Sheet3!T$4,Sheet4!$A$2:$A$8270,Sheet3!$B$1,Sheet4!$B$2:$B$8270,Sheet3!$A$3) -> 0 | U10: =+SUMIFS(Sheet4!$DM$2:$DM$8270,Sheet4!$C$2:$C$8270,Sheet3!$B10,Sheet4!$D$2:$D$8270,Sheet3!U$3,Sheet4!$E$2:$E$8270,Sheet3!U$4,Sheet4!$A$2:$A$8270,Sheet3!$B$1,Sheet4!$B$2:$B$8270,Sheet3!$A$3) -> 0 | V10: =+SUMIFS(Sheet4!$DM$2:$DM$8270,Sheet4!$C$2:$C$8270,Sheet3!$B10,Sheet4!$D$2:$D$8270,Sheet3!V$3,Sheet4!$E$2:$E$8270,Sheet3!V$4,Sheet4!$A$2:$A$8270,Sheet3!$B$1,Sheet4!$B$2:$B$8270,Sheet3!$A$3) -> 0 | W10: =+SUMIFS(Sheet4!$DM$2:$DM$8270,Sheet4!$C$2:$C$8270,Sheet3!$B10,Sheet4!$D$2:$D$8270,Sheet3!W$3,Sheet4!$E$2:$E$8270,Sheet3!W$4,Sheet4!$A$2:$A$8270,Sheet3!$B$1,Sheet4!$B$2:$B$8270,Sheet3!$A$3) -> 0 | X10: =+SUMIFS(Sheet4!$DM$2:$DM$8270,Sheet4!$C$2:$C$8270,Sheet3!$B10,Sheet4!$D$2:$D$8270,Sheet3!X$3,Sheet4!$E$2:$E$8270,Sheet3!X$4,Sheet4!$A$2:$A$8270,Sheet3!$B$1,Sheet4!$B$2:$B$8270,Sheet3!$A$3) -> 0 | Y10: =+SUMIFS(Sheet4!$DM$2:$DM$8270,Sheet4!$C$2:$C$8270,Sheet3!$B10,Sheet4!$D$2:$D$8270,Sheet3!Y$3,Sheet4!$E$2:$E$8270,Sheet3!Y$4,Sheet4!$A$2:$A$8270,Sheet3!$B$1,Sheet4!$B$2:$B$8270,Sheet3!$A$3) -> 0 | Z10: =+SUMIFS(Sheet4!$DM$2:$DM$8270,Sheet4!$C$2:$C$8270,Sheet3!$B10,Sheet4!$D$2:$D$8270,Sheet3!Z$3,Sheet4!$E$2:$E$8270,Sheet3!Z$4,Sheet4!$A$2:$A$8270,Sheet3!$B$1,Sheet4!$B$2:$B$8270,Sheet3!$A$3) -> 0 | AA10: =+SUMIFS(Sheet4!$DM$2:$DM$8270,Sheet4!$C$2:$C$8270,Sheet3!$B10,Sheet4!$D$2:$D$8270,Sheet3!AA$3,Sheet4!$E$2:$E$8270,Sheet3!AA$4,Sheet4!$A$2:$A$8270,Sheet3!$B$1,Sheet4!$B$2:$B$8270,Sheet3!$A$3) -> 0 | AB10: =+SUMIFS(Sheet4!$DM$2:$DM$8270,Sheet4!$C$2:$C$8270,Sheet3!$B10,Sheet4!$D$2:$D$8270,Sheet3!AB$3,Sheet4!$E$2:$E$8270,Sheet3!AB$4,Sheet4!$A$2:$A$8270,Sheet3!$B$1,Sheet4!$B$2:$B$8270,Sheet3!$A$3) -> 0 | AC10: =+SUMIFS(Sheet4!$DM$2:$DM$8270,Sheet4!$C$2:$C$8270,Sheet3!$B10,Sheet4!$D$2:$D$8270,Sheet3!AC$3,Sheet4!$E$2:$E$8270,Sheet3!AC$4,Sheet4!$A$2:$A$8270,Sheet3!$B$1,Sheet4!$B$2:$B$8270,Sheet3!$A$3) -> 101 | AD10: =+SUMIFS(Sheet4!$DM$2:$DM$8270,Sheet4!$C$2:$C$8270,Sheet3!$B10,Sheet4!$D$2:$D$8270,Sheet3!AD$3,Sheet4!$E$2:$E$8270,Sheet3!AD$4,Sheet4!$A$2:$A$8270,Sheet3!$B$1,Sheet4!$B$2:$B$8270,Sheet3!$A$3) -> 8 | AE10: =+SUMIFS(Sheet4!$DM$2:$DM$8270,Sheet4!$C$2:$C$8270,Sheet3!$B10,Sheet4!$D$2:$D$8270,Sheet3!AE$3,Sheet4!$E$2:$E$8270,Sheet3!AE$4,Sheet4!$A$2:$A$8270,Sheet3!$B$1,Sheet4!$B$2:$B$8270,Sheet3!$A$3) -> 0 | AF10: =+SUMIFS(Sheet4!$DM$2:$DM$8270,Sheet4!$C$2:$C$8270,Sheet3!$B10,Sheet4!$D$2:$D$8270,Sheet3!AF$3,Sheet4!$E$2:$E$8270,Sheet3!AF$4,Sheet4!$A$2:$A$8270,Sheet3!$B$1,Sheet4!$B$2:$B$8270,Sheet3!$A$3) -> 0 | AG10: =+SUMIFS(Sheet4!$DM$2:$DM$8270,Sheet4!$C$2:$C$8270,Sheet3!$B10,Sheet4!$D$2:$D$8270,Sheet3!AG$3,Sheet4!$E$2:$E$8270,Sheet3!AG$4,Sheet4!$A$2:$A$8270,Sheet3!$B$1,Sheet4!$B$2:$B$8270,Sheet3!$A$3) -> 0 | AH10: =+SUMIFS(Sheet4!$DM$2:$DM$8270,Sheet4!$C$2:$C$8270,Sheet3!$B10,Sheet4!$D$2:$D$8270,Sheet3!AH$3,Sheet4!$E$2:$E$8270,Sheet3!AH$4,Sheet4!$A$2:$A$8270,Sheet3!$B$1,Sheet4!$B$2:$B$8270,Sheet3!$A$3) -> 173 | AI10: =+SUMIFS(Sheet4!$DM$2:$DM$8270,Sheet4!$C$2:$C$8270,Sheet3!$B10,Sheet4!$D$2:$D$8270,Sheet3!AI$3,Sheet4!$E$2:$E$8270,Sheet3!AI$4,Sheet4!$A$2:$A$8270,Sheet3!$B$1,Sheet4!$B$2:$B$8270,Sheet3!$A$3) -> 64 | AJ10: =+SUMIFS(Sheet4!$DM$2:$DM$8270,Sheet4!$C$2:$C$8270,Sheet3!$B10,Sheet4!$D$2:$D$8270,Sheet3!AJ$3,Sheet4!$E$2:$E$8270,Sheet3!AJ$4,Sheet4!$A$2:$A$8270,Sheet3!$B$1,Sheet4!$B$2:$B$8270,Sheet3!$A$3) -> 7 | AK10: =+SUMIFS(Sheet4!$DM$2:$DM$8270,Sheet4!$C$2:$C$8270,Sheet3!$B10,Sheet4!$D$2:$D$8270,Sheet3!AK$3,Sheet4!$E$2:$E$8270,Sheet3!AK$4,Sheet4!$A$2:$A$8270,Sheet3!$B$1,Sheet4!$B$2:$B$8270,Sheet3!$A$3) -> 0 | AL10: =+SUMIFS(Sheet4!$DM$2:$DM$8270,Sheet4!$C$2:$C$8270,Sheet3!$B10,Sheet4!$D$2:$D$8270,Sheet3!AL$3,Sheet4!$E$2:$E$8270,Sheet3!AL$4,Sheet4!$A$2:$A$8270,Sheet3!$B$1,Sheet4!$B$2:$B$8270,Sheet3!$A$3) -> 0 | AM10: =+SUMIFS(Sheet4!$DM$2:$DM$8270,Sheet4!$C$2:$C$8270,Sheet3!$B10,Sheet4!$D$2:$D$8270,Sheet3!AM$3,Sheet4!$E$2:$E$8270,Sheet3!AM$4,Sheet4!$A$2:$A$8270,Sheet3!$B$1,Sheet4!$B$2:$B$8270,Sheet3!$A$3) -> 147 | AN10: =+SUMIFS(Sheet4!$DM$2:$DM$8270,Sheet4!$C$2:$C$8270,Sheet3!$B10,Sheet4!$D$2:$D$8270,Sheet3!AN$3,Sheet4!$E$2:$E$8270,Sheet3!AN$4,Sheet4!$A$2:$A$8270,Sheet3!$B$1,Sheet4!$B$2:$B$8270,Sheet3!$A$3) -> 28 | AO10: =+SUMIFS(Sheet4!$DM$2:$DM$8270,Sheet4!$C$2:$C$8270,Sheet3!$B10,Sheet4!$D$2:$D$8270,Sheet3!AO$3,Sheet4!$E$2:$E$8270,Sheet3!AO$4,Sheet4!$A$2:$A$8270,Sheet3!$B$1,Sheet4!$B$2:$B$8270,Sheet3!$A$3) -> 4 | AP10: =+SUMIFS(Sheet4!$DM$2:$DM$8270,Sheet4!$C$2:$C$8270,Sheet3!$B10,Sheet4!$D$2:$D$8270,Sheet3!AP$3,Sheet4!$E$2:$E$8270,Sheet3!AP$4,Sheet4!$A$2:$A$8270,Sheet3!$B$1,Sheet4!$B$2:$B$8270,Sheet3!$A$3) -> 0 | AQ10: =+SUMIFS(Sheet4!$DM$2:$DM$8270,Sheet4!$C$2:$C$8270,Sheet3!$B10,Sheet4!$D$2:$D$8270,Sheet3!AQ$3,Sheet4!$E$2:$E$8270,Sheet3!AQ$4,Sheet4!$A$2:$A$8270,Sheet3!$B$1,Sheet4!$B$2:$B$8270,Sheet3!$A$3) -> 0 | AR10: =+SUMIFS(Sheet4!$DM$2:$DM$8270,Sheet4!$C$2:$C$8270,Sheet3!$B10,Sheet4!$D$2:$D$8270,Sheet3!AR$3,Sheet4!$E$2:$E$8270,Sheet3!AR$4,Sheet4!$A$2:$A$8270,Sheet3!$B$1,Sheet4!$B$2:$B$8270,Sheet3!$A$3) -> 0 | AS10: =+SUMIFS(Sheet4!$DM$2:$DM$8270,Sheet4!$C$2:$C$8270,Sheet3!$B10,Sheet4!$D$2:$D$8270,Sheet3!AS$3,Sheet4!$E$2:$E$8270,Sheet3!AS$4,Sheet4!$A$2:$A$8270,Sheet3!$B$1,Sheet4!$B$2:$B$8270,Sheet3!$A$3) -> 0 | AT10: =+SUMIFS(Sheet4!$DM$2:$DM$8270,Sheet4!$C$2:$C$8270,Sheet3!$B10,Sheet4!$D$2:$D$8270,Sheet3!AT$3,Sheet4!$E$2:$E$8270,Sheet3!AT$4,Sheet4!$A$2:$A$8270,Sheet3!$B$1,Sheet4!$B$2:$B$8270,Sheet3!$A$3) -> 0 | AU10: =+SUMIFS(Sheet4!$DM$2:$DM$8270,Sheet4!$C$2:$C$8270,Sheet3!$B10,Sheet4!$D$2:$D$8270,Sheet3!AU$3,Sheet4!$E$2:$E$8270,Sheet3!AU$4,Sheet4!$A$2:$A$8270,Sheet3!$B$1,Sheet4!$B$2:$B$8270,Sheet3!$A$3) -> 0 | AV10: =+SUMIFS(Sheet4!$DM$2:$DM$8270,Sheet4!$C$2:$C$8270,Sheet3!$B10,Sheet4!$D$2:$D$8270,Sheet3!AV$3,Sheet4!$E$2:$E$8270,Sheet3!AV$4,Sheet4!$A$2:$A$8270,Sheet3!$B$1,Sheet4!$B$2:$B$8270,Sheet3!$A$3) -> 0 | AW10: =+SUMIFS(Sheet4!$DM$2:$DM$8270,Sheet4!$C$2:$C$8270,Sheet3!$B10,Sheet4!$D$2:$D$8270,Sheet3!AW$3,Sheet4!$E$2:$E$8270,Sheet3!AW$4,Sheet4!$A$2:$A$8270,Sheet3!$B$1,Sheet4!$B$2:$B$8270,Sheet3!$A$3) -> 729 | AX10: =+SUMIFS(Sheet4!$DM$2:$DM$8270,Sheet4!$C$2:$C$8270,Sheet3!$B10,Sheet4!$D$2:$D$8270,Sheet3!AX$3,Sheet4!$E$2:$E$8270,Sheet3!AX$4,Sheet4!$A$2:$A$8270,Sheet3!$B$1,Sheet4!$B$2:$B$8270,Sheet3!$A$3) -> 54 | AY10: =+SUMIFS(Sheet4!$DM$2:$DM$8270,Sheet4!$C$2:$C$8270,Sheet3!$B10,Sheet4!$D$2:$D$8270,Sheet3!AY$3,Sheet4!$E$2:$E$8270,Sheet3!AY$4,Sheet4!$A$2:$A$8270,Sheet3!$B$1,Sheet4!$B$2:$B$8270,Sheet3!$A$3) -> 6 | AZ10: =+SUMIFS(Sheet4!$DM$2:$DM$8270,Sheet4!$C$2:$C$8270,Sheet3!$B10,Sheet4!$D$2:$D$8270,Sheet3!AZ$3,Sheet4!$E$2:$E$8270,Sheet3!AZ$4,Sheet4!$A$2:$A$8270,Sheet3!$B$1,Sheet4!$B$2:$B$8270,Sheet3!$A$3) -> 0 | BA10: =+SUMIFS(Sheet4!$DM$2:$DM$8270,Sheet4!$C$2:$C$8270,Sheet3!$B10,Sheet4!$D$2:$D$8270,Sheet3!BA$3,Sheet4!$E$2:$E$8270,Sheet3!BA$4,Sheet4!$A$2:$A$8270,Sheet3!$B$1,Sheet4!$B$2:$B$8270,Sheet3!$A$3) -> 0 | BB10: =+SUMIFS(Sheet4!$DM$2:$DM$8270,Sheet4!$C$2:$C$8270,Sheet3!$B10,Sheet4!$D$2:$D$8270,Sheet3!BB$3,Sheet4!$E$2:$E$8270,Sheet3!BB$4,Sheet4!$A$2:$A$8270,Sheet3!$B$1,Sheet4!$B$2:$B$8270,Sheet3!$A$3) -> 37 | BC10: =+SUMIFS(Sheet4!$DM$2:$DM$8270,Sheet4!$C$2:$C$8270,Sheet3!$B10,Sheet4!$D$2:$D$8270,Sheet3!BC$3,Sheet4!$E$2:$E$8270,Sheet3!BC$4,Sheet4!$A$2:$A$8270,Sheet3!$B$1,Sheet4!$B$2:$B$8270,Sheet3!$A$3) -> 105 | BD10: =+SUMIFS(Sheet4!$DM$2:$DM$8270,Sheet4!$C$2:$C$8270,Sheet3!$B10,Sheet4!$D$2:$D$8270,Sheet3!BD$3,Sheet4!$E$2:$E$8270,Sheet3!BD$4,Sheet4!$A$2:$A$8270,Sheet3!$B$1,Sheet4!$B$2:$B$8270,Sheet3!$A$3) -> 4 | BE10: =+SUMIFS(Sheet4!$DM$2:$DM$8270,Sheet4!$C$2:$C$8270,Sheet3!$B10,Sheet4!$D$2:$D$8270,Sheet3!BE$3,Sheet4!$E$2:$E$8270,Sheet3!BE$4,Sheet4!$A$2:$A$8270,Sheet3!$B$1,Sheet4!$B$2:$B$8270,Sheet3!$A$3) -> 0 | BF10: =+SUMIFS(Sheet4!$DM$2:$DM$8270,Sheet4!$C$2:$C$8270,Sheet3!$B10,Sheet4!$D$2:$D$8270,Sheet3!BF$3,Sheet4!$E$2:$E$8270,Sheet3!BF$4,Sheet4!$A$2:$A$8270,Sheet3!$B$1,Sheet4!$B$2:$B$8270,Sheet3!$A$3) -> 0 | BG10: =+SUMIFS(Sheet4!$DM$2:$DM$8270,Sheet4!$C$2:$C$8270,Sheet3!$B10,Sheet4!$D$2:$D$8270,Sheet3!BG$3,Sheet4!$E$2:$E$8270,Sheet3!BG$4,Sheet4!$A$2:$A$8270,Sheet3!$B$1,Sheet4!$B$2:$B$8270,Sheet3!$A$3) -> 337 | BH10: =+SUMIFS(Sheet4!$DM$2:$DM$8270,Sheet4!$C$2:$C$8270,Sheet3!$B10,Sheet4!$D$2:$D$8270,Sheet3!BH$3,Sheet4!$E$2:$E$8270,Sheet3!BH$4,Sheet4!$A$2:$A$8270,Sheet3!$B$1,Sheet4!$B$2:$B$8270,Sheet3!$A$3) -> 107 | BI10: =+SUMIFS(Sheet4!$DM$2:$DM$8270,Sheet4!$C$2:$C$8270,Sheet3!$B10,Sheet4!$D$2:$D$8270,Sheet3!BI$3,Sheet4!$E$2:$E$8270,Sheet3!BI$4,Sheet4!$A$2:$A$8270,Sheet3!$B$1,Sheet4!$B$2:$B$8270,Sheet3!$A$3) -> 5 | BJ10: =+SUMIFS(Sheet4!$DM$2:$DM$8270,Sheet4!$C$2:$C$8270,Sheet3!$B10,Sheet4!$D$2:$D$8270,Sheet3!BJ$3,Sheet4!$E$2:$E$8270,Sheet3!BJ$4,Sheet4!$A$2:$A$8270,Sheet3!$B$1,Sheet4!$B$2:$B$8270,Sheet3!$A$3) -> 0 | BK10: =+SUMIFS(Sheet4!$DM$2:$DM$8270,Sheet4!$C$2:$C$8270,Sheet3!$B10,Sheet4!$D$2:$D$8270,Sheet3!BK$3,Sheet4!$E$2:$E$8270,Sheet3!BK$4,Sheet4!$A$2:$A$8270,Sheet3!$B$1,Sheet4!$B$2:$B$8270,Sheet3!$A$3) -> 0 | BL10: =+SUMIFS(Sheet4!$DM$2:$DM$8270,Sheet4!$C$2:$C$8270,Sheet3!$B10,Sheet4!$D$2:$D$8270,Sheet3!BL$3,Sheet4!$E$2:$E$8270,Sheet3!BL$4,Sheet4!$A$2:$A$8270,Sheet3!$B$1,Sheet4!$B$2:$B$8270,Sheet3!$A$3) -> 171 | BM10: =+SUMIFS(Sheet4!$DM$2:$DM$8270,Sheet4!$C$2:$C$8270,Sheet3!$B10,Sheet4!$D$2:$D$8270,Sheet3!BM$3,Sheet4!$E$2:$E$8270,Sheet3!BM$4,Sheet4!$A$2:$A$8270,Sheet3!$B$1,Sheet4!$B$2:$B$8270,Sheet3!$A$3) -> 322 | BN10: =+SUMIFS(Sheet4!$DM$2:$DM$8270,Sheet4!$C$2:$C$8270,Sheet3!$B10,Sheet4!$D$2:$D$8270,Sheet3!BN$3,Sheet4!$E$2:$E$8270,Sheet3!BN$4,Sheet4!$A$2:$A$8270,Sheet3!$B$1,Sheet4!$B$2:$B$8270,Sheet3!$A$3) -> 34 | BO10: =+SUMIFS(Sheet4!$DM$2:$DM$8270,Sheet4!$C$2:$C$8270,Sheet3!$B10,Sheet4!$D$2:$D$8270,Sheet3!BO$3,Sheet4!$E$2:$E$8270,Sheet3!BO$4,Sheet4!$A$2:$A$8270,Sheet3!$B$1,Sheet4!$B$2:$B$8270,Sheet3!$A$3) -> 0 | BP10: =+SUMIFS(Sheet4!$DM$2:$DM$8270,Sheet4!$C$2:$C$8270,Sheet3!$B10,Sheet4!$D$2:$D$8270,Sheet3!BP$3,Sheet4!$E$2:$E$8270,Sheet3!BP$4,Sheet4!$A$2:$A$8270,Sheet3!$B$1,Sheet4!$B$2:$B$8270,Sheet3!$A$3) -> 0 | BQ10: =+SUMIFS(Sheet4!$DM$2:$DM$8270,Sheet4!$C$2:$C$8270,Sheet3!$B10,Sheet4!$D$2:$D$8270,Sheet3!BQ$3,Sheet4!$E$2:$E$8270,Sheet3!BQ$4,Sheet4!$A$2:$A$8270,Sheet3!$B$1,Sheet4!$B$2:$B$8270,Sheet3!$A$3) -> 388 | BR10: =+SUMIFS(Sheet4!$DM$2:$DM$8270,Sheet4!$C$2:$C$8270,Sheet3!$B10,Sheet4!$D$2:$D$8270,Sheet3!BR$3,Sheet4!$E$2:$E$8270,Sheet3!BR$4,Sheet4!$A$2:$A$8270,Sheet3!$B$1,Sheet4!$B$2:$B$8270,Sheet3!$A$3) -> 318 | BS10: =+SUMIFS(Sheet4!$DM$2:$DM$8270,Sheet4!$C$2:$C$8270,Sheet3!$B10,Sheet4!$D$2:$D$8270,Sheet3!BS$3,Sheet4!$E$2:$E$8270,Sheet3!BS$4,Sheet4!$A$2:$A$8270,Sheet3!$B$1,Sheet4!$B$2:$B$8270,Sheet3!$A$3) -> 53 | BT10: =+SUMIFS(Sheet4!$DM$2:$DM$8270,Sheet4!$C$2:$C$8270,Sheet3!$B10,Sheet4!$D$2:$D$8270,Sheet3!BT$3,Sheet4!$E$2:$E$8270,Sheet3!BT$4,Sheet4!$A$2:$A$8270,Sheet3!$B$1,Sheet4!$B$2:$B$8270,Sheet3!$A$3) -> 0 | BU10: =+SUMIFS(Sheet4!$DM$2:$DM$8270,Sheet4!$C$2:$C$8270,Sheet3!$B10,Sheet4!$D$2:$D$8270,Sheet3!BU$3,Sheet4!$E$2:$E$8270,Sheet3!BU$4,Sheet4!$A$2:$A$8270,Sheet3!$B$1,Sheet4!$B$2:$B$8270,Sheet3!$A$3) -> 0 | BV10: =+SUMIFS(Sheet4!$DM$2:$DM$8270,Sheet4!$C$2:$C$8270,Sheet3!$B10,Sheet4!$D$2:$D$8270,Sheet3!BV$3,Sheet4!$E$2:$E$8270,Sheet3!BV$4,Sheet4!$A$2:$A$8270,Sheet3!$B$1,Sheet4!$B$2:$B$8270,Sheet3!$A$3) -> 355 | BW10: =+SUMIFS(Sheet4!$DM$2:$DM$8270,Sheet4!$C$2:$C$8270,Sheet3!$B10,Sheet4!$D$2:$D$8270,Sheet3!BW$3,Sheet4!$E$2:$E$8270,Sheet3!BW$4,Sheet4!$A$2:$A$8270,Sheet3!$B$1,Sheet4!$B$2:$B$8270,Sheet3!$A$3) -> 78 | BX10: =+SUMIFS(Sheet4!$DM$2:$DM$8270,Sheet4!$C$2:$C$8270,Sheet3!$B10,Sheet4!$D$2:$D$8270,Sheet3!BX$3,Sheet4!$E$2:$E$8270,Sheet3!BX$4,Sheet4!$A$2:$A$8270,Sheet3!$B$1,Sheet4!$B$2:$B$8270,Sheet3!$A$3) -> 8 | BY10: =+SUMIFS(Sheet4!$DM$2:$DM$8270,Sheet4!$C$2:$C$8270,Sheet3!$B10,Sheet4!$D$2:$D$8270,Sheet3!BY$3,Sheet4!$E$2:$E$8270,Sheet3!BY$4,Sheet4!$A$2:$A$8270,Sheet3!$B$1,Sheet4!$B$2:$B$8270,Sheet3!$A$3) -> 0 | BZ10: =+SUMIFS(Sheet4!$DM$2:$DM$8270,Sheet4!$C$2:$C$8270,Sheet3!$B10,Sheet4!$D$2:$D$8270,Sheet3!BZ$3,Sheet4!$E$2:$E$8270,Sheet3!BZ$4,Sheet4!$A$2:$A$8270,Sheet3!$B$1,Sheet4!$B$2:$B$8270,Sheet3!$A$3) -> 0 | CA10: =+SUMIFS(Sheet4!$DM$2:$DM$8270,Sheet4!$C$2:$C$8270,Sheet3!$B10,Sheet4!$D$2:$D$8270,Sheet3!CA$3,Sheet4!$E$2:$E$8270,Sheet3!CA$4,Sheet4!$A$2:$A$8270,Sheet3!$B$1,Sheet4!$B$2:$B$8270,Sheet3!$A$3) -> 528 | CB10: =+SUMIFS(Sheet4!$DM$2:$DM$8270,Sheet4!$C$2:$C$8270,Sheet3!$B10,Sheet4!$D$2:$D$8270,Sheet3!CB$3,Sheet4!$E$2:$E$8270,Sheet3!CB$4,Sheet4!$A$2:$A$8270,Sheet3!$B$1,Sheet4!$B$2:$B$8270,Sheet3!$A$3) -> 54 | CC10: =+SUMIFS(Sheet4!$DM$2:$DM$8270,Sheet4!$C$2:$C$8270,Sheet3!$B10,Sheet4!$D$2:$D$8270,Sheet3!CC$3,Sheet4!$E$2:$E$8270,Sheet3!CC$4,Sheet4!$A$2:$A$8270,Sheet3!$B$1,Sheet4!$B$2:$B$8270,Sheet3!$A$3) -> 0 | CD10: =+SUMIFS(Sheet4!$DM$2:$DM$8270,Sheet4!$C$2:$C$8270,Sheet3!$B10,Sheet4!$D$2:$D$8270,Sheet3!CD$3,Sheet4!$E$2:$E$8270,Sheet3!CD$4,Sheet4!$A$2:$A$8270,Sheet3!$B$1,Sheet4!$B$2:$B$8270,Sheet3!$A$3) -> 0 | CE10: =+SUMIFS(Sheet4!$DM$2:$DM$8270,Sheet4!$C$2:$C$8270,Sheet3!$B10,Sheet4!$D$2:$D$8270,Sheet3!CE$3,Sheet4!$E$2:$E$8270,Sheet3!CE$4,Sheet4!$A$2:$A$8270,Sheet3!$B$1,Sheet4!$B$2:$B$8270,Sheet3!$A$3) -> 0 | CF10: =+SUMIFS(Sheet4!$DM$2:$DM$8270,Sheet4!$C$2:$C$8270,Sheet3!$B10,Sheet4!$D$2:$D$8270,Sheet3!CF$3,Sheet4!$E$2:$E$8270,Sheet3!CF$4,Sheet4!$A$2:$A$8270,Sheet3!$B$1,Sheet4!$B$2:$B$8270,Sheet3!$A$3) -> 0 | CG10: =+SUMIFS(Sheet4!$DM$2:$DM$8270,Sheet4!$C$2:$C$8270,Sheet3!$B10,Sheet4!$D$2:$D$8270,Sheet3!CG$3,Sheet4!$E$2:$E$8270,Sheet3!CG$4,Sheet4!$A$2:$A$8270,Sheet3!$B$1,Sheet4!$B$2:$B$8270,Sheet3!$A$3) -> 0 | CH10: =+SUMIFS(Sheet4!$DM$2:$DM$8270,Sheet4!$C$2:$C$8270,Sheet3!$B10,Sheet4!$D$2:$D$8270,Sheet3!CH$3,Sheet4!$E$2:$E$8270,Sheet3!CH$4,Sheet4!$A$2:$A$8270,Sheet3!$B$1,Sheet4!$B$2:$B$8270,Sheet3!$A$3) -> 0 | CI10: =+SUMIFS(Sheet4!$DM$2:$DM$8270,Sheet4!$C$2:$C$8270,Sheet3!$B10,Sheet4!$D$2:$D$8270,Sheet3!CI$3,Sheet4!$E$2:$E$8270,Sheet3!CI$4,Sheet4!$A$2:$A$8270,Sheet3!$B$1,Sheet4!$B$2:$B$8270,Sheet3!$A$3) -> 0 | CJ10: =+SUMIFS(Sheet4!$DM$2:$DM$8270,Sheet4!$C$2:$C$8270,Sheet3!$B10,Sheet4!$D$2:$D$8270,Sheet3!CJ$3,Sheet4!$E$2:$E$8270,Sheet3!CJ$4,Sheet4!$A$2:$A$8270,Sheet3!$B$1,Sheet4!$B$2:$B$8270,Sheet3!$A$3) -> 0 | CK10: =+SUMIFS(Sheet4!$DM$2:$DM$8270,Sheet4!$C$2:$C$8270,Sheet3!$B10,Sheet4!$D$2:$D$8270,Sheet3!CK$3,Sheet4!$E$2:$E$8270,Sheet3!CK$4,Sheet4!$A$2:$A$8270,Sheet3!$B$1,Sheet4!$B$2:$B$8270,Sheet3!$A$3) -> 0 | CL10: =+SUMIFS(Sheet4!$DM$2:$DM$8270,Sheet4!$C$2:$C$8270,Sheet3!$B10,Sheet4!$D$2:$D$8270,Sheet3!CL$3,Sheet4!$E$2:$E$8270,Sheet3!CL$4,Sheet4!$A$2:$A$8270,Sheet3!$B$1,Sheet4!$B$2:$B$8270,Sheet3!$A$3) -> 0 | CM10: =+SUMIFS(Sheet4!$DM$2:$DM$8270,Sheet4!$C$2:$C$8270,Sheet3!$B10,Sheet4!$D$2:$D$8270,Sheet3!CM$3,Sheet4!$E$2:$E$8270,Sheet3!CM$4,Sheet4!$A$2:$A$8270,Sheet3!$B$1,Sheet4!$B$2:$B$8270,Sheet3!$A$3) -> 0 | CN10: =+SUMIFS(Sheet4!$DM$2:$DM$8270,Sheet4!$C$2:$C$8270,Sheet3!$B10,Sheet4!$D$2:$D$8270,Sheet3!CN$3,Sheet4!$E$2:$E$8270,Sheet3!CN$4,Sheet4!$A$2:$A$8270,Sheet3!$B$1,Sheet4!$B$2:$B$8270,Sheet3!$A$3) -> 0 | CO10: =+SUMIFS(Sheet4!$DM$2:$DM$8270,Sheet4!$C$2:$C$8270,Sheet3!$B10,Sheet4!$D$2:$D$8270,Sheet3!CO$3,Sheet4!$E$2:$E$8270,Sheet3!CO$4,Sheet4!$A$2:$A$8270,Sheet3!$B$1,Sheet4!$B$2:$B$8270,Sheet3!$A$3) -> 0 | CP10: =+IF(SUMIFS(Sheet4!$DN$2:$DN$8270,Sheet4!$C$2:$C$8270,Sheet3!$B10,Sheet4!$D$2:$D$8270,Sheet3!CP$3,Sheet4!$A$2:$A$8270,Sheet3!$B$1,Sheet4!$B$2:$B$8270,Sheet3!$A$3)<3,0,SUMIFS(Sheet4!$DN$2:$DN$8270,Sheet4!$C$2:$C$8270,Sheet3!$B10,Sheet4!$D$2:$D$8270,Sheet3!CP$3,Sheet4!$A$2:$A$8270,Sheet3!$B$1,Sheet4!$B$2:$B$8270,Sheet3!$A$3)) -> 7 | CQ10: =+IF(SUMIFS(Sheet4!$DN$2:$DN$8270,Sheet4!$C$2:$C$8270,Sheet3!$B10,Sheet4!$D$2:$D$8270,Sheet3!CQ$3,Sheet4!$A$2:$A$8270,Sheet3!$B$1,Sheet4!$B$2:$B$8270,Sheet3!$A$3)<3,0,SUMIFS(Sheet4!$DN$2:$DN$8270,Sheet4!$C$2:$C$8270,Sheet3!$B10,Sheet4!$D$2:$D$8270,Sheet3!CQ$3,Sheet4!$A$2:$A$8270,Sheet3!$B$1,Sheet4!$B$2:$B$8270,Sheet3!$A$3)) -> 575 | CR10: =+IF(SUMIFS(Sheet4!$DN$2:$DN$8270,Sheet4!$C$2:$C$8270,Sheet3!$B10,Sheet4!$D$2:$D$8270,Sheet3!CR$3,Sheet4!$A$2:$A$8270,Sheet3!$B$1,Sheet4!$B$2:$B$8270,Sheet3!$A$3)<3,0,SUMIFS(Sheet4!$DN$2:$DN$8270,Sheet4!$C$2:$C$8270,Sheet3!$B10,Sheet4!$D$2:$D$8270,Sheet3!CR$3,Sheet4!$A$2:$A$8270,Sheet3!$B$1,Sheet4!$B$2:$B$8270,Sheet3!$A$3)) -> 91 | CS10: =+IF(SUMIFS(Sheet4!$DN$2:$DN$8270,Sheet4!$C$2:$C$8270,Sheet3!$B10,Sheet4!$D$2:$D$8270,Sheet3!CS$3,Sheet4!$A$2:$A$8270,Sheet3!$B$1,Sheet4!$B$2:$B$8270,Sheet3!$A$3)<3,0,SUMIFS(Sheet4!$DN$2:$DN$8270,Sheet4!$C$2:$C$8270,Sheet3!$B10,Sheet4!$D$2:$D$8270,Sheet3!CS$3,Sheet4!$A$2:$A$8270,Sheet3!$B$1,Sheet4!$B$2:$B$8270,Sheet3!$A$3)) -> 0 | CT10: =+IF(SUMIFS(Sheet4!$DN$2:$DN$8270,Sheet4!$C$2:$C$8270,Sheet3!$B10,Sheet4!$D$2:$D$8270,Sheet3!CT$3,Sheet4!$A$2:$A$8270,Sheet3!$B$1,Sheet4!$B$2:$B$8270,Sheet3!$A$3)<3,0,SUMIFS(Sheet4!$DN$2:$DN$8270,Sheet4!$C$2:$C$8270,Sheet3!$B10,Sheet4!$D$2:$D$8270,Sheet3!CT$3,Sheet4!$A$2:$A$8270,Sheet3!$B$1,Sheet4!$B$2:$B$8270,Sheet3!$A$3)) -> 0 | CU10: =+IF(SUMIFS(Sheet4!$DN$2:$DN$8270,Sheet4!$C$2:$C$8270,Sheet3!$B10,Sheet4!$D$2:$D$8270,Sheet3!CU$3,Sheet4!$A$2:$A$8270,Sheet3!$B$1,Sheet4!$B$2:$B$8270,Sheet3!$A$3)<3,0,SUMIFS(Sheet4!$DN$2:$DN$8270,Sheet4!$C$2:$C$8270,Sheet3!$B10,Sheet4!$D$2:$D$8270,Sheet3!CU$3,Sheet4!$A$2:$A$8270,Sheet3!$B$1,Sheet4!$B$2:$B$8270,Sheet3!$A$3)) -> 111 | CV10: =+IF(SUMIFS(Sheet4!$DN$2:$DN$8270,Sheet4!$C$2:$C$8270,Sheet3!$B10,Sheet4!$D$2:$D$8270,Sheet3!CV$3,Sheet4!$A$2:$A$8270,Sheet3!$B$1,Sheet4!$B$2:$B$8270,Sheet3!$A$3)<3,0,SUMIFS(Sheet4!$DN$2:$DN$8270,Sheet4!$C$2:$C$8270,Sheet3!$B10,Sheet4!$D$2:$D$8270,Sheet3!CV$3,Sheet4!$A$2:$A$8270,Sheet3!$B$1,Sheet4!$B$2:$B$8270,Sheet3!$A$3)) -> 247 | CW10: =+IF(SUMIFS(Sheet4!$DN$2:$DN$8270,Sheet4!$C$2:$C$8270,Sheet3!$B10,Sheet4!$D$2:$D$8270,Sheet3!CW$3,Sheet4!$A$2:$A$8270,Sheet3!$B$1,Sheet4!$B$2:$B$8270,Sheet3!$A$3)<3,0,SUMIFS(Sheet4!$DN$2:$DN$8270,Sheet4!$C$2:$C$8270,Sheet3!$B10,Sheet4!$D$2:$D$8270,Sheet3!CW$3,Sheet4!$A$2:$A$8270,Sheet3!$B$1,Sheet4!$B$2:$B$8270,Sheet3!$A$3)) -> 182 | CX10: =+IF(SUMIFS(Sheet4!$DN$2:$DN$8270,Sheet4!$C$2:$C$8270,Sheet3!$B10,Sheet4!$D$2:$D$8270,Sheet3!CX$3,Sheet4!$A$2:$A$8270,Sheet3!$B$1,Sheet4!$B$2:$B$8270,Sheet3!$A$3)<3,0,SUMIFS(Sheet4!$DN$2:$DN$8270,Sheet4!$C$2:$C$8270,Sheet3!$B10,Sheet4!$D$2:$D$8270,Sheet3!CX$3,Sheet4!$A$2:$A$8270,Sheet3!$B$1,Sheet4!$B$2:$B$8270,Sheet3!$A$3)) -> 4 | CY10: =+IF(SUMIFS(Sheet4!$DN$2:$DN$8270,Sheet4!$C$2:$C$8270,Sheet3!$B10,Sheet4!$D$2:$D$8270,Sheet3!CY$3,Sheet4!$A$2:$A$8270,Sheet3!$B$1,Sheet4!$B$2:$B$8270,Sheet3!$A$3)<3,0,SUMIFS(Sheet4!$DN$2:$DN$8270,Sheet4!$C$2:$C$8270,Sheet3!$B10,Sheet4!$D$2:$D$8270,Sheet3!CY$3,Sheet4!$A$2:$A$8270,Sheet3!$B$1,Sheet4!$B$2:$B$8270,Sheet3!$A$3)) -> 791 | CZ10: =+IF(SUMIFS(Sheet4!$DN$2:$DN$8270,Sheet4!$C$2:$C$8270,Sheet3!$B10,Sheet4!$D$2:$D$8270,Sheet3!CZ$3,Sheet4!$A$2:$A$8270,Sheet3!$B$1,Sheet4!$B$2:$B$8270,Sheet3!$A$3)<3,0,SUMIFS(Sheet4!$DN$2:$DN$8270,Sheet4!$C$2:$C$8270,Sheet3!$B10,Sheet4!$D$2:$D$8270,Sheet3!CZ$3,Sheet4!$A$2:$A$8270,Sheet3!$B$1,Sheet4!$B$2:$B$8270,Sheet3!$A$3)) -> 150 | DA10: =+IF(SUMIFS(Sheet4!$DN$2:$DN$8270,Sheet4!$C$2:$C$8270,Sheet3!$B10,Sheet4!$D$2:$D$8270,Sheet3!DA$3,Sheet4!$A$2:$A$8270,Sheet3!$B$1,Sheet4!$B$2:$B$8270,Sheet3!$A$3)<3,0,SUMIFS(Sheet4!$DN$2:$DN$8270,Sheet4!$C$2:$C$8270,Sheet3!$B10,Sheet4!$D$2:$D$8270,Sheet3!DA$3,Sheet4!$A$2:$A$8270,Sheet3!$B$1,Sheet4!$B$2:$B$8270,Sheet3!$A$3)) -> 452 | DB10: =+IF(SUMIFS(Sheet4!$DN$2:$DN$8270,Sheet4!$C$2:$C$8270,Sheet3!$B10,Sheet4!$D$2:$D$8270,Sheet3!DB$3,Sheet4!$A$2:$A$8270,Sheet3!$B$1,Sheet4!$B$2:$B$8270,Sheet3!$A$3)<3,0,SUMIFS(Sheet4!$DN$2:$DN$8270,Sheet4!$C$2:$C$8270,Sheet3!$B10,Sheet4!$D$2:$D$8270,Sheet3!DB$3,Sheet4!$A$2:$A$8270,Sheet3!$B$1,Sheet4!$B$2:$B$8270,Sheet3!$A$3)) -> 531 | DC10: =+IF(SUMIFS(Sheet4!$DN$2:$DN$8270,Sheet4!$C$2:$C$8270,Sheet3!$B10,Sheet4!$D$2:$D$8270,Sheet3!DC$3,Sheet4!$A$2:$A$8270,Sheet3!$B$1,Sheet4!$B$2:$B$8270,Sheet3!$A$3)<3,0,SUMIFS(Sheet4!$DN$2:$DN$8270,Sheet4!$C$2:$C$8270,Sheet3!$B10,Sheet4!$D$2:$D$8270,Sheet3!DC$3,Sheet4!$A$2:$A$8270,Sheet3!$B$1,Sheet4!$B$2:$B$8270,Sheet3!$A$3)) -> 763 | DD10: =+IF(SUMIFS(Sheet4!$DN$2:$DN$8270,Sheet4!$C$2:$C$8270,Sheet3!$B10,Sheet4!$D$2:$D$8270,Sheet3!DD$3,Sheet4!$A$2:$A$8270,Sheet3!$B$1,Sheet4!$B$2:$B$8270,Sheet3!$A$3)<3,0,SUMIFS(Sheet4!$DN$2:$DN$8270,Sheet4!$C$2:$C$8270,Sheet3!$B10,Sheet4!$D$2:$D$8270,Sheet3!DD$3,Sheet4!$A$2:$A$8270,Sheet3!$B$1,Sheet4!$B$2:$B$8270,Sheet3!$A$3)) -> 442 | DE10: =+IF(SUMIFS(Sheet4!$DN$2:$DN$8270,Sheet4!$C$2:$C$8270,Sheet3!$B10,Sheet4!$D$2:$D$8270,Sheet3!DE$3,Sheet4!$A$2:$A$8270,Sheet3!$B$1,Sheet4!$B$2:$B$8270,Sheet3!$A$3)<3,0,SUMIFS(Sheet4!$DN$2:$DN$8270,Sheet4!$C$2:$C$8270,Sheet3!$B10,Sheet4!$D$2:$D$8270,Sheet3!DE$3,Sheet4!$A$2:$A$8270,Sheet3!$B$1,Sheet4!$B$2:$B$8270,Sheet3!$A$3)) -> 585 | DF10: =+IF(SUMIFS(Sheet4!$DN$2:$DN$8270,Sheet4!$C$2:$C$8270,Sheet3!$B10,Sheet4!$D$2:$D$8270,Sheet3!DF$3,Sheet4!$A$2:$A$8270,Sheet3!$B$1,Sheet4!$B$2:$B$8270,Sheet3!$A$3)<3,0,SUMIFS(Sheet4!$DN$2:$DN$8270,Sheet4!$C$2:$C$8270,Sheet3!$B10,Sheet4!$D$2:$D$8270,Sheet3!DF$3,Sheet4!$A$2:$A$8270,Sheet3!$B$1,Sheet4!$B$2:$B$8270,Sheet3!$A$3)) -> 0 | DG10: =+IF(SUMIFS(Sheet4!$DN$2:$DN$8270,Sheet4!$C$2:$C$8270,Sheet3!$B10,Sheet4!$D$2:$D$8270,Sheet3!DG$3,Sheet4!$A$2:$A$8270,Sheet3!$B$1,Sheet4!$B$2:$B$8270,Sheet3!$A$3)<3,0,SUMIFS(Sheet4!$DN$2:$DN$8270,Sheet4!$C$2:$C$8270,Sheet3!$B10,Sheet4!$D$2:$D$8270,Sheet3!DG$3,Sheet4!$A$2:$A$8270,Sheet3!$B$1,Sheet4!$B$2:$B$8270,Sheet3!$A$3)) -> 0 | DH10: =+IF(SUMIFS(Sheet4!$DN$2:$DN$8270,Sheet4!$C$2:$C$8270,Sheet3!$B10,Sheet4!$E$2:$E$8270,Sheet3!DH$4,Sheet4!$A$2:$A$8270,Sheet3!$B$1,Sheet4!$B$2:$B$8270,Sheet3!$A$3)<3,0,SUMIFS(Sheet4!$DN$2:$DN$8270,Sheet4!$C$2:$C$8270,Sheet3!$B10,Sheet4!$E$2:$E$8270,Sheet3!DH$4,Sheet4!$A$2:$A$8270,Sheet3!$B$1,Sheet4!$B$2:$B$8270,Sheet3!$A$3)) -> 3624 | DI10: =+IF(SUMIFS(Sheet4!$DN$2:$DN$8270,Sheet4!$C$2:$C$8270,Sheet3!$B10,Sheet4!$E$2:$E$8270,Sheet3!DI$4,Sheet4!$A$2:$A$8270,Sheet3!$B$1,Sheet4!$B$2:$B$8270,Sheet3!$A$3)<3,0,SUMIFS(Sheet4!$DN$2:$DN$8270,Sheet4!$C$2:$C$8270,Sheet3!$B10,Sheet4!$E$2:$E$8270,Sheet3!DI$4,Sheet4!$A$2:$A$8270,Sheet3!$B$1,Sheet4!$B$2:$B$8270,Sheet3!$A$3)) -> 1178 | DJ10: =+IF(SUMIFS(Sheet4!$DN$2:$DN$8270,Sheet4!$C$2:$C$8270,Sheet3!$B10,Sheet4!$E$2:$E$8270,Sheet3!DJ$4,Sheet4!$A$2:$A$8270,Sheet3!$B$1,Sheet4!$B$2:$B$8270,Sheet3!$A$3)<3,0,SUMIFS(Sheet4!$DN$2:$DN$8270,Sheet4!$C$2:$C$8270,Sheet3!$B10,Sheet4!$E$2:$E$8270,Sheet3!DJ$4,Sheet4!$A$2:$A$8270,Sheet3!$B$1,Sheet4!$B$2:$B$8270,Sheet3!$A$3)) -> 131 | DK10: =+IF(SUMIFS(Sheet4!$DN$2:$DN$8270,Sheet4!$C$2:$C$8270,Sheet3!$B10,Sheet4!$E$2:$E$8270,Sheet3!DK$4,Sheet4!$A$2:$A$8270,Sheet3!$B$1,Sheet4!$B$2:$B$8270,Sheet3!$A$3)<3,0,SUMIFS(Sheet4!$DN$2:$DN$8270,Sheet4!$C$2:$C$8270,Sheet3!$B10,Sheet4!$E$2:$E$8270,Sheet3!DK$4,Sheet4!$A$2:$A$8270,Sheet3!$B$1,Sheet4!$B$2:$B$8270,Sheet3!$A$3)) -> 0 | DL10: =+IF(SUMIFS(Sheet4!$DN$2:$DN$8270,Sheet4!$C$2:$C$8270,Sheet3!$B10,Sheet4!$E$2:$E$8270,Sheet3!DL$4,Sheet4!$A$2:$A$8270,Sheet3!$B$1,Sheet4!$B$2:$B$8270,Sheet3!$A$3)<3,0,SUMIFS(Sheet4!$DN$2:$DN$8270,Sheet4!$C$2:$C$8270,Sheet3!$B10,Sheet4!$E$2:$E$8270,Sheet3!DL$4,Sheet4!$A$2:$A$8270,Sheet3!$B$1,Sheet4!$B$2:$B$8270,Sheet3!$A$3)) -> 0
